Workbook

Sheet Служебный
A1: № | B1: Номер | C1: Название команды | E1: Эти номера уже использованы | F1: Эти номера остались | G1: Эти номера команд можно использовать | H1: задания | I1: код | K1: Отметки | M1: =COUNTA(База!B:B)-1 -> 178 | O1: Время начала игры | R1: События
A2: 1 | B2: 2 | C2: 127 | E2: =IF(ISERROR(SMALL(B:B,A2)),"",SMALL(B:B,A2)) -> 1 | F2: =IF(ISERROR(VLOOKUP(A2,B:B,1,0)),A2,"") ->  | G2: =IF(ISERROR(SMALL(F:F,A2)),"",SMALL(F:F,A2)) -> 31 | H2: 1 | I2: 7СН3 | M2: =COUNTA('База выдачи'!B:B)-1 -> 209 | O2: 00:02:00
A3: 2 | B3: 3 | C3: 4x4 | E3: 2 | G3: 32 | H3: 2 | I3: D1A2 | K3: OK | O3: Длительность
A4: 3 | B4: 14 | C4: Лева&Тигра | E4: 3 | G4: 33 | H4: 3 | I4: 51FC | K4: XXXX | O4: 181 | P4: минут | Q4: =O4*60 -> 10860 | R4: секунд
A5: 4 | B5: 24 | C5: Антилопы ГНУ | E5: 4 | G5: 34 | H5: 4 | I5: 110Р | O5: Время окончания игры
A6: 5 | B6: 30 | C6: АРАБЕЛЛА | E6: 5 | G6: 35 | H6: 5 | I6: U127 | O6: =Время_начала_игры+TIME(0,O4,0) -> 03:03:00
A7: 6 | B7: 11 | C7: Артур Пирожков | E7: 6 | H7: 6 | I7: 17WC
A8: 7 | B8: 5 | C8: Атом | E8: 7 | H8: 7 | I8: W134
A9: 8 | B9: 13 | C9: Аьоке! | E9: 8 | H9: 8 | I9: S33U
A10: 9 | B10: 27 | C10: Всем пыждец | E10: 9 | H10: 9 | I10: W112
A11: 10 | B11: 20 | C11: Дети шпионов | E11: 10 | H11: J | I11: 110
A12: 11 | B12: 9 | C12: Джи 3 | E12: 11 | H12: K | I12: 111
A13: 12 | B13: 7 | C13: ПИОНЕРЫ | E13: 12 | H13: L | I13: 112
A14: 13 | B14: 8 | C14: Корпорация счастья | E14: 13 | H14: M | I14: 113
A15: 14 | B15: 16 | C15: Коты | E15: 14 | H15: N | I15: 114
A16: 15 | B16: 29 | C16: ЛеТим | E16: 15 | H16: O | I16: 115
A17: 16 | B17: 23 | C17: Мышь | E17: 16
A18: 17 | B18: 26 | C18: НеоБастардс | E18: 17
A19: 18 | B19: 15 | C19: Нефть | E19: 18
A20: 19 | B20: 21 | C20: Партизаны Германа | E20: 19
A21: 20 | C21: Пони | E21: 20
A22: 21 | B22: 22 | C22: СанчеЗ&Ко | E22: 21
A23: 22 | B23: 4 | C23: Страус | E23: 22
A24: 23 | B24: 10 | C24: Т-34 | E24: 23
A25: 24 | C25: Такси | E25: 24
A26: 25 | B26: 28 | C26: Тригада | E26: 25
A27: 26 | B27: 1 | C27: Трипыши | E27: 26
A28: 27 | B28: 19 | C28: Турбо-Зиппер | E28: 27
A29: 28 | B29: 6 | C29: Уан Туз | E29: 28
A30: 29 | B30: 25 | C30: Черный плащ | E30: 29
A31: 30 | B31: 12 | C31: Чистые лапки | E31: 30
A32: 31 | B32: 17 | C32: ЭросоМания | F32: 31
A33: 32 | B33: 18 | C33: Юнги | F33: 32
A34: 33 | F34: 33
A35: 34 | F35: 34
A36: 35 | F36: 35

Sheet Итог
A1: Место | B1: Команда | C1: Количество заданий | D1: Время
A2: 1 | B2: =VLOOKUP(Статистика!BE3,Статистика!$A$3:$B$37,2,0) -> 2-127 | C2: =IF(B2="","",VLOOKUP(B2,Статистика!$B$3:$BD$32,49,0)) -> 8 | D2: =IF(B2="","",VLOOKUP(B2,Статистика!$B$3:$BD$32,50,0)) -> 02:51:19.780
A3: 2 | B3: =VLOOKUP(Статистика!BE4,Статистика!$A$3:$B$37,2,0) -> 26-НеоБастардс | C3: =IF(B3="","",VLOOKUP(B3,Статистика!$B$3:$BD$32,49,0)) -> 8 | D3: =IF(B3="","",VLOOKUP(B3,Статистика!$B$3:$BD$32,50,0)) -> 03:02:51.270
A4: 3 | B4: =VLOOKUP(Статистика!BE5,Статистика!$A$3:$B$37,2,0) -> 9-Джи 3 | C4: =IF(B4="","",VLOOKUP(B4,Статистика!$B$3:$BD$32,49,0)) -> 7 | D4: =IF(B4="","",VLOOKUP(B4,Статистика!$B$3:$BD$32,50,0)) -> 02:23:59.360
A5: 4 | B5: =VLOOKUP(Статистика!BE6,Статистика!$A$3:$B$37,2,0) -> 17-ЭросоМания | C5: =IF(B5="","",VLOOKUP(B5,Статистика!$B$3:$BD$32,49,0)) -> 6 | D5: =IF(B5="","",VLOOKUP(B5,Статистика!$B$3:$BD$32,50,0)) -> 02:37:18.410
A6: 5 | B6: =VLOOKUP(Статистика!BE7,Статистика!$A$3:$B$37,2,0) -> 18-Юнги | C6: =IF(B6="","",VLOOKUP(B6,Статистика!$B$3:$BD$32,49,0)) -> 6 | D6: =IF(B6="","",VLOOKUP(B6,Статистика!$B$3:$BD$32,50,0)) -> 02:40:27.570
A7: 6 | B7: =VLOOKUP(Статистика!BE8,Статистика!$A$3:$B$37,2,0) -> 13-Аьоке! | C7: =IF(B7="","",VLOOKUP(B7,Статистика!$B$3:$BD$32,49,0)) -> 6 | D7: =IF(B7="","",VLOOKUP(B7,Статистика!$B$3:$BD$32,50,0)) -> 02:52:39.730
A8: 7 | B8: =VLOOKUP(Статистика!BE9,Статистика!$A$3:$B$37,2,0) -> 4-Страус | C8: =IF(B8="","",VLOOKUP(B8,Статистика!$B$3:$BD$32,49,0)) -> 6 | D8: =IF(B8="","",VLOOKUP(B8,Статистика!$B$3:$BD$32,50,0)) -> 02:55:07.310
A9: 8 | B9: =VLOOKUP(Статистика!BE10,Статистика!$A$3:$B$37,2,0) -> 25-Черный плащ | C9: =IF(B9="","",VLOOKUP(B9,Статистика!$B$3:$BD$32,49,0)) -> 6 | D9: =IF(B9="","",VLOOKUP(B9,Статистика!$B$3:$BD$32,50,0)) -> 02:55:25.040
A10: 9 | B10: =VLOOKUP(Статистика!BE11,Статистика!$A$3:$B$37,2,0) -> 5-Атом | C10: =IF(B10="","",VLOOKUP(B10,Статистика!$B$3:$BD$32,49,0)) -> 6 | D10: =IF(B10="","",VLOOKUP(B10,Статистика!$B$3:$BD$32,50,0)) -> 02:56:24.590
A11: 10 | B11: =VLOOKUP(Статистика!BE12,Статистика!$A$3:$B$37,2,0) -> 15-Нефть | C11: =IF(B11="","",VLOOKUP(B11,Статистика!$B$3:$BD$32,49,0)) -> 6 | D11: =IF(B11="","",VLOOKUP(B11,Статистика!$B$3:$BD$32,50,0)) -> 02:57:56.530
A12: 11 | B12: =VLOOKUP(Статистика!BE13,Статистика!$A$3:$B$37,2,0) -> 30-АРАБЕЛЛА | C12: =IF(B12="","",VLOOKUP(B12,Статистика!$B$3:$BD$32,49,0)) -> 6 | D12: =IF(B12="","",VLOOKUP(B12,Статистика!$B$3:$BD$32,50,0)) -> 02:59:43.410
A13: 12 | B13: =VLOOKUP(Статистика!BE14,Статистика!$A$3:$B$37,2,0) -> 21-Партизаны Германа | C13: =IF(B13="","",VLOOKUP(B13,Статистика!$B$3:$BD$32,49,0)) -> 6 | D13: =IF(B13="","",VLOOKUP(B13,Статистика!$B$3:$BD$32,50,0)) -> 03:00:14.250
A14: 13 | B14: =VLOOKUP(Статистика!BE15,Статистика!$A$3:$B$37,2,0) -> 27-Всем пыждец | C14: =IF(B14="","",VLOOKUP(B14,Статистика!$B$3:$BD$32,49,0)) -> 6 | D14: =IF(B14="","",VLOOKUP(B14,Статистика!$B$3:$BD$32,50,0)) -> 03:02:29.460
A15: 14 | B15: =VLOOKUP(Статистика!BE16,Статистика!$A$3:$B$37,2,0) -> 22-СанчеЗ&Ко | C15: =IF(B15="","",VLOOKUP(B15,Статистика!$B$3:$BD$32,49,0)) -> 5 | D15: =IF(B15="","",VLOOKUP(B15,Статистика!$B$3:$BD$32,50,0)) -> 01:47:56.470
A16: 15 | B16: =VLOOKUP(Статистика!BE17,Статистика!$A$3:$B$37,2,0) -> 8-Корпорация счастья | C16: =IF(B16="","",VLOOKUP(B16,Статистика!$B$3:$BD$32,49,0)) -> 5 | D16: =IF(B16="","",VLOOKUP(B16,Статистика!$B$3:$BD$32,50,0)) -> 02:38:28.780
A17: 16 | B17: =VLOOKUP(Статистика!BE18,Статистика!$A$3:$B$37,2,0) -> 24-Антилопы ГНУ | C17: =IF(B17="","",VLOOKUP(B17,Статистика!$B$3:$BD$32,49,0)) -> 5 | D17: =IF(B17="","",VLOOKUP(B17,Статистика!$B$3:$BD$32,50,0)) -> 02:53:29.070
A18: 17 | B18: =VLOOKUP(Статистика!BE19,Статистика!$A$3:$B$37,2,0) -> 19-Турбо-Зиппер | C18: =IF(B18="","",VLOOKUP(B18,Статистика!$B$3:$BD$32,49,0)) -> 5 | D18: =IF(B18="","",VLOOKUP(B18,Статистика!$B$3:$BD$32,50,0)) -> 03:00:46.620
A19: 18 | B19: =VLOOKUP(Статистика!BE20,Статистика!$A$3:$B$37,2,0) -> 16-Коты | C19: =IF(B19="","",VLOOKUP(B19,Статистика!$B$3:$BD$32,49,0)) -> 5 | D19: =IF(B19="","",VLOOKUP(B19,Статистика!$B$3:$BD$32,50,0)) -> 03:01:05.370
A20: 19 | B20: =VLOOKUP(Статистика!BE21,Статистика!$A$3:$B$37,2,0) -> 6-Уан Туз | C20: =IF(B20="","",VLOOKUP(B20,Статистика!$B$3:$BD$32,49,0)) -> 5 | D20: =IF(B20="","",VLOOKUP(B20,Статистика!$B$3:$BD$32,50,0)) -> 03:02:18.680
A21: 20 | B21: =VLOOKUP(Статистика!BE22,Статистика!$A$3:$B$37,2,0) -> 12-Чистые лапки | C21: =IF(B21="","",VLOOKUP(B21,Статистика!$B$3:$BD$32,49,0)) -> 5 | D21: =IF(B21="","",VLOOKUP(B21,Статистика!$B$3:$BD$32,50,0)) -> 03:03:16.770
A22: 21 | B22: =VLOOKUP(Статистика!BE23,Статистика!$A$3:$B$37,2,0) -> 7-ПИОНЕРЫ | C22: =IF(B22="","",VLOOKUP(B22,Статистика!$B$3:$BD$32,49,0)) -> 4 | D22: =IF(B22="","",VLOOKUP(B22,Статистика!$B$3:$BD$32,50,0)) -> 02:34:54.090
A23: 22 | B23: =VLOOKUP(Статистика!BE24,Статистика!$A$3:$B$37,2,0) -> 28-Тригада | C23: =IF(B23="","",VLOOKUP(B23,Статистика!$B$3:$BD$32,49,0)) -> 4 | D23: =IF(B23="","",VLOOKUP(B23,Статистика!$B$3:$BD$32,50,0)) -> 02:37:45.800
A24: 23 | B24: =VLOOKUP(Статистика!BE25,Статистика!$A$3:$B$37,2,0) -> 29-ЛеТим | C24: =IF(B24="","",VLOOKUP(B24,Статистика!$B$3:$BD$32,49,0)) -> 4 | D24: =IF(B24="","",VLOOKUP(B24,Статистика!$B$3:$BD$32,50,0)) -> 02:38:11.370
A25: 24 | B25: =VLOOKUP(Статистика!BE26,Статистика!$A$3:$B$37,2,0) -> 20-Дети шпионов | C25: =IF(B25="","",VLOOKUP(B25,Статистика!$B$3:$BD$32,49,0)) -> 4 | D25: =IF(B25="","",VLOOKUP(B25,Статистика!$B$3:$BD$32,50,0)) -> 02:39:58.920
A26: 25 | B26: =VLOOKUP(Статистика!BE27,Статистика!$A$3:$B$37,2,0) -> 23-Мышь | C26: =IF(B26="","",VLOOKUP(B26,Статистика!$B$3:$BD$32,49,0)) -> 4 | D26: =IF(B26="","",VLOOKUP(B26,Статистика!$B$3:$BD$32,50,0)) -> 02:49:49.140
A27: 26 | B27: =VLOOKUP(Статистика!BE28,Статистика!$A$3:$B$37,2,0) -> 11-Артур Пирожков | C27: =IF(B27="","",VLOOKUP(B27,Статистика!$B$3:$BD$32,49,0)) -> 4 | D27: =IF(B27="","",VLOOKUP(B27,Статистика!$B$3:$BD$32,50,0)) -> 02:59:22.990
A28: 27 | B28: =VLOOKUP(Статистика!BE29,Статистика!$A$3:$B$37,2,0) -> 10-Т-34 | C28: =IF(B28="","",VLOOKUP(B28,Статистика!$B$3:$BD$32,49,0)) -> 3 | D28: =IF(B28="","",VLOOKUP(B28,Статистика!$B$3:$BD$32,50,0)) -> 02:09:27.150
A29: 28 | B29: =VLOOKUP(Статистика!BE30,Статистика!$A$3:$B$37,2,0) -> 1-Трипыши | C29: =IF(B29="","",VLOOKUP(B29,Статистика!$B$3:$BD$32,49,0)) -> 3 | D29: =IF(B29="","",VLOOKUP(B29,Статистика!$B$3:$BD$32,50,0)) -> 02:20:10.200
A30: 29 | B30: =VLOOKUP(Статистика!BE31,Статистика!$A$3:$B$37,2,0) -> 14-Лева&Тигра | C30: =IF(B30="","",VLOOKUP(B30,Статистика!$B$3:$BD$32,49,0)) -> 3 | D30: =IF(B30="","",VLOOKUP(B30,Статистика!$B$3:$BD$32,50,0)) -> 02:28:11.470
A31: 30 | B31: =VLOOKUP(Статистика!BE32,Статистика!$A$3:$B$37,2,0) -> 3-4x4 | C31: =IF(B31="","",VLOOKUP(B31,Статистика!$B$3:$BD$32,49,0)) -> 3 | D31: =IF(B31="","",VLOOKUP(B31,Статистика!$B$3:$BD$32,50,0)) -> 02:57:05.240
A32: 31 | B32: =VLOOKUP(Статистика!BE33,Статистика!$A$3:$B$37,2,0) ->  | C32: =IF(B32="","",VLOOKUP(B32,Статистика!$B$3:$BD$32,49,0)) ->  | D32: =IF(B32="","",VLOOKUP(B32,Статистика!$B$3:$BD$32,50,0)) -> 
A33: 32 | B33: =VLOOKUP(Статистика!BE34,Статистика!$A$3:$B$37,2,0) ->  | C33: =IF(B33="","",VLOOKUP(B33,Статистика!$B$3:$BD$32,49,0)) ->  | D33: =IF(B33="","",VLOOKUP(B33,Статистика!$B$3:$BD$32,50,0)) -> 
A34: 33 | B34: =VLOOKUP(Статистика!BE35,Статистика!$A$3:$B$37,2,0) ->  | C34: =IF(B34="","",VLOOKUP(B34,Статистика!$B$3:$BD$32,49,0)) ->  | D34: =IF(B34="","",VLOOKUP(B34,Статистика!$B$3:$BD$32,50,0)) -> 
A35: 34 | B35: =VLOOKUP(Статистика!BE36,Статистика!$A$3:$B$37,2,0) ->  | C35: =IF(B35="","",VLOOKUP(B35,Статистика!$B$3:$BD$32,49,0)) ->  | D35: =IF(B35="","",VLOOKUP(B35,Статистика!$B$3:$BD$32,50,0)) -> 
A36: 35 | B36: =VLOOKUP(Статистика!BE37,Статистика!$A$3:$B$37,2,0) ->  | C36: =IF(B36="","",VLOOKUP(B36,Статистика!$B$3:$BD$32,49,0)) ->  | D36: =IF(B36="","",VLOOKUP(B36,Статистика!$B$3:$BD$32,50,0)) -> 

Sheet Задания
A1: № | B1: Команды | C1: 1 | D1: 2 | E1: 3 | F1: 4 | G1: 5 | H1: 6 | I1: 7 | J1: 8 | K1: 9 | L1: 10 | M1: 11 | N1: 12 | O1: 13 | P1: 14 | Q1: 15
A2: 1 | B2: =Статистика!B3 -> 1-Трипыши | C2: 1 | D2: 3 | E2: 5 | F2: 2 | G2: 4 | H2: 6 | I2: 8 | J2: 7 | K2: 9 | L2: J | M2: K | N2: L | O2: M | P2: N | Q2: O
A3: 2 | B3: =Статистика!B4 -> 2-127 | C3: 2 | D3: 4 | E3: 3 | F3: 5 | G3: 6 | H3: 7 | I3: 9 | J3: 8 | K3: 1 | L3: I | M3: J | N3: K | O3: L | P3: M | Q3: N
A4: 3 | B4: =Статистика!B5 -> 3-4x4 | C4: 3 | D4: 5 | E4: 2 | F4: 6 | G4: 9 | H4: 8 | I4: 4 | J4: 1 | K4: 7 | L4: H | M4: I | N4: J | O4: K | P4: L | Q4: M
A5: 4 | B5: =Статистика!B6 -> 4-Страус | C5: 4 | D5: 6 | E5: 1 | F5: 7 | G5: 8 | H5: 9 | I5: 5 | J5: 3 | K5: 2 | L5: G | M5: H | N5: I | O5: J | P5: K | Q5: L
A6: 5 | B6: =Статистика!B7 -> 5-Атом | C6: 5 | D6: 2 | E6: 4 | F6: 8 | G6: 1 | H6: 3 | I6: 7 | J6: 9 | K6: 6 | L6: F | M6: G | N6: H | O6: I | P6: J | Q6: K
A7: 6 | B7: =Статистика!B8 -> 6-Уан Туз | C7: 6 | D7: 1 | E7: 9 | F7: 3 | G7: 7 | H7: 4 | I7: 2 | J7: 5 | K7: 8 | L7: E | M7: F | N7: G | O7: H | P7: I | Q7: J
A8: 7 | B8: =Статистика!B9 -> 7-ПИОНЕРЫ | C8: 7 | D8: 9 | E8: 8 | F8: 1 | G8: 3 | H8: 5 | I8: 6 | J8: 2 | K8: 4 | L8: D | M8: E | N8: F | O8: G | P8: H | Q8: I
A9: 8 | B9: =Статистика!B10 -> 8-Корпорация счастья | C9: 8 | D9: 7 | E9: 6 | F9: 9 | G9: 5 | H9: 2 | I9: 1 | J9: 4 | K9: 3 | L9: C | M9: D | N9: E | O9: F | P9: G | Q9: H
A10: 9 | B10: =Статистика!B11 -> 9-Джи 3 | C10: 9 | D10: 8 | E10: 7 | F10: 4 | G10: 2 | H10: 1 | I10: 3 | J10: 6 | K10: 5 | L10: B | M10: C | N10: D | O10: E | P10: F | Q10: G
A11: 10 | B11: =Статистика!B12 -> 10-Т-34 | C11: 1 | D11: 5 | E11: 3 | F11: 7 | G11: 2 | H11: 9 | I11: 4 | J11: 8 | K11: 6 | L11: A | M11: B | N11: C | O11: D | P11: E | Q11: F
A12: 11 | B12: =Статистика!B13 -> 11-Артур Пирожков | C12: 2 | D12: 4 | E12: 6 | F12: 8 | G12: 1 | H12: 3 | I12: 5 | J12: 7 | K12: 9 | L12: O | M12: A | N12: B | O12: C | P12: D | Q12: E
A13: 12 | B13: =Статистика!B14 -> 12-Чистые лапки | C13: 3 | D13: 1 | E13: 8 | F13: 6 | G13: 4 | H13: 5 | I13: 7 | J13: 9 | K13: 2 | L13: N | M13: O | N13: A | O13: B | P13: C | Q13: D
A14: 13 | B14: =Статистика!B15 -> 13-Аьоке! | C14: 4 | D14: 8 | E14: 5 | F14: 2 | G14: 3 | H14: 7 | I14: 9 | J14: 6 | K14: 1 | L14: M | M14: N | N14: O | O14: A | P14: B | Q14: C
A15: 14 | B15: =Статистика!B16 -> 14-Лева&Тигра | C15: 5 | D15: 7 | E15: 1 | F15: 4 | G15: 9 | H15: 6 | I15: 8 | J15: 2 | K15: 3 | L15: L | M15: M | N15: N | O15: O | P15: A | Q15: B
A16: 15 | B16: =Статистика!B17 -> 15-Нефть | C16: 6 | D16: 9 | E16: 4 | F16: 5 | G16: 8 | H16: 2 | I16: 1 | J16: 3 | K16: 7 | L16: K | M16: L | N16: M | O16: N | P16: O | Q16: A
A17: 16 | B17: =Статистика!B18 -> 16-Коты | C17: 7 | D17: 3 | E17: 9 | F17: 1 | G17: 6 | H17: 8 | I17: 2 | J17: 5 | K17: 4 | L17: J | M17: K | N17: L | O17: M | P17: N | Q17: O
A18: 17 | B18: =Статистика!B19 -> 17-ЭросоМания | C18: 8 | D18: 6 | E18: 2 | F18: 9 | G18: 7 | H18: 4 | I18: 3 | J18: 1 | K18: 5 | L18: I | M18: J | N18: K | O18: L | P18: M | Q18: N
A19: 18 | B19: =Статистика!B20 -> 18-Юнги | C19: 9 | D19: 2 | E19: 7 | F19: 3 | G19: 5 | H19: 1 | I19: 6 | J19: 4 | K19: 8 | L19: H | M19: I | N19: J | O19: K | P19: L | Q19: M
A20: 19 | B20: =Статистика!B21 -> 19-Турбо-Зиппер | C20: 1 | D20: 5 | E20: 2 | F20: 9 | G20: 8 | H20: 3 | I20: 4 | J20: 6 | K20: 7 | L20: G | M20: H | N20: I | O20: J | P20: K | Q20: L
A21: 20 | B21: =Статистика!B22 -> 20-Дети шпионов | C21: 2 | D21: 6 | E21: 3 | F21: 8 | G21: 1 | H21: 4 | I21: 5 | J21: 7 | K21: 9 | L21: F | M21: G | N21: H | O21: I | P21: J | Q21: K
A22: 21 | B22: =Статистика!B23 -> 21-Партизаны Германа | C22: 3 | D22: 1 | E22: 8 | F22: 4 | G22: 9 | H22: 7 | I22: 2 | J22: 5 | K22: 6 | L22: E | M22: F | N22: G | O22: H | P22: I | Q22: J
A23: 22 | B23: =Статистика!B24 -> 22-СанчеЗ&Ко | C23: 4 | D23: 7 | E23: 5 | F23: 3 | G23: 2 | H23: 1 | I23: 6 | J23: 9 | K23: 8 | L23: D | M23: E | N23: F | O23: G | P23: H | Q23: I
A24: 23 | B24: =Статистика!B25 -> 23-Мышь | C24: 5 | D24: 3 | E24: 4 | F24: 7 | G24: 6 | H24: 8 | I24: 9 | J24: 1 | K24: 2 | L24: C | M24: D | N24: E | O24: F | P24: G | Q24: H
A25: 24 | B25: =Статистика!B26 -> 24-Антилопы ГНУ | C25: 6 | D25: 9 | E25: 1 | F25: 2 | G25: 7 | H25: 5 | I25: 8 | J25: 4 | K25: 3 | L25: B | M25: C | N25: D | O25: E | P25: F | Q25: G
A26: 25 | B26: =Статистика!B27 -> 25-Черный плащ | C26: 7 | D26: 2 | E26: 6 | F26: 5 | G26: 3 | H26: 9 | I26: 1 | J26: 8 | K26: 4 | L26: A | M26: B | N26: C | O26: D | P26: E | Q26: F
A27: 26 | B27: =Статистика!B28 -> 26-НеоБастардс | C27: 8 | D27: 4 | E27: 9 | F27: 6 | G27: 5 | H27: 2 | I27: 7 | J27: 3 | K27: 1 | L27: O | M27: A | N27: B | O27: C | P27: D | Q27: E
A28: 27 | B28: =Статистика!B29 -> 27-Всем пыждец | C28: 9 | D28: 8 | E28: 7 | F28: 1 | G28: 4 | H28: 6 | I28: 3 | J28: 2 | K28: 5 | L28: N | M28: O | N28: A | O28: B | P28: C | Q28: D
A29: 28 | B29: =Статистика!B30 -> 28-Тригада | C29: 1 | D29: 3 | E29: 5 | F29: 2 | G29: 4 | H29: 6 | I29: 8 | J29: 9 | K29: 7 | L29: M | M29: N | N29: O | O29: A | P29: B | Q29: C
A30: 29 | B30: =Статистика!B31 -> 29-ЛеТим | C30: 2 | D30: 4 | E30: 6 | F30: 8 | G30: 9 | H30: 1 | I30: 3 | J30: 7 | K30: 5 | L30: L | M30: M | N30: N | O30: O | P30: A | Q30: B
A31: 30 | B31: =Статистика!B32 -> 30-АРАБЕЛЛА | C31: 3 | D31: 5 | E31: 7 | F31: 9 | G31: 1 | H31: 2 | I31: 4 | J31: 8 | K31: 6 | L31: K | M31: L | N31: M | O31: N | P31: O | Q31: A
A32: 31 | C32: 4 | D32: 2 | E32: 3 | F32: 5 | G32: 8 | H32: 9 | I32: 7 | J32: 6 | K32: 1 | L32: J | M32: K | N32: L | O32: M | P32: N | Q32: O
A33: 32 | C33: 5 | D33: 6 | E33: 9 | F33: 3 | G33: 2 | H33: 7 | I33: 1 | J33: 4 | K33: 8 | L33: I | M33: J | N33: K | O33: L | P33: M | Q33: N
A34: 33 | C34: 6 | D34: 8 | E34: 2 | F34: 7 | G34: 3 | H34: 5 | I34: 9 | J34: 1 | K34: 4 | L34: H | M34: I | N34: J | O34: K | P34: L | Q34: M
A35: 34 | C35: 7 | D35: 9 | E35: 8 | F35: 1 | G35: 6 | H35: 4 | I35: 5 | J35: 3 | K35: 2 | L35: G | M35: H | N35: I | O35: J | P35: K | Q35: L
A36: 35 | C36: 8 | D36: 1 | E36: 4 | F36: 6 | G36: 7 | H36: 3 | I36: 2 | J36: 5 | K36: 9 | L36: F | M36: G | N36: H | O36: I | P36: J | Q36: K

Sheet База (hidden)
A1: Код | B1: Команда | C1: Порядковый номер задания | D1: Задание | E1: Отметка | F1: Время отметки | G1: Время выполнения
A2: 18-Юнги-1 | B2: 18-Юнги | C2: 1 | D2: 9 | E2: OK | F2: 00:24:13.320 | G2: 00:22:14.720
A3: 27-Всем пыждец-1 | B3: 27-Всем пыждец | C3: 1 | D3: 9 | E3: OK | F3: 00:25:06.620 | G3: 00:23:08.060
A4: 8-Корпорация счастья-1 | B4: 8-Корпорация счастья | C4: 1 | D4: 8 | E4: OK | F4: 00:25:26.230 | G4: 00:23:27.650
A5: 16-Коты-1 | B5: 16-Коты | C5: 1 | D5: 7 | E5: OK | F5: 00:25:41.500 | G5: 00:23:42.910
A6: 25-Черный плащ-1 | B6: 25-Черный плащ | C6: 1 | D6: 7 | E6: OK | F6: 00:26:00.240 | G6: 00:24:01.640
A7: 26-НеоБастардс-1 | B7: 26-НеоБастардс | C7: 1 | D7: 8 | E7: OK | F7: 00:27:58.940 | G7: 00:26:00.330
A8: 9-Джи 3-1 | B8: 9-Джи 3 | C8: 1 | D8: 9 | E8: OK | F8: 00:28:16.780 | G8: 00:26:18.200
A9: 15-Нефть-1 | B9: 15-Нефть | C9: 1 | D9: 6 | E9: OK | F9: 00:30:23.050 | G9: 00:28:24.450
A10: 30-АРАБЕЛЛА-1 | B10: 30-АРАБЕЛЛА | C10: 1 | D10: 3 | E10: OK | F10: 00:30:42.910 | G10: 00:28:44.310
A11: 17-ЭросоМания-1 | B11: 17-ЭросоМания | C11: 1 | D11: 8 | E11: OK | F11: 00:32:04.120 | G11: 00:30:05.510
A12: 12-Чистые лапки-1 | B12: 12-Чистые лапки | C12: 1 | D12: 3 | E12: OK | F12: 00:33:45.540 | G12: 00:31:46.930
A13: 3-4x4-1 | B13: 3-4x4 | C13: 1 | D13: 3 | E13: OK | F13: 00:34:01.140 | G13: 00:32:02.540
A14: 15-Нефть-2 | B14: 15-Нефть | C14: 2 | D14: 9 | E14: OK | F14: 00:35:52.490 | G14: 00:05:29.210
A15: 2-127-1 | B15: 2-127 | C15: 1 | D15: 2 | E15: OK | F15: 00:36:29.420 | G15: 00:34:30.810
A16: 16-Коты-2 | B16: 16-Коты | C16: 2 | D16: 3 | E16: OK | F16: 00:38:06.460 | G16: 00:12:24.730
A17: 22-СанчеЗ&Ко-1 | B17: 22-СанчеЗ&Ко | C17: 1 | D17: 4 | E17: OK | F17: 00:39:37.710 | G17: 00:37:39.130
A18: 29-ЛеТим-1 | B18: 29-ЛеТим | C18: 1 | D18: 2 | E18: OK | F18: 00:42:14.960 | G18: 00:40:16.350
A19: 5-Атом-1 | B19: 5-Атом | C19: 1 | D19: 5 | E19: XXXX | F19: 00:43:06.560 | G19: 00:41:07.970
A20: 27-Всем пыждец-2 | B20: 27-Всем пыждец | C20: 2 | D20: 8 | E20: OK | F20: 00:43:28.350 | G20: 00:18:21.500
A21: 23-Мышь -1 | B21: 23-Мышь | C21: 1 | D21: 5 | E21: XXXX | F21: 00:43:53.920 | G21: 00:41:55.330
A22: 20-Дети шпионов-1 | B22: 20-Дети шпионов | C22: 1 | D22: 2 | E22: OK | F22: 00:44:09.730 | G22: 00:42:11.150
A23: 8-Корпорация счастья-2 | B23: 8-Корпорация счастья | C23: 2 | D23: 7 | E23: OK | F23: 00:44:49.080 | G23: 00:19:22.610
A24: 11-Артур Пирожков-1 | B24: 11-Артур Пирожков | C24: 1 | D24: 2 | E24: OK | F24: 00:45:38.930 | G24: 00:43:40.330
A25: 26-НеоБастардс-2 | B25: 26-НеоБастардс | C25: 2 | D25: 4 | E25: OK | F25: 00:45:49.130 | G25: 00:17:49.970
A26: 4-Страус-1 | B26: 4-Страус | C26: 1 | D26: 4 | E26: OK | F26: 00:49:48.060 | G26: 00:47:49.490
A27: 24-Антилопы ГНУ-1 | B27: 24-Антилопы ГНУ | C27: 1 | D27: 6 | E27: XXXX | F27: 00:50:19.870 | G27: 00:48:21.270
A28: 2-127-2 | B28: 2-127 | C28: 2 | D28: 4 | E28: OK | F28: 00:50:34.560 | G28: 00:14:04.920
A29: 15-Нефть-3 | B29: 15-Нефть | C29: 3 | D29: 4 | E29: OK | F29: 00:51:45.450 | G29: 00:15:52.690
A30: 22-СанчеЗ&Ко-2 | B30: 22-СанчеЗ&Ко | C30: 2 | D30: 7 | E30: OK | F30: 00:53:17.410 | G30: 00:13:39.430
A31: 10-Т-34-1 | B31: 10-Т-34 | C31: 1 | D31: 1 | E31: XXXX | F31: 00:54:33.010 | G31: 00:52:34.410
A32: 9-Джи 3-2 | B32: 9-Джи 3 | C32: 2 | D32: 8 | E32: OK | F32: 00:54:48.560 | G32: 00:26:31.560
A33: 25-Черный плащ-2 | B33: 25-Черный плащ | C33: 2 | D33: 2 | E33: OK | F33: 00:56:17.470 | G33: 00:30:16.990
A34: 13-Аьоке!-1 | B34: 13-Аьоке! | C34: 1 | D34: 4 | E34: OK | F34: 00:56:26.790 | G34: 00:54:28.200
A35: 2-127-3 | B35: 2-127 | C35: 3 | D35: 3 | E35: OK | F35: 00:56:39.200 | G35: 00:06:04.390
A36: 6-Уан Туз-1 | B36: 6-Уан Туз | C36: 1 | D36: 6 | E36: XXXX | F36: 00:58:34.040 | G36: 00:56:35.480
A37: 16-Коты-3 | B37: 16-Коты | C37: 3 | D37: 9 | E37: OK | F37: 00:59:41.230 | G37: 00:21:34.520
A38: 18-Юнги-2 | B38: 18-Юнги | C38: 2 | D38: 2 | E38: OK | F38: 00:59:49.640 | G38: 00:35:36.070
A39: 24-Антилопы ГНУ-2 | B39: 24-Антилопы ГНУ | C39: 2 | D39: 9 | E39: OK | F39: 01:02:53.640 | G39: 00:12:33.520
A40: 15-Нефть-4 | B40: 15-Нефть | C40: 4 | D40: 5 | E40: OK | F40: 01:03:24.240 | G40: 00:11:38.540
A41: 30-АРАБЕЛЛА-2 | B41: 30-АРАБЕЛЛА | C41: 2 | D41: 5 | E41: OK | F41: 01:03:36.220 | G41: 00:32:53.070
A42: 27-Всем пыждец-3 | B42: 27-Всем пыждец | C42: 3 | D42: 7 | E42: OK | F42: 01:03:55.140 | G42: 00:20:26.550
A43: 17-ЭросоМания-2 | B43: 17-ЭросоМания | C43: 2 | D43: 6 | E43: XXXX | F43: 01:04:26.760 | G43: 00:32:22.410
A44: 3-4x4-2 | B44: 3-4x4 | C44: 2 | D44: 5 | E44: OK | F44: 01:05:02.970 | G44: 00:31:01.550
A45: 23-Мышь -2 | B45: 23-Мышь | C45: 2 | D45: 3 | E45: OK | F45: 01:05:28.660 | G45: 00:21:34.500
A46: 5-Атом-2 | B46: 5-Атом | C46: 2 | D46: 2 | E46: OK | F46: 01:06:09.840 | G46: 00:23:03.140
A47: 26-НеоБастардс-3 | B47: 26-НеоБастардс | C47: 3 | D47: 9 | E47: OK | F47: 01:06:53.490 | G47: 00:21:04.120
A48: 29-ЛеТим-2 | B48: 29-ЛеТим | C48: 2 | D48: 4 | E48: OK | F48: 01:07:52.230 | G48: 00:25:37.050
A49: 14-Лева&Тигра-1 | B49: 14-Лева&Тигра | C49: 1 | D49: 5 | E49: OK | F49: 01:08:03.520 | G49: 01:06:04.940
A50: 19-Турбо-Зиппер-1 | B50: 19-Турбо-Зиппер | C50: 1 | D50: 1 | E50: XXXX | F50: 01:10:04.500 | G50: 01:08:05.920
A51: 2-127-4 | B51: 2-127 | C51: 4 | D51: 5 | E51: OK | F51: 01:10:24.970 | G51: 00:13:45.470
A52: 22-СанчеЗ&Ко-3 | B52: 22-СанчеЗ&Ко | C52: 3 | D52: 5 | E52: OK | F52: 01:10:44.980 | G52: 00:17:27.300
A53: 10-Т-34-2 | B53: 10-Т-34 | C53: 2 | D53: 5 | E53: OK | F53: 01:10:58.550 | G53: 00:16:25.290
A54: 1-Трипыши-1 | B54: 1-Трипыши | C54: 1 | D54: 1 | E54: XXXX | F54: 01:13:59.030 | G54: 01:12:00.430
A55: 30-АРАБЕЛЛА-3 | B55: 30-АРАБЕЛЛА | C55: 3 | D55: 7 | E55: OK | F55: 01:17:17.420 | G55: 00:13:40.940
A56: 11-Артур Пирожков-2 | B56: 11-Артур Пирожков | C56: 2 | D56: 4 | E56: OK | F56: 01:17:46.340 | G56: 00:32:07.190
A57: 13-Аьоке!-2 | B57: 13-Аьоке! | C57: 2 | D57: 8 | E57: OK | F57: 01:19:23.650 | G57: 00:22:56.590
A58: 18-Юнги-3 | B58: 18-Юнги | C58: 3 | D58: 7 | E58: OK | F58: 01:19:54.650 | G58: 00:20:04.720
A59: 26-НеоБастардс-4 | B59: 26-НеоБастардс | C59: 4 | D59: 6 | E59: OK | F59: 01:20:27.670 | G59: 00:13:33.900
A60: 25-Черный плащ-3 | B60: 25-Черный плащ | C60: 3 | D60: 6 | E60: OK | F60: 01:20:38.300 | G60: 00:24:20.580
A61: 14-Лева&Тигра-2 | B61: 14-Лева&Тигра | C61: 2 | D61: 7 | E61: OK | F61: 01:20:49.720 | G61: 00:12:45.890
A62: 12-Чистые лапки-2 | B62: 12-Чистые лапки | C62: 2 | D62: 1 | E62: XXXX | F62: 01:21:28.510 | G62: 00:47:42.760
A63: 9-Джи 3-3 | B63: 9-Джи 3 | C63: 3 | D63: 7 | E63: OK | F63: 01:22:04.920 | G63: 00:27:16.080
A64: 5-Атом-3 | B64: 5-Атом | C64: 3 | D64: 4 | E64: OK | F64: 01:22:35.590 | G64: 00:16:25.360
A65: 15-Нефть-5 | B65: 15-Нефть | C65: 5 | D65: 8 | E65: OK | F65: 01:23:57.060 | G65: 00:20:32.540
A66: 21-Партизаны Германа-1 | B66: 21-Партизаны Германа | C66: 1 | D66: 3 | E66: OK | F66: 01:24:44.360 | G66: 01:22:45.760
A67: 23-Мышь -3 | B67: 23-Мышь | C67: 3 | D67: 4 | E67: OK | F67: 01:26:19.060 | G67: 00:20:50.120
A68: 21-Партизаны Германа-2 | B68: 21-Партизаны Германа | C68: 2 | D68: 1 | E68: XXXX | F68: 01:26:57.640 | G68: 00:02:13
A69: 22-СанчеЗ&Ко-4 | B69: 22-СанчеЗ&Ко | C69: 4 | D69: 3 | E69: OK | F69: 01:29:22.640 | G69: 00:18:37.390
A70: 17-ЭросоМания-3 | B70: 17-ЭросоМания | C70: 3 | D70: 2 | E70: OK | F70: 01:30:27.130 | G70: 00:26:00.080
A71: 20-Дети шпионов-2 | B71: 20-Дети шпионов | C71: 2 | D71: 6 | E71: XXXX | F71: 01:30:55.030 | G71: 00:46:45.020
A72: 8-Корпорация счастья-3 | B72: 8-Корпорация счастья | C72: 3 | D72: 6 | E72: XXXX | F72: 01:31:08.630 | G72: 00:46:19.290
A73: 1-Трипыши-2 | B73: 1-Трипыши | C73: 2 | D73: 3 | E73: OK | F73: 01:32:05.590 | G73: 00:18:06.270
A74: 26-НеоБастардс-5 | B74: 26-НеоБастардс | C74: 5 | D74: 5 | E74: OK | F74: 01:32:32.730 | G74: 00:12:04.750
A75: 4-Страус-2 | B75: 4-Страус | C75: 2 | D75: 6 | E75: OK | F75: 01:36:08.900 | G75: 00:46:20.580
A76: 28-Тригада-1 | B76: 28-Тригада | C76: 1 | D76: 1 | E76: OK | F76: 01:36:24.620 | G76: 01:34:26.040
A77: 9-Джи 3-4 | B77: 9-Джи 3 | C77: 4 | D77: 4 | E77: OK | F77: 01:36:43.950 | G77: 00:14:38.720
A78: 18-Юнги-4 | B78: 18-Юнги | C78: 4 | D78: 3 | E78: OK | F78: 01:37:23.050 | G78: 00:17:28.140
A79: 5-Атом-4 | B79: 5-Атом | C79: 4 | D79: 8 | E79: OK | F79: 01:37:42.060 | G79: 00:15:06.140
A80: 24-Антилопы ГНУ-3 | B80: 24-Антилопы ГНУ | C80: 3 | D80: 1 | E80: XXXX | F80: 01:39:25.550 | G80: 00:36:31.630
A81: 10-Т-34-3 | B81: 10-Т-34 | C81: 3 | D81: 3 | E81: OK | F81: 01:39:43.740 | G81: 00:28:44.940
A82: 23-Мышь -4 | B82: 23-Мышь | C82: 4 | D82: 7 | E82: OK | F82: 01:39:57.210 | G82: 00:13:37.820
A83: 2-127-5 | B83: 2-127 | C83: 5 | D83: 6 | E83: OK | F83: 01:40:18.140 | G83: 00:29:52.860
A84: 12-Чистые лапки-3 | B84: 12-Чистые лапки | C84: 3 | D84: 8 | E84: OK | F84: 01:40:36.500 | G84: 00:19:07.680
A85: 6-Уан Туз-2 | B85: 6-Уан Туз | C85: 2 | D85: 1 | E85: XXXX | F85: 01:42:13.080 | G85: 00:43:38.780
A86: 20-Дети шпионов-3 | B86: 20-Дети шпионов | C86: 3 | D86: 3 | E86: OK | F86: 01:43:24.760 | G86: 00:12:29.390
A87: 8-Корпорация счастья-4 | B87: 8-Корпорация счастья | C87: 4 | D87: 9 | E87: OK | F87: 01:43:40.380 | G87: 00:12:31.430
A88: 16-Коты-4 | B88: 16-Коты | C88: 4 | D88: 1 | E88: XXXX | F88: 01:45:49.270 | G88: 00:46:07.780
A89: 3-4x4-3 | B89: 3-4x4 | C89: 3 | D89: 2 | E89: XXXX | F89: 01:46:37.060 | G89: 00:41:33.880
A90: 17-ЭросоМания-4 | B90: 17-ЭросоМания | C90: 4 | D90: 9 | E90: OK | F90: 01:47:03.600 | G90: 00:16:36.130
A91: 22-СанчеЗ&Ко-5 | B91: 22-СанчеЗ&Ко | C91: 5 | D91: 2 | E91: OK | F91: 01:47:56.470 | G91: 00:18:33.470
A92: 27-Всем пыждец-4 | B92: 27-Всем пыждец | C92: 4 | D92: 1 | E92: XXXX | F92: 01:48:17.220 | G92: 00:44:21.810
A93: 19-Турбо-Зиппер-2 | B93: 19-Турбо-Зиппер | C93: 2 | D93: 5 | E93: OK | F93: 01:48:48.590 | G93: 00:38:43.800
A94: 9-Джи 3-5 | B94: 9-Джи 3 | C94: 5 | D94: 2 | E94: OK | F94: 01:49:04.560 | G94: 00:12:20.250
A95: 18-Юнги-5 | B95: 18-Юнги | C95: 5 | D95: 5 | E95: OK | F95: 01:49:14.470 | G95: 00:11:51.030
A96: 25-Черный плащ-4 | B96: 25-Черный плащ | C96: 4 | D96: 5 | E96: OK | F96: 01:49:29.100 | G96: 00:28:50.500
A97: 1-Трипыши-3 | B97: 1-Трипыши | C97: 3 | D97: 5 | E97: OK | F97: 01:49:39.190 | G97: 00:17:33.300
A98: 13-Аьоке!-3 | B98: 13-Аьоке! | C98: 3 | D98: 5 | E98: OK | F98: 01:50:37.370 | G98: 00:31:13.430
A99: 4-Страус-3 | B99: 4-Страус | C99: 3 | D99: 1 | E99: OK | F99: 01:50:54.140 | G99: 00:14:44.910
A100: 28-Тригада-2 | B100: 28-Тригада | C100: 2 | D100: 3 | E100: OK | F100: 01:54:12.710 | G100: 00:17:47.710
A101: 2-127-6 | B101: 2-127 | C101: 6 | D101: 7 | E101: OK | F101: 01:55:04.060 | G101: 00:14:45.610
A102: 30-АРАБЕЛЛА-4 | B102: 30-АРАБЕЛЛА | C102: 4 | D102: 9 | E102: OK | F102: 01:55:25.220 | G102: 00:38:07.500
A103: 27-Всем пыждец-5 | B103: 27-Всем пыждец | C103: 5 | D103: 4 | E103: OK | F103: 01:58:01.800 | G103: 00:09:44.200
A104: 8-Корпорация счастья-5 | B104: 8-Корпорация счастья | C104: 5 | D104: 5 | E104: OK | F104: 01:59:13.270 | G104: 00:15:32.540
A105: 21-Партизаны Германа-3 | B105: 21-Партизаны Германа | C105: 3 | D105: 8 | E105: OK | F105: 01:59:36.190 | G105: 00:32:38.220
A106: 24-Антилопы ГНУ-4 | B106: 24-Антилопы ГНУ | C106: 4 | D106: 2 | E106: OK | F106: 01:59:54.710 | G106: 00:20:28.820
A107: 29-ЛеТим-3 | B107: 29-ЛеТим | C107: 3 | D107: 6 | E107: XXXX | F107: 02:01:08.310 | G107: 00:53:15.820
A108: 17-ЭросоМания-5 | B108: 17-ЭросоМания | C108: 5 | D108: 7 | E108: OK | F108: 02:02:10.440 | G108: 00:15:06.500
A109: 6-Уан Туз-3 | B109: 6-Уан Туз | C109: 3 | D109: 9 | E109: OK | F109: 02:05:10.120 | G109: 00:22:56.680
A110: 15-Нефть-6 | B110: 15-Нефть | C110: 6 | D110: 2 | E110: XXXX | F110: 02:06:09.580 | G110: 00:42:12.290
A111: 19-Турбо-Зиппер-3 | B111: 19-Турбо-Зиппер | C111: 3 | D111: 2 | E111: OK | F111: 02:06:32.660 | G111: 00:17:43.700
A112: 9-Джи 3-6 | B112: 9-Джи 3 | C112: 6 | D112: 1 | E112: OK | F112: 02:06:46.330 | G112: 00:17:41.400
A113: 21-Партизаны Германа-4 | B113: 21-Партизаны Германа | C113: 4 | D113: 4 | E113: OK | F113: 02:08:54.730 | G113: 00:09:18.150
A114: 20-Дети шпионов-4 | B114: 20-Дети шпионов | C114: 4 | D114: 8 | E114: OK | F114: 02:09:06.400 | G114: 00:25:41.310
A115: 21-Партизаны Германа-5 | B115: 21-Партизаны Германа | C115: 5 | D115: 9 | E115: OK | F115: 02:09:14.860 | G115: 00:00:19.720
A116: 10-Т-34-4 | B116: 10-Т-34 | C116: 4 | D116: 7 | E116: OK | F116: 02:09:27.150 | G116: 00:29:43.020
A117: 4-Страус-4 | B117: 4-Страус | C117: 4 | D117: 7 | E117: OK | F117: 02:09:35.530 | G117: 00:18:41
A118: 25-Черный плащ-5 | B118: 25-Черный плащ | C118: 5 | D118: 3 | E118: OK | F118: 02:09:50.740 | G118: 00:20:21.250
A119: 28-Тригада-3 | B119: 28-Тригада | C119: 3 | D119: 5 | E119: OK | F119: 02:10:49 | G119: 00:16:35.950
A120: 7-ПИОНЕРЫ-1 | B120: 7-ПИОНЕРЫ | C120: 1 | D120: 7 | E120: OK | F120: 02:12:34.680 | G120: 02:10:36.100
A121: 7-ПИОНЕРЫ-2 | B121: 7-ПИОНЕРЫ | C121: 2 | D121: 9 | E121: OK | F121: 02:13:01.450 | G121: 00:00:26.350
A122: 7-ПИОНЕРЫ-4 | B122: 7-ПИОНЕРЫ | C122: 4 | D122: 1 | E122: OK | F122: 02:13:16.780 | G122: 00:00:14.950
A123: 2-127-7 | B123: 2-127 | C123: 7 | D123: 9 | E123: OK | F123: 02:14:40.480 | G123: 00:19:36.030
A124: 29-ЛеТим-4 | B124: 29-ЛеТим | C124: 4 | D124: 8 | E124: OK | F124: 02:15:00.190 | G124: 00:13:51.510
A125: 5-Атом-5 | B125: 5-Атом | C125: 5 | D125: 1 | E125: XXXX | F125: 02:15:20.930 | G125: 00:37:38.530
A126: 24-Антилопы ГНУ-5 | B126: 24-Антилопы ГНУ | C126: 5 | D126: 7 | E126: OK | F126: 02:17:27.830 | G126: 00:17:32.770
A127: 13-Аьоке!-4 | B127: 13-Аьоке! | C127: 4 | D127: 2 | E127: OK | F127: 02:17:59.280 | G127: 00:27:21.520
A128: 1-Трипыши-4 | B128: 1-Трипыши | C128: 4 | D128: 2 | E128: OK | F128: 02:20:10.200 | G128: 00:30:30.580
A129: 17-ЭросоМания-6 | B129: 17-ЭросоМания | C129: 6 | D129: 4 | E129: OK | F129: 02:20:21.240 | G129: 00:18:10.410
A130: 6-Уан Туз-4 | B130: 6-Уан Туз | C130: 4 | D130: 3 | E130: OK | F130: 02:20:40.800 | G130: 00:15:30.290
A131: 12-Чистые лапки-4 | B131: 12-Чистые лапки | C131: 4 | D131: 6 | E131: XXXX | F131: 02:21:22.100 | G131: 00:40:45.290
A132: 9-Джи 3-7 | B132: 9-Джи 3 | C132: 7 | D132: 3 | E132: OK | F132: 02:23:59.360 | G132: 00:17:12.630
A133: 22-СанчеЗ&Ко-6 | B133: 22-СанчеЗ&Ко | C133: 6 | D133: 1 | E133: XXXX | F133: 02:26:27.370 | G133: 00:38:30.560
A134: 5-Атом-6 | B134: 5-Атом | C134: 6 | D134: 3 | E134: OK | F134: 02:26:37.560 | G134: 00:11:16.220
A135: 14-Лева&Тигра-3 | B135: 14-Лева&Тигра | C135: 3 | D135: 1 | E135: OK | F135: 02:28:11.470 | G135: 01:07:21.460
A136: 3-4x4-4 | B136: 3-4x4 | C136: 4 | D136: 6 | E136: XXXX | F136: 02:29:35.460 | G136: 00:42:58.040
A137: 23-Мышь -5 | B137: 23-Мышь | C137: 5 | D137: 6 | E137: XXXX | F137: 02:30:24.490 | G137: 00:50:26.960
A138: 13-Аьоке!-5 | B138: 13-Аьоке! | C138: 5 | D138: 3 | E138: OK | F138: 02:30:45.230 | G138: 00:12:45.530
A139: 21-Партизаны Германа-6 | B139: 21-Партизаны Германа | C139: 6 | D139: 7 | E139: OK | F139: 02:31:09.770 | G139: 00:21:54.510
A140: 26-НеоБастардс-6 | B140: 26-НеоБастардс | C140: 6 | D140: 2 | E140: OK | F140: 02:31:19.330 | G140: 00:58:46.270
A141: 24-Антилопы ГНУ-6 | B141: 24-Антилопы ГНУ | C141: 6 | D141: 5 | E141: OK | F141: 02:31:36.910 | G141: 00:14:08.620
A142: 4-Страус-5 | B142: 4-Страус | C142: 5 | D142: 8 | E142: OK | F142: 02:33:47.750 | G142: 00:24:11.830
A143: 7-ПИОНЕРЫ-3 | B143: 7-ПИОНЕРЫ | C143: 3 | D143: 8 | E143: OK | F143: 02:34:54.090 | G143: 00:21:36.960
A144: 17-ЭросоМания-7 | B144: 17-ЭросоМания | C144: 7 | D144: 3 | E144: OK | F144: 02:37:18.410 | G144: 00:16:56.800
A145: 12-Чистые лапки-5 | B145: 12-Чистые лапки | C145: 5 | D145: 4 | E145: OK | F145: 02:37:33.630 | G145: 00:16:11.080
A146: 28-Тригада-4 | B146: 28-Тригада | C146: 4 | D146: 2 | E146: OK | F146: 02:37:45.800 | G146: 00:26:56.430
A147: 19-Турбо-Зиппер-4 | B147: 19-Турбо-Зиппер | C147: 4 | D147: 9 | E147: OK | F147: 02:38:01.390 | G147: 00:31:28.330
A148: 29-ЛеТим-5 | B148: 29-ЛеТим | C148: 5 | D148: 9 | E148: OK | F148: 02:38:11.370 | G148: 00:23:10.750
A149: 8-Корпорация счастья-6 | B149: 8-Корпорация счастья | C149: 6 | D149: 2 | E149: OK | F149: 02:38:28.780 | G149: 00:39:15.130
A150: 20-Дети шпионов-5 | B150: 20-Дети шпионов | C150: 5 | D150: 1 | E150: OK | F150: 02:39:58.920 | G150: 00:30:52.140
A151: 6-Уан Туз-5 | B151: 6-Уан Туз | C151: 5 | D151: 7 | E151: OK | F151: 02:40:13.490 | G151: 00:19:32.260
A152: 18-Юнги-6 | B152: 18-Юнги | C152: 6 | D152: 1 | E152: OK | F152: 02:40:27.570 | G152: 00:51:12.750
A153: 5-Атом-7 | B153: 5-Атом | C153: 7 | D153: 7 | E153: OK | F153: 02:44:47.890 | G153: 00:18:09.900
A154: 27-Всем пыждец-6 | B154: 27-Всем пыждец | C154: 6 | D154: 6 | E154: OK | F154: 02:45:12.350 | G154: 00:47:10.210
A155: 11-Артур Пирожков-3 | B155: 11-Артур Пирожков | C155: 3 | D155: 6 | E155: OK | F155: 02:45:24.270 | G155: 01:27:37.610
A156: 16-Коты-5 | B156: 16-Коты | C156: 5 | D156: 6 | E156: OK | F156: 02:45:36.740 | G156: 00:59:47.110
A157: 19-Турбо-Зиппер-5 | B157: 19-Турбо-Зиппер | C157: 5 | D157: 8 | E157: OK | F157: 02:46:06.580 | G157: 00:08:04.740
A158: 26-НеоБастардс-7 | B158: 26-НеоБастардс | C158: 7 | D158: 7 | E158: OK | F158: 02:47:02.330 | G158: 00:15:42.570
A159: 30-АРАБЕЛЛА-5 | B159: 30-АРАБЕЛЛА | C159: 5 | D159: 1 | E159: OK | F159: 02:47:12.380 | G159: 00:51:46.780
A160: 23-Мышь -6 | B160: 23-Мышь | C160: 6 | D160: 8 | E160: OK | F160: 02:49:49.140 | G160: 00:19:24.230
A161: 2-127-8 | B161: 2-127 | C161: 8 | D161: 8 | E161: OK | F161: 02:51:19.780 | G161: 00:36:38.910
A162: 13-Аьоке!-6 | B162: 13-Аьоке! | C162: 6 | D162: 7 | E162: OK | F162: 02:52:39.730 | G162: 00:21:54.100
A163: 12-Чистые лапки-6 | B163: 12-Чистые лапки | C163: 6 | D163: 5 | E163: OK | F163: 02:52:56.950 | G163: 00:15:22.890
A164: 24-Антилопы ГНУ-7 | B164: 24-Антилопы ГНУ | C164: 7 | D164: 8 | E164: OK | F164: 02:53:29.070 | G164: 00:21:51.730
A165: 6-Уан Туз-6 | B165: 6-Уан Туз | C165: 6 | D165: 4 | E165: OK | F165: 02:54:57.520 | G165: 00:14:43.620
A166: 4-Страус-6 | B166: 4-Страус | C166: 6 | D166: 9 | E166: OK | F166: 02:55:07.310 | G166: 00:21:19.110
A167: 25-Черный плащ-6 | B167: 25-Черный плащ | C167: 6 | D167: 9 | E167: OK | F167: 02:55:25.040 | G167: 00:45:33.900
A168: 5-Атом-8 | B168: 5-Атом | C168: 8 | D168: 9 | E168: OK | F168: 02:56:24.590 | G168: 00:11:36.240
A169: 3-4x4-5 | B169: 3-4x4 | C169: 5 | D169: 9 | E169: OK | F169: 02:57:05.240 | G169: 00:27:29.370
A170: 15-Нефть-7 | B170: 15-Нефть | C170: 7 | D170: 1 | E170: OK | F170: 02:57:56.530 | G170: 00:51:46.480
A171: 11-Артур Пирожков-4 | B171: 11-Артур Пирожков | C171: 4 | D171: 8 | E171: OK | F171: 02:59:22.990 | G171: 00:13:58.270
A172: 30-АРАБЕЛЛА-6 | B172: 30-АРАБЕЛЛА | C172: 6 | D172: 2 | E172: OK | F172: 02:59:43.410 | G172: 00:12:30.590
A173: 21-Партизаны Германа-7 | B173: 21-Партизаны Германа | C173: 7 | D173: 2 | E173: OK | F173: 03:00:14.250 | G173: 00:29:04.070
A174: 19-Турбо-Зиппер-6 | B174: 19-Турбо-Зиппер | C174: 6 | D174: 3 | E174: OK | F174: 03:00:46.620 | G174: 00:14:39.590
A175: 16-Коты-6 | B175: 16-Коты | C175: 6 | D175: 8 | E175: OK | F175: 03:01:05.370 | G175: 00:15:28.190
A176: 6-Уан Туз-7 | B176: 6-Уан Туз | C176: 7 | D176: 2 | E176: OK | F176: 03:02:18.680 | G176: 00:07:20.640
A177: 27-Всем пыждец-7 | B177: 27-Всем пыждец | C177: 7 | D177: 3 | E177: OK | F177: 03:02:29.460 | G177: 00:17:16.650
A178: 26-НеоБастардс-8 | B178: 26-НеоБастардс | C178: 8 | D178: 3 | E178: OK | F178: 03:02:51.270 | G178: 00:15:48.500
A179: 12-Чистые лапки-7 | B179: 12-Чистые лапки | C179: 7 | D179: 7 | E179: OK | F179: 03:03:16.770 | G179: 00:10:19.370

Sheet База выдачи (hidden)
A1: Код | B1: Команда | C1: Порядковый номер задания | D1: Задание | E1: Отметка | F1: Время отметки
A2: 1-Трипыши-1 | B2: 1-Трипыши | C2: 1 | D2: 1 | E2: ST | F2: 00:02:00
A3: 2-127-1 | B3: 2-127 | C3: 1 | D3: 2 | E3: ST | F3: 00:02:00
A4: 3-4x4-1 | B4: 3-4x4 | C4: 1 | D4: 3 | E4: ST | F4: 00:02:00
A5: 4-Страус-1 | B5: 4-Страус | C5: 1 | D5: 4 | E5: ST | F5: 00:02:00
A6: 5-Атом-1 | B6: 5-Атом | C6: 1 | D6: 5 | E6: ST | F6: 00:02:00
A7: 6-Уан Туз-1 | B7: 6-Уан Туз | C7: 1 | D7: 6 | E7: ST | F7: 00:02:00
A8: 7-ПИОНЕРЫ-1 | B8: 7-ПИОНЕРЫ | C8: 1 | D8: 7 | E8: ST | F8: 00:02:00
A9: 8-Корпорация счастья-1 | B9: 8-Корпорация счастья | C9: 1 | D9: 8 | E9: ST | F9: 00:02:00
A10: 9-Джи 3-1 | B10: 9-Джи 3 | C10: 1 | D10: 9 | E10: ST | F10: 00:02:00
A11: 10-Т-34-1 | B11: 10-Т-34 | C11: 1 | D11: 1 | E11: ST | F11: 00:02:00
A12: 11-Артур Пирожков-1 | B12: 11-Артур Пирожков | C12: 1 | D12: 2 | E12: ST | F12: 00:02:00
A13: 12-Чистые лапки-1 | B13: 12-Чистые лапки | C13: 1 | D13: 3 | E13: ST | F13: 00:02:00
A14: 13-Аьоке!-1 | B14: 13-Аьоке! | C14: 1 | D14: 4 | E14: ST | F14: 00:02:00
A15: 14-Лева&Тигра-1 | B15: 14-Лева&Тигра | C15: 1 | D15: 5 | E15: ST | F15: 00:02:00
A16: 15-Нефть-1 | B16: 15-Нефть | C16: 1 | D16: 6 | E16: ST | F16: 00:02:00
A17: 16-Коты-1 | B17: 16-Коты | C17: 1 | D17: 7 | E17: ST | F17: 00:02:00
A18: 17-ЭросоМания-1 | B18: 17-ЭросоМания | C18: 1 | D18: 8 | E18: ST | F18: 00:02:00
A19: 18-Юнги-1 | B19: 18-Юнги | C19: 1 | D19: 9 | E19: ST | F19: 00:02:00
A20: 19-Турбо-Зиппер-1 | B20: 19-Турбо-Зиппер | C20: 1 | D20: 1 | E20: ST | F20: 00:02:00
A21: 20-Дети шпионов-1 | B21: 20-Дети шпионов | C21: 1 | D21: 2 | E21: ST | F21: 00:02:00
A22: 21-Партизаны Германа-1 | B22: 21-Партизаны Германа | C22: 1 | D22: 3 | E22: ST | F22: 00:02:00
A23: 22-СанчеЗ&Ко-1 | B23: 22-СанчеЗ&Ко | C23: 1 | D23: 4 | E23: ST | F23: 00:02:00
A24: 23-Мышь -1 | B24: 23-Мышь | C24: 1 | D24: 5 | E24: ST | F24: 00:02:00
A25: 24-Антилопы ГНУ-1 | B25: 24-Антилопы ГНУ | C25: 1 | D25: 6 | E25: ST | F25: 00:02:00
A26: 25-Черный плащ-1 | B26: 25-Черный плащ | C26: 1 | D26: 7 | E26: ST | F26: 00:02:00
A27: 26-НеоБастардс-1 | B27: 26-НеоБастардс | C27: 1 | D27: 8 | E27: ST | F27: 00:02:00
A28: 27-Всем пыждец-1 | B28: 27-Всем пыждец | C28: 1 | D28: 9 | E28: ST | F28: 00:02:00
A29: 28-Тригада-1 | B29: 28-Тригада | C29: 1 | D29: 1 | E29: ST | F29: 00:02:00
A30: 29-ЛеТим-1 | B30: 29-ЛеТим | C30: 1 | D30: 2 | E30: ST | F30: 00:02:00
A31: 30-АРАБЕЛЛА-1 | B31: 30-АРАБЕЛЛА | C31: 1 | D31: 3 | E31: ST | F31: 00:02:00
A32: 18-Юнги-2 | B32: 18-Юнги | C32: 2 | D32: 2 | E32: ST | F32: 00:24:14.980
A33: 27-Всем пыждец-2 | B33: 27-Всем пыждец | C33: 2 | D33: 8 | E33: ST | F33: 00:25:08.260
A34: 8-Корпорация счастья-2 | B34: 8-Корпорация счастья | C34: 2 | D34: 7 | E34: ST | F34: 00:25:27.880
A35: 16-Коты-2 | B35: 16-Коты | C35: 2 | D35: 3 | E35: ST | F35: 00:25:43.140
A36: 25-Черный плащ-2 | B36: 25-Черный плащ | C36: 2 | D36: 2 | E36: ST | F36: 00:26:01.880
A37: 26-НеоБастардс-2 | B37: 26-НеоБастардс | C37: 2 | D37: 4 | E37: ST | F37: 00:28:00.560
A38: 9-Джи 3-2 | B38: 9-Джи 3 | C38: 2 | D38: 8 | E38: ST | F38: 00:28:18.440
A39: 15-Нефть-2 | B39: 15-Нефть | C39: 2 | D39: 9 | E39: ST | F39: 00:30:24.690
A40: 30-АРАБЕЛЛА-2 | B40: 30-АРАБЕЛЛА | C40: 2 | D40: 5 | E40: ST | F40: 00:30:44.550
A41: 17-ЭросоМания-2 | B41: 17-ЭросоМания | C41: 2 | D41: 6 | E41: ST | F41: 00:32:05.750
A42: 12-Чистые лапки-2 | B42: 12-Чистые лапки | C42: 2 | D42: 1 | E42: ST | F42: 00:33:47.160
A43: 3-4x4-2 | B43: 3-4x4 | C43: 2 | D43: 5 | E43: ST | F43: 00:34:02.790
A44: 15-Нефть-3 | B44: 15-Нефть | C44: 3 | D44: 4 | E44: ST | F44: 00:35:54.150
A45: 2-127-2 | B45: 2-127 | C45: 2 | D45: 4 | E45: ST | F45: 00:36:31.050
A46: 16-Коты-3 | B46: 16-Коты | C46: 3 | D46: 9 | E46: ST | F46: 00:38:08.120
A47: 22-СанчеЗ&Ко-2 | B47: 22-СанчеЗ&Ко | C47: 2 | D47: 7 | E47: ST | F47: 00:39:39.380
A48: 29-ЛеТим-2 | B48: 29-ЛеТим | C48: 2 | D48: 4 | E48: ST | F48: 00:42:16.580
A49: 5-Атом-2 | B49: 5-Атом | C49: 2 | D49: 2 | E49: ST | F49: 00:43:08.200
A50: 27-Всем пыждец-3 | B50: 27-Всем пыждец | C50: 3 | D50: 7 | E50: ST | F50: 00:43:30.010
A51: 23-Мышь -2 | B51: 23-Мышь | C51: 2 | D51: 3 | E51: ST | F51: 00:43:55.580
A52: 20-Дети шпионов-2 | B52: 20-Дети шпионов | C52: 2 | D52: 6 | E52: ST | F52: 00:44:11.410
A53: 8-Корпорация счастья-3 | B53: 8-Корпорация счастья | C53: 3 | D53: 6 | E53: ST | F53: 00:44:50.740
A54: 11-Артур Пирожков-2 | B54: 11-Артур Пирожков | C54: 2 | D54: 4 | E54: ST | F54: 00:45:40.600
A55: 26-НеоБастардс-3 | B55: 26-НеоБастардс | C55: 3 | D55: 9 | E55: ST | F55: 00:45:50.780
A56: 4-Страус-2 | B56: 4-Страус | C56: 2 | D56: 6 | E56: ST | F56: 00:49:49.740
A57: 24-Антилопы ГНУ-2 | B57: 24-Антилопы ГНУ | C57: 2 | D57: 9 | E57: ST | F57: 00:50:21.540
A58: 2-127-3 | B58: 2-127 | C58: 3 | D58: 3 | E58: ST | F58: 00:50:36.230
A59: 15-Нефть-4 | B59: 15-Нефть | C59: 4 | D59: 5 | E59: ST | F59: 00:51:47.100
A60: 22-СанчеЗ&Ко-3 | B60: 22-СанчеЗ&Ко | C60: 3 | D60: 5 | E60: ST | F60: 00:53:19.100
A61: 10-Т-34-2 | B61: 10-Т-34 | C61: 2 | D61: 5 | E61: ST | F61: 00:54:34.680
A62: 9-Джи 3-3 | B62: 9-Джи 3 | C62: 3 | D62: 7 | E62: ST | F62: 00:54:50.260
A63: 25-Черный плащ-3 | B63: 25-Черный плащ | C63: 3 | D63: 6 | E63: ST | F63: 00:56:19.140
A64: 13-Аьоке!-2 | B64: 13-Аьоке! | C64: 2 | D64: 8 | E64: ST | F64: 00:56:28.460
A65: 2-127-4 | B65: 2-127 | C65: 4 | D65: 5 | E65: ST | F65: 00:56:40.900
A66: 6-Уан Туз-2 | B66: 6-Уан Туз | C66: 2 | D66: 1 | E66: ST | F66: 00:58:35.740
A67: 16-Коты-4 | B67: 16-Коты | C67: 4 | D67: 1 | E67: ST | F67: 00:59:42.920
A68: 18-Юнги-3 | B68: 18-Юнги | C68: 3 | D68: 7 | E68: ST | F68: 00:59:51.330
A69: 24-Антилопы ГНУ-3 | B69: 24-Антилопы ГНУ | C69: 3 | D69: 1 | E69: ST | F69: 01:02:55.340
A70: 15-Нефть-5 | B70: 15-Нефть | C70: 5 | D70: 8 | E70: ST | F70: 01:03:25.940
A71: 30-АРАБЕЛЛА-3 | B71: 30-АРАБЕЛЛА | C71: 3 | D71: 7 | E71: ST | F71: 01:03:37.900
A72: 27-Всем пыждец-4 | B72: 27-Всем пыждец | C72: 4 | D72: 1 | E72: ST | F72: 01:03:56.840
A73: 17-ЭросоМания-3 | B73: 17-ЭросоМания | C73: 3 | D73: 2 | E73: ST | F73: 01:04:28.460
A74: 3-4x4-3 | B74: 3-4x4 | C74: 3 | D74: 2 | E74: ST | F74: 01:05:04.620
A75: 23-Мышь -3 | B75: 23-Мышь | C75: 3 | D75: 4 | E75: ST | F75: 01:05:30.360
A76: 5-Атом-3 | B76: 5-Атом | C76: 3 | D76: 4 | E76: ST | F76: 01:06:11.650
A77: 26-НеоБастардс-4 | B77: 26-НеоБастардс | C77: 4 | D77: 6 | E77: ST | F77: 01:06:55.180
A78: 29-ЛеТим-3 | B78: 29-ЛеТим | C78: 3 | D78: 6 | E78: ST | F78: 01:07:53.910
A79: 14-Лева&Тигра-2 | B79: 14-Лева&Тигра | C79: 2 | D79: 7 | E79: ST | F79: 01:08:05.250
A80: 19-Турбо-Зиппер-2 | B80: 19-Турбо-Зиппер | C80: 2 | D80: 5 | E80: ST | F80: 01:10:06.220
A81: 2-127-5 | B81: 2-127 | C81: 5 | D81: 6 | E81: ST | F81: 01:10:26.680
A82: 22-СанчеЗ&Ко-4 | B82: 22-СанчеЗ&Ко | C82: 4 | D82: 3 | E82: ST | F82: 01:10:46.700
A83: 10-Т-34-3 | B83: 10-Т-34 | C83: 3 | D83: 3 | E83: ST | F83: 01:11:00.270
A84: 1-Трипыши-2 | B84: 1-Трипыши | C84: 2 | D84: 3 | E84: ST | F84: 01:14:00.750
A85: 30-АРАБЕЛЛА-4 | B85: 30-АРАБЕЛЛА | C85: 4 | D85: 9 | E85: ST | F85: 01:17:19.150
A86: 11-Артур Пирожков-3 | B86: 11-Артур Пирожков | C86: 3 | D86: 6 | E86: ST | F86: 01:17:48.100
A87: 13-Аьоке!-3 | B87: 13-Аьоке! | C87: 3 | D87: 5 | E87: ST | F87: 01:19:25.370
A88: 18-Юнги-4 | B88: 18-Юнги | C88: 4 | D88: 3 | E88: ST | F88: 01:19:56.360
A89: 26-НеоБастардс-5 | B89: 26-НеоБастардс | C89: 5 | D89: 5 | E89: ST | F89: 01:20:29.400
A90: 25-Черный плащ-4 | B90: 25-Черный плащ | C90: 4 | D90: 5 | E90: ST | F90: 01:20:40.040
A91: 14-Лева&Тигра-3 | B91: 14-Лева&Тигра | C91: 3 | D91: 1 | E91: ST | F91: 01:20:51.450
A92: 12-Чистые лапки-3 | B92: 12-Чистые лапки | C92: 3 | D92: 8 | E92: ST | F92: 01:21:30.240
A93: 9-Джи 3-4 | B93: 9-Джи 3 | C93: 4 | D93: 4 | E93: ST | F93: 01:22:06.670
A94: 5-Атом-4 | B94: 5-Атом | C94: 4 | D94: 8 | E94: ST | F94: 01:22:37.340
A95: 15-Нефть-6 | B95: 15-Нефть | C95: 6 | D95: 2 | E95: ST | F95: 01:23:58.800
A96: 21-Партизаны Германа-2 | B96: 21-Партизаны Германа | C96: 2 | D96: 1 | E96: ST | F96: 01:24:46.090
A97: 23-Мышь -4 | B97: 23-Мышь | C97: 4 | D97: 7 | E97: ST | F97: 01:26:20.790
A98: 21-Партизаны Германа-3 | B98: 21-Партизаны Германа | C98: 3 | D98: 8 | E98: ST | F98: 01:26:59.420
A99: 22-СанчеЗ&Ко-5 | B99: 22-СанчеЗ&Ко | C99: 5 | D99: 2 | E99: ST | F99: 01:29:24.420
A100: 17-ЭросоМания-4 | B100: 17-ЭросоМания | C100: 4 | D100: 9 | E100: ST | F100: 01:30:28.870
A101: 20-Дети шпионов-3 | B101: 20-Дети шпионов | C101: 3 | D101: 3 | E101: ST | F101: 01:30:56.760
A102: 8-Корпорация счастья-4 | B102: 8-Корпорация счастья | C102: 4 | D102: 9 | E102: ST | F102: 01:31:10.380
A103: 1-Трипыши-3 | B103: 1-Трипыши | C103: 3 | D103: 5 | E103: ST | F103: 01:32:07.360
A104: 26-НеоБастардс-6 | B104: 26-НеоБастардс | C104: 6 | D104: 2 | E104: ST | F104: 01:32:34.490
A105: 4-Страус-3 | B105: 4-Страус | C105: 3 | D105: 1 | E105: ST | F105: 01:36:10.660
A106: 28-Тригада-2 | B106: 28-Тригада | C106: 2 | D106: 3 | E106: ST | F106: 01:36:26.390
A107: 9-Джи 3-5 | B107: 9-Джи 3 | C107: 5 | D107: 2 | E107: ST | F107: 01:36:45.730
A108: 18-Юнги-5 | B108: 18-Юнги | C108: 5 | D108: 5 | E108: ST | F108: 01:37:24.860
A109: 5-Атом-5 | B109: 5-Атом | C109: 5 | D109: 1 | E109: ST | F109: 01:37:43.830
A110: 24-Антилопы ГНУ-4 | B110: 24-Антилопы ГНУ | C110: 4 | D110: 2 | E110: ST | F110: 01:39:27.320
A111: 10-Т-34-4 | B111: 10-Т-34 | C111: 4 | D111: 7 | E111: ST | F111: 01:39:45.570
A112: 23-Мышь -5 | B112: 23-Мышь | C112: 5 | D112: 6 | E112: ST | F112: 01:39:58.970
A113: 2-127-6 | B113: 2-127 | C113: 6 | D113: 7 | E113: ST | F113: 01:40:19.890
A114: 12-Чистые лапки-4 | B114: 12-Чистые лапки | C114: 4 | D114: 6 | E114: ST | F114: 01:40:38.260
A115: 6-Уан Туз-3 | B115: 6-Уан Туз | C115: 3 | D115: 9 | E115: ST | F115: 01:42:14.880
A116: 20-Дети шпионов-4 | B116: 20-Дети шпионов | C116: 4 | D116: 8 | E116: ST | F116: 01:43:26.530
A117: 8-Корпорация счастья-5 | B117: 8-Корпорация счастья | C117: 5 | D117: 5 | E117: ST | F117: 01:43:42.170
A118: 16-Коты-5 | B118: 16-Коты | C118: 5 | D118: 6 | E118: ST | F118: 01:45:51.060
A119: 3-4x4-4 | B119: 3-4x4 | C119: 4 | D119: 6 | E119: ST | F119: 01:46:38.860
A120: 17-ЭросоМания-5 | B120: 17-ЭросоМания | C120: 5 | D120: 7 | E120: ST | F120: 01:47:05.380
A121: 22-СанчеЗ&Ко-6 | B121: 22-СанчеЗ&Ко | C121: 6 | D121: 1 | E121: ST | F121: 01:47:58.250
A122: 27-Всем пыждец-5 | B122: 27-Всем пыждец | C122: 5 | D122: 4 | E122: ST | F122: 01:48:19.010
A123: 19-Турбо-Зиппер-3 | B123: 19-Турбо-Зиппер | C123: 3 | D123: 2 | E123: ST | F123: 01:48:50.400
A124: 9-Джи 3-6 | B124: 9-Джи 3 | C124: 6 | D124: 1 | E124: ST | F124: 01:49:06.360
A125: 18-Юнги-6 | B125: 18-Юнги | C125: 6 | D125: 1 | E125: ST | F125: 01:49:16.260
A126: 25-Черный плащ-5 | B126: 25-Черный плащ | C126: 5 | D126: 3 | E126: ST | F126: 01:49:30.910
A127: 1-Трипыши-4 | B127: 1-Трипыши | C127: 4 | D127: 2 | E127: ST | F127: 01:49:41.050
A128: 13-Аьоке!-4 | B128: 13-Аьоке! | C128: 4 | D128: 2 | E128: ST | F128: 01:50:39.180
A129: 4-Страус-4 | B129: 4-Страус | C129: 4 | D129: 7 | E129: ST | F129: 01:50:55.960
A130: 28-Тригада-3 | B130: 28-Тригада | C130: 3 | D130: 5 | E130: ST | F130: 01:54:14.490
A131: 2-127-7 | B131: 2-127 | C131: 7 | D131: 9 | E131: ST | F131: 01:55:05.870
A132: 30-АРАБЕЛЛА-5 | B132: 30-АРАБЕЛЛА | C132: 5 | D132: 1 | E132: ST | F132: 01:55:27.030
A133: 27-Всем пыждец-6 | B133: 27-Всем пыждец | C133: 6 | D133: 6 | E133: ST | F133: 01:58:03.590
A134: 8-Корпорация счастья-6 | B134: 8-Корпорация счастья | C134: 6 | D134: 2 | E134: ST | F134: 01:59:15.100
A135: 21-Партизаны Германа-4 | B135: 21-Партизаны Германа | C135: 4 | D135: 4 | E135: ST | F135: 01:59:38.030
A136: 24-Антилопы ГНУ-5 | B136: 24-Антилопы ГНУ | C136: 5 | D136: 7 | E136: ST | F136: 01:59:56.530
A137: 29-ЛеТим-4 | B137: 29-ЛеТим | C137: 4 | D137: 8 | E137: ST | F137: 02:01:10.120
A138: 17-ЭросоМания-6 | B138: 17-ЭросоМания | C138: 6 | D138: 4 | E138: ST | F138: 02:02:12.270
A139: 6-Уан Туз-4 | B139: 6-Уан Туз | C139: 4 | D139: 3 | E139: ST | F139: 02:05:11.950
A140: 15-Нефть-7 | B140: 15-Нефть | C140: 7 | D140: 1 | E140: ST | F140: 02:06:11.510
A141: 19-Турбо-Зиппер-4 | B141: 19-Турбо-Зиппер | C141: 4 | D141: 9 | E141: ST | F141: 02:06:34.490
A142: 9-Джи 3-7 | B142: 9-Джи 3 | C142: 7 | D142: 3 | E142: ST | F142: 02:06:48.170
A143: 21-Партизаны Германа-5 | B143: 21-Партизаны Германа | C143: 5 | D143: 9 | E143: ST | F143: 02:08:56.590
A144: 20-Дети шпионов-5 | B144: 20-Дети шпионов | C144: 5 | D144: 1 | E144: ST | F144: 02:09:08.230
A145: 21-Партизаны Германа-6 | B145: 21-Партизаны Германа | C145: 6 | D145: 7 | E145: ST | F145: 02:09:16.710
A146: 10-Т-34-5 | B146: 10-Т-34 | C146: 5 | D146: 2 | E146: ST | F146: 02:09:28.980
A147: 4-Страус-5 | B147: 4-Страус | C147: 5 | D147: 8 | E147: ST | F147: 02:09:37.370
A148: 25-Черный плащ-6 | B148: 25-Черный плащ | C148: 6 | D148: 9 | E148: ST | F148: 02:09:52.580
A149: 28-Тригада-4 | B149: 28-Тригада | C149: 4 | D149: 2 | E149: ST | F149: 02:10:50.840
A150: 7-ПИОНЕРЫ-2 | B150: 7-ПИОНЕРЫ | C150: 2 | D150: 9 | E150: ST | F150: 02:12:36.520
A151: 7-ПИОНЕРЫ-4 | B151: 7-ПИОНЕРЫ | C151: 4 | D151: 1 | E151: ST | F151: 02:13:03.270
A152: 7-ПИОНЕРЫ-3 | B152: 7-ПИОНЕРЫ | C152: 3 | D152: 8 | E152: ST | F152: 02:13:18.620
A153: 2-127-8 | B153: 2-127 | C153: 8 | D153: 8 | E153: ST | F153: 02:14:42.300
A154: 29-ЛеТим-5 | B154: 29-ЛеТим | C154: 5 | D154: 9 | E154: ST | F154: 02:15:02.040
A155: 5-Атом-6 | B155: 5-Атом | C155: 6 | D155: 3 | E155: ST | F155: 02:15:22.780
A156: 24-Антилопы ГНУ-6 | B156: 24-Антилопы ГНУ | C156: 6 | D156: 5 | E156: ST | F156: 02:17:29.720
A157: 13-Аьоке!-5 | B157: 13-Аьоке! | C157: 5 | D157: 3 | E157: ST | F157: 02:18:01.120
A158: 1-Трипыши-5 | B158: 1-Трипыши | C158: 5 | D158: 4 | E158: ST | F158: 02:20:12.050
A159: 17-ЭросоМания-7 | B159: 17-ЭросоМания | C159: 7 | D159: 3 | E159: ST | F159: 02:20:23.080
A160: 6-Уан Туз-5 | B160: 6-Уан Туз | C160: 5 | D160: 7 | E160: ST | F160: 02:20:42.660
A161: 12-Чистые лапки-5 | B161: 12-Чистые лапки | C161: 5 | D161: 4 | E161: ST | F161: 02:21:23.970
A162: 9-Джи 3-8 | B162: 9-Джи 3 | C162: 8 | D162: 6 | E162: ST | F162: 02:24:01.220
A163: 22-СанчеЗ&Ко-7 | B163: 22-СанчеЗ&Ко | C163: 7 | D163: 6 | E163: ST | F163: 02:26:29.250
A164: 5-Атом-7 | B164: 5-Атом | C164: 7 | D164: 7 | E164: ST | F164: 02:26:39.430
A165: 14-Лева&Тигра-4 | B165: 14-Лева&Тигра | C165: 4 | D165: 4 | E165: ST | F165: 02:28:13.350
A166: 3-4x4-5 | B166: 3-4x4 | C166: 5 | D166: 9 | E166: ST | F166: 02:29:37.320
A167: 23-Мышь -6 | B167: 23-Мышь | C167: 6 | D167: 8 | E167: ST | F167: 02:30:26.350
A168: 13-Аьоке!-6 | B168: 13-Аьоке! | C168: 6 | D168: 7 | E168: ST | F168: 02:30:47.080
A169: 21-Партизаны Германа-7 | B169: 21-Партизаны Германа | C169: 7 | D169: 2 | E169: ST | F169: 02:31:11.650
A170: 26-НеоБастардс-7 | B170: 26-НеоБастардс | C170: 7 | D170: 7 | E170: ST | F170: 02:31:21.200
A171: 24-Антилопы ГНУ-7 | B171: 24-Антилопы ГНУ | C171: 7 | D171: 8 | E171: ST | F171: 02:31:38.780
A172: 4-Страус-6 | B172: 4-Страус | C172: 6 | D172: 9 | E172: ST | F172: 02:33:49.630
A173: 7-ПИОНЕРЫ-5 | B173: 7-ПИОНЕРЫ | C173: 5 | D173: 3 | E173: ST | F173: 02:34:56.010
A174: 17-ЭросоМания-8 | B174: 17-ЭросоМания | C174: 8 | D174: 1 | E174: ST | F174: 02:37:20.310
A175: 12-Чистые лапки-6 | B175: 12-Чистые лапки | C175: 6 | D175: 5 | E175: ST | F175: 02:37:35.510
A176: 28-Тригада-5 | B176: 28-Тригада | C176: 5 | D176: 4 | E176: ST | F176: 02:37:47.720
A177: 19-Турбо-Зиппер-5 | B177: 19-Турбо-Зиппер | C177: 5 | D177: 8 | E177: ST | F177: 02:38:03.270
A178: 29-ЛеТим-6 | B178: 29-ЛеТим | C178: 6 | D178: 1 | E178: ST | F178: 02:38:13.240
A179: 8-Корпорация счастья-7 | B179: 8-Корпорация счастья | C179: 7 | D179: 1 | E179: ST | F179: 02:38:30.670
A180: 20-Дети шпионов-6 | B180: 20-Дети шпионов | C180: 6 | D180: 4 | E180: ST | F180: 02:40:00.820
A181: 6-Уан Туз-6 | B181: 6-Уан Туз | C181: 6 | D181: 4 | E181: ST | F181: 02:40:15.360
A182: 18-Юнги-7 | B182: 18-Юнги | C182: 7 | D182: 6 | E182: ST | F182: 02:40:29.460
A183: 5-Атом-8 | B183: 5-Атом | C183: 8 | D183: 9 | E183: ST | F183: 02:44:49.780
A184: 27-Всем пыждец-7 | B184: 27-Всем пыждец | C184: 7 | D184: 3 | E184: ST | F184: 02:45:14.240
A185: 11-Артур Пирожков-4 | B185: 11-Артур Пирожков | C185: 4 | D185: 8 | E185: ST | F185: 02:45:26.190
A186: 16-Коты-6 | B186: 16-Коты | C186: 6 | D186: 8 | E186: ST | F186: 02:45:38.620
A187: 19-Турбо-Зиппер-6 | B187: 19-Турбо-Зиппер | C187: 6 | D187: 3 | E187: ST | F187: 02:46:08.470
A188: 26-НеоБастардс-8 | B188: 26-НеоБастардс | C188: 8 | D188: 3 | E188: ST | F188: 02:47:04.220
A189: 30-АРАБЕЛЛА-6 | B189: 30-АРАБЕЛЛА | C189: 6 | D189: 2 | E189: ST | F189: 02:47:14.270
A190: 23-Мышь -7 | B190: 23-Мышь | C190: 7 | D190: 9 | E190: ST | F190: 02:49:51.030
A191: 2-127-9 | B191: 2-127 | C191: 9 | D191: 1 | E191: ST | F191: 02:51:21.680
A192: 13-Аьоке!-7 | B192: 13-Аьоке! | C192: 7 | D192: 9 | E192: ST | F192: 02:52:41.650
A193: 12-Чистые лапки-7 | B193: 12-Чистые лапки | C193: 7 | D193: 7 | E193: ST | F193: 02:52:58.870
A194: 24-Антилопы ГНУ-8 | B194: 24-Антилопы ГНУ | C194: 8 | D194: 4 | E194: ST | F194: 02:53:30.990
A195: 6-Уан Туз-7 | B195: 6-Уан Туз | C195: 7 | D195: 2 | E195: ST | F195: 02:54:59.460
A196: 4-Страус-7 | B196: 4-Страус | C196: 7 | D196: 5 | E196: ST | F196: 02:55:09.210
A197: 25-Черный плащ-7 | B197: 25-Черный плащ | C197: 7 | D197: 1 | E197: ST | F197: 02:55:26.950
A198: 5-Атом-9 | B198: 5-Атом | C198: 9 | D198: 6 | E198: ST | F198: 02:56:26.510
A199: 3-4x4-6 | B199: 3-4x4 | C199: 6 | D199: 8 | E199: ST | F199: 02:57:07.180
A200: 15-Нефть-8 | B200: 15-Нефть | C200: 8 | D200: 3 | E200: ST | F200: 02:57:58.470
... 10 more rows

Sheet Форма ввода
I1: Команда | J1: Отметка | K1: Время отметки
B2: Поступил сигнал: | I2: =C3 -> 1-Трипыши | J2: ST | K2: =DMAX('База выдачи'!B:F,5,'Форма ввода'!I1:J2) -> 02:20:12.050 | L2: Текущее время старта последнего задания
B3: Выберите команду | C3: =INDEX(Статистика!B2:B37,D3) -> 1-Трипыши | D3: 2
B4: Порядковый номер текущего задания: | C4: =IF(C3="Название команды","",DGET('База выдачи'!B:F,2,'Форма ввода'!I1:K2)) -> 5
B5: Выполняется задание под буквой: | C5: =IF(C3="Название команды","",INDEX(Задания!1:1048576,MATCH(C3,Задания!B:B,0),MATCH(C4,Задания!1:1,0))) -> 4 | F5: Код | G5: =IF(C3="Название команды","","Код: "&VLOOKUP(C5,Служебный!H:I,2,0)) -> Код: 110Р
B7: Время выдачи задания: | C7: =K2 -> 02:20:12.050
B8: Текущее время: | C8: =NOW()-TODAY() -> 13:43:42.210 | F8: Прошло с момента начала игры: | G8: =C8-C7 -> 11:23:30.160
B9: Прошло с момента выдачи задания: | C9: =C8-C7 -> 11:23:30.160 | F9: Осталось до окончания игры: | G9: =Служебный!O6-'Форма ввода'!C8 -> -0.4449329861
B10: минут | C10: =HOUR(C9)*60+MINUTE(C9) -> 683
B12: Выберите отметку | C12: =INDEX(Служебный!K2:K4,'Форма ввода'!D12) -> 0 | D12: 1
C13: =COUNTIF(База!A:A,'Форма ввода'!C3&"-"&'Форма ввода'!C17) -> 0
B15: Выдать задание:
B16: Команда: | C16: =C3 -> 1-Трипыши
B17: Порядковый номер следующего задания: | C17: 6 | E17: это рекомендация компьютера. Можно изменить вручную
B18: Буква следующего задания: | C18: =IF(C16="Название команды","",INDEX(Задания!1:1048576,MATCH(C16,Задания!B:B,0),MATCH(C17,Задания!1:1,0))) -> 6

Sheet Статистика
B1: порядковый номер задания --> | C1: 1 | F1: 2 | I1: 3 | L1: 4 | O1: 5 | R1: 6 | U1: 7 | X1: 8 | AA1: 9 | AD1: 10 | AG1: 11 | AJ1: 12 | AM1: 13 | AP1: 14 | AS1: 15 | AY1: Вычисление места | BG1: Команда | BH1: Отметка | BI1: Команда | BJ1: Отметка | BK1: Команда | BL1: Отметка | BM1: Команда | BN1: Отметка | BO1: Команда | BP1: Отметка | BQ1: Команда | BR1: Отметка | BS1: Команда | BT1: Отметка | BU1: Команда | BV1: Отметка | BW1: Команда | BX1: Отметка | BY1: Команда | BZ1: Отметка | CA1: Команда | CB1: Отметка | CC1: Команда | CD1: Отметка | CE1: Команда | CF1: Отметка | CG1: Команда | CH1: Отметка | CI1: Команда | CJ1: Отметка | CK1: Команда | CL1: Отметка | CM1: Команда | CN1: Отметка | CO1: Команда | CP1: Отметка | CQ1: Команда | CR1: Отметка | CS1: Команда | CT1: Отметка | CU1: Команда | CV1: Отметка | CW1: Команда | CX1: Отметка | CY1: Команда | CZ1: Отметка | DA1: Команда | DB1: Отметка | DC1: Команда | DD1: Отметка | DE1: Команда | DF1: Отметка | DG1: Команда | DH1: Отметка | DI1: Команда | DJ1: Отметка | DK1: Команда | DL1: Отметка | DM1: Команда | DN1: Отметка | DO1: Команда | DP1: Отметка | DQ1: Команда | DR1: Отметка | DS1: Команда | DT1: Отметка | DU1: Команда | DV1: Отметка | DW1: Команда | DX1: Отметка
A2: № ком | B2: Название команды | C2: № | D2: отметка | E2: время | F2: № | G2: отметка | H2: время | I2: № | J2: отметка | K2: время | L2: № | M2: отметка | N2: время | O2: № | P2: отметка | Q2: время | R2: № | S2: отметка | T2: время | U2: № | V2: отметка | W2: время | X2: № | Y2: отметка | Z2: время | AA2: № | AB2: отметка | AC2: время | AD2: № | AE2: отметка | AF2: время | AG2: № | AH2: отметка | AI2: время | AJ2: № | AK2: отметка | AL2: время | AM2: № | AN2: отметка | AO2: время | AP2: № | AQ2: отметка | AR2: время | AS2: № | AT2: отметка | AU2: время | AX2: Сколько выполненных заданий | AY2: Максимальное время выполнения последнего задания | AZ2: Сколько секунд | BA2: Сколько невыполненных заданий | BB2: коэффициент удачи | BC2: Разнарядка по местам | BD2: Порядок | BE2: Место | BG2: =B3 -> 1-Трипыши | BH2: OK | BI2: =B4 -> 2-127 | BJ2: OK | BK2: =B5 -> 3-4x4 | BL2: OK | BM2: =B6 -> 4-Страус | BN2: OK | BO2: =B7 -> 5-Атом | BP2: OK | BQ2: =B8 -> 6-Уан Туз | BR2: OK | BS2: =B9 -> 7-ПИОНЕРЫ | BT2: OK | BU2: =B10 -> 8-Корпорация счастья | BV2: OK | BW2: =B11 -> 9-Джи 3 | BX2: OK | BY2: =B12 -> 10-Т-34 | BZ2: OK | CA2: =B13 -> 11-Артур Пирожков | CB2: OK | CC2: =B14 -> 12-Чистые лапки | CD2: OK | CE2: =B15 -> 13-Аьоке! | CF2: OK | CG2: =B16 -> 14-Лева&Тигра | CH2: OK | CI2: =B17 -> 15-Нефть | CJ2: OK | CK2: =B18 -> 16-Коты | CL2: OK | CM2: =B19 -> 17-ЭросоМания | CN2: OK | CO2: =B20 -> 18-Юнги | CP2: OK | CQ2: =B21 -> 19-Турбо-Зиппер | CR2: OK | CS2: =B22 -> 20-Дети шпионов | CT2: OK | CU2: =B23 -> 21-Партизаны Германа | CV2: OK | CW2: =B24 -> 22-СанчеЗ&Ко | CX2: OK | CY2: =B25 -> 23-Мышь | CZ2: OK | DA2: =B26 -> 24-Антилопы ГНУ | DB2: OK | DC2: =B27 -> 25-Черный плащ | DD2: OK | DE2: =B28 -> 26-НеоБастардс | DF2: OK | DG2: =B29 -> 27-Всем пыждец | DH2: OK | DI2: =B30 -> 28-Тригада | DJ2: OK | DK2: =B31 -> 29-ЛеТим | DL2: OK | DM2: =B32 -> 30-АРАБЕЛЛА | DN2: OK | DO2: =B33 ->  | DP2: OK | DQ2: =B34 ->  | DR2: OK | DS2: =B35 ->  | DT2: OK | DU2: =B36 ->  | DV2: OK | DW2: =B37 ->  | DX2: OK
A3: 1 | B3: =IF(ISERROR(VLOOKUP(A3,Служебный!B:C,2,0)),"",A3&"-"&VLOOKUP(A3,Служебный!B:C,2,0)) -> 1-Трипыши | C3: =VLOOKUP($A3,ТаблицаЗаданий,C$1+2,0) -> 1 | D3: =IF(ISERROR(VLOOKUP(CONCATENATE($B3,"-",C$1),База!$A:$G,5,0)),IF(ISERROR(VLOOKUP(CONCATENATE($B3,"-",C$1),'База выдачи'!$A:$F,5,0)),"",VLOOKUP(CONCATENATE($B3,"-",C$1),'База выдачи'!$A:$F,5,0)),VLOOKUP(CONCATENATE($B3,"-",C$1),База!$A:$G,5,0)) -> XXXX | E3: =IF(ISERROR(VLOOKUP(CONCATENATE($B3,"-",C$1),База!$A:$G,6,0)),IF(ISERROR(VLOOKUP(CONCATENATE($B3,"-",C$1),'База выдачи'!$A:$F,6,0)),"",VLOOKUP(CONCATENATE($B3,"-",C$1),'База выдачи'!$A:$F,6,0)),VLOOKUP(CONCATENATE($B3,"-",C$1),База!$A:$G,6,0)) -> 01:13:59.030 | F3: =VLOOKUP($A3,ТаблицаЗаданий,F$1+2,0) -> 3 | G3: =IF(ISERROR(VLOOKUP(CONCATENATE($B3,"-",F$1),База!$A:$G,5,0)),IF(ISERROR(VLOOKUP(CONCATENATE($B3,"-",F$1),'База выдачи'!$A:$F,5,0)),"",VLOOKUP(CONCATENATE($B3,"-",F$1),'База выдачи'!$A:$F,5,0)),VLOOKUP(CONCATENATE($B3,"-",F$1),База!$A:$G,5,0)) -> OK | H3: =IF(ISERROR(VLOOKUP(CONCATENATE($B3,"-",F$1),База!$A:$G,6,0)),IF(ISERROR(VLOOKUP(CONCATENATE($B3,"-",F$1),'База выдачи'!$A:$F,6,0)),"",VLOOKUP(CONCATENATE($B3,"-",F$1),'База выдачи'!$A:$F,6,0)),VLOOKUP(CONCATENATE($B3,"-",F$1),База!$A:$G,6,0)) -> 01:32:05.590 | I3: =VLOOKUP($A3,ТаблицаЗаданий,I$1+2,0) -> 5 | J3: =IF(ISERROR(VLOOKUP(CONCATENATE($B3,"-",I$1),База!$A:$G,5,0)),IF(ISERROR(VLOOKUP(CONCATENATE($B3,"-",I$1),'База выдачи'!$A:$F,5,0)),"",VLOOKUP(CONCATENATE($B3,"-",I$1),'База выдачи'!$A:$F,5,0)),VLOOKUP(CONCATENATE($B3,"-",I$1),База!$A:$G,5,0)) -> OK | K3: =IF(ISERROR(VLOOKUP(CONCATENATE($B3,"-",I$1),База!$A:$G,6,0)),IF(ISERROR(VLOOKUP(CONCATENATE($B3,"-",I$1),'База выдачи'!$A:$F,6,0)),"",VLOOKUP(CONCATENATE($B3,"-",I$1),'База выдачи'!$A:$F,6,0)),VLOOKUP(CONCATENATE($B3,"-",I$1),База!$A:$G,6,0)) -> 01:49:39.190 | L3: =VLOOKUP($A3,ТаблицаЗаданий,L$1+2,0) -> 2 | M3: =IF(ISERROR(VLOOKUP(CONCATENATE($B3,"-",L$1),База!$A:$G,5,0)),IF(ISERROR(VLOOKUP(CONCATENATE($B3,"-",L$1),'База выдачи'!$A:$F,5,0)),"",VLOOKUP(CONCATENATE($B3,"-",L$1),'База выдачи'!$A:$F,5,0)),VLOOKUP(CONCATENATE($B3,"-",L$1),База!$A:$G,5,0)) -> OK | N3: =IF(ISERROR(VLOOKUP(CONCATENATE($B3,"-",L$1),База!$A:$G,6,0)),IF(ISERROR(VLOOKUP(CONCATENATE($B3,"-",L$1),'База выдачи'!$A:$F,6,0)),"",VLOOKUP(CONCATENATE($B3,"-",L$1),'База выдачи'!$A:$F,6,0)),VLOOKUP(CONCATENATE($B3,"-",L$1),База!$A:$G,6,0)) -> 02:20:10.200 | O3: =VLOOKUP($A3,ТаблицаЗаданий,O$1+2,0) -> 4 | P3: =IF(ISERROR(VLOOKUP(CONCATENATE($B3,"-",O$1),База!$A:$G,5,0)),IF(ISERROR(VLOOKUP(CONCATENATE($B3,"-",O$1),'База выдачи'!$A:$F,5,0)),"",VLOOKUP(CONCATENATE($B3,"-",O$1),'База выдачи'!$A:$F,5,0)),VLOOKUP(CONCATENATE($B3,"-",O$1),База!$A:$G,5,0)) -> ST | Q3: =IF(ISERROR(VLOOKUP(CONCATENATE($B3,"-",O$1),База!$A:$G,6,0)),IF(ISERROR(VLOOKUP(CONCATENATE($B3,"-",O$1),'База выдачи'!$A:$F,6,0)),"",VLOOKUP(CONCATENATE($B3,"-",O$1),'База выдачи'!$A:$F,6,0)),VLOOKUP(CONCATENATE($B3,"-",O$1),База!$A:$G,6,0)) -> 02:20:12.050 | R3: =VLOOKUP($A3,ТаблицаЗаданий,R$1+2,0) -> 6 | S3: =IF(ISERROR(VLOOKUP(CONCATENATE($B3,"-",R$1),База!$A:$G,5,0)),IF(ISERROR(VLOOKUP(CONCATENATE($B3,"-",R$1),'База выдачи'!$A:$F,5,0)),"",VLOOKUP(CONCATENATE($B3,"-",R$1),'База выдачи'!$A:$F,5,0)),VLOOKUP(CONCATENATE($B3,"-",R$1),База!$A:$G,5,0)) ->  | T3: =IF(ISERROR(VLOOKUP(CONCATENATE($B3,"-",R$1),База!$A:$G,6,0)),IF(ISERROR(VLOOKUP(CONCATENATE($B3,"-",R$1),'База выдачи'!$A:$F,6,0)),"",VLOOKUP(CONCATENATE($B3,"-",R$1),'База выдачи'!$A:$F,6,0)),VLOOKUP(CONCATENATE($B3,"-",R$1),База!$A:$G,6,0)) ->  | U3: =VLOOKUP($A3,ТаблицаЗаданий,U$1+2,0) -> 8 | V3: =IF(ISERROR(VLOOKUP(CONCATENATE($B3,"-",U$1),База!$A:$G,5,0)),IF(ISERROR(VLOOKUP(CONCATENATE($B3,"-",U$1),'База выдачи'!$A:$F,5,0)),"",VLOOKUP(CONCATENATE($B3,"-",U$1),'База выдачи'!$A:$F,5,0)),VLOOKUP(CONCATENATE($B3,"-",U$1),База!$A:$G,5,0)) ->  | W3: =IF(ISERROR(VLOOKUP(CONCATENATE($B3,"-",U$1),База!$A:$G,6,0)),IF(ISERROR(VLOOKUP(CONCATENATE($B3,"-",U$1),'База выдачи'!$A:$F,6,0)),"",VLOOKUP(CONCATENATE($B3,"-",U$1),'База выдачи'!$A:$F,6,0)),VLOOKUP(CONCATENATE($B3,"-",U$1),База!$A:$G,6,0)) ->  | X3: =VLOOKUP($A3,ТаблицаЗаданий,X$1+2,0) -> 7 | Y3: =IF(ISERROR(VLOOKUP(CONCATENATE($B3,"-",X$1),База!$A:$G,5,0)),IF(ISERROR(VLOOKUP(CONCATENATE($B3,"-",X$1),'База выдачи'!$A:$F,5,0)),"",VLOOKUP(CONCATENATE($B3,"-",X$1),'База выдачи'!$A:$F,5,0)),VLOOKUP(CONCATENATE($B3,"-",X$1),База!$A:$G,5,0)) ->  | Z3: =IF(ISERROR(VLOOKUP(CONCATENATE($B3,"-",X$1),База!$A:$G,6,0)),IF(ISERROR(VLOOKUP(CONCATENATE($B3,"-",X$1),'База выдачи'!$A:$F,6,0)),"",VLOOKUP(CONCATENATE($B3,"-",X$1),'База выдачи'!$A:$F,6,0)),VLOOKUP(CONCATENATE($B3,"-",X$1),База!$A:$G,6,0)) ->  | AA3: =VLOOKUP($A3,ТаблицаЗаданий,AA$1+2,0) -> 9 | AB3: =IF(ISERROR(VLOOKUP(CONCATENATE($B3,"-",AA$1),База!$A:$G,5,0)),IF(ISERROR(VLOOKUP(CONCATENATE($B3,"-",AA$1),'База выдачи'!$A:$F,5,0)),"",VLOOKUP(CONCATENATE($B3,"-",AA$1),'База выдачи'!$A:$F,5,0)),VLOOKUP(CONCATENATE($B3,"-",AA$1),База!$A:$G,5,0)) ->  | AC3: =IF(ISERROR(VLOOKUP(CONCATENATE($B3,"-",AA$1),База!$A:$G,6,0)),IF(ISERROR(VLOOKUP(CONCATENATE($B3,"-",AA$1),'База выдачи'!$A:$F,6,0)),"",VLOOKUP(CONCATENATE($B3,"-",AA$1),'База выдачи'!$A:$F,6,0)),VLOOKUP(CONCATENATE($B3,"-",AA$1),База!$A:$G,6,0)) ->  | AD3: =VLOOKUP($A3,ТаблицаЗаданий,AD$1+2,0) -> J | AE3: =IF(ISERROR(VLOOKUP(CONCATENATE($B3,"-",AD$1),База!$A:$G,5,0)),IF(ISERROR(VLOOKUP(CONCATENATE($B3,"-",AD$1),'База выдачи'!$A:$F,5,0)),"",VLOOKUP(CONCATENATE($B3,"-",AD$1),'База выдачи'!$A:$F,5,0)),VLOOKUP(CONCATENATE($B3,"-",AD$1),База!$A:$G,5,0)) ->  | AF3: =IF(ISERROR(VLOOKUP(CONCATENATE($B3,"-",AD$1),База!$A:$G,6,0)),IF(ISERROR(VLOOKUP(CONCATENATE($B3,"-",AD$1),'База выдачи'!$A:$F,6,0)),"",VLOOKUP(CONCATENATE($B3,"-",AD$1),'База выдачи'!$A:$F,6,0)),VLOOKUP(CONCATENATE($B3,"-",AD$1),База!$A:$G,6,0)) ->  | AG3: =VLOOKUP($A3,ТаблицаЗаданий,AG$1+2,0) -> K | AH3: =IF(ISERROR(VLOOKUP(CONCATENATE($B3,"-",AG$1),База!$A:$G,5,0)),IF(ISERROR(VLOOKUP(CONCATENATE($B3,"-",AG$1),'База выдачи'!$A:$F,5,0)),"",VLOOKUP(CONCATENATE($B3,"-",AG$1),'База выдачи'!$A:$F,5,0)),VLOOKUP(CONCATENATE($B3,"-",AG$1),База!$A:$G,5,0)) ->  | AI3: =IF(ISERROR(VLOOKUP(CONCATENATE($B3,"-",AG$1),База!$A:$G,6,0)),IF(ISERROR(VLOOKUP(CONCATENATE($B3,"-",AG$1),'База выдачи'!$A:$F,6,0)),"",VLOOKUP(CONCATENATE($B3,"-",AG$1),'База выдачи'!$A:$F,6,0)),VLOOKUP(CONCATENATE($B3,"-",AG$1),База!$A:$G,6,0)) ->  | AJ3: =VLOOKUP($A3,ТаблицаЗаданий,AJ$1+2,0) -> L | AK3: =IF(ISERROR(VLOOKUP(CONCATENATE($B3,"-",AJ$1),База!$A:$G,5,0)),IF(ISERROR(VLOOKUP(CONCATENATE($B3,"-",AJ$1),'База выдачи'!$A:$F,5,0)),"",VLOOKUP(CONCATENATE($B3,"-",AJ$1),'База выдачи'!$A:$F,5,0)),VLOOKUP(CONCATENATE($B3,"-",AJ$1),База!$A:$G,5,0)) ->  | AL3: =IF(ISERROR(VLOOKUP(CONCATENATE($B3,"-",AJ$1),База!$A:$G,6,0)),IF(ISERROR(VLOOKUP(CONCATENATE($B3,"-",AJ$1),'База выдачи'!$A:$F,6,0)),"",VLOOKUP(CONCATENATE($B3,"-",AJ$1),'База выдачи'!$A:$F,6,0)),VLOOKUP(CONCATENATE($B3,"-",AJ$1),База!$A:$G,6,0)) ->  | AM3: =VLOOKUP($A3,ТаблицаЗаданий,AM$1+2,0) -> M | AN3: =IF(ISERROR(VLOOKUP(CONCATENATE($B3,"-",AM$1),База!$A:$G,5,0)),IF(ISERROR(VLOOKUP(CONCATENATE($B3,"-",AM$1),'База выдачи'!$A:$F,5,0)),"",VLOOKUP(CONCATENATE($B3,"-",AM$1),'База выдачи'!$A:$F,5,0)),VLOOKUP(CONCATENATE($B3,"-",AM$1),База!$A:$G,5,0)) ->  | AO3: =IF(ISERROR(VLOOKUP(CONCATENATE($B3,"-",AM$1),База!$A:$G,6,0)),IF(ISERROR(VLOOKUP(CONCATENATE($B3,"-",AM$1),'База выдачи'!$A:$F,6,0)),"",VLOOKUP(CONCATENATE($B3,"-",AM$1),'База выдачи'!$A:$F,6,0)),VLOOKUP(CONCATENATE($B3,"-",AM$1),База!$A:$G,6,0)) ->  | AP3: =VLOOKUP($A3,ТаблицаЗаданий,AP$1+2,0) -> N | AQ3: =IF(ISERROR(VLOOKUP(CONCATENATE($B3,"-",AP$1),База!$A:$G,5,0)),IF(ISERROR(VLOOKUP(CONCATENATE($B3,"-",AP$1),'База выдачи'!$A:$F,5,0)),"",VLOOKUP(CONCATENATE($B3,"-",AP$1),'База выдачи'!$A:$F,5,0)),VLOOKUP(CONCATENATE($B3,"-",AP$1),База!$A:$G,5,0)) ->  | AR3: =IF(ISERROR(VLOOKUP(CONCATENATE($B3,"-",AP$1),База!$A:$G,6,0)),IF(ISERROR(VLOOKUP(CONCATENATE($B3,"-",AP$1),'База выдачи'!$A:$F,6,0)),"",VLOOKUP(CONCATENATE($B3,"-",AP$1),'База выдачи'!$A:$F,6,0)),VLOOKUP(CONCATENATE($B3,"-",AP$1),База!$A:$G,6,0)) ->  | AS3: =VLOOKUP($A3,ТаблицаЗаданий,AS$1+2,0) -> O | AT3: =IF(ISERROR(VLOOKUP(CONCATENATE($B3,"-",AS$1),База!$A:$G,5,0)),IF(ISERROR(VLOOKUP(CONCATENATE($B3,"-",AS$1),'База выдачи'!$A:$F,5,0)),"",VLOOKUP(CONCATENATE($B3,"-",AS$1),'База выдачи'!$A:$F,5,0)),VLOOKUP(CONCATENATE($B3,"-",AS$1),База!$A:$G,5,0)) ->  | AU3: =IF(ISERROR(VLOOKUP(CONCATENATE($B3,"-",AS$1),База!$A:$G,6,0)),IF(ISERROR(VLOOKUP(CONCATENATE($B3,"-",AS$1),'База выдачи'!$A:$F,6,0)),"",VLOOKUP(CONCATENATE($B3,"-",AS$1),'База выдачи'!$A:$F,6,0)),VLOOKUP(CONCATENATE($B3,"-",AS$1),База!$A:$G,6,0)) ->  | AX3: =COUNTIFS(База!B:B,Статистика!B3,База!E:E,"OK") -> 3 | AY3: =BG3 -> 02:20:10.200 | AZ3: =HOUR(AY3)*3600+MINUTE(AY3)*60+SECOND(AY3) -> 8410 | BA3: =COUNTIFS(База!B:B,Статистика!B3,База!E:E,"XXXX") -> 1 | BB3: =IF(AX3+AZ3+BA3=0,ксекундвигре-BD3,ксекундвигре*Статистика!AX3+(ксекундвигре-Статистика!AZ3)+Статистика!BA3) -> 35031 | BC3: =LARGE(BB:BB,BD3) -> 87460 | BD3: =N(BD2)+1 -> 1 | BE3: =MATCH(BC3,$BB$3:$BB$37,0) -> 2 | BG3: =DMAX(База!$A:$G,6,Статистика!BG1:BH2) -> 02:20:10.200 | BI3: =DMAX(База!$A:$G,6,Статистика!BI1:BJ2) -> 02:51:19.780 | BK3: =DMAX(База!$A:$G,6,Статистика!BK1:BL2) -> 02:57:05.240 | BM3: =DMAX(База!$A:$G,6,Статистика!BM1:BN2) -> 02:55:07.310 | BO3: =DMAX(База!$A:$G,6,Статистика!BO1:BP2) -> 02:56:24.590 | BQ3: =DMAX(База!$A:$G,6,Статистика!BQ1:BR2) -> 03:02:18.680 | BS3: =DMAX(База!$A:$G,6,Статистика!BS1:BT2) -> 02:34:54.090 | BU3: =DMAX(База!$A:$G,6,Статистика!BU1:BV2) -> 02:38:28.780 | BW3: =DMAX(База!$A:$G,6,Статистика!BW1:BX2) -> 02:23:59.360 | BY3: =DMAX(База!$A:$G,6,Статистика!BY1:BZ2) -> 02:09:27.150 | CA3: =DMAX(База!$A:$G,6,Статистика!CA1:CB2) -> 02:59:22.990 | CC3: =DMAX(База!$A:$G,6,Статистика!CC1:CD2) -> 03:03:16.770 | CE3: =DMAX(База!$A:$G,6,Статистика!CE1:CF2) -> 02:52:39.730 | CG3: =DMAX(База!$A:$G,6,Статистика!CG1:CH2) -> 02:28:11.470 | CI3: =DMAX(База!$A:$G,6,Статистика!CI1:CJ2) -> 02:57:56.530 | CK3: =DMAX(База!$A:$G,6,Статистика!CK1:CL2) -> 03:01:05.370 | CM3: =DMAX(База!$A:$G,6,Статистика!CM1:CN2) -> 02:37:18.410 | CO3: =DMAX(База!$A:$G,6,Статистика!CO1:CP2) -> 02:40:27.570 | CQ3: =DMAX(База!$A:$G,6,Статистика!CQ1:CR2) -> 03:00:46.620 | CS3: =DMAX(База!$A:$G,6,Статистика!CS1:CT2) -> 02:39:58.920 | CU3: =DMAX(База!$A:$G,6,Статистика!CU1:CV2) -> 03:00:14.250 | CW3: =DMAX(База!$A:$G,6,Статистика!CW1:CX2) -> 01:47:56.470 | CY3: =DMAX(База!$A:$G,6,Статистика!CY1:CZ2) -> 02:49:49.140 | DA3: =DMAX(База!$A:$G,6,Статистика!DA1:DB2) -> 02:53:29.070 | DC3: =DMAX(База!$A:$G,6,Статистика!DC1:DD2) -> 02:55:25.040 | DE3: =DMAX(База!$A:$G,6,Статистика!DE1:DF2) -> 03:02:51.270 | DG3: =DMAX(База!$A:$G,6,Статистика!DG1:DH2) -> 03:02:29.460 | DI3: =DMAX(База!$A:$G,6,Статистика!DI1:DJ2) -> 02:37:45.800 | DK3: =DMAX(База!$A:$G,6,Статистика!DK1:DL2) -> 02:38:11.370 | DM3: =DMAX(База!$A:$G,6,Статистика!DM1:DN2) -> 02:59:43.410 | DO3: =DMAX(База!$A:$G,6,Статистика!DO1:DP2) -> 03:03:16.770 | DQ3: =DMAX(База!$A:$G,6,Статистика!DQ1:DR2) -> 03:03:16.770 | DS3: =DMAX(База!$A:$G,6,Статистика!DS1:DT2) -> 03:03:16.770 | DU3: =DMAX(База!$A:$G,6,Статистика!DU1:DV2) -> 03:03:16.770 | DW3: =DMAX(База!$A:$G,6,Статистика!DW1:DX2) -> 03:03:16.770
A4: 2 | B4: =IF(ISERROR(VLOOKUP(A4,Служебный!B:C,2,0)),"",A4&"-"&VLOOKUP(A4,Служебный!B:C,2,0)) -> 2-127 | C4: 2 | D4: =IF(ISERROR(VLOOKUP(CONCATENATE($B4,"-",C$1),База!$A:$G,5,0)),IF(ISERROR(VLOOKUP(CONCATENATE($B4,"-",C$1),'База выдачи'!$A:$F,5,0)),"",VLOOKUP(CONCATENATE($B4,"-",C$1),'База выдачи'!$A:$F,5,0)),VLOOKUP(CONCATENATE($B4,"-",C$1),База!$A:$G,5,0)) -> OK | E4: =IF(ISERROR(VLOOKUP(CONCATENATE($B4,"-",C$1),База!$A:$G,6,0)),IF(ISERROR(VLOOKUP(CONCATENATE($B4,"-",C$1),'База выдачи'!$A:$F,6,0)),"",VLOOKUP(CONCATENATE($B4,"-",C$1),'База выдачи'!$A:$F,6,0)),VLOOKUP(CONCATENATE($B4,"-",C$1),База!$A:$G,6,0)) -> 00:36:29.420 | F4: 4 | G4: =IF(ISERROR(VLOOKUP(CONCATENATE($B4,"-",F$1),База!$A:$G,5,0)),IF(ISERROR(VLOOKUP(CONCATENATE($B4,"-",F$1),'База выдачи'!$A:$F,5,0)),"",VLOOKUP(CONCATENATE($B4,"-",F$1),'База выдачи'!$A:$F,5,0)),VLOOKUP(CONCATENATE($B4,"-",F$1),База!$A:$G,5,0)) -> OK | H4: =IF(ISERROR(VLOOKUP(CONCATENATE($B4,"-",F$1),База!$A:$G,6,0)),IF(ISERROR(VLOOKUP(CONCATENATE($B4,"-",F$1),'База выдачи'!$A:$F,6,0)),"",VLOOKUP(CONCATENATE($B4,"-",F$1),'База выдачи'!$A:$F,6,0)),VLOOKUP(CONCATENATE($B4,"-",F$1),База!$A:$G,6,0)) -> 00:50:34.560 | I4: 3 | J4: =IF(ISERROR(VLOOKUP(CONCATENATE($B4,"-",I$1),База!$A:$G,5,0)),IF(ISERROR(VLOOKUP(CONCATENATE($B4,"-",I$1),'База выдачи'!$A:$F,5,0)),"",VLOOKUP(CONCATENATE($B4,"-",I$1),'База выдачи'!$A:$F,5,0)),VLOOKUP(CONCATENATE($B4,"-",I$1),База!$A:$G,5,0)) -> OK | K4: =IF(ISERROR(VLOOKUP(CONCATENATE($B4,"-",I$1),База!$A:$G,6,0)),IF(ISERROR(VLOOKUP(CONCATENATE($B4,"-",I$1),'База выдачи'!$A:$F,6,0)),"",VLOOKUP(CONCATENATE($B4,"-",I$1),'База выдачи'!$A:$F,6,0)),VLOOKUP(CONCATENATE($B4,"-",I$1),База!$A:$G,6,0)) -> 00:56:39.200 | L4: 5 | M4: =IF(ISERROR(VLOOKUP(CONCATENATE($B4,"-",L$1),База!$A:$G,5,0)),IF(ISERROR(VLOOKUP(CONCATENATE($B4,"-",L$1),'База выдачи'!$A:$F,5,0)),"",VLOOKUP(CONCATENATE($B4,"-",L$1),'База выдачи'!$A:$F,5,0)),VLOOKUP(CONCATENATE($B4,"-",L$1),База!$A:$G,5,0)) -> OK | N4: =IF(ISERROR(VLOOKUP(CONCATENATE($B4,"-",L$1),База!$A:$G,6,0)),IF(ISERROR(VLOOKUP(CONCATENATE($B4,"-",L$1),'База выдачи'!$A:$F,6,0)),"",VLOOKUP(CONCATENATE($B4,"-",L$1),'База выдачи'!$A:$F,6,0)),VLOOKUP(CONCATENATE($B4,"-",L$1),База!$A:$G,6,0)) -> 01:10:24.970 | O4: 6 | P4: =IF(ISERROR(VLOOKUP(CONCATENATE($B4,"-",O$1),База!$A:$G,5,0)),IF(ISERROR(VLOOKUP(CONCATENATE($B4,"-",O$1),'База выдачи'!$A:$F,5,0)),"",VLOOKUP(CONCATENATE($B4,"-",O$1),'База выдачи'!$A:$F,5,0)),VLOOKUP(CONCATENATE($B4,"-",O$1),База!$A:$G,5,0)) -> OK | Q4: =IF(ISERROR(VLOOKUP(CONCATENATE($B4,"-",O$1),База!$A:$G,6,0)),IF(ISERROR(VLOOKUP(CONCATENATE($B4,"-",O$1),'База выдачи'!$A:$F,6,0)),"",VLOOKUP(CONCATENATE($B4,"-",O$1),'База выдачи'!$A:$F,6,0)),VLOOKUP(CONCATENATE($B4,"-",O$1),База!$A:$G,6,0)) -> 01:40:18.140 | R4: 7 | S4: =IF(ISERROR(VLOOKUP(CONCATENATE($B4,"-",R$1),База!$A:$G,5,0)),IF(ISERROR(VLOOKUP(CONCATENATE($B4,"-",R$1),'База выдачи'!$A:$F,5,0)),"",VLOOKUP(CONCATENATE($B4,"-",R$1),'База выдачи'!$A:$F,5,0)),VLOOKUP(CONCATENATE($B4,"-",R$1),База!$A:$G,5,0)) -> OK | T4: =IF(ISERROR(VLOOKUP(CONCATENATE($B4,"-",R$1),База!$A:$G,6,0)),IF(ISERROR(VLOOKUP(CONCATENATE($B4,"-",R$1),'База выдачи'!$A:$F,6,0)),"",VLOOKUP(CONCATENATE($B4,"-",R$1),'База выдачи'!$A:$F,6,0)),VLOOKUP(CONCATENATE($B4,"-",R$1),База!$A:$G,6,0)) -> 01:55:04.060 | U4: 9 | V4: =IF(ISERROR(VLOOKUP(CONCATENATE($B4,"-",U$1),База!$A:$G,5,0)),IF(ISERROR(VLOOKUP(CONCATENATE($B4,"-",U$1),'База выдачи'!$A:$F,5,0)),"",VLOOKUP(CONCATENATE($B4,"-",U$1),'База выдачи'!$A:$F,5,0)),VLOOKUP(CONCATENATE($B4,"-",U$1),База!$A:$G,5,0)) -> OK | W4: =IF(ISERROR(VLOOKUP(CONCATENATE($B4,"-",U$1),База!$A:$G,6,0)),IF(ISERROR(VLOOKUP(CONCATENATE($B4,"-",U$1),'База выдачи'!$A:$F,6,0)),"",VLOOKUP(CONCATENATE($B4,"-",U$1),'База выдачи'!$A:$F,6,0)),VLOOKUP(CONCATENATE($B4,"-",U$1),База!$A:$G,6,0)) -> 02:14:40.480 | X4: 8 | Y4: =IF(ISERROR(VLOOKUP(CONCATENATE($B4,"-",X$1),База!$A:$G,5,0)),IF(ISERROR(VLOOKUP(CONCATENATE($B4,"-",X$1),'База выдачи'!$A:$F,5,0)),"",VLOOKUP(CONCATENATE($B4,"-",X$1),'База выдачи'!$A:$F,5,0)),VLOOKUP(CONCATENATE($B4,"-",X$1),База!$A:$G,5,0)) -> OK | Z4: =IF(ISERROR(VLOOKUP(CONCATENATE($B4,"-",X$1),База!$A:$G,6,0)),IF(ISERROR(VLOOKUP(CONCATENATE($B4,"-",X$1),'База выдачи'!$A:$F,6,0)),"",VLOOKUP(CONCATENATE($B4,"-",X$1),'База выдачи'!$A:$F,6,0)),VLOOKUP(CONCATENATE($B4,"-",X$1),База!$A:$G,6,0)) -> 02:51:19.780 | AA4: 1 | AB4: =IF(ISERROR(VLOOKUP(CONCATENATE($B4,"-",AA$1),База!$A:$G,5,0)),IF(ISERROR(VLOOKUP(CONCATENATE($B4,"-",AA$1),'База выдачи'!$A:$F,5,0)),"",VLOOKUP(CONCATENATE($B4,"-",AA$1),'База выдачи'!$A:$F,5,0)),VLOOKUP(CONCATENATE($B4,"-",AA$1),База!$A:$G,5,0)) -> ST | AC4: =IF(ISERROR(VLOOKUP(CONCATENATE($B4,"-",AA$1),База!$A:$G,6,0)),IF(ISERROR(VLOOKUP(CONCATENATE($B4,"-",AA$1),'База выдачи'!$A:$F,6,0)),"",VLOOKUP(CONCATENATE($B4,"-",AA$1),'База выдачи'!$A:$F,6,0)),VLOOKUP(CONCATENATE($B4,"-",AA$1),База!$A:$G,6,0)) -> 02:51:21.680 | AD4: I | AE4: =IF(ISERROR(VLOOKUP(CONCATENATE($B4,"-",AD$1),База!$A:$G,5,0)),IF(ISERROR(VLOOKUP(CONCATENATE($B4,"-",AD$1),'База выдачи'!$A:$F,5,0)),"",VLOOKUP(CONCATENATE($B4,"-",AD$1),'База выдачи'!$A:$F,5,0)),VLOOKUP(CONCATENATE($B4,"-",AD$1),База!$A:$G,5,0)) ->  | AF4: =IF(ISERROR(VLOOKUP(CONCATENATE($B4,"-",AD$1),База!$A:$G,6,0)),IF(ISERROR(VLOOKUP(CONCATENATE($B4,"-",AD$1),'База выдачи'!$A:$F,6,0)),"",VLOOKUP(CONCATENATE($B4,"-",AD$1),'База выдачи'!$A:$F,6,0)),VLOOKUP(CONCATENATE($B4,"-",AD$1),База!$A:$G,6,0)) ->  | AG4: J | AH4: =IF(ISERROR(VLOOKUP(CONCATENATE($B4,"-",AG$1),База!$A:$G,5,0)),IF(ISERROR(VLOOKUP(CONCATENATE($B4,"-",AG$1),'База выдачи'!$A:$F,5,0)),"",VLOOKUP(CONCATENATE($B4,"-",AG$1),'База выдачи'!$A:$F,5,0)),VLOOKUP(CONCATENATE($B4,"-",AG$1),База!$A:$G,5,0)) ->  | AI4: =IF(ISERROR(VLOOKUP(CONCATENATE($B4,"-",AG$1),База!$A:$G,6,0)),IF(ISERROR(VLOOKUP(CONCATENATE($B4,"-",AG$1),'База выдачи'!$A:$F,6,0)),"",VLOOKUP(CONCATENATE($B4,"-",AG$1),'База выдачи'!$A:$F,6,0)),VLOOKUP(CONCATENATE($B4,"-",AG$1),База!$A:$G,6,0)) ->  | AJ4: K | AK4: =IF(ISERROR(VLOOKUP(CONCATENATE($B4,"-",AJ$1),База!$A:$G,5,0)),IF(ISERROR(VLOOKUP(CONCATENATE($B4,"-",AJ$1),'База выдачи'!$A:$F,5,0)),"",VLOOKUP(CONCATENATE($B4,"-",AJ$1),'База выдачи'!$A:$F,5,0)),VLOOKUP(CONCATENATE($B4,"-",AJ$1),База!$A:$G,5,0)) ->  | AL4: =IF(ISERROR(VLOOKUP(CONCATENATE($B4,"-",AJ$1),База!$A:$G,6,0)),IF(ISERROR(VLOOKUP(CONCATENATE($B4,"-",AJ$1),'База выдачи'!$A:$F,6,0)),"",VLOOKUP(CONCATENATE($B4,"-",AJ$1),'База выдачи'!$A:$F,6,0)),VLOOKUP(CONCATENATE($B4,"-",AJ$1),База!$A:$G,6,0)) ->  | AM4: L | AN4: =IF(ISERROR(VLOOKUP(CONCATENATE($B4,"-",AM$1),База!$A:$G,5,0)),IF(ISERROR(VLOOKUP(CONCATENATE($B4,"-",AM$1),'База выдачи'!$A:$F,5,0)),"",VLOOKUP(CONCATENATE($B4,"-",AM$1),'База выдачи'!$A:$F,5,0)),VLOOKUP(CONCATENATE($B4,"-",AM$1),База!$A:$G,5,0)) ->  | AO4: =IF(ISERROR(VLOOKUP(CONCATENATE($B4,"-",AM$1),База!$A:$G,6,0)),IF(ISERROR(VLOOKUP(CONCATENATE($B4,"-",AM$1),'База выдачи'!$A:$F,6,0)),"",VLOOKUP(CONCATENATE($B4,"-",AM$1),'База выдачи'!$A:$F,6,0)),VLOOKUP(CONCATENATE($B4,"-",AM$1),База!$A:$G,6,0)) ->  | AP4: M | AQ4: =IF(ISERROR(VLOOKUP(CONCATENATE($B4,"-",AP$1),База!$A:$G,5,0)),IF(ISERROR(VLOOKUP(CONCATENATE($B4,"-",AP$1),'База выдачи'!$A:$F,5,0)),"",VLOOKUP(CONCATENATE($B4,"-",AP$1),'База выдачи'!$A:$F,5,0)),VLOOKUP(CONCATENATE($B4,"-",AP$1),База!$A:$G,5,0)) ->  | AR4: =IF(ISERROR(VLOOKUP(CONCATENATE($B4,"-",AP$1),База!$A:$G,6,0)),IF(ISERROR(VLOOKUP(CONCATENATE($B4,"-",AP$1),'База выдачи'!$A:$F,6,0)),"",VLOOKUP(CONCATENATE($B4,"-",AP$1),'База выдачи'!$A:$F,6,0)),VLOOKUP(CONCATENATE($B4,"-",AP$1),База!$A:$G,6,0)) ->  | AS4: N | AT4: =IF(ISERROR(VLOOKUP(CONCATENATE($B4,"-",AS$1),База!$A:$G,5,0)),IF(ISERROR(VLOOKUP(CONCATENATE($B4,"-",AS$1),'База выдачи'!$A:$F,5,0)),"",VLOOKUP(CONCATENATE($B4,"-",AS$1),'База выдачи'!$A:$F,5,0)),VLOOKUP(CONCATENATE($B4,"-",AS$1),База!$A:$G,5,0)) ->  | AU4: =IF(ISERROR(VLOOKUP(CONCATENATE($B4,"-",AS$1),База!$A:$G,6,0)),IF(ISERROR(VLOOKUP(CONCATENATE($B4,"-",AS$1),'База выдачи'!$A:$F,6,0)),"",VLOOKUP(CONCATENATE($B4,"-",AS$1),'База выдачи'!$A:$F,6,0)),VLOOKUP(CONCATENATE($B4,"-",AS$1),База!$A:$G,6,0)) ->  | AX4: =COUNTIFS(База!B:B,Статистика!B4,База!E:E,"OK") -> 8 | AY4: =BI3 -> 02:51:19.780 | AZ4: =HOUR(AY4)*3600+MINUTE(AY4)*60+SECOND(AY4) -> 10280 | BA4: =COUNTIFS(База!B:B,Статистика!B4,База!E:E,"XXXX") -> 0 | BB4: =IF(AX4+AZ4+BA4=0,ксекундвигре-BD4,ксекундвигре*Статистика!AX4+(ксекундвигре-Статистика!AZ4)+Статистика!BA4) -> 87460 | BC4: 86769 | BD4: =N(BD3)+1 -> 2 | BE4: 26
A5: 3 | B5: =IF(ISERROR(VLOOKUP(A5,Служебный!B:C,2,0)),"",A5&"-"&VLOOKUP(A5,Служебный!B:C,2,0)) -> 3-4x4 | C5: 3 | D5: =IF(ISERROR(VLOOKUP(CONCATENATE($B5,"-",C$1),База!$A:$G,5,0)),IF(ISERROR(VLOOKUP(CONCATENATE($B5,"-",C$1),'База выдачи'!$A:$F,5,0)),"",VLOOKUP(CONCATENATE($B5,"-",C$1),'База выдачи'!$A:$F,5,0)),VLOOKUP(CONCATENATE($B5,"-",C$1),База!$A:$G,5,0)) -> OK | E5: =IF(ISERROR(VLOOKUP(CONCATENATE($B5,"-",C$1),База!$A:$G,6,0)),IF(ISERROR(VLOOKUP(CONCATENATE($B5,"-",C$1),'База выдачи'!$A:$F,6,0)),"",VLOOKUP(CONCATENATE($B5,"-",C$1),'База выдачи'!$A:$F,6,0)),VLOOKUP(CONCATENATE($B5,"-",C$1),База!$A:$G,6,0)) -> 00:34:01.140 | F5: 5 | G5: =IF(ISERROR(VLOOKUP(CONCATENATE($B5,"-",F$1),База!$A:$G,5,0)),IF(ISERROR(VLOOKUP(CONCATENATE($B5,"-",F$1),'База выдачи'!$A:$F,5,0)),"",VLOOKUP(CONCATENATE($B5,"-",F$1),'База выдачи'!$A:$F,5,0)),VLOOKUP(CONCATENATE($B5,"-",F$1),База!$A:$G,5,0)) -> OK | H5: =IF(ISERROR(VLOOKUP(CONCATENATE($B5,"-",F$1),База!$A:$G,6,0)),IF(ISERROR(VLOOKUP(CONCATENATE($B5,"-",F$1),'База выдачи'!$A:$F,6,0)),"",VLOOKUP(CONCATENATE($B5,"-",F$1),'База выдачи'!$A:$F,6,0)),VLOOKUP(CONCATENATE($B5,"-",F$1),База!$A:$G,6,0)) -> 01:05:02.970 | I5: 2 | J5: =IF(ISERROR(VLOOKUP(CONCATENATE($B5,"-",I$1),База!$A:$G,5,0)),IF(ISERROR(VLOOKUP(CONCATENATE($B5,"-",I$1),'База выдачи'!$A:$F,5,0)),"",VLOOKUP(CONCATENATE($B5,"-",I$1),'База выдачи'!$A:$F,5,0)),VLOOKUP(CONCATENATE($B5,"-",I$1),База!$A:$G,5,0)) -> XXXX | K5: =IF(ISERROR(VLOOKUP(CONCATENATE($B5,"-",I$1),База!$A:$G,6,0)),IF(ISERROR(VLOOKUP(CONCATENATE($B5,"-",I$1),'База выдачи'!$A:$F,6,0)),"",VLOOKUP(CONCATENATE($B5,"-",I$1),'База выдачи'!$A:$F,6,0)),VLOOKUP(CONCATENATE($B5,"-",I$1),База!$A:$G,6,0)) -> 01:46:37.060 | L5: 6 | M5: =IF(ISERROR(VLOOKUP(CONCATENATE($B5,"-",L$1),База!$A:$G,5,0)),IF(ISERROR(VLOOKUP(CONCATENATE($B5,"-",L$1),'База выдачи'!$A:$F,5,0)),"",VLOOKUP(CONCATENATE($B5,"-",L$1),'База выдачи'!$A:$F,5,0)),VLOOKUP(CONCATENATE($B5,"-",L$1),База!$A:$G,5,0)) -> XXXX | N5: =IF(ISERROR(VLOOKUP(CONCATENATE($B5,"-",L$1),База!$A:$G,6,0)),IF(ISERROR(VLOOKUP(CONCATENATE($B5,"-",L$1),'База выдачи'!$A:$F,6,0)),"",VLOOKUP(CONCATENATE($B5,"-",L$1),'База выдачи'!$A:$F,6,0)),VLOOKUP(CONCATENATE($B5,"-",L$1),База!$A:$G,6,0)) -> 02:29:35.460 | O5: 9 | P5: =IF(ISERROR(VLOOKUP(CONCATENATE($B5,"-",O$1),База!$A:$G,5,0)),IF(ISERROR(VLOOKUP(CONCATENATE($B5,"-",O$1),'База выдачи'!$A:$F,5,0)),"",VLOOKUP(CONCATENATE($B5,"-",O$1),'База выдачи'!$A:$F,5,0)),VLOOKUP(CONCATENATE($B5,"-",O$1),База!$A:$G,5,0)) -> OK | Q5: =IF(ISERROR(VLOOKUP(CONCATENATE($B5,"-",O$1),База!$A:$G,6,0)),IF(ISERROR(VLOOKUP(CONCATENATE($B5,"-",O$1),'База выдачи'!$A:$F,6,0)),"",VLOOKUP(CONCATENATE($B5,"-",O$1),'База выдачи'!$A:$F,6,0)),VLOOKUP(CONCATENATE($B5,"-",O$1),База!$A:$G,6,0)) -> 02:57:05.240 | R5: 8 | S5: =IF(ISERROR(VLOOKUP(CONCATENATE($B5,"-",R$1),База!$A:$G,5,0)),IF(ISERROR(VLOOKUP(CONCATENATE($B5,"-",R$1),'База выдачи'!$A:$F,5,0)),"",VLOOKUP(CONCATENATE($B5,"-",R$1),'База выдачи'!$A:$F,5,0)),VLOOKUP(CONCATENATE($B5,"-",R$1),База!$A:$G,5,0)) -> ST | T5: =IF(ISERROR(VLOOKUP(CONCATENATE($B5,"-",R$1),База!$A:$G,6,0)),IF(ISERROR(VLOOKUP(CONCATENATE($B5,"-",R$1),'База выдачи'!$A:$F,6,0)),"",VLOOKUP(CONCATENATE($B5,"-",R$1),'База выдачи'!$A:$F,6,0)),VLOOKUP(CONCATENATE($B5,"-",R$1),База!$A:$G,6,0)) -> 02:57:07.180 | U5: 4 | V5: =IF(ISERROR(VLOOKUP(CONCATENATE($B5,"-",U$1),База!$A:$G,5,0)),IF(ISERROR(VLOOKUP(CONCATENATE($B5,"-",U$1),'База выдачи'!$A:$F,5,0)),"",VLOOKUP(CONCATENATE($B5,"-",U$1),'База выдачи'!$A:$F,5,0)),VLOOKUP(CONCATENATE($B5,"-",U$1),База!$A:$G,5,0)) ->  | W5: =IF(ISERROR(VLOOKUP(CONCATENATE($B5,"-",U$1),База!$A:$G,6,0)),IF(ISERROR(VLOOKUP(CONCATENATE($B5,"-",U$1),'База выдачи'!$A:$F,6,0)),"",VLOOKUP(CONCATENATE($B5,"-",U$1),'База выдачи'!$A:$F,6,0)),VLOOKUP(CONCATENATE($B5,"-",U$1),База!$A:$G,6,0)) ->  | X5: 1 | Y5: =IF(ISERROR(VLOOKUP(CONCATENATE($B5,"-",X$1),База!$A:$G,5,0)),IF(ISERROR(VLOOKUP(CONCATENATE($B5,"-",X$1),'База выдачи'!$A:$F,5,0)),"",VLOOKUP(CONCATENATE($B5,"-",X$1),'База выдачи'!$A:$F,5,0)),VLOOKUP(CONCATENATE($B5,"-",X$1),База!$A:$G,5,0)) ->  | Z5: =IF(ISERROR(VLOOKUP(CONCATENATE($B5,"-",X$1),База!$A:$G,6,0)),IF(ISERROR(VLOOKUP(CONCATENATE($B5,"-",X$1),'База выдачи'!$A:$F,6,0)),"",VLOOKUP(CONCATENATE($B5,"-",X$1),'База выдачи'!$A:$F,6,0)),VLOOKUP(CONCATENATE($B5,"-",X$1),База!$A:$G,6,0)) ->  | AA5: 7 | AB5: =IF(ISERROR(VLOOKUP(CONCATENATE($B5,"-",AA$1),База!$A:$G,5,0)),IF(ISERROR(VLOOKUP(CONCATENATE($B5,"-",AA$1),'База выдачи'!$A:$F,5,0)),"",VLOOKUP(CONCATENATE($B5,"-",AA$1),'База выдачи'!$A:$F,5,0)),VLOOKUP(CONCATENATE($B5,"-",AA$1),База!$A:$G,5,0)) ->  | AC5: =IF(ISERROR(VLOOKUP(CONCATENATE($B5,"-",AA$1),База!$A:$G,6,0)),IF(ISERROR(VLOOKUP(CONCATENATE($B5,"-",AA$1),'База выдачи'!$A:$F,6,0)),"",VLOOKUP(CONCATENATE($B5,"-",AA$1),'База выдачи'!$A:$F,6,0)),VLOOKUP(CONCATENATE($B5,"-",AA$1),База!$A:$G,6,0)) ->  | AD5: H | AE5: =IF(ISERROR(VLOOKUP(CONCATENATE($B5,"-",AD$1),База!$A:$G,5,0)),IF(ISERROR(VLOOKUP(CONCATENATE($B5,"-",AD$1),'База выдачи'!$A:$F,5,0)),"",VLOOKUP(CONCATENATE($B5,"-",AD$1),'База выдачи'!$A:$F,5,0)),VLOOKUP(CONCATENATE($B5,"-",AD$1),База!$A:$G,5,0)) ->  | AF5: =IF(ISERROR(VLOOKUP(CONCATENATE($B5,"-",AD$1),База!$A:$G,6,0)),IF(ISERROR(VLOOKUP(CONCATENATE($B5,"-",AD$1),'База выдачи'!$A:$F,6,0)),"",VLOOKUP(CONCATENATE($B5,"-",AD$1),'База выдачи'!$A:$F,6,0)),VLOOKUP(CONCATENATE($B5,"-",AD$1),База!$A:$G,6,0)) ->  | AG5: I | AH5: =IF(ISERROR(VLOOKUP(CONCATENATE($B5,"-",AG$1),База!$A:$G,5,0)),IF(ISERROR(VLOOKUP(CONCATENATE($B5,"-",AG$1),'База выдачи'!$A:$F,5,0)),"",VLOOKUP(CONCATENATE($B5,"-",AG$1),'База выдачи'!$A:$F,5,0)),VLOOKUP(CONCATENATE($B5,"-",AG$1),База!$A:$G,5,0)) ->  | AI5: =IF(ISERROR(VLOOKUP(CONCATENATE($B5,"-",AG$1),База!$A:$G,6,0)),IF(ISERROR(VLOOKUP(CONCATENATE($B5,"-",AG$1),'База выдачи'!$A:$F,6,0)),"",VLOOKUP(CONCATENATE($B5,"-",AG$1),'База выдачи'!$A:$F,6,0)),VLOOKUP(CONCATENATE($B5,"-",AG$1),База!$A:$G,6,0)) ->  | AJ5: J | AK5: =IF(ISERROR(VLOOKUP(CONCATENATE($B5,"-",AJ$1),База!$A:$G,5,0)),IF(ISERROR(VLOOKUP(CONCATENATE($B5,"-",AJ$1),'База выдачи'!$A:$F,5,0)),"",VLOOKUP(CONCATENATE($B5,"-",AJ$1),'База выдачи'!$A:$F,5,0)),VLOOKUP(CONCATENATE($B5,"-",AJ$1),База!$A:$G,5,0)) ->  | AL5: =IF(ISERROR(VLOOKUP(CONCATENATE($B5,"-",AJ$1),База!$A:$G,6,0)),IF(ISERROR(VLOOKUP(CONCATENATE($B5,"-",AJ$1),'База выдачи'!$A:$F,6,0)),"",VLOOKUP(CONCATENATE($B5,"-",AJ$1),'База выдачи'!$A:$F,6,0)),VLOOKUP(CONCATENATE($B5,"-",AJ$1),База!$A:$G,6,0)) ->  | AM5: K | AN5: =IF(ISERROR(VLOOKUP(CONCATENATE($B5,"-",AM$1),База!$A:$G,5,0)),IF(ISERROR(VLOOKUP(CONCATENATE($B5,"-",AM$1),'База выдачи'!$A:$F,5,0)),"",VLOOKUP(CONCATENATE($B5,"-",AM$1),'База выдачи'!$A:$F,5,0)),VLOOKUP(CONCATENATE($B5,"-",AM$1),База!$A:$G,5,0)) ->  | AO5: =IF(ISERROR(VLOOKUP(CONCATENATE($B5,"-",AM$1),База!$A:$G,6,0)),IF(ISERROR(VLOOKUP(CONCATENATE($B5,"-",AM$1),'База выдачи'!$A:$F,6,0)),"",VLOOKUP(CONCATENATE($B5,"-",AM$1),'База выдачи'!$A:$F,6,0)),VLOOKUP(CONCATENATE($B5,"-",AM$1),База!$A:$G,6,0)) ->  | AP5: L | AQ5: =IF(ISERROR(VLOOKUP(CONCATENATE($B5,"-",AP$1),База!$A:$G,5,0)),IF(ISERROR(VLOOKUP(CONCATENATE($B5,"-",AP$1),'База выдачи'!$A:$F,5,0)),"",VLOOKUP(CONCATENATE($B5,"-",AP$1),'База выдачи'!$A:$F,5,0)),VLOOKUP(CONCATENATE($B5,"-",AP$1),База!$A:$G,5,0)) ->  | AR5: =IF(ISERROR(VLOOKUP(CONCATENATE($B5,"-",AP$1),База!$A:$G,6,0)),IF(ISERROR(VLOOKUP(CONCATENATE($B5,"-",AP$1),'База выдачи'!$A:$F,6,0)),"",VLOOKUP(CONCATENATE($B5,"-",AP$1),'База выдачи'!$A:$F,6,0)),VLOOKUP(CONCATENATE($B5,"-",AP$1),База!$A:$G,6,0)) ->  | AS5: M | AT5: =IF(ISERROR(VLOOKUP(CONCATENATE($B5,"-",AS$1),База!$A:$G,5,0)),IF(ISERROR(VLOOKUP(CONCATENATE($B5,"-",AS$1),'База выдачи'!$A:$F,5,0)),"",VLOOKUP(CONCATENATE($B5,"-",AS$1),'База выдачи'!$A:$F,5,0)),VLOOKUP(CONCATENATE($B5,"-",AS$1),База!$A:$G,5,0)) ->  | AU5: =IF(ISERROR(VLOOKUP(CONCATENATE($B5,"-",AS$1),База!$A:$G,6,0)),IF(ISERROR(VLOOKUP(CONCATENATE($B5,"-",AS$1),'База выдачи'!$A:$F,6,0)),"",VLOOKUP(CONCATENATE($B5,"-",AS$1),'База выдачи'!$A:$F,6,0)),VLOOKUP(CONCATENATE($B5,"-",AS$1),База!$A:$G,6,0)) ->  | AX5: =COUNTIFS(База!B:B,Статистика!B5,База!E:E,"OK") -> 3 | AY5: =BK3 -> 02:57:05.240 | AZ5: 10625 | BA5: =COUNTIFS(База!B:B,Статистика!B5,База!E:E,"XXXX") -> 2 | BB5: =IF(AX5+AZ5+BA5=0,ксекундвигре-BD5,ксекундвигре*Статистика!AX5+(ксекундвигре-Статистика!AZ5)+Статистика!BA5) -> 32817 | BC5: 78241 | BD5: =N(BD4)+1 -> 3 | BE5: 9
A6: 4 | B6: =IF(ISERROR(VLOOKUP(A6,Служебный!B:C,2,0)),"",A6&"-"&VLOOKUP(A6,Служебный!B:C,2,0)) -> 4-Страус | C6: 4 | D6: =IF(ISERROR(VLOOKUP(CONCATENATE($B6,"-",C$1),База!$A:$G,5,0)),IF(ISERROR(VLOOKUP(CONCATENATE($B6,"-",C$1),'База выдачи'!$A:$F,5,0)),"",VLOOKUP(CONCATENATE($B6,"-",C$1),'База выдачи'!$A:$F,5,0)),VLOOKUP(CONCATENATE($B6,"-",C$1),База!$A:$G,5,0)) -> OK | E6: =IF(ISERROR(VLOOKUP(CONCATENATE($B6,"-",C$1),База!$A:$G,6,0)),IF(ISERROR(VLOOKUP(CONCATENATE($B6,"-",C$1),'База выдачи'!$A:$F,6,0)),"",VLOOKUP(CONCATENATE($B6,"-",C$1),'База выдачи'!$A:$F,6,0)),VLOOKUP(CONCATENATE($B6,"-",C$1),База!$A:$G,6,0)) -> 00:49:48.060 | F6: 6 | G6: =IF(ISERROR(VLOOKUP(CONCATENATE($B6,"-",F$1),База!$A:$G,5,0)),IF(ISERROR(VLOOKUP(CONCATENATE($B6,"-",F$1),'База выдачи'!$A:$F,5,0)),"",VLOOKUP(CONCATENATE($B6,"-",F$1),'База выдачи'!$A:$F,5,0)),VLOOKUP(CONCATENATE($B6,"-",F$1),База!$A:$G,5,0)) -> OK | H6: =IF(ISERROR(VLOOKUP(CONCATENATE($B6,"-",F$1),База!$A:$G,6,0)),IF(ISERROR(VLOOKUP(CONCATENATE($B6,"-",F$1),'База выдачи'!$A:$F,6,0)),"",VLOOKUP(CONCATENATE($B6,"-",F$1),'База выдачи'!$A:$F,6,0)),VLOOKUP(CONCATENATE($B6,"-",F$1),База!$A:$G,6,0)) -> 01:36:08.900 | I6: 1 | J6: =IF(ISERROR(VLOOKUP(CONCATENATE($B6,"-",I$1),База!$A:$G,5,0)),IF(ISERROR(VLOOKUP(CONCATENATE($B6,"-",I$1),'База выдачи'!$A:$F,5,0)),"",VLOOKUP(CONCATENATE($B6,"-",I$1),'База выдачи'!$A:$F,5,0)),VLOOKUP(CONCATENATE($B6,"-",I$1),База!$A:$G,5,0)) -> OK | K6: =IF(ISERROR(VLOOKUP(CONCATENATE($B6,"-",I$1),База!$A:$G,6,0)),IF(ISERROR(VLOOKUP(CONCATENATE($B6,"-",I$1),'База выдачи'!$A:$F,6,0)),"",VLOOKUP(CONCATENATE($B6,"-",I$1),'База выдачи'!$A:$F,6,0)),VLOOKUP(CONCATENATE($B6,"-",I$1),База!$A:$G,6,0)) -> 01:50:54.140 | L6: 7 | M6: =IF(ISERROR(VLOOKUP(CONCATENATE($B6,"-",L$1),База!$A:$G,5,0)),IF(ISERROR(VLOOKUP(CONCATENATE($B6,"-",L$1),'База выдачи'!$A:$F,5,0)),"",VLOOKUP(CONCATENATE($B6,"-",L$1),'База выдачи'!$A:$F,5,0)),VLOOKUP(CONCATENATE($B6,"-",L$1),База!$A:$G,5,0)) -> OK | N6: =IF(ISERROR(VLOOKUP(CONCATENATE($B6,"-",L$1),База!$A:$G,6,0)),IF(ISERROR(VLOOKUP(CONCATENATE($B6,"-",L$1),'База выдачи'!$A:$F,6,0)),"",VLOOKUP(CONCATENATE($B6,"-",L$1),'База выдачи'!$A:$F,6,0)),VLOOKUP(CONCATENATE($B6,"-",L$1),База!$A:$G,6,0)) -> 02:09:35.530 | O6: 8 | P6: =IF(ISERROR(VLOOKUP(CONCATENATE($B6,"-",O$1),База!$A:$G,5,0)),IF(ISERROR(VLOOKUP(CONCATENATE($B6,"-",O$1),'База выдачи'!$A:$F,5,0)),"",VLOOKUP(CONCATENATE($B6,"-",O$1),'База выдачи'!$A:$F,5,0)),VLOOKUP(CONCATENATE($B6,"-",O$1),База!$A:$G,5,0)) -> OK | Q6: =IF(ISERROR(VLOOKUP(CONCATENATE($B6,"-",O$1),База!$A:$G,6,0)),IF(ISERROR(VLOOKUP(CONCATENATE($B6,"-",O$1),'База выдачи'!$A:$F,6,0)),"",VLOOKUP(CONCATENATE($B6,"-",O$1),'База выдачи'!$A:$F,6,0)),VLOOKUP(CONCATENATE($B6,"-",O$1),База!$A:$G,6,0)) -> 02:33:47.750 | R6: 9 | S6: =IF(ISERROR(VLOOKUP(CONCATENATE($B6,"-",R$1),База!$A:$G,5,0)),IF(ISERROR(VLOOKUP(CONCATENATE($B6,"-",R$1),'База выдачи'!$A:$F,5,0)),"",VLOOKUP(CONCATENATE($B6,"-",R$1),'База выдачи'!$A:$F,5,0)),VLOOKUP(CONCATENATE($B6,"-",R$1),База!$A:$G,5,0)) -> OK | T6: =IF(ISERROR(VLOOKUP(CONCATENATE($B6,"-",R$1),База!$A:$G,6,0)),IF(ISERROR(VLOOKUP(CONCATENATE($B6,"-",R$1),'База выдачи'!$A:$F,6,0)),"",VLOOKUP(CONCATENATE($B6,"-",R$1),'База выдачи'!$A:$F,6,0)),VLOOKUP(CONCATENATE($B6,"-",R$1),База!$A:$G,6,0)) -> 02:55:07.310 | U6: 5 | V6: =IF(ISERROR(VLOOKUP(CONCATENATE($B6,"-",U$1),База!$A:$G,5,0)),IF(ISERROR(VLOOKUP(CONCATENATE($B6,"-",U$1),'База выдачи'!$A:$F,5,0)),"",VLOOKUP(CONCATENATE($B6,"-",U$1),'База выдачи'!$A:$F,5,0)),VLOOKUP(CONCATENATE($B6,"-",U$1),База!$A:$G,5,0)) -> ST | W6: =IF(ISERROR(VLOOKUP(CONCATENATE($B6,"-",U$1),База!$A:$G,6,0)),IF(ISERROR(VLOOKUP(CONCATENATE($B6,"-",U$1),'База выдачи'!$A:$F,6,0)),"",VLOOKUP(CONCATENATE($B6,"-",U$1),'База выдачи'!$A:$F,6,0)),VLOOKUP(CONCATENATE($B6,"-",U$1),База!$A:$G,6,0)) -> 02:55:09.210 | X6: 3 | Y6: =IF(ISERROR(VLOOKUP(CONCATENATE($B6,"-",X$1),База!$A:$G,5,0)),IF(ISERROR(VLOOKUP(CONCATENATE($B6,"-",X$1),'База выдачи'!$A:$F,5,0)),"",VLOOKUP(CONCATENATE($B6,"-",X$1),'База выдачи'!$A:$F,5,0)),VLOOKUP(CONCATENATE($B6,"-",X$1),База!$A:$G,5,0)) ->  | Z6: =IF(ISERROR(VLOOKUP(CONCATENATE($B6,"-",X$1),База!$A:$G,6,0)),IF(ISERROR(VLOOKUP(CONCATENATE($B6,"-",X$1),'База выдачи'!$A:$F,6,0)),"",VLOOKUP(CONCATENATE($B6,"-",X$1),'База выдачи'!$A:$F,6,0)),VLOOKUP(CONCATENATE($B6,"-",X$1),База!$A:$G,6,0)) ->  | AA6: 2 | AB6: =IF(ISERROR(VLOOKUP(CONCATENATE($B6,"-",AA$1),База!$A:$G,5,0)),IF(ISERROR(VLOOKUP(CONCATENATE($B6,"-",AA$1),'База выдачи'!$A:$F,5,0)),"",VLOOKUP(CONCATENATE($B6,"-",AA$1),'База выдачи'!$A:$F,5,0)),VLOOKUP(CONCATENATE($B6,"-",AA$1),База!$A:$G,5,0)) ->  | AC6: =IF(ISERROR(VLOOKUP(CONCATENATE($B6,"-",AA$1),База!$A:$G,6,0)),IF(ISERROR(VLOOKUP(CONCATENATE($B6,"-",AA$1),'База выдачи'!$A:$F,6,0)),"",VLOOKUP(CONCATENATE($B6,"-",AA$1),'База выдачи'!$A:$F,6,0)),VLOOKUP(CONCATENATE($B6,"-",AA$1),База!$A:$G,6,0)) ->  | AD6: G | AE6: =IF(ISERROR(VLOOKUP(CONCATENATE($B6,"-",AD$1),База!$A:$G,5,0)),IF(ISERROR(VLOOKUP(CONCATENATE($B6,"-",AD$1),'База выдачи'!$A:$F,5,0)),"",VLOOKUP(CONCATENATE($B6,"-",AD$1),'База выдачи'!$A:$F,5,0)),VLOOKUP(CONCATENATE($B6,"-",AD$1),База!$A:$G,5,0)) ->  | AF6: =IF(ISERROR(VLOOKUP(CONCATENATE($B6,"-",AD$1),База!$A:$G,6,0)),IF(ISERROR(VLOOKUP(CONCATENATE($B6,"-",AD$1),'База выдачи'!$A:$F,6,0)),"",VLOOKUP(CONCATENATE($B6,"-",AD$1),'База выдачи'!$A:$F,6,0)),VLOOKUP(CONCATENATE($B6,"-",AD$1),База!$A:$G,6,0)) ->  | AG6: H | AH6: =IF(ISERROR(VLOOKUP(CONCATENATE($B6,"-",AG$1),База!$A:$G,5,0)),IF(ISERROR(VLOOKUP(CONCATENATE($B6,"-",AG$1),'База выдачи'!$A:$F,5,0)),"",VLOOKUP(CONCATENATE($B6,"-",AG$1),'База выдачи'!$A:$F,5,0)),VLOOKUP(CONCATENATE($B6,"-",AG$1),База!$A:$G,5,0)) ->  | AI6: =IF(ISERROR(VLOOKUP(CONCATENATE($B6,"-",AG$1),База!$A:$G,6,0)),IF(ISERROR(VLOOKUP(CONCATENATE($B6,"-",AG$1),'База выдачи'!$A:$F,6,0)),"",VLOOKUP(CONCATENATE($B6,"-",AG$1),'База выдачи'!$A:$F,6,0)),VLOOKUP(CONCATENATE($B6,"-",AG$1),База!$A:$G,6,0)) ->  | AJ6: I | AK6: =IF(ISERROR(VLOOKUP(CONCATENATE($B6,"-",AJ$1),База!$A:$G,5,0)),IF(ISERROR(VLOOKUP(CONCATENATE($B6,"-",AJ$1),'База выдачи'!$A:$F,5,0)),"",VLOOKUP(CONCATENATE($B6,"-",AJ$1),'База выдачи'!$A:$F,5,0)),VLOOKUP(CONCATENATE($B6,"-",AJ$1),База!$A:$G,5,0)) ->  | AL6: =IF(ISERROR(VLOOKUP(CONCATENATE($B6,"-",AJ$1),База!$A:$G,6,0)),IF(ISERROR(VLOOKUP(CONCATENATE($B6,"-",AJ$1),'База выдачи'!$A:$F,6,0)),"",VLOOKUP(CONCATENATE($B6,"-",AJ$1),'База выдачи'!$A:$F,6,0)),VLOOKUP(CONCATENATE($B6,"-",AJ$1),База!$A:$G,6,0)) ->  | AM6: J | AN6: =IF(ISERROR(VLOOKUP(CONCATENATE($B6,"-",AM$1),База!$A:$G,5,0)),IF(ISERROR(VLOOKUP(CONCATENATE($B6,"-",AM$1),'База выдачи'!$A:$F,5,0)),"",VLOOKUP(CONCATENATE($B6,"-",AM$1),'База выдачи'!$A:$F,5,0)),VLOOKUP(CONCATENATE($B6,"-",AM$1),База!$A:$G,5,0)) ->  | AO6: =IF(ISERROR(VLOOKUP(CONCATENATE($B6,"-",AM$1),База!$A:$G,6,0)),IF(ISERROR(VLOOKUP(CONCATENATE($B6,"-",AM$1),'База выдачи'!$A:$F,6,0)),"",VLOOKUP(CONCATENATE($B6,"-",AM$1),'База выдачи'!$A:$F,6,0)),VLOOKUP(CONCATENATE($B6,"-",AM$1),База!$A:$G,6,0)) ->  | AP6: K | AQ6: =IF(ISERROR(VLOOKUP(CONCATENATE($B6,"-",AP$1),База!$A:$G,5,0)),IF(ISERROR(VLOOKUP(CONCATENATE($B6,"-",AP$1),'База выдачи'!$A:$F,5,0)),"",VLOOKUP(CONCATENATE($B6,"-",AP$1),'База выдачи'!$A:$F,5,0)),VLOOKUP(CONCATENATE($B6,"-",AP$1),База!$A:$G,5,0)) ->  | AR6: =IF(ISERROR(VLOOKUP(CONCATENATE($B6,"-",AP$1),База!$A:$G,6,0)),IF(ISERROR(VLOOKUP(CONCATENATE($B6,"-",AP$1),'База выдачи'!$A:$F,6,0)),"",VLOOKUP(CONCATENATE($B6,"-",AP$1),'База выдачи'!$A:$F,6,0)),VLOOKUP(CONCATENATE($B6,"-",AP$1),База!$A:$G,6,0)) ->  | AS6: L | AT6: =IF(ISERROR(VLOOKUP(CONCATENATE($B6,"-",AS$1),База!$A:$G,5,0)),IF(ISERROR(VLOOKUP(CONCATENATE($B6,"-",AS$1),'База выдачи'!$A:$F,5,0)),"",VLOOKUP(CONCATENATE($B6,"-",AS$1),'База выдачи'!$A:$F,5,0)),VLOOKUP(CONCATENATE($B6,"-",AS$1),База!$A:$G,5,0)) ->  | AU6: =IF(ISERROR(VLOOKUP(CONCATENATE($B6,"-",AS$1),База!$A:$G,6,0)),IF(ISERROR(VLOOKUP(CONCATENATE($B6,"-",AS$1),'База выдачи'!$A:$F,6,0)),"",VLOOKUP(CONCATENATE($B6,"-",AS$1),'База выдачи'!$A:$F,6,0)),VLOOKUP(CONCATENATE($B6,"-",AS$1),База!$A:$G,6,0)) ->  | AX6: =COUNTIFS(База!B:B,Статистика!B6,База!E:E,"OK") -> 6 | AY6: =BM3 -> 02:55:07.310 | AZ6: 10507 | BA6: =COUNTIFS(База!B:B,Статистика!B6,База!E:E,"XXXX") -> 0 | BB6: =IF(AX6+AZ6+BA6=0,ксекундвигре-BD6,ксекундвигре*Статистика!AX6+(ксекундвигре-Статистика!AZ6)+Статистика!BA6) -> 65513 | BC6: 66583 | BD6: 4 | BE6: 17
A7: 5 | B7: =IF(ISERROR(VLOOKUP(A7,Служебный!B:C,2,0)),"",A7&"-"&VLOOKUP(A7,Служебный!B:C,2,0)) -> 5-Атом | C7: 5 | D7: =IF(ISERROR(VLOOKUP(CONCATENATE($B7,"-",C$1),База!$A:$G,5,0)),IF(ISERROR(VLOOKUP(CONCATENATE($B7,"-",C$1),'База выдачи'!$A:$F,5,0)),"",VLOOKUP(CONCATENATE($B7,"-",C$1),'База выдачи'!$A:$F,5,0)),VLOOKUP(CONCATENATE($B7,"-",C$1),База!$A:$G,5,0)) -> XXXX | E7: =IF(ISERROR(VLOOKUP(CONCATENATE($B7,"-",C$1),База!$A:$G,6,0)),IF(ISERROR(VLOOKUP(CONCATENATE($B7,"-",C$1),'База выдачи'!$A:$F,6,0)),"",VLOOKUP(CONCATENATE($B7,"-",C$1),'База выдачи'!$A:$F,6,0)),VLOOKUP(CONCATENATE($B7,"-",C$1),База!$A:$G,6,0)) -> 00:43:06.560 | F7: 2 | G7: =IF(ISERROR(VLOOKUP(CONCATENATE($B7,"-",F$1),База!$A:$G,5,0)),IF(ISERROR(VLOOKUP(CONCATENATE($B7,"-",F$1),'База выдачи'!$A:$F,5,0)),"",VLOOKUP(CONCATENATE($B7,"-",F$1),'База выдачи'!$A:$F,5,0)),VLOOKUP(CONCATENATE($B7,"-",F$1),База!$A:$G,5,0)) -> OK | H7: =IF(ISERROR(VLOOKUP(CONCATENATE($B7,"-",F$1),База!$A:$G,6,0)),IF(ISERROR(VLOOKUP(CONCATENATE($B7,"-",F$1),'База выдачи'!$A:$F,6,0)),"",VLOOKUP(CONCATENATE($B7,"-",F$1),'База выдачи'!$A:$F,6,0)),VLOOKUP(CONCATENATE($B7,"-",F$1),База!$A:$G,6,0)) -> 01:06:09.840 | I7: 4 | J7: =IF(ISERROR(VLOOKUP(CONCATENATE($B7,"-",I$1),База!$A:$G,5,0)),IF(ISERROR(VLOOKUP(CONCATENATE($B7,"-",I$1),'База выдачи'!$A:$F,5,0)),"",VLOOKUP(CONCATENATE($B7,"-",I$1),'База выдачи'!$A:$F,5,0)),VLOOKUP(CONCATENATE($B7,"-",I$1),База!$A:$G,5,0)) -> OK | K7: =IF(ISERROR(VLOOKUP(CONCATENATE($B7,"-",I$1),База!$A:$G,6,0)),IF(ISERROR(VLOOKUP(CONCATENATE($B7,"-",I$1),'База выдачи'!$A:$F,6,0)),"",VLOOKUP(CONCATENATE($B7,"-",I$1),'База выдачи'!$A:$F,6,0)),VLOOKUP(CONCATENATE($B7,"-",I$1),База!$A:$G,6,0)) -> 01:22:35.590 | L7: 8 | M7: =IF(ISERROR(VLOOKUP(CONCATENATE($B7,"-",L$1),База!$A:$G,5,0)),IF(ISERROR(VLOOKUP(CONCATENATE($B7,"-",L$1),'База выдачи'!$A:$F,5,0)),"",VLOOKUP(CONCATENATE($B7,"-",L$1),'База выдачи'!$A:$F,5,0)),VLOOKUP(CONCATENATE($B7,"-",L$1),База!$A:$G,5,0)) -> OK | N7: =IF(ISERROR(VLOOKUP(CONCATENATE($B7,"-",L$1),База!$A:$G,6,0)),IF(ISERROR(VLOOKUP(CONCATENATE($B7,"-",L$1),'База выдачи'!$A:$F,6,0)),"",VLOOKUP(CONCATENATE($B7,"-",L$1),'База выдачи'!$A:$F,6,0)),VLOOKUP(CONCATENATE($B7,"-",L$1),База!$A:$G,6,0)) -> 01:37:42.060 | O7: 1 | P7: =IF(ISERROR(VLOOKUP(CONCATENATE($B7,"-",O$1),База!$A:$G,5,0)),IF(ISERROR(VLOOKUP(CONCATENATE($B7,"-",O$1),'База выдачи'!$A:$F,5,0)),"",VLOOKUP(CONCATENATE($B7,"-",O$1),'База выдачи'!$A:$F,5,0)),VLOOKUP(CONCATENATE($B7,"-",O$1),База!$A:$G,5,0)) -> XXXX | Q7: =IF(ISERROR(VLOOKUP(CONCATENATE($B7,"-",O$1),База!$A:$G,6,0)),IF(ISERROR(VLOOKUP(CONCATENATE($B7,"-",O$1),'База выдачи'!$A:$F,6,0)),"",VLOOKUP(CONCATENATE($B7,"-",O$1),'База выдачи'!$A:$F,6,0)),VLOOKUP(CONCATENATE($B7,"-",O$1),База!$A:$G,6,0)) -> 02:15:20.930 | R7: 3 | S7: =IF(ISERROR(VLOOKUP(CONCATENATE($B7,"-",R$1),База!$A:$G,5,0)),IF(ISERROR(VLOOKUP(CONCATENATE($B7,"-",R$1),'База выдачи'!$A:$F,5,0)),"",VLOOKUP(CONCATENATE($B7,"-",R$1),'База выдачи'!$A:$F,5,0)),VLOOKUP(CONCATENATE($B7,"-",R$1),База!$A:$G,5,0)) -> OK | T7: =IF(ISERROR(VLOOKUP(CONCATENATE($B7,"-",R$1),База!$A:$G,6,0)),IF(ISERROR(VLOOKUP(CONCATENATE($B7,"-",R$1),'База выдачи'!$A:$F,6,0)),"",VLOOKUP(CONCATENATE($B7,"-",R$1),'База выдачи'!$A:$F,6,0)),VLOOKUP(CONCATENATE($B7,"-",R$1),База!$A:$G,6,0)) -> 02:26:37.560 | U7: 7 | V7: =IF(ISERROR(VLOOKUP(CONCATENATE($B7,"-",U$1),База!$A:$G,5,0)),IF(ISERROR(VLOOKUP(CONCATENATE($B7,"-",U$1),'База выдачи'!$A:$F,5,0)),"",VLOOKUP(CONCATENATE($B7,"-",U$1),'База выдачи'!$A:$F,5,0)),VLOOKUP(CONCATENATE($B7,"-",U$1),База!$A:$G,5,0)) -> OK | W7: =IF(ISERROR(VLOOKUP(CONCATENATE($B7,"-",U$1),База!$A:$G,6,0)),IF(ISERROR(VLOOKUP(CONCATENATE($B7,"-",U$1),'База выдачи'!$A:$F,6,0)),"",VLOOKUP(CONCATENATE($B7,"-",U$1),'База выдачи'!$A:$F,6,0)),VLOOKUP(CONCATENATE($B7,"-",U$1),База!$A:$G,6,0)) -> 02:44:47.890 | X7: 9 | Y7: =IF(ISERROR(VLOOKUP(CONCATENATE($B7,"-",X$1),База!$A:$G,5,0)),IF(ISERROR(VLOOKUP(CONCATENATE($B7,"-",X$1),'База выдачи'!$A:$F,5,0)),"",VLOOKUP(CONCATENATE($B7,"-",X$1),'База выдачи'!$A:$F,5,0)),VLOOKUP(CONCATENATE($B7,"-",X$1),База!$A:$G,5,0)) -> OK | Z7: =IF(ISERROR(VLOOKUP(CONCATENATE($B7,"-",X$1),База!$A:$G,6,0)),IF(ISERROR(VLOOKUP(CONCATENATE($B7,"-",X$1),'База выдачи'!$A:$F,6,0)),"",VLOOKUP(CONCATENATE($B7,"-",X$1),'База выдачи'!$A:$F,6,0)),VLOOKUP(CONCATENATE($B7,"-",X$1),База!$A:$G,6,0)) -> 02:56:24.590 | AA7: 6 | AB7: =IF(ISERROR(VLOOKUP(CONCATENATE($B7,"-",AA$1),База!$A:$G,5,0)),IF(ISERROR(VLOOKUP(CONCATENATE($B7,"-",AA$1),'База выдачи'!$A:$F,5,0)),"",VLOOKUP(CONCATENATE($B7,"-",AA$1),'База выдачи'!$A:$F,5,0)),VLOOKUP(CONCATENATE($B7,"-",AA$1),База!$A:$G,5,0)) -> ST | AC7: =IF(ISERROR(VLOOKUP(CONCATENATE($B7,"-",AA$1),База!$A:$G,6,0)),IF(ISERROR(VLOOKUP(CONCATENATE($B7,"-",AA$1),'База выдачи'!$A:$F,6,0)),"",VLOOKUP(CONCATENATE($B7,"-",AA$1),'База выдачи'!$A:$F,6,0)),VLOOKUP(CONCATENATE($B7,"-",AA$1),База!$A:$G,6,0)) -> 02:56:26.510 | AD7: F | AE7: =IF(ISERROR(VLOOKUP(CONCATENATE($B7,"-",AD$1),База!$A:$G,5,0)),IF(ISERROR(VLOOKUP(CONCATENATE($B7,"-",AD$1),'База выдачи'!$A:$F,5,0)),"",VLOOKUP(CONCATENATE($B7,"-",AD$1),'База выдачи'!$A:$F,5,0)),VLOOKUP(CONCATENATE($B7,"-",AD$1),База!$A:$G,5,0)) ->  | AF7: =IF(ISERROR(VLOOKUP(CONCATENATE($B7,"-",AD$1),База!$A:$G,6,0)),IF(ISERROR(VLOOKUP(CONCATENATE($B7,"-",AD$1),'База выдачи'!$A:$F,6,0)),"",VLOOKUP(CONCATENATE($B7,"-",AD$1),'База выдачи'!$A:$F,6,0)),VLOOKUP(CONCATENATE($B7,"-",AD$1),База!$A:$G,6,0)) ->  | AG7: G | AH7: =IF(ISERROR(VLOOKUP(CONCATENATE($B7,"-",AG$1),База!$A:$G,5,0)),IF(ISERROR(VLOOKUP(CONCATENATE($B7,"-",AG$1),'База выдачи'!$A:$F,5,0)),"",VLOOKUP(CONCATENATE($B7,"-",AG$1),'База выдачи'!$A:$F,5,0)),VLOOKUP(CONCATENATE($B7,"-",AG$1),База!$A:$G,5,0)) ->  | AI7: =IF(ISERROR(VLOOKUP(CONCATENATE($B7,"-",AG$1),База!$A:$G,6,0)),IF(ISERROR(VLOOKUP(CONCATENATE($B7,"-",AG$1),'База выдачи'!$A:$F,6,0)),"",VLOOKUP(CONCATENATE($B7,"-",AG$1),'База выдачи'!$A:$F,6,0)),VLOOKUP(CONCATENATE($B7,"-",AG$1),База!$A:$G,6,0)) ->  | AJ7: H | AK7: =IF(ISERROR(VLOOKUP(CONCATENATE($B7,"-",AJ$1),База!$A:$G,5,0)),IF(ISERROR(VLOOKUP(CONCATENATE($B7,"-",AJ$1),'База выдачи'!$A:$F,5,0)),"",VLOOKUP(CONCATENATE($B7,"-",AJ$1),'База выдачи'!$A:$F,5,0)),VLOOKUP(CONCATENATE($B7,"-",AJ$1),База!$A:$G,5,0)) ->  | AL7: =IF(ISERROR(VLOOKUP(CONCATENATE($B7,"-",AJ$1),База!$A:$G,6,0)),IF(ISERROR(VLOOKUP(CONCATENATE($B7,"-",AJ$1),'База выдачи'!$A:$F,6,0)),"",VLOOKUP(CONCATENATE($B7,"-",AJ$1),'База выдачи'!$A:$F,6,0)),VLOOKUP(CONCATENATE($B7,"-",AJ$1),База!$A:$G,6,0)) ->  | AM7: I | AN7: =IF(ISERROR(VLOOKUP(CONCATENATE($B7,"-",AM$1),База!$A:$G,5,0)),IF(ISERROR(VLOOKUP(CONCATENATE($B7,"-",AM$1),'База выдачи'!$A:$F,5,0)),"",VLOOKUP(CONCATENATE($B7,"-",AM$1),'База выдачи'!$A:$F,5,0)),VLOOKUP(CONCATENATE($B7,"-",AM$1),База!$A:$G,5,0)) ->  | AO7: =IF(ISERROR(VLOOKUP(CONCATENATE($B7,"-",AM$1),База!$A:$G,6,0)),IF(ISERROR(VLOOKUP(CONCATENATE($B7,"-",AM$1),'База выдачи'!$A:$F,6,0)),"",VLOOKUP(CONCATENATE($B7,"-",AM$1),'База выдачи'!$A:$F,6,0)),VLOOKUP(CONCATENATE($B7,"-",AM$1),База!$A:$G,6,0)) ->  | AP7: J | AQ7: =IF(ISERROR(VLOOKUP(CONCATENATE($B7,"-",AP$1),База!$A:$G,5,0)),IF(ISERROR(VLOOKUP(CONCATENATE($B7,"-",AP$1),'База выдачи'!$A:$F,5,0)),"",VLOOKUP(CONCATENATE($B7,"-",AP$1),'База выдачи'!$A:$F,5,0)),VLOOKUP(CONCATENATE($B7,"-",AP$1),База!$A:$G,5,0)) ->  | AR7: =IF(ISERROR(VLOOKUP(CONCATENATE($B7,"-",AP$1),База!$A:$G,6,0)),IF(ISERROR(VLOOKUP(CONCATENATE($B7,"-",AP$1),'База выдачи'!$A:$F,6,0)),"",VLOOKUP(CONCATENATE($B7,"-",AP$1),'База выдачи'!$A:$F,6,0)),VLOOKUP(CONCATENATE($B7,"-",AP$1),База!$A:$G,6,0)) ->  | AS7: K | AT7: =IF(ISERROR(VLOOKUP(CONCATENATE($B7,"-",AS$1),База!$A:$G,5,0)),IF(ISERROR(VLOOKUP(CONCATENATE($B7,"-",AS$1),'База выдачи'!$A:$F,5,0)),"",VLOOKUP(CONCATENATE($B7,"-",AS$1),'База выдачи'!$A:$F,5,0)),VLOOKUP(CONCATENATE($B7,"-",AS$1),База!$A:$G,5,0)) ->  | AU7: =IF(ISERROR(VLOOKUP(CONCATENATE($B7,"-",AS$1),База!$A:$G,6,0)),IF(ISERROR(VLOOKUP(CONCATENATE($B7,"-",AS$1),'База выдачи'!$A:$F,6,0)),"",VLOOKUP(CONCATENATE($B7,"-",AS$1),'База выдачи'!$A:$F,6,0)),VLOOKUP(CONCATENATE($B7,"-",AS$1),База!$A:$G,6,0)) ->  | AX7: =COUNTIFS(База!B:B,Статистика!B7,База!E:E,"OK") -> 6 | AY7: =BO3 -> 02:56:24.590 | AZ7: 10585 | BA7: =COUNTIFS(База!B:B,Статистика!B7,База!E:E,"XXXX") -> 2 | BB7: =IF(AX7+AZ7+BA7=0,ксекундвигре-BD7,ксекундвигре*Статистика!AX7+(ксекундвигре-Статистика!AZ7)+Статистика!BA7) -> 65437 | BC7: 66392 | BD7: 5 | BE7: 18
A8: 6 | B8: =IF(ISERROR(VLOOKUP(A8,Служебный!B:C,2,0)),"",A8&"-"&VLOOKUP(A8,Служебный!B:C,2,0)) -> 6-Уан Туз | C8: 6 | D8: =IF(ISERROR(VLOOKUP(CONCATENATE($B8,"-",C$1),База!$A:$G,5,0)),IF(ISERROR(VLOOKUP(CONCATENATE($B8,"-",C$1),'База выдачи'!$A:$F,5,0)),"",VLOOKUP(CONCATENATE($B8,"-",C$1),'База выдачи'!$A:$F,5,0)),VLOOKUP(CONCATENATE($B8,"-",C$1),База!$A:$G,5,0)) -> XXXX | E8: =IF(ISERROR(VLOOKUP(CONCATENATE($B8,"-",C$1),База!$A:$G,6,0)),IF(ISERROR(VLOOKUP(CONCATENATE($B8,"-",C$1),'База выдачи'!$A:$F,6,0)),"",VLOOKUP(CONCATENATE($B8,"-",C$1),'База выдачи'!$A:$F,6,0)),VLOOKUP(CONCATENATE($B8,"-",C$1),База!$A:$G,6,0)) -> 00:58:34.040 | F8: 1 | G8: =IF(ISERROR(VLOOKUP(CONCATENATE($B8,"-",F$1),База!$A:$G,5,0)),IF(ISERROR(VLOOKUP(CONCATENATE($B8,"-",F$1),'База выдачи'!$A:$F,5,0)),"",VLOOKUP(CONCATENATE($B8,"-",F$1),'База выдачи'!$A:$F,5,0)),VLOOKUP(CONCATENATE($B8,"-",F$1),База!$A:$G,5,0)) -> XXXX | H8: =IF(ISERROR(VLOOKUP(CONCATENATE($B8,"-",F$1),База!$A:$G,6,0)),IF(ISERROR(VLOOKUP(CONCATENATE($B8,"-",F$1),'База выдачи'!$A:$F,6,0)),"",VLOOKUP(CONCATENATE($B8,"-",F$1),'База выдачи'!$A:$F,6,0)),VLOOKUP(CONCATENATE($B8,"-",F$1),База!$A:$G,6,0)) -> 01:42:13.080 | I8: 9 | J8: =IF(ISERROR(VLOOKUP(CONCATENATE($B8,"-",I$1),База!$A:$G,5,0)),IF(ISERROR(VLOOKUP(CONCATENATE($B8,"-",I$1),'База выдачи'!$A:$F,5,0)),"",VLOOKUP(CONCATENATE($B8,"-",I$1),'База выдачи'!$A:$F,5,0)),VLOOKUP(CONCATENATE($B8,"-",I$1),База!$A:$G,5,0)) -> OK | K8: =IF(ISERROR(VLOOKUP(CONCATENATE($B8,"-",I$1),База!$A:$G,6,0)),IF(ISERROR(VLOOKUP(CONCATENATE($B8,"-",I$1),'База выдачи'!$A:$F,6,0)),"",VLOOKUP(CONCATENATE($B8,"-",I$1),'База выдачи'!$A:$F,6,0)),VLOOKUP(CONCATENATE($B8,"-",I$1),База!$A:$G,6,0)) -> 02:05:10.120 | L8: 3 | M8: =IF(ISERROR(VLOOKUP(CONCATENATE($B8,"-",L$1),База!$A:$G,5,0)),IF(ISERROR(VLOOKUP(CONCATENATE($B8,"-",L$1),'База выдачи'!$A:$F,5,0)),"",VLOOKUP(CONCATENATE($B8,"-",L$1),'База выдачи'!$A:$F,5,0)),VLOOKUP(CONCATENATE($B8,"-",L$1),База!$A:$G,5,0)) -> OK | N8: =IF(ISERROR(VLOOKUP(CONCATENATE($B8,"-",L$1),База!$A:$G,6,0)),IF(ISERROR(VLOOKUP(CONCATENATE($B8,"-",L$1),'База выдачи'!$A:$F,6,0)),"",VLOOKUP(CONCATENATE($B8,"-",L$1),'База выдачи'!$A:$F,6,0)),VLOOKUP(CONCATENATE($B8,"-",L$1),База!$A:$G,6,0)) -> 02:20:40.800 | O8: 7 | P8: =IF(ISERROR(VLOOKUP(CONCATENATE($B8,"-",O$1),База!$A:$G,5,0)),IF(ISERROR(VLOOKUP(CONCATENATE($B8,"-",O$1),'База выдачи'!$A:$F,5,0)),"",VLOOKUP(CONCATENATE($B8,"-",O$1),'База выдачи'!$A:$F,5,0)),VLOOKUP(CONCATENATE($B8,"-",O$1),База!$A:$G,5,0)) -> OK | Q8: =IF(ISERROR(VLOOKUP(CONCATENATE($B8,"-",O$1),База!$A:$G,6,0)),IF(ISERROR(VLOOKUP(CONCATENATE($B8,"-",O$1),'База выдачи'!$A:$F,6,0)),"",VLOOKUP(CONCATENATE($B8,"-",O$1),'База выдачи'!$A:$F,6,0)),VLOOKUP(CONCATENATE($B8,"-",O$1),База!$A:$G,6,0)) -> 02:40:13.490 | R8: 4 | S8: =IF(ISERROR(VLOOKUP(CONCATENATE($B8,"-",R$1),База!$A:$G,5,0)),IF(ISERROR(VLOOKUP(CONCATENATE($B8,"-",R$1),'База выдачи'!$A:$F,5,0)),"",VLOOKUP(CONCATENATE($B8,"-",R$1),'База выдачи'!$A:$F,5,0)),VLOOKUP(CONCATENATE($B8,"-",R$1),База!$A:$G,5,0)) -> OK | T8: =IF(ISERROR(VLOOKUP(CONCATENATE($B8,"-",R$1),База!$A:$G,6,0)),IF(ISERROR(VLOOKUP(CONCATENATE($B8,"-",R$1),'База выдачи'!$A:$F,6,0)),"",VLOOKUP(CONCATENATE($B8,"-",R$1),'База выдачи'!$A:$F,6,0)),VLOOKUP(CONCATENATE($B8,"-",R$1),База!$A:$G,6,0)) -> 02:54:57.520 | U8: 2 | V8: =IF(ISERROR(VLOOKUP(CONCATENATE($B8,"-",U$1),База!$A:$G,5,0)),IF(ISERROR(VLOOKUP(CONCATENATE($B8,"-",U$1),'База выдачи'!$A:$F,5,0)),"",VLOOKUP(CONCATENATE($B8,"-",U$1),'База выдачи'!$A:$F,5,0)),VLOOKUP(CONCATENATE($B8,"-",U$1),База!$A:$G,5,0)) -> OK | W8: =IF(ISERROR(VLOOKUP(CONCATENATE($B8,"-",U$1),База!$A:$G,6,0)),IF(ISERROR(VLOOKUP(CONCATENATE($B8,"-",U$1),'База выдачи'!$A:$F,6,0)),"",VLOOKUP(CONCATENATE($B8,"-",U$1),'База выдачи'!$A:$F,6,0)),VLOOKUP(CONCATENATE($B8,"-",U$1),База!$A:$G,6,0)) -> 03:02:18.680 | X8: 5 | Y8: =IF(ISERROR(VLOOKUP(CONCATENATE($B8,"-",X$1),База!$A:$G,5,0)),IF(ISERROR(VLOOKUP(CONCATENATE($B8,"-",X$1),'База выдачи'!$A:$F,5,0)),"",VLOOKUP(CONCATENATE($B8,"-",X$1),'База выдачи'!$A:$F,5,0)),VLOOKUP(CONCATENATE($B8,"-",X$1),База!$A:$G,5,0)) -> ST | Z8: =IF(ISERROR(VLOOKUP(CONCATENATE($B8,"-",X$1),База!$A:$G,6,0)),IF(ISERROR(VLOOKUP(CONCATENATE($B8,"-",X$1),'База выдачи'!$A:$F,6,0)),"",VLOOKUP(CONCATENATE($B8,"-",X$1),'База выдачи'!$A:$F,6,0)),VLOOKUP(CONCATENATE($B8,"-",X$1),База!$A:$G,6,0)) -> 03:02:20.580 | AA8: 8 | AB8: =IF(ISERROR(VLOOKUP(CONCATENATE($B8,"-",AA$1),База!$A:$G,5,0)),IF(ISERROR(VLOOKUP(CONCATENATE($B8,"-",AA$1),'База выдачи'!$A:$F,5,0)),"",VLOOKUP(CONCATENATE($B8,"-",AA$1),'База выдачи'!$A:$F,5,0)),VLOOKUP(CONCATENATE($B8,"-",AA$1),База!$A:$G,5,0)) ->  | AC8: =IF(ISERROR(VLOOKUP(CONCATENATE($B8,"-",AA$1),База!$A:$G,6,0)),IF(ISERROR(VLOOKUP(CONCATENATE($B8,"-",AA$1),'База выдачи'!$A:$F,6,0)),"",VLOOKUP(CONCATENATE($B8,"-",AA$1),'База выдачи'!$A:$F,6,0)),VLOOKUP(CONCATENATE($B8,"-",AA$1),База!$A:$G,6,0)) ->  | AD8: E | AE8: =IF(ISERROR(VLOOKUP(CONCATENATE($B8,"-",AD$1),База!$A:$G,5,0)),IF(ISERROR(VLOOKUP(CONCATENATE($B8,"-",AD$1),'База выдачи'!$A:$F,5,0)),"",VLOOKUP(CONCATENATE($B8,"-",AD$1),'База выдачи'!$A:$F,5,0)),VLOOKUP(CONCATENATE($B8,"-",AD$1),База!$A:$G,5,0)) ->  | AF8: =IF(ISERROR(VLOOKUP(CONCATENATE($B8,"-",AD$1),База!$A:$G,6,0)),IF(ISERROR(VLOOKUP(CONCATENATE($B8,"-",AD$1),'База выдачи'!$A:$F,6,0)),"",VLOOKUP(CONCATENATE($B8,"-",AD$1),'База выдачи'!$A:$F,6,0)),VLOOKUP(CONCATENATE($B8,"-",AD$1),База!$A:$G,6,0)) ->  | AG8: F | AH8: =IF(ISERROR(VLOOKUP(CONCATENATE($B8,"-",AG$1),База!$A:$G,5,0)),IF(ISERROR(VLOOKUP(CONCATENATE($B8,"-",AG$1),'База выдачи'!$A:$F,5,0)),"",VLOOKUP(CONCATENATE($B8,"-",AG$1),'База выдачи'!$A:$F,5,0)),VLOOKUP(CONCATENATE($B8,"-",AG$1),База!$A:$G,5,0)) ->  | AI8: =IF(ISERROR(VLOOKUP(CONCATENATE($B8,"-",AG$1),База!$A:$G,6,0)),IF(ISERROR(VLOOKUP(CONCATENATE($B8,"-",AG$1),'База выдачи'!$A:$F,6,0)),"",VLOOKUP(CONCATENATE($B8,"-",AG$1),'База выдачи'!$A:$F,6,0)),VLOOKUP(CONCATENATE($B8,"-",AG$1),База!$A:$G,6,0)) ->  | AJ8: G | AK8: =IF(ISERROR(VLOOKUP(CONCATENATE($B8,"-",AJ$1),База!$A:$G,5,0)),IF(ISERROR(VLOOKUP(CONCATENATE($B8,"-",AJ$1),'База выдачи'!$A:$F,5,0)),"",VLOOKUP(CONCATENATE($B8,"-",AJ$1),'База выдачи'!$A:$F,5,0)),VLOOKUP(CONCATENATE($B8,"-",AJ$1),База!$A:$G,5,0)) ->  | AL8: =IF(ISERROR(VLOOKUP(CONCATENATE($B8,"-",AJ$1),База!$A:$G,6,0)),IF(ISERROR(VLOOKUP(CONCATENATE($B8,"-",AJ$1),'База выдачи'!$A:$F,6,0)),"",VLOOKUP(CONCATENATE($B8,"-",AJ$1),'База выдачи'!$A:$F,6,0)),VLOOKUP(CONCATENATE($B8,"-",AJ$1),База!$A:$G,6,0)) ->  | AM8: H | AN8: =IF(ISERROR(VLOOKUP(CONCATENATE($B8,"-",AM$1),База!$A:$G,5,0)),IF(ISERROR(VLOOKUP(CONCATENATE($B8,"-",AM$1),'База выдачи'!$A:$F,5,0)),"",VLOOKUP(CONCATENATE($B8,"-",AM$1),'База выдачи'!$A:$F,5,0)),VLOOKUP(CONCATENATE($B8,"-",AM$1),База!$A:$G,5,0)) ->  | AO8: =IF(ISERROR(VLOOKUP(CONCATENATE($B8,"-",AM$1),База!$A:$G,6,0)),IF(ISERROR(VLOOKUP(CONCATENATE($B8,"-",AM$1),'База выдачи'!$A:$F,6,0)),"",VLOOKUP(CONCATENATE($B8,"-",AM$1),'База выдачи'!$A:$F,6,0)),VLOOKUP(CONCATENATE($B8,"-",AM$1),База!$A:$G,6,0)) ->  | AP8: I | AQ8: =IF(ISERROR(VLOOKUP(CONCATENATE($B8,"-",AP$1),База!$A:$G,5,0)),IF(ISERROR(VLOOKUP(CONCATENATE($B8,"-",AP$1),'База выдачи'!$A:$F,5,0)),"",VLOOKUP(CONCATENATE($B8,"-",AP$1),'База выдачи'!$A:$F,5,0)),VLOOKUP(CONCATENATE($B8,"-",AP$1),База!$A:$G,5,0)) ->  | AR8: =IF(ISERROR(VLOOKUP(CONCATENATE($B8,"-",AP$1),База!$A:$G,6,0)),IF(ISERROR(VLOOKUP(CONCATENATE($B8,"-",AP$1),'База выдачи'!$A:$F,6,0)),"",VLOOKUP(CONCATENATE($B8,"-",AP$1),'База выдачи'!$A:$F,6,0)),VLOOKUP(CONCATENATE($B8,"-",AP$1),База!$A:$G,6,0)) ->  | AS8: J | AT8: =IF(ISERROR(VLOOKUP(CONCATENATE($B8,"-",AS$1),База!$A:$G,5,0)),IF(ISERROR(VLOOKUP(CONCATENATE($B8,"-",AS$1),'База выдачи'!$A:$F,5,0)),"",VLOOKUP(CONCATENATE($B8,"-",AS$1),'База выдачи'!$A:$F,5,0)),VLOOKUP(CONCATENATE($B8,"-",AS$1),База!$A:$G,5,0)) ->  | AU8: =IF(ISERROR(VLOOKUP(CONCATENATE($B8,"-",AS$1),База!$A:$G,6,0)),IF(ISERROR(VLOOKUP(CONCATENATE($B8,"-",AS$1),'База выдачи'!$A:$F,6,0)),"",VLOOKUP(CONCATENATE($B8,"-",AS$1),'База выдачи'!$A:$F,6,0)),VLOOKUP(CONCATENATE($B8,"-",AS$1),База!$A:$G,6,0)) ->  | AX8: =COUNTIFS(База!B:B,Статистика!B8,База!E:E,"OK") -> 5 | AY8: =BQ3 -> 03:02:18.680 | AZ8: 10939 | BA8: =COUNTIFS(База!B:B,Статистика!B8,База!E:E,"XXXX") -> 2 | BB8: =IF(AX8+AZ8+BA8=0,ксекундвигре-BD8,ксекундвигре*Статистика!AX8+(ксекундвигре-Статистика!AZ8)+Статистика!BA8) -> 54223 | BC8: 65660 | BD8: 6 | BE8: 13
A9: 7 | B9: =IF(ISERROR(VLOOKUP(A9,Служебный!B:C,2,0)),"",A9&"-"&VLOOKUP(A9,Служебный!B:C,2,0)) -> 7-ПИОНЕРЫ | C9: 7 | D9: =IF(ISERROR(VLOOKUP(CONCATENATE($B9,"-",C$1),База!$A:$G,5,0)),IF(ISERROR(VLOOKUP(CONCATENATE($B9,"-",C$1),'База выдачи'!$A:$F,5,0)),"",VLOOKUP(CONCATENATE($B9,"-",C$1),'База выдачи'!$A:$F,5,0)),VLOOKUP(CONCATENATE($B9,"-",C$1),База!$A:$G,5,0)) -> OK | E9: =IF(ISERROR(VLOOKUP(CONCATENATE($B9,"-",C$1),База!$A:$G,6,0)),IF(ISERROR(VLOOKUP(CONCATENATE($B9,"-",C$1),'База выдачи'!$A:$F,6,0)),"",VLOOKUP(CONCATENATE($B9,"-",C$1),'База выдачи'!$A:$F,6,0)),VLOOKUP(CONCATENATE($B9,"-",C$1),База!$A:$G,6,0)) -> 02:12:34.680 | F9: 9 | G9: =IF(ISERROR(VLOOKUP(CONCATENATE($B9,"-",F$1),База!$A:$G,5,0)),IF(ISERROR(VLOOKUP(CONCATENATE($B9,"-",F$1),'База выдачи'!$A:$F,5,0)),"",VLOOKUP(CONCATENATE($B9,"-",F$1),'База выдачи'!$A:$F,5,0)),VLOOKUP(CONCATENATE($B9,"-",F$1),База!$A:$G,5,0)) -> OK | H9: =IF(ISERROR(VLOOKUP(CONCATENATE($B9,"-",F$1),База!$A:$G,6,0)),IF(ISERROR(VLOOKUP(CONCATENATE($B9,"-",F$1),'База выдачи'!$A:$F,6,0)),"",VLOOKUP(CONCATENATE($B9,"-",F$1),'База выдачи'!$A:$F,6,0)),VLOOKUP(CONCATENATE($B9,"-",F$1),База!$A:$G,6,0)) -> 02:13:01.450 | I9: 8 | J9: =IF(ISERROR(VLOOKUP(CONCATENATE($B9,"-",I$1),База!$A:$G,5,0)),IF(ISERROR(VLOOKUP(CONCATENATE($B9,"-",I$1),'База выдачи'!$A:$F,5,0)),"",VLOOKUP(CONCATENATE($B9,"-",I$1),'База выдачи'!$A:$F,5,0)),VLOOKUP(CONCATENATE($B9,"-",I$1),База!$A:$G,5,0)) -> OK | K9: =IF(ISERROR(VLOOKUP(CONCATENATE($B9,"-",I$1),База!$A:$G,6,0)),IF(ISERROR(VLOOKUP(CONCATENATE($B9,"-",I$1),'База выдачи'!$A:$F,6,0)),"",VLOOKUP(CONCATENATE($B9,"-",I$1),'База выдачи'!$A:$F,6,0)),VLOOKUP(CONCATENATE($B9,"-",I$1),База!$A:$G,6,0)) -> 02:34:54.090 | L9: 1 | M9: =IF(ISERROR(VLOOKUP(CONCATENATE($B9,"-",L$1),База!$A:$G,5,0)),IF(ISERROR(VLOOKUP(CONCATENATE($B9,"-",L$1),'База выдачи'!$A:$F,5,0)),"",VLOOKUP(CONCATENATE($B9,"-",L$1),'База выдачи'!$A:$F,5,0)),VLOOKUP(CONCATENATE($B9,"-",L$1),База!$A:$G,5,0)) -> OK | N9: =IF(ISERROR(VLOOKUP(CONCATENATE($B9,"-",L$1),База!$A:$G,6,0)),IF(ISERROR(VLOOKUP(CONCATENATE($B9,"-",L$1),'База выдачи'!$A:$F,6,0)),"",VLOOKUP(CONCATENATE($B9,"-",L$1),'База выдачи'!$A:$F,6,0)),VLOOKUP(CONCATENATE($B9,"-",L$1),База!$A:$G,6,0)) -> 02:13:16.780 | O9: 3 | P9: =IF(ISERROR(VLOOKUP(CONCATENATE($B9,"-",O$1),База!$A:$G,5,0)),IF(ISERROR(VLOOKUP(CONCATENATE($B9,"-",O$1),'База выдачи'!$A:$F,5,0)),"",VLOOKUP(CONCATENATE($B9,"-",O$1),'База выдачи'!$A:$F,5,0)),VLOOKUP(CONCATENATE($B9,"-",O$1),База!$A:$G,5,0)) -> ST | Q9: =IF(ISERROR(VLOOKUP(CONCATENATE($B9,"-",O$1),База!$A:$G,6,0)),IF(ISERROR(VLOOKUP(CONCATENATE($B9,"-",O$1),'База выдачи'!$A:$F,6,0)),"",VLOOKUP(CONCATENATE($B9,"-",O$1),'База выдачи'!$A:$F,6,0)),VLOOKUP(CONCATENATE($B9,"-",O$1),База!$A:$G,6,0)) -> 02:34:56.010 | R9: 5 | S9: =IF(ISERROR(VLOOKUP(CONCATENATE($B9,"-",R$1),База!$A:$G,5,0)),IF(ISERROR(VLOOKUP(CONCATENATE($B9,"-",R$1),'База выдачи'!$A:$F,5,0)),"",VLOOKUP(CONCATENATE($B9,"-",R$1),'База выдачи'!$A:$F,5,0)),VLOOKUP(CONCATENATE($B9,"-",R$1),База!$A:$G,5,0)) -> ST | T9: =IF(ISERROR(VLOOKUP(CONCATENATE($B9,"-",R$1),База!$A:$G,6,0)),IF(ISERROR(VLOOKUP(CONCATENATE($B9,"-",R$1),'База выдачи'!$A:$F,6,0)),"",VLOOKUP(CONCATENATE($B9,"-",R$1),'База выдачи'!$A:$F,6,0)),VLOOKUP(CONCATENATE($B9,"-",R$1),База!$A:$G,6,0)) -> 22:05:13.470 | U9: 6 | V9: =IF(ISERROR(VLOOKUP(CONCATENATE($B9,"-",U$1),База!$A:$G,5,0)),IF(ISERROR(VLOOKUP(CONCATENATE($B9,"-",U$1),'База выдачи'!$A:$F,5,0)),"",VLOOKUP(CONCATENATE($B9,"-",U$1),'База выдачи'!$A:$F,5,0)),VLOOKUP(CONCATENATE($B9,"-",U$1),База!$A:$G,5,0)) ->  | W9: =IF(ISERROR(VLOOKUP(CONCATENATE($B9,"-",U$1),База!$A:$G,6,0)),IF(ISERROR(VLOOKUP(CONCATENATE($B9,"-",U$1),'База выдачи'!$A:$F,6,0)),"",VLOOKUP(CONCATENATE($B9,"-",U$1),'База выдачи'!$A:$F,6,0)),VLOOKUP(CONCATENATE($B9,"-",U$1),База!$A:$G,6,0)) ->  | X9: 2 | Y9: =IF(ISERROR(VLOOKUP(CONCATENATE($B9,"-",X$1),База!$A:$G,5,0)),IF(ISERROR(VLOOKUP(CONCATENATE($B9,"-",X$1),'База выдачи'!$A:$F,5,0)),"",VLOOKUP(CONCATENATE($B9,"-",X$1),'База выдачи'!$A:$F,5,0)),VLOOKUP(CONCATENATE($B9,"-",X$1),База!$A:$G,5,0)) ->  | Z9: =IF(ISERROR(VLOOKUP(CONCATENATE($B9,"-",X$1),База!$A:$G,6,0)),IF(ISERROR(VLOOKUP(CONCATENATE($B9,"-",X$1),'База выдачи'!$A:$F,6,0)),"",VLOOKUP(CONCATENATE($B9,"-",X$1),'База выдачи'!$A:$F,6,0)),VLOOKUP(CONCATENATE($B9,"-",X$1),База!$A:$G,6,0)) ->  | AA9: 4 | AB9: =IF(ISERROR(VLOOKUP(CONCATENATE($B9,"-",AA$1),База!$A:$G,5,0)),IF(ISERROR(VLOOKUP(CONCATENATE($B9,"-",AA$1),'База выдачи'!$A:$F,5,0)),"",VLOOKUP(CONCATENATE($B9,"-",AA$1),'База выдачи'!$A:$F,5,0)),VLOOKUP(CONCATENATE($B9,"-",AA$1),База!$A:$G,5,0)) ->  | AC9: =IF(ISERROR(VLOOKUP(CONCATENATE($B9,"-",AA$1),База!$A:$G,6,0)),IF(ISERROR(VLOOKUP(CONCATENATE($B9,"-",AA$1),'База выдачи'!$A:$F,6,0)),"",VLOOKUP(CONCATENATE($B9,"-",AA$1),'База выдачи'!$A:$F,6,0)),VLOOKUP(CONCATENATE($B9,"-",AA$1),База!$A:$G,6,0)) ->  | AD9: D | AE9: =IF(ISERROR(VLOOKUP(CONCATENATE($B9,"-",AD$1),База!$A:$G,5,0)),IF(ISERROR(VLOOKUP(CONCATENATE($B9,"-",AD$1),'База выдачи'!$A:$F,5,0)),"",VLOOKUP(CONCATENATE($B9,"-",AD$1),'База выдачи'!$A:$F,5,0)),VLOOKUP(CONCATENATE($B9,"-",AD$1),База!$A:$G,5,0)) ->  | AF9: =IF(ISERROR(VLOOKUP(CONCATENATE($B9,"-",AD$1),База!$A:$G,6,0)),IF(ISERROR(VLOOKUP(CONCATENATE($B9,"-",AD$1),'База выдачи'!$A:$F,6,0)),"",VLOOKUP(CONCATENATE($B9,"-",AD$1),'База выдачи'!$A:$F,6,0)),VLOOKUP(CONCATENATE($B9,"-",AD$1),База!$A:$G,6,0)) ->  | AG9: E | AH9: =IF(ISERROR(VLOOKUP(CONCATENATE($B9,"-",AG$1),База!$A:$G,5,0)),IF(ISERROR(VLOOKUP(CONCATENATE($B9,"-",AG$1),'База выдачи'!$A:$F,5,0)),"",VLOOKUP(CONCATENATE($B9,"-",AG$1),'База выдачи'!$A:$F,5,0)),VLOOKUP(CONCATENATE($B9,"-",AG$1),База!$A:$G,5,0)) ->  | AI9: =IF(ISERROR(VLOOKUP(CONCATENATE($B9,"-",AG$1),База!$A:$G,6,0)),IF(ISERROR(VLOOKUP(CONCATENATE($B9,"-",AG$1),'База выдачи'!$A:$F,6,0)),"",VLOOKUP(CONCATENATE($B9,"-",AG$1),'База выдачи'!$A:$F,6,0)),VLOOKUP(CONCATENATE($B9,"-",AG$1),База!$A:$G,6,0)) ->  | AJ9: F | AK9: =IF(ISERROR(VLOOKUP(CONCATENATE($B9,"-",AJ$1),База!$A:$G,5,0)),IF(ISERROR(VLOOKUP(CONCATENATE($B9,"-",AJ$1),'База выдачи'!$A:$F,5,0)),"",VLOOKUP(CONCATENATE($B9,"-",AJ$1),'База выдачи'!$A:$F,5,0)),VLOOKUP(CONCATENATE($B9,"-",AJ$1),База!$A:$G,5,0)) ->  | AL9: =IF(ISERROR(VLOOKUP(CONCATENATE($B9,"-",AJ$1),База!$A:$G,6,0)),IF(ISERROR(VLOOKUP(CONCATENATE($B9,"-",AJ$1),'База выдачи'!$A:$F,6,0)),"",VLOOKUP(CONCATENATE($B9,"-",AJ$1),'База выдачи'!$A:$F,6,0)),VLOOKUP(CONCATENATE($B9,"-",AJ$1),База!$A:$G,6,0)) ->  | AM9: G | AN9: =IF(ISERROR(VLOOKUP(CONCATENATE($B9,"-",AM$1),База!$A:$G,5,0)),IF(ISERROR(VLOOKUP(CONCATENATE($B9,"-",AM$1),'База выдачи'!$A:$F,5,0)),"",VLOOKUP(CONCATENATE($B9,"-",AM$1),'База выдачи'!$A:$F,5,0)),VLOOKUP(CONCATENATE($B9,"-",AM$1),База!$A:$G,5,0)) ->  | AO9: =IF(ISERROR(VLOOKUP(CONCATENATE($B9,"-",AM$1),База!$A:$G,6,0)),IF(ISERROR(VLOOKUP(CONCATENATE($B9,"-",AM$1),'База выдачи'!$A:$F,6,0)),"",VLOOKUP(CONCATENATE($B9,"-",AM$1),'База выдачи'!$A:$F,6,0)),VLOOKUP(CONCATENATE($B9,"-",AM$1),База!$A:$G,6,0)) ->  | AP9: H | AQ9: =IF(ISERROR(VLOOKUP(CONCATENATE($B9,"-",AP$1),База!$A:$G,5,0)),IF(ISERROR(VLOOKUP(CONCATENATE($B9,"-",AP$1),'База выдачи'!$A:$F,5,0)),"",VLOOKUP(CONCATENATE($B9,"-",AP$1),'База выдачи'!$A:$F,5,0)),VLOOKUP(CONCATENATE($B9,"-",AP$1),База!$A:$G,5,0)) ->  | AR9: =IF(ISERROR(VLOOKUP(CONCATENATE($B9,"-",AP$1),База!$A:$G,6,0)),IF(ISERROR(VLOOKUP(CONCATENATE($B9,"-",AP$1),'База выдачи'!$A:$F,6,0)),"",VLOOKUP(CONCATENATE($B9,"-",AP$1),'База выдачи'!$A:$F,6,0)),VLOOKUP(CONCATENATE($B9,"-",AP$1),База!$A:$G,6,0)) ->  | AS9: I | AT9: =IF(ISERROR(VLOOKUP(CONCATENATE($B9,"-",AS$1),База!$A:$G,5,0)),IF(ISERROR(VLOOKUP(CONCATENATE($B9,"-",AS$1),'База выдачи'!$A:$F,5,0)),"",VLOOKUP(CONCATENATE($B9,"-",AS$1),'База выдачи'!$A:$F,5,0)),VLOOKUP(CONCATENATE($B9,"-",AS$1),База!$A:$G,5,0)) ->  | AU9: =IF(ISERROR(VLOOKUP(CONCATENATE($B9,"-",AS$1),База!$A:$G,6,0)),IF(ISERROR(VLOOKUP(CONCATENATE($B9,"-",AS$1),'База выдачи'!$A:$F,6,0)),"",VLOOKUP(CONCATENATE($B9,"-",AS$1),'База выдачи'!$A:$F,6,0)),VLOOKUP(CONCATENATE($B9,"-",AS$1),База!$A:$G,6,0)) ->  | AX9: =COUNTIFS(База!B:B,Статистика!B9,База!E:E,"OK") -> 4 | AY9: =BS3 -> 02:34:54.090 | AZ9: 9294 | BA9: =COUNTIFS(База!B:B,Статистика!B9,База!E:E,"XXXX") -> 0 | BB9: =IF(AX9+AZ9+BA9=0,ксекундвигре-BD9,ксекундвигре*Статистика!AX9+(ксекундвигре-Статистика!AZ9)+Статистика!BA9) -> 45006 | BC9: 65513 | BD9: 7 | BE9: 4
A10: 8 | B10: =IF(ISERROR(VLOOKUP(A10,Служебный!B:C,2,0)),"",A10&"-"&VLOOKUP(A10,Служебный!B:C,2,0)) -> 8-Корпорация счастья | C10: 8 | D10: =IF(ISERROR(VLOOKUP(CONCATENATE($B10,"-",C$1),База!$A:$G,5,0)),IF(ISERROR(VLOOKUP(CONCATENATE($B10,"-",C$1),'База выдачи'!$A:$F,5,0)),"",VLOOKUP(CONCATENATE($B10,"-",C$1),'База выдачи'!$A:$F,5,0)),VLOOKUP(CONCATENATE($B10,"-",C$1),База!$A:$G,5,0)) -> OK | E10: =IF(ISERROR(VLOOKUP(CONCATENATE($B10,"-",C$1),База!$A:$G,6,0)),IF(ISERROR(VLOOKUP(CONCATENATE($B10,"-",C$1),'База выдачи'!$A:$F,6,0)),"",VLOOKUP(CONCATENATE($B10,"-",C$1),'База выдачи'!$A:$F,6,0)),VLOOKUP(CONCATENATE($B10,"-",C$1),База!$A:$G,6,0)) -> 00:25:26.230 | F10: 7 | G10: =IF(ISERROR(VLOOKUP(CONCATENATE($B10,"-",F$1),База!$A:$G,5,0)),IF(ISERROR(VLOOKUP(CONCATENATE($B10,"-",F$1),'База выдачи'!$A:$F,5,0)),"",VLOOKUP(CONCATENATE($B10,"-",F$1),'База выдачи'!$A:$F,5,0)),VLOOKUP(CONCATENATE($B10,"-",F$1),База!$A:$G,5,0)) -> OK | H10: =IF(ISERROR(VLOOKUP(CONCATENATE($B10,"-",F$1),База!$A:$G,6,0)),IF(ISERROR(VLOOKUP(CONCATENATE($B10,"-",F$1),'База выдачи'!$A:$F,6,0)),"",VLOOKUP(CONCATENATE($B10,"-",F$1),'База выдачи'!$A:$F,6,0)),VLOOKUP(CONCATENATE($B10,"-",F$1),База!$A:$G,6,0)) -> 00:44:49.080 | I10: 6 | J10: =IF(ISERROR(VLOOKUP(CONCATENATE($B10,"-",I$1),База!$A:$G,5,0)),IF(ISERROR(VLOOKUP(CONCATENATE($B10,"-",I$1),'База выдачи'!$A:$F,5,0)),"",VLOOKUP(CONCATENATE($B10,"-",I$1),'База выдачи'!$A:$F,5,0)),VLOOKUP(CONCATENATE($B10,"-",I$1),База!$A:$G,5,0)) -> XXXX | K10: =IF(ISERROR(VLOOKUP(CONCATENATE($B10,"-",I$1),База!$A:$G,6,0)),IF(ISERROR(VLOOKUP(CONCATENATE($B10,"-",I$1),'База выдачи'!$A:$F,6,0)),"",VLOOKUP(CONCATENATE($B10,"-",I$1),'База выдачи'!$A:$F,6,0)),VLOOKUP(CONCATENATE($B10,"-",I$1),База!$A:$G,6,0)) -> 01:31:08.630 | L10: 9 | M10: =IF(ISERROR(VLOOKUP(CONCATENATE($B10,"-",L$1),База!$A:$G,5,0)),IF(ISERROR(VLOOKUP(CONCATENATE($B10,"-",L$1),'База выдачи'!$A:$F,5,0)),"",VLOOKUP(CONCATENATE($B10,"-",L$1),'База выдачи'!$A:$F,5,0)),VLOOKUP(CONCATENATE($B10,"-",L$1),База!$A:$G,5,0)) -> OK | N10: =IF(ISERROR(VLOOKUP(CONCATENATE($B10,"-",L$1),База!$A:$G,6,0)),IF(ISERROR(VLOOKUP(CONCATENATE($B10,"-",L$1),'База выдачи'!$A:$F,6,0)),"",VLOOKUP(CONCATENATE($B10,"-",L$1),'База выдачи'!$A:$F,6,0)),VLOOKUP(CONCATENATE($B10,"-",L$1),База!$A:$G,6,0)) -> 01:43:40.380 | O10: 5 | P10: =IF(ISERROR(VLOOKUP(CONCATENATE($B10,"-",O$1),База!$A:$G,5,0)),IF(ISERROR(VLOOKUP(CONCATENATE($B10,"-",O$1),'База выдачи'!$A:$F,5,0)),"",VLOOKUP(CONCATENATE($B10,"-",O$1),'База выдачи'!$A:$F,5,0)),VLOOKUP(CONCATENATE($B10,"-",O$1),База!$A:$G,5,0)) -> OK | Q10: =IF(ISERROR(VLOOKUP(CONCATENATE($B10,"-",O$1),База!$A:$G,6,0)),IF(ISERROR(VLOOKUP(CONCATENATE($B10,"-",O$1),'База выдачи'!$A:$F,6,0)),"",VLOOKUP(CONCATENATE($B10,"-",O$1),'База выдачи'!$A:$F,6,0)),VLOOKUP(CONCATENATE($B10,"-",O$1),База!$A:$G,6,0)) -> 01:59:13.270 | R10: 2 | S10: =IF(ISERROR(VLOOKUP(CONCATENATE($B10,"-",R$1),База!$A:$G,5,0)),IF(ISERROR(VLOOKUP(CONCATENATE($B10,"-",R$1),'База выдачи'!$A:$F,5,0)),"",VLOOKUP(CONCATENATE($B10,"-",R$1),'База выдачи'!$A:$F,5,0)),VLOOKUP(CONCATENATE($B10,"-",R$1),База!$A:$G,5,0)) -> OK | T10: =IF(ISERROR(VLOOKUP(CONCATENATE($B10,"-",R$1),База!$A:$G,6,0)),IF(ISERROR(VLOOKUP(CONCATENATE($B10,"-",R$1),'База выдачи'!$A:$F,6,0)),"",VLOOKUP(CONCATENATE($B10,"-",R$1),'База выдачи'!$A:$F,6,0)),VLOOKUP(CONCATENATE($B10,"-",R$1),База!$A:$G,6,0)) -> 02:38:28.780 | U10: 1 | V10: =IF(ISERROR(VLOOKUP(CONCATENATE($B10,"-",U$1),База!$A:$G,5,0)),IF(ISERROR(VLOOKUP(CONCATENATE($B10,"-",U$1),'База выдачи'!$A:$F,5,0)),"",VLOOKUP(CONCATENATE($B10,"-",U$1),'База выдачи'!$A:$F,5,0)),VLOOKUP(CONCATENATE($B10,"-",U$1),База!$A:$G,5,0)) -> ST | W10: =IF(ISERROR(VLOOKUP(CONCATENATE($B10,"-",U$1),База!$A:$G,6,0)),IF(ISERROR(VLOOKUP(CONCATENATE($B10,"-",U$1),'База выдачи'!$A:$F,6,0)),"",VLOOKUP(CONCATENATE($B10,"-",U$1),'База выдачи'!$A:$F,6,0)),VLOOKUP(CONCATENATE($B10,"-",U$1),База!$A:$G,6,0)) -> 02:38:30.670 | X10: 4 | Y10: =IF(ISERROR(VLOOKUP(CONCATENATE($B10,"-",X$1),База!$A:$G,5,0)),IF(ISERROR(VLOOKUP(CONCATENATE($B10,"-",X$1),'База выдачи'!$A:$F,5,0)),"",VLOOKUP(CONCATENATE($B10,"-",X$1),'База выдачи'!$A:$F,5,0)),VLOOKUP(CONCATENATE($B10,"-",X$1),База!$A:$G,5,0)) ->  | Z10: =IF(ISERROR(VLOOKUP(CONCATENATE($B10,"-",X$1),База!$A:$G,6,0)),IF(ISERROR(VLOOKUP(CONCATENATE($B10,"-",X$1),'База выдачи'!$A:$F,6,0)),"",VLOOKUP(CONCATENATE($B10,"-",X$1),'База выдачи'!$A:$F,6,0)),VLOOKUP(CONCATENATE($B10,"-",X$1),База!$A:$G,6,0)) ->  | AA10: 3 | AB10: =IF(ISERROR(VLOOKUP(CONCATENATE($B10,"-",AA$1),База!$A:$G,5,0)),IF(ISERROR(VLOOKUP(CONCATENATE($B10,"-",AA$1),'База выдачи'!$A:$F,5,0)),"",VLOOKUP(CONCATENATE($B10,"-",AA$1),'База выдачи'!$A:$F,5,0)),VLOOKUP(CONCATENATE($B10,"-",AA$1),База!$A:$G,5,0)) ->  | AC10: =IF(ISERROR(VLOOKUP(CONCATENATE($B10,"-",AA$1),База!$A:$G,6,0)),IF(ISERROR(VLOOKUP(CONCATENATE($B10,"-",AA$1),'База выдачи'!$A:$F,6,0)),"",VLOOKUP(CONCATENATE($B10,"-",AA$1),'База выдачи'!$A:$F,6,0)),VLOOKUP(CONCATENATE($B10,"-",AA$1),База!$A:$G,6,0)) ->  | AD10: C | AE10: =IF(ISERROR(VLOOKUP(CONCATENATE($B10,"-",AD$1),База!$A:$G,5,0)),IF(ISERROR(VLOOKUP(CONCATENATE($B10,"-",AD$1),'База выдачи'!$A:$F,5,0)),"",VLOOKUP(CONCATENATE($B10,"-",AD$1),'База выдачи'!$A:$F,5,0)),VLOOKUP(CONCATENATE($B10,"-",AD$1),База!$A:$G,5,0)) ->  | AF10: =IF(ISERROR(VLOOKUP(CONCATENATE($B10,"-",AD$1),База!$A:$G,6,0)),IF(ISERROR(VLOOKUP(CONCATENATE($B10,"-",AD$1),'База выдачи'!$A:$F,6,0)),"",VLOOKUP(CONCATENATE($B10,"-",AD$1),'База выдачи'!$A:$F,6,0)),VLOOKUP(CONCATENATE($B10,"-",AD$1),База!$A:$G,6,0)) ->  | AG10: D | AH10: =IF(ISERROR(VLOOKUP(CONCATENATE($B10,"-",AG$1),База!$A:$G,5,0)),IF(ISERROR(VLOOKUP(CONCATENATE($B10,"-",AG$1),'База выдачи'!$A:$F,5,0)),"",VLOOKUP(CONCATENATE($B10,"-",AG$1),'База выдачи'!$A:$F,5,0)),VLOOKUP(CONCATENATE($B10,"-",AG$1),База!$A:$G,5,0)) ->  | AI10: =IF(ISERROR(VLOOKUP(CONCATENATE($B10,"-",AG$1),База!$A:$G,6,0)),IF(ISERROR(VLOOKUP(CONCATENATE($B10,"-",AG$1),'База выдачи'!$A:$F,6,0)),"",VLOOKUP(CONCATENATE($B10,"-",AG$1),'База выдачи'!$A:$F,6,0)),VLOOKUP(CONCATENATE($B10,"-",AG$1),База!$A:$G,6,0)) ->  | AJ10: E | AK10: =IF(ISERROR(VLOOKUP(CONCATENATE($B10,"-",AJ$1),База!$A:$G,5,0)),IF(ISERROR(VLOOKUP(CONCATENATE($B10,"-",AJ$1),'База выдачи'!$A:$F,5,0)),"",VLOOKUP(CONCATENATE($B10,"-",AJ$1),'База выдачи'!$A:$F,5,0)),VLOOKUP(CONCATENATE($B10,"-",AJ$1),База!$A:$G,5,0)) ->  | AL10: =IF(ISERROR(VLOOKUP(CONCATENATE($B10,"-",AJ$1),База!$A:$G,6,0)),IF(ISERROR(VLOOKUP(CONCATENATE($B10,"-",AJ$1),'База выдачи'!$A:$F,6,0)),"",VLOOKUP(CONCATENATE($B10,"-",AJ$1),'База выдачи'!$A:$F,6,0)),VLOOKUP(CONCATENATE($B10,"-",AJ$1),База!$A:$G,6,0)) ->  | AM10: F | AN10: =IF(ISERROR(VLOOKUP(CONCATENATE($B10,"-",AM$1),База!$A:$G,5,0)),IF(ISERROR(VLOOKUP(CONCATENATE($B10,"-",AM$1),'База выдачи'!$A:$F,5,0)),"",VLOOKUP(CONCATENATE($B10,"-",AM$1),'База выдачи'!$A:$F,5,0)),VLOOKUP(CONCATENATE($B10,"-",AM$1),База!$A:$G,5,0)) ->  | AO10: =IF(ISERROR(VLOOKUP(CONCATENATE($B10,"-",AM$1),База!$A:$G,6,0)),IF(ISERROR(VLOOKUP(CONCATENATE($B10,"-",AM$1),'База выдачи'!$A:$F,6,0)),"",VLOOKUP(CONCATENATE($B10,"-",AM$1),'База выдачи'!$A:$F,6,0)),VLOOKUP(CONCATENATE($B10,"-",AM$1),База!$A:$G,6,0)) ->  | AP10: G | AQ10: =IF(ISERROR(VLOOKUP(CONCATENATE($B10,"-",AP$1),База!$A:$G,5,0)),IF(ISERROR(VLOOKUP(CONCATENATE($B10,"-",AP$1),'База выдачи'!$A:$F,5,0)),"",VLOOKUP(CONCATENATE($B10,"-",AP$1),'База выдачи'!$A:$F,5,0)),VLOOKUP(CONCATENATE($B10,"-",AP$1),База!$A:$G,5,0)) ->  | AR10: =IF(ISERROR(VLOOKUP(CONCATENATE($B10,"-",AP$1),База!$A:$G,6,0)),IF(ISERROR(VLOOKUP(CONCATENATE($B10,"-",AP$1),'База выдачи'!$A:$F,6,0)),"",VLOOKUP(CONCATENATE($B10,"-",AP$1),'База выдачи'!$A:$F,6,0)),VLOOKUP(CONCATENATE($B10,"-",AP$1),База!$A:$G,6,0)) ->  | AS10: H | AT10: =IF(ISERROR(VLOOKUP(CONCATENATE($B10,"-",AS$1),База!$A:$G,5,0)),IF(ISERROR(VLOOKUP(CONCATENATE($B10,"-",AS$1),'База выдачи'!$A:$F,5,0)),"",VLOOKUP(CONCATENATE($B10,"-",AS$1),'База выдачи'!$A:$F,5,0)),VLOOKUP(CONCATENATE($B10,"-",AS$1),База!$A:$G,5,0)) ->  | AU10: =IF(ISERROR(VLOOKUP(CONCATENATE($B10,"-",AS$1),База!$A:$G,6,0)),IF(ISERROR(VLOOKUP(CONCATENATE($B10,"-",AS$1),'База выдачи'!$A:$F,6,0)),"",VLOOKUP(CONCATENATE($B10,"-",AS$1),'База выдачи'!$A:$F,6,0)),VLOOKUP(CONCATENATE($B10,"-",AS$1),База!$A:$G,6,0)) ->  | AX10: =COUNTIFS(База!B:B,Статистика!B10,База!E:E,"OK") -> 5 | AY10: =BU3 -> 02:38:28.780 | AZ10: 9509 | BA10: =COUNTIFS(База!B:B,Статистика!B10,База!E:E,"XXXX") -> 1 | BB10: =IF(AX10+AZ10+BA10=0,ксекундвигре-BD10,ксекундвигре*Статистика!AX10+(ксекундвигре-Статистика!AZ10)+Статистика!BA10) -> 55652 | BC10: 65495 | BD10: 8 | BE10: 25
A11: 9 | B11: =IF(ISERROR(VLOOKUP(A11,Служебный!B:C,2,0)),"",A11&"-"&VLOOKUP(A11,Служебный!B:C,2,0)) -> 9-Джи 3 | C11: 9 | D11: =IF(ISERROR(VLOOKUP(CONCATENATE($B11,"-",C$1),База!$A:$G,5,0)),IF(ISERROR(VLOOKUP(CONCATENATE($B11,"-",C$1),'База выдачи'!$A:$F,5,0)),"",VLOOKUP(CONCATENATE($B11,"-",C$1),'База выдачи'!$A:$F,5,0)),VLOOKUP(CONCATENATE($B11,"-",C$1),База!$A:$G,5,0)) -> OK | E11: =IF(ISERROR(VLOOKUP(CONCATENATE($B11,"-",C$1),База!$A:$G,6,0)),IF(ISERROR(VLOOKUP(CONCATENATE($B11,"-",C$1),'База выдачи'!$A:$F,6,0)),"",VLOOKUP(CONCATENATE($B11,"-",C$1),'База выдачи'!$A:$F,6,0)),VLOOKUP(CONCATENATE($B11,"-",C$1),База!$A:$G,6,0)) -> 00:28:16.780 | F11: 8 | G11: =IF(ISERROR(VLOOKUP(CONCATENATE($B11,"-",F$1),База!$A:$G,5,0)),IF(ISERROR(VLOOKUP(CONCATENATE($B11,"-",F$1),'База выдачи'!$A:$F,5,0)),"",VLOOKUP(CONCATENATE($B11,"-",F$1),'База выдачи'!$A:$F,5,0)),VLOOKUP(CONCATENATE($B11,"-",F$1),База!$A:$G,5,0)) -> OK | H11: =IF(ISERROR(VLOOKUP(CONCATENATE($B11,"-",F$1),База!$A:$G,6,0)),IF(ISERROR(VLOOKUP(CONCATENATE($B11,"-",F$1),'База выдачи'!$A:$F,6,0)),"",VLOOKUP(CONCATENATE($B11,"-",F$1),'База выдачи'!$A:$F,6,0)),VLOOKUP(CONCATENATE($B11,"-",F$1),База!$A:$G,6,0)) -> 00:54:48.560 | I11: 7 | J11: =IF(ISERROR(VLOOKUP(CONCATENATE($B11,"-",I$1),База!$A:$G,5,0)),IF(ISERROR(VLOOKUP(CONCATENATE($B11,"-",I$1),'База выдачи'!$A:$F,5,0)),"",VLOOKUP(CONCATENATE($B11,"-",I$1),'База выдачи'!$A:$F,5,0)),VLOOKUP(CONCATENATE($B11,"-",I$1),База!$A:$G,5,0)) -> OK | K11: =IF(ISERROR(VLOOKUP(CONCATENATE($B11,"-",I$1),База!$A:$G,6,0)),IF(ISERROR(VLOOKUP(CONCATENATE($B11,"-",I$1),'База выдачи'!$A:$F,6,0)),"",VLOOKUP(CONCATENATE($B11,"-",I$1),'База выдачи'!$A:$F,6,0)),VLOOKUP(CONCATENATE($B11,"-",I$1),База!$A:$G,6,0)) -> 01:22:04.920 | L11: 4 | M11: =IF(ISERROR(VLOOKUP(CONCATENATE($B11,"-",L$1),База!$A:$G,5,0)),IF(ISERROR(VLOOKUP(CONCATENATE($B11,"-",L$1),'База выдачи'!$A:$F,5,0)),"",VLOOKUP(CONCATENATE($B11,"-",L$1),'База выдачи'!$A:$F,5,0)),VLOOKUP(CONCATENATE($B11,"-",L$1),База!$A:$G,5,0)) -> OK | N11: =IF(ISERROR(VLOOKUP(CONCATENATE($B11,"-",L$1),База!$A:$G,6,0)),IF(ISERROR(VLOOKUP(CONCATENATE($B11,"-",L$1),'База выдачи'!$A:$F,6,0)),"",VLOOKUP(CONCATENATE($B11,"-",L$1),'База выдачи'!$A:$F,6,0)),VLOOKUP(CONCATENATE($B11,"-",L$1),База!$A:$G,6,0)) -> 01:36:43.950 | O11: 2 | P11: =IF(ISERROR(VLOOKUP(CONCATENATE($B11,"-",O$1),База!$A:$G,5,0)),IF(ISERROR(VLOOKUP(CONCATENATE($B11,"-",O$1),'База выдачи'!$A:$F,5,0)),"",VLOOKUP(CONCATENATE($B11,"-",O$1),'База выдачи'!$A:$F,5,0)),VLOOKUP(CONCATENATE($B11,"-",O$1),База!$A:$G,5,0)) -> OK | Q11: =IF(ISERROR(VLOOKUP(CONCATENATE($B11,"-",O$1),База!$A:$G,6,0)),IF(ISERROR(VLOOKUP(CONCATENATE($B11,"-",O$1),'База выдачи'!$A:$F,6,0)),"",VLOOKUP(CONCATENATE($B11,"-",O$1),'База выдачи'!$A:$F,6,0)),VLOOKUP(CONCATENATE($B11,"-",O$1),База!$A:$G,6,0)) -> 01:49:04.560 | R11: 1 | S11: =IF(ISERROR(VLOOKUP(CONCATENATE($B11,"-",R$1),База!$A:$G,5,0)),IF(ISERROR(VLOOKUP(CONCATENATE($B11,"-",R$1),'База выдачи'!$A:$F,5,0)),"",VLOOKUP(CONCATENATE($B11,"-",R$1),'База выдачи'!$A:$F,5,0)),VLOOKUP(CONCATENATE($B11,"-",R$1),База!$A:$G,5,0)) -> OK | T11: =IF(ISERROR(VLOOKUP(CONCATENATE($B11,"-",R$1),База!$A:$G,6,0)),IF(ISERROR(VLOOKUP(CONCATENATE($B11,"-",R$1),'База выдачи'!$A:$F,6,0)),"",VLOOKUP(CONCATENATE($B11,"-",R$1),'База выдачи'!$A:$F,6,0)),VLOOKUP(CONCATENATE($B11,"-",R$1),База!$A:$G,6,0)) -> 02:06:46.330 | U11: 3 | V11: =IF(ISERROR(VLOOKUP(CONCATENATE($B11,"-",U$1),База!$A:$G,5,0)),IF(ISERROR(VLOOKUP(CONCATENATE($B11,"-",U$1),'База выдачи'!$A:$F,5,0)),"",VLOOKUP(CONCATENATE($B11,"-",U$1),'База выдачи'!$A:$F,5,0)),VLOOKUP(CONCATENATE($B11,"-",U$1),База!$A:$G,5,0)) -> OK | W11: =IF(ISERROR(VLOOKUP(CONCATENATE($B11,"-",U$1),База!$A:$G,6,0)),IF(ISERROR(VLOOKUP(CONCATENATE($B11,"-",U$1),'База выдачи'!$A:$F,6,0)),"",VLOOKUP(CONCATENATE($B11,"-",U$1),'База выдачи'!$A:$F,6,0)),VLOOKUP(CONCATENATE($B11,"-",U$1),База!$A:$G,6,0)) -> 02:23:59.360 | X11: 6 | Y11: =IF(ISERROR(VLOOKUP(CONCATENATE($B11,"-",X$1),База!$A:$G,5,0)),IF(ISERROR(VLOOKUP(CONCATENATE($B11,"-",X$1),'База выдачи'!$A:$F,5,0)),"",VLOOKUP(CONCATENATE($B11,"-",X$1),'База выдачи'!$A:$F,5,0)),VLOOKUP(CONCATENATE($B11,"-",X$1),База!$A:$G,5,0)) -> ST | Z11: =IF(ISERROR(VLOOKUP(CONCATENATE($B11,"-",X$1),База!$A:$G,6,0)),IF(ISERROR(VLOOKUP(CONCATENATE($B11,"-",X$1),'База выдачи'!$A:$F,6,0)),"",VLOOKUP(CONCATENATE($B11,"-",X$1),'База выдачи'!$A:$F,6,0)),VLOOKUP(CONCATENATE($B11,"-",X$1),База!$A:$G,6,0)) -> 02:24:01.220 | AA11: 5 | AB11: =IF(ISERROR(VLOOKUP(CONCATENATE($B11,"-",AA$1),База!$A:$G,5,0)),IF(ISERROR(VLOOKUP(CONCATENATE($B11,"-",AA$1),'База выдачи'!$A:$F,5,0)),"",VLOOKUP(CONCATENATE($B11,"-",AA$1),'База выдачи'!$A:$F,5,0)),VLOOKUP(CONCATENATE($B11,"-",AA$1),База!$A:$G,5,0)) ->  | AC11: =IF(ISERROR(VLOOKUP(CONCATENATE($B11,"-",AA$1),База!$A:$G,6,0)),IF(ISERROR(VLOOKUP(CONCATENATE($B11,"-",AA$1),'База выдачи'!$A:$F,6,0)),"",VLOOKUP(CONCATENATE($B11,"-",AA$1),'База выдачи'!$A:$F,6,0)),VLOOKUP(CONCATENATE($B11,"-",AA$1),База!$A:$G,6,0)) ->  | AD11: B | AE11: =IF(ISERROR(VLOOKUP(CONCATENATE($B11,"-",AD$1),База!$A:$G,5,0)),IF(ISERROR(VLOOKUP(CONCATENATE($B11,"-",AD$1),'База выдачи'!$A:$F,5,0)),"",VLOOKUP(CONCATENATE($B11,"-",AD$1),'База выдачи'!$A:$F,5,0)),VLOOKUP(CONCATENATE($B11,"-",AD$1),База!$A:$G,5,0)) ->  | AF11: =IF(ISERROR(VLOOKUP(CONCATENATE($B11,"-",AD$1),База!$A:$G,6,0)),IF(ISERROR(VLOOKUP(CONCATENATE($B11,"-",AD$1),'База выдачи'!$A:$F,6,0)),"",VLOOKUP(CONCATENATE($B11,"-",AD$1),'База выдачи'!$A:$F,6,0)),VLOOKUP(CONCATENATE($B11,"-",AD$1),База!$A:$G,6,0)) ->  | AG11: C | AH11: =IF(ISERROR(VLOOKUP(CONCATENATE($B11,"-",AG$1),База!$A:$G,5,0)),IF(ISERROR(VLOOKUP(CONCATENATE($B11,"-",AG$1),'База выдачи'!$A:$F,5,0)),"",VLOOKUP(CONCATENATE($B11,"-",AG$1),'База выдачи'!$A:$F,5,0)),VLOOKUP(CONCATENATE($B11,"-",AG$1),База!$A:$G,5,0)) ->  | AI11: =IF(ISERROR(VLOOKUP(CONCATENATE($B11,"-",AG$1),База!$A:$G,6,0)),IF(ISERROR(VLOOKUP(CONCATENATE($B11,"-",AG$1),'База выдачи'!$A:$F,6,0)),"",VLOOKUP(CONCATENATE($B11,"-",AG$1),'База выдачи'!$A:$F,6,0)),VLOOKUP(CONCATENATE($B11,"-",AG$1),База!$A:$G,6,0)) ->  | AJ11: D | AK11: =IF(ISERROR(VLOOKUP(CONCATENATE($B11,"-",AJ$1),База!$A:$G,5,0)),IF(ISERROR(VLOOKUP(CONCATENATE($B11,"-",AJ$1),'База выдачи'!$A:$F,5,0)),"",VLOOKUP(CONCATENATE($B11,"-",AJ$1),'База выдачи'!$A:$F,5,0)),VLOOKUP(CONCATENATE($B11,"-",AJ$1),База!$A:$G,5,0)) ->  | AL11: =IF(ISERROR(VLOOKUP(CONCATENATE($B11,"-",AJ$1),База!$A:$G,6,0)),IF(ISERROR(VLOOKUP(CONCATENATE($B11,"-",AJ$1),'База выдачи'!$A:$F,6,0)),"",VLOOKUP(CONCATENATE($B11,"-",AJ$1),'База выдачи'!$A:$F,6,0)),VLOOKUP(CONCATENATE($B11,"-",AJ$1),База!$A:$G,6,0)) ->  | AM11: E | AN11: =IF(ISERROR(VLOOKUP(CONCATENATE($B11,"-",AM$1),База!$A:$G,5,0)),IF(ISERROR(VLOOKUP(CONCATENATE($B11,"-",AM$1),'База выдачи'!$A:$F,5,0)),"",VLOOKUP(CONCATENATE($B11,"-",AM$1),'База выдачи'!$A:$F,5,0)),VLOOKUP(CONCATENATE($B11,"-",AM$1),База!$A:$G,5,0)) ->  | AO11: =IF(ISERROR(VLOOKUP(CONCATENATE($B11,"-",AM$1),База!$A:$G,6,0)),IF(ISERROR(VLOOKUP(CONCATENATE($B11,"-",AM$1),'База выдачи'!$A:$F,6,0)),"",VLOOKUP(CONCATENATE($B11,"-",AM$1),'База выдачи'!$A:$F,6,0)),VLOOKUP(CONCATENATE($B11,"-",AM$1),База!$A:$G,6,0)) ->  | AP11: F | AQ11: =IF(ISERROR(VLOOKUP(CONCATENATE($B11,"-",AP$1),База!$A:$G,5,0)),IF(ISERROR(VLOOKUP(CONCATENATE($B11,"-",AP$1),'База выдачи'!$A:$F,5,0)),"",VLOOKUP(CONCATENATE($B11,"-",AP$1),'База выдачи'!$A:$F,5,0)),VLOOKUP(CONCATENATE($B11,"-",AP$1),База!$A:$G,5,0)) ->  | AR11: =IF(ISERROR(VLOOKUP(CONCATENATE($B11,"-",AP$1),База!$A:$G,6,0)),IF(ISERROR(VLOOKUP(CONCATENATE($B11,"-",AP$1),'База выдачи'!$A:$F,6,0)),"",VLOOKUP(CONCATENATE($B11,"-",AP$1),'База выдачи'!$A:$F,6,0)),VLOOKUP(CONCATENATE($B11,"-",AP$1),База!$A:$G,6,0)) ->  | AS11: G | AT11: =IF(ISERROR(VLOOKUP(CONCATENATE($B11,"-",AS$1),База!$A:$G,5,0)),IF(ISERROR(VLOOKUP(CONCATENATE($B11,"-",AS$1),'База выдачи'!$A:$F,5,0)),"",VLOOKUP(CONCATENATE($B11,"-",AS$1),'База выдачи'!$A:$F,5,0)),VLOOKUP(CONCATENATE($B11,"-",AS$1),База!$A:$G,5,0)) ->  | AU11: =IF(ISERROR(VLOOKUP(CONCATENATE($B11,"-",AS$1),База!$A:$G,6,0)),IF(ISERROR(VLOOKUP(CONCATENATE($B11,"-",AS$1),'База выдачи'!$A:$F,6,0)),"",VLOOKUP(CONCATENATE($B11,"-",AS$1),'База выдачи'!$A:$F,6,0)),VLOOKUP(CONCATENATE($B11,"-",AS$1),База!$A:$G,6,0)) ->  | AX11: =COUNTIFS(База!B:B,Статистика!B11,База!E:E,"OK") -> 7 | AY11: =BW3 -> 02:23:59.360 | AZ11: 8639 | BA11: =COUNTIFS(База!B:B,Статистика!B11,База!E:E,"XXXX") -> 0 | BB11: =IF(AX11+AZ11+BA11=0,ксекундвигре-BD11,ксекундвигре*Статистика!AX11+(ксекундвигре-Статистика!AZ11)+Статистика!BA11) -> 78241 | BC11: 65437 | BD11: 9 | BE11: 5
A12: 10 | B12: =IF(ISERROR(VLOOKUP(A12,Служебный!B:C,2,0)),"",A12&"-"&VLOOKUP(A12,Служебный!B:C,2,0)) -> 10-Т-34 | C12: 1 | D12: =IF(ISERROR(VLOOKUP(CONCATENATE($B12,"-",C$1),База!$A:$G,5,0)),IF(ISERROR(VLOOKUP(CONCATENATE($B12,"-",C$1),'База выдачи'!$A:$F,5,0)),"",VLOOKUP(CONCATENATE($B12,"-",C$1),'База выдачи'!$A:$F,5,0)),VLOOKUP(CONCATENATE($B12,"-",C$1),База!$A:$G,5,0)) -> XXXX | E12: =IF(ISERROR(VLOOKUP(CONCATENATE($B12,"-",C$1),База!$A:$G,6,0)),IF(ISERROR(VLOOKUP(CONCATENATE($B12,"-",C$1),'База выдачи'!$A:$F,6,0)),"",VLOOKUP(CONCATENATE($B12,"-",C$1),'База выдачи'!$A:$F,6,0)),VLOOKUP(CONCATENATE($B12,"-",C$1),База!$A:$G,6,0)) -> 00:54:33.010 | F12: 5 | G12: =IF(ISERROR(VLOOKUP(CONCATENATE($B12,"-",F$1),База!$A:$G,5,0)),IF(ISERROR(VLOOKUP(CONCATENATE($B12,"-",F$1),'База выдачи'!$A:$F,5,0)),"",VLOOKUP(CONCATENATE($B12,"-",F$1),'База выдачи'!$A:$F,5,0)),VLOOKUP(CONCATENATE($B12,"-",F$1),База!$A:$G,5,0)) -> OK | H12: =IF(ISERROR(VLOOKUP(CONCATENATE($B12,"-",F$1),База!$A:$G,6,0)),IF(ISERROR(VLOOKUP(CONCATENATE($B12,"-",F$1),'База выдачи'!$A:$F,6,0)),"",VLOOKUP(CONCATENATE($B12,"-",F$1),'База выдачи'!$A:$F,6,0)),VLOOKUP(CONCATENATE($B12,"-",F$1),База!$A:$G,6,0)) -> 01:10:58.550 | I12: 3 | J12: =IF(ISERROR(VLOOKUP(CONCATENATE($B12,"-",I$1),База!$A:$G,5,0)),IF(ISERROR(VLOOKUP(CONCATENATE($B12,"-",I$1),'База выдачи'!$A:$F,5,0)),"",VLOOKUP(CONCATENATE($B12,"-",I$1),'База выдачи'!$A:$F,5,0)),VLOOKUP(CONCATENATE($B12,"-",I$1),База!$A:$G,5,0)) -> OK | K12: =IF(ISERROR(VLOOKUP(CONCATENATE($B12,"-",I$1),База!$A:$G,6,0)),IF(ISERROR(VLOOKUP(CONCATENATE($B12,"-",I$1),'База выдачи'!$A:$F,6,0)),"",VLOOKUP(CONCATENATE($B12,"-",I$1),'База выдачи'!$A:$F,6,0)),VLOOKUP(CONCATENATE($B12,"-",I$1),База!$A:$G,6,0)) -> 01:39:43.740 | L12: 7 | M12: =IF(ISERROR(VLOOKUP(CONCATENATE($B12,"-",L$1),База!$A:$G,5,0)),IF(ISERROR(VLOOKUP(CONCATENATE($B12,"-",L$1),'База выдачи'!$A:$F,5,0)),"",VLOOKUP(CONCATENATE($B12,"-",L$1),'База выдачи'!$A:$F,5,0)),VLOOKUP(CONCATENATE($B12,"-",L$1),База!$A:$G,5,0)) -> OK | N12: =IF(ISERROR(VLOOKUP(CONCATENATE($B12,"-",L$1),База!$A:$G,6,0)),IF(ISERROR(VLOOKUP(CONCATENATE($B12,"-",L$1),'База выдачи'!$A:$F,6,0)),"",VLOOKUP(CONCATENATE($B12,"-",L$1),'База выдачи'!$A:$F,6,0)),VLOOKUP(CONCATENATE($B12,"-",L$1),База!$A:$G,6,0)) -> 02:09:27.150 | O12: 2 | P12: =IF(ISERROR(VLOOKUP(CONCATENATE($B12,"-",O$1),База!$A:$G,5,0)),IF(ISERROR(VLOOKUP(CONCATENATE($B12,"-",O$1),'База выдачи'!$A:$F,5,0)),"",VLOOKUP(CONCATENATE($B12,"-",O$1),'База выдачи'!$A:$F,5,0)),VLOOKUP(CONCATENATE($B12,"-",O$1),База!$A:$G,5,0)) -> ST | Q12: =IF(ISERROR(VLOOKUP(CONCATENATE($B12,"-",O$1),База!$A:$G,6,0)),IF(ISERROR(VLOOKUP(CONCATENATE($B12,"-",O$1),'База выдачи'!$A:$F,6,0)),"",VLOOKUP(CONCATENATE($B12,"-",O$1),'База выдачи'!$A:$F,6,0)),VLOOKUP(CONCATENATE($B12,"-",O$1),База!$A:$G,6,0)) -> 02:09:28.980 | R12: 9 | S12: =IF(ISERROR(VLOOKUP(CONCATENATE($B12,"-",R$1),База!$A:$G,5,0)),IF(ISERROR(VLOOKUP(CONCATENATE($B12,"-",R$1),'База выдачи'!$A:$F,5,0)),"",VLOOKUP(CONCATENATE($B12,"-",R$1),'База выдачи'!$A:$F,5,0)),VLOOKUP(CONCATENATE($B12,"-",R$1),База!$A:$G,5,0)) ->  | T12: =IF(ISERROR(VLOOKUP(CONCATENATE($B12,"-",R$1),База!$A:$G,6,0)),IF(ISERROR(VLOOKUP(CONCATENATE($B12,"-",R$1),'База выдачи'!$A:$F,6,0)),"",VLOOKUP(CONCATENATE($B12,"-",R$1),'База выдачи'!$A:$F,6,0)),VLOOKUP(CONCATENATE($B12,"-",R$1),База!$A:$G,6,0)) ->  | U12: 4 | V12: =IF(ISERROR(VLOOKUP(CONCATENATE($B12,"-",U$1),База!$A:$G,5,0)),IF(ISERROR(VLOOKUP(CONCATENATE($B12,"-",U$1),'База выдачи'!$A:$F,5,0)),"",VLOOKUP(CONCATENATE($B12,"-",U$1),'База выдачи'!$A:$F,5,0)),VLOOKUP(CONCATENATE($B12,"-",U$1),База!$A:$G,5,0)) ->  | W12: =IF(ISERROR(VLOOKUP(CONCATENATE($B12,"-",U$1),База!$A:$G,6,0)),IF(ISERROR(VLOOKUP(CONCATENATE($B12,"-",U$1),'База выдачи'!$A:$F,6,0)),"",VLOOKUP(CONCATENATE($B12,"-",U$1),'База выдачи'!$A:$F,6,0)),VLOOKUP(CONCATENATE($B12,"-",U$1),База!$A:$G,6,0)) ->  | X12: 8 | Y12: =IF(ISERROR(VLOOKUP(CONCATENATE($B12,"-",X$1),База!$A:$G,5,0)),IF(ISERROR(VLOOKUP(CONCATENATE($B12,"-",X$1),'База выдачи'!$A:$F,5,0)),"",VLOOKUP(CONCATENATE($B12,"-",X$1),'База выдачи'!$A:$F,5,0)),VLOOKUP(CONCATENATE($B12,"-",X$1),База!$A:$G,5,0)) ->  | Z12: =IF(ISERROR(VLOOKUP(CONCATENATE($B12,"-",X$1),База!$A:$G,6,0)),IF(ISERROR(VLOOKUP(CONCATENATE($B12,"-",X$1),'База выдачи'!$A:$F,6,0)),"",VLOOKUP(CONCATENATE($B12,"-",X$1),'База выдачи'!$A:$F,6,0)),VLOOKUP(CONCATENATE($B12,"-",X$1),База!$A:$G,6,0)) ->  | AA12: 6 | AB12: =IF(ISERROR(VLOOKUP(CONCATENATE($B12,"-",AA$1),База!$A:$G,5,0)),IF(ISERROR(VLOOKUP(CONCATENATE($B12,"-",AA$1),'База выдачи'!$A:$F,5,0)),"",VLOOKUP(CONCATENATE($B12,"-",AA$1),'База выдачи'!$A:$F,5,0)),VLOOKUP(CONCATENATE($B12,"-",AA$1),База!$A:$G,5,0)) ->  | AC12: =IF(ISERROR(VLOOKUP(CONCATENATE($B12,"-",AA$1),База!$A:$G,6,0)),IF(ISERROR(VLOOKUP(CONCATENATE($B12,"-",AA$1),'База выдачи'!$A:$F,6,0)),"",VLOOKUP(CONCATENATE($B12,"-",AA$1),'База выдачи'!$A:$F,6,0)),VLOOKUP(CONCATENATE($B12,"-",AA$1),База!$A:$G,6,0)) ->  | AD12: A | AE12: =IF(ISERROR(VLOOKUP(CONCATENATE($B12,"-",AD$1),База!$A:$G,5,0)),IF(ISERROR(VLOOKUP(CONCATENATE($B12,"-",AD$1),'База выдачи'!$A:$F,5,0)),"",VLOOKUP(CONCATENATE($B12,"-",AD$1),'База выдачи'!$A:$F,5,0)),VLOOKUP(CONCATENATE($B12,"-",AD$1),База!$A:$G,5,0)) ->  | AF12: =IF(ISERROR(VLOOKUP(CONCATENATE($B12,"-",AD$1),База!$A:$G,6,0)),IF(ISERROR(VLOOKUP(CONCATENATE($B12,"-",AD$1),'База выдачи'!$A:$F,6,0)),"",VLOOKUP(CONCATENATE($B12,"-",AD$1),'База выдачи'!$A:$F,6,0)),VLOOKUP(CONCATENATE($B12,"-",AD$1),База!$A:$G,6,0)) ->  | AG12: B | AH12: =IF(ISERROR(VLOOKUP(CONCATENATE($B12,"-",AG$1),База!$A:$G,5,0)),IF(ISERROR(VLOOKUP(CONCATENATE($B12,"-",AG$1),'База выдачи'!$A:$F,5,0)),"",VLOOKUP(CONCATENATE($B12,"-",AG$1),'База выдачи'!$A:$F,5,0)),VLOOKUP(CONCATENATE($B12,"-",AG$1),База!$A:$G,5,0)) ->  | AI12: =IF(ISERROR(VLOOKUP(CONCATENATE($B12,"-",AG$1),База!$A:$G,6,0)),IF(ISERROR(VLOOKUP(CONCATENATE($B12,"-",AG$1),'База выдачи'!$A:$F,6,0)),"",VLOOKUP(CONCATENATE($B12,"-",AG$1),'База выдачи'!$A:$F,6,0)),VLOOKUP(CONCATENATE($B12,"-",AG$1),База!$A:$G,6,0)) ->  | AJ12: C | AK12: =IF(ISERROR(VLOOKUP(CONCATENATE($B12,"-",AJ$1),База!$A:$G,5,0)),IF(ISERROR(VLOOKUP(CONCATENATE($B12,"-",AJ$1),'База выдачи'!$A:$F,5,0)),"",VLOOKUP(CONCATENATE($B12,"-",AJ$1),'База выдачи'!$A:$F,5,0)),VLOOKUP(CONCATENATE($B12,"-",AJ$1),База!$A:$G,5,0)) ->  | AL12: =IF(ISERROR(VLOOKUP(CONCATENATE($B12,"-",AJ$1),База!$A:$G,6,0)),IF(ISERROR(VLOOKUP(CONCATENATE($B12,"-",AJ$1),'База выдачи'!$A:$F,6,0)),"",VLOOKUP(CONCATENATE($B12,"-",AJ$1),'База выдачи'!$A:$F,6,0)),VLOOKUP(CONCATENATE($B12,"-",AJ$1),База!$A:$G,6,0)) ->  | AM12: D | AN12: =IF(ISERROR(VLOOKUP(CONCATENATE($B12,"-",AM$1),База!$A:$G,5,0)),IF(ISERROR(VLOOKUP(CONCATENATE($B12,"-",AM$1),'База выдачи'!$A:$F,5,0)),"",VLOOKUP(CONCATENATE($B12,"-",AM$1),'База выдачи'!$A:$F,5,0)),VLOOKUP(CONCATENATE($B12,"-",AM$1),База!$A:$G,5,0)) ->  | AO12: =IF(ISERROR(VLOOKUP(CONCATENATE($B12,"-",AM$1),База!$A:$G,6,0)),IF(ISERROR(VLOOKUP(CONCATENATE($B12,"-",AM$1),'База выдачи'!$A:$F,6,0)),"",VLOOKUP(CONCATENATE($B12,"-",AM$1),'База выдачи'!$A:$F,6,0)),VLOOKUP(CONCATENATE($B12,"-",AM$1),База!$A:$G,6,0)) ->  | AP12: E | AQ12: =IF(ISERROR(VLOOKUP(CONCATENATE($B12,"-",AP$1),База!$A:$G,5,0)),IF(ISERROR(VLOOKUP(CONCATENATE($B12,"-",AP$1),'База выдачи'!$A:$F,5,0)),"",VLOOKUP(CONCATENATE($B12,"-",AP$1),'База выдачи'!$A:$F,5,0)),VLOOKUP(CONCATENATE($B12,"-",AP$1),База!$A:$G,5,0)) ->  | AR12: =IF(ISERROR(VLOOKUP(CONCATENATE($B12,"-",AP$1),База!$A:$G,6,0)),IF(ISERROR(VLOOKUP(CONCATENATE($B12,"-",AP$1),'База выдачи'!$A:$F,6,0)),"",VLOOKUP(CONCATENATE($B12,"-",AP$1),'База выдачи'!$A:$F,6,0)),VLOOKUP(CONCATENATE($B12,"-",AP$1),База!$A:$G,6,0)) ->  | AS12: F | AT12: =IF(ISERROR(VLOOKUP(CONCATENATE($B12,"-",AS$1),База!$A:$G,5,0)),IF(ISERROR(VLOOKUP(CONCATENATE($B12,"-",AS$1),'База выдачи'!$A:$F,5,0)),"",VLOOKUP(CONCATENATE($B12,"-",AS$1),'База выдачи'!$A:$F,5,0)),VLOOKUP(CONCATENATE($B12,"-",AS$1),База!$A:$G,5,0)) ->  | AU12: =IF(ISERROR(VLOOKUP(CONCATENATE($B12,"-",AS$1),База!$A:$G,6,0)),IF(ISERROR(VLOOKUP(CONCATENATE($B12,"-",AS$1),'База выдачи'!$A:$F,6,0)),"",VLOOKUP(CONCATENATE($B12,"-",AS$1),'База выдачи'!$A:$F,6,0)),VLOOKUP(CONCATENATE($B12,"-",AS$1),База!$A:$G,6,0)) ->  | AX12: =COUNTIFS(База!B:B,Статистика!B12,База!E:E,"OK") -> 3 | AY12: =BY3 -> 02:09:27.150 | AZ12: 7767 | BA12: =COUNTIFS(База!B:B,Статистика!B12,База!E:E,"XXXX") -> 1 | BB12: =IF(AX12+AZ12+BA12=0,ксекундвигре-BD12,ксекундвигре*Статистика!AX12+(ксекундвигре-Статистика!AZ12)+Статистика!BA12) -> 35674 | BC12: 65344 | BD12: 10 | BE12: 15
A13: 11 | B13: =IF(ISERROR(VLOOKUP(A13,Служебный!B:C,2,0)),"",A13&"-"&VLOOKUP(A13,Служебный!B:C,2,0)) -> 11-Артур Пирожков | C13: 2 | D13: =IF(ISERROR(VLOOKUP(CONCATENATE($B13,"-",C$1),База!$A:$G,5,0)),IF(ISERROR(VLOOKUP(CONCATENATE($B13,"-",C$1),'База выдачи'!$A:$F,5,0)),"",VLOOKUP(CONCATENATE($B13,"-",C$1),'База выдачи'!$A:$F,5,0)),VLOOKUP(CONCATENATE($B13,"-",C$1),База!$A:$G,5,0)) -> OK | E13: =IF(ISERROR(VLOOKUP(CONCATENATE($B13,"-",C$1),База!$A:$G,6,0)),IF(ISERROR(VLOOKUP(CONCATENATE($B13,"-",C$1),'База выдачи'!$A:$F,6,0)),"",VLOOKUP(CONCATENATE($B13,"-",C$1),'База выдачи'!$A:$F,6,0)),VLOOKUP(CONCATENATE($B13,"-",C$1),База!$A:$G,6,0)) -> 00:45:38.930 | F13: 4 | G13: =IF(ISERROR(VLOOKUP(CONCATENATE($B13,"-",F$1),База!$A:$G,5,0)),IF(ISERROR(VLOOKUP(CONCATENATE($B13,"-",F$1),'База выдачи'!$A:$F,5,0)),"",VLOOKUP(CONCATENATE($B13,"-",F$1),'База выдачи'!$A:$F,5,0)),VLOOKUP(CONCATENATE($B13,"-",F$1),База!$A:$G,5,0)) -> OK | H13: =IF(ISERROR(VLOOKUP(CONCATENATE($B13,"-",F$1),База!$A:$G,6,0)),IF(ISERROR(VLOOKUP(CONCATENATE($B13,"-",F$1),'База выдачи'!$A:$F,6,0)),"",VLOOKUP(CONCATENATE($B13,"-",F$1),'База выдачи'!$A:$F,6,0)),VLOOKUP(CONCATENATE($B13,"-",F$1),База!$A:$G,6,0)) -> 01:17:46.340 | I13: 6 | J13: =IF(ISERROR(VLOOKUP(CONCATENATE($B13,"-",I$1),База!$A:$G,5,0)),IF(ISERROR(VLOOKUP(CONCATENATE($B13,"-",I$1),'База выдачи'!$A:$F,5,0)),"",VLOOKUP(CONCATENATE($B13,"-",I$1),'База выдачи'!$A:$F,5,0)),VLOOKUP(CONCATENATE($B13,"-",I$1),База!$A:$G,5,0)) -> OK | K13: =IF(ISERROR(VLOOKUP(CONCATENATE($B13,"-",I$1),База!$A:$G,6,0)),IF(ISERROR(VLOOKUP(CONCATENATE($B13,"-",I$1),'База выдачи'!$A:$F,6,0)),"",VLOOKUP(CONCATENATE($B13,"-",I$1),'База выдачи'!$A:$F,6,0)),VLOOKUP(CONCATENATE($B13,"-",I$1),База!$A:$G,6,0)) -> 02:45:24.270 | L13: 8 | M13: =IF(ISERROR(VLOOKUP(CONCATENATE($B13,"-",L$1),База!$A:$G,5,0)),IF(ISERROR(VLOOKUP(CONCATENATE($B13,"-",L$1),'База выдачи'!$A:$F,5,0)),"",VLOOKUP(CONCATENATE($B13,"-",L$1),'База выдачи'!$A:$F,5,0)),VLOOKUP(CONCATENATE($B13,"-",L$1),База!$A:$G,5,0)) -> OK | N13: =IF(ISERROR(VLOOKUP(CONCATENATE($B13,"-",L$1),База!$A:$G,6,0)),IF(ISERROR(VLOOKUP(CONCATENATE($B13,"-",L$1),'База выдачи'!$A:$F,6,0)),"",VLOOKUP(CONCATENATE($B13,"-",L$1),'База выдачи'!$A:$F,6,0)),VLOOKUP(CONCATENATE($B13,"-",L$1),База!$A:$G,6,0)) -> 02:59:22.990 | O13: 1 | P13: =IF(ISERROR(VLOOKUP(CONCATENATE($B13,"-",O$1),База!$A:$G,5,0)),IF(ISERROR(VLOOKUP(CONCATENATE($B13,"-",O$1),'База выдачи'!$A:$F,5,0)),"",VLOOKUP(CONCATENATE($B13,"-",O$1),'База выдачи'!$A:$F,5,0)),VLOOKUP(CONCATENATE($B13,"-",O$1),База!$A:$G,5,0)) -> ST | Q13: =IF(ISERROR(VLOOKUP(CONCATENATE($B13,"-",O$1),База!$A:$G,6,0)),IF(ISERROR(VLOOKUP(CONCATENATE($B13,"-",O$1),'База выдачи'!$A:$F,6,0)),"",VLOOKUP(CONCATENATE($B13,"-",O$1),'База выдачи'!$A:$F,6,0)),VLOOKUP(CONCATENATE($B13,"-",O$1),База!$A:$G,6,0)) -> 02:59:24.960 | R13: 3 | S13: =IF(ISERROR(VLOOKUP(CONCATENATE($B13,"-",R$1),База!$A:$G,5,0)),IF(ISERROR(VLOOKUP(CONCATENATE($B13,"-",R$1),'База выдачи'!$A:$F,5,0)),"",VLOOKUP(CONCATENATE($B13,"-",R$1),'База выдачи'!$A:$F,5,0)),VLOOKUP(CONCATENATE($B13,"-",R$1),База!$A:$G,5,0)) ->  | T13: =IF(ISERROR(VLOOKUP(CONCATENATE($B13,"-",R$1),База!$A:$G,6,0)),IF(ISERROR(VLOOKUP(CONCATENATE($B13,"-",R$1),'База выдачи'!$A:$F,6,0)),"",VLOOKUP(CONCATENATE($B13,"-",R$1),'База выдачи'!$A:$F,6,0)),VLOOKUP(CONCATENATE($B13,"-",R$1),База!$A:$G,6,0)) ->  | U13: 5 | V13: =IF(ISERROR(VLOOKUP(CONCATENATE($B13,"-",U$1),База!$A:$G,5,0)),IF(ISERROR(VLOOKUP(CONCATENATE($B13,"-",U$1),'База выдачи'!$A:$F,5,0)),"",VLOOKUP(CONCATENATE($B13,"-",U$1),'База выдачи'!$A:$F,5,0)),VLOOKUP(CONCATENATE($B13,"-",U$1),База!$A:$G,5,0)) ->  | W13: =IF(ISERROR(VLOOKUP(CONCATENATE($B13,"-",U$1),База!$A:$G,6,0)),IF(ISERROR(VLOOKUP(CONCATENATE($B13,"-",U$1),'База выдачи'!$A:$F,6,0)),"",VLOOKUP(CONCATENATE($B13,"-",U$1),'База выдачи'!$A:$F,6,0)),VLOOKUP(CONCATENATE($B13,"-",U$1),База!$A:$G,6,0)) ->  | X13: 7 | Y13: =IF(ISERROR(VLOOKUP(CONCATENATE($B13,"-",X$1),База!$A:$G,5,0)),IF(ISERROR(VLOOKUP(CONCATENATE($B13,"-",X$1),'База выдачи'!$A:$F,5,0)),"",VLOOKUP(CONCATENATE($B13,"-",X$1),'База выдачи'!$A:$F,5,0)),VLOOKUP(CONCATENATE($B13,"-",X$1),База!$A:$G,5,0)) ->  | Z13: =IF(ISERROR(VLOOKUP(CONCATENATE($B13,"-",X$1),База!$A:$G,6,0)),IF(ISERROR(VLOOKUP(CONCATENATE($B13,"-",X$1),'База выдачи'!$A:$F,6,0)),"",VLOOKUP(CONCATENATE($B13,"-",X$1),'База выдачи'!$A:$F,6,0)),VLOOKUP(CONCATENATE($B13,"-",X$1),База!$A:$G,6,0)) ->  | AA13: 9 | AB13: =IF(ISERROR(VLOOKUP(CONCATENATE($B13,"-",AA$1),База!$A:$G,5,0)),IF(ISERROR(VLOOKUP(CONCATENATE($B13,"-",AA$1),'База выдачи'!$A:$F,5,0)),"",VLOOKUP(CONCATENATE($B13,"-",AA$1),'База выдачи'!$A:$F,5,0)),VLOOKUP(CONCATENATE($B13,"-",AA$1),База!$A:$G,5,0)) ->  | AC13: =IF(ISERROR(VLOOKUP(CONCATENATE($B13,"-",AA$1),База!$A:$G,6,0)),IF(ISERROR(VLOOKUP(CONCATENATE($B13,"-",AA$1),'База выдачи'!$A:$F,6,0)),"",VLOOKUP(CONCATENATE($B13,"-",AA$1),'База выдачи'!$A:$F,6,0)),VLOOKUP(CONCATENATE($B13,"-",AA$1),База!$A:$G,6,0)) ->  | AD13: O | AE13: =IF(ISERROR(VLOOKUP(CONCATENATE($B13,"-",AD$1),База!$A:$G,5,0)),IF(ISERROR(VLOOKUP(CONCATENATE($B13,"-",AD$1),'База выдачи'!$A:$F,5,0)),"",VLOOKUP(CONCATENATE($B13,"-",AD$1),'База выдачи'!$A:$F,5,0)),VLOOKUP(CONCATENATE($B13,"-",AD$1),База!$A:$G,5,0)) ->  | AF13: =IF(ISERROR(VLOOKUP(CONCATENATE($B13,"-",AD$1),База!$A:$G,6,0)),IF(ISERROR(VLOOKUP(CONCATENATE($B13,"-",AD$1),'База выдачи'!$A:$F,6,0)),"",VLOOKUP(CONCATENATE($B13,"-",AD$1),'База выдачи'!$A:$F,6,0)),VLOOKUP(CONCATENATE($B13,"-",AD$1),База!$A:$G,6,0)) ->  | AG13: A | AH13: =IF(ISERROR(VLOOKUP(CONCATENATE($B13,"-",AG$1),База!$A:$G,5,0)),IF(ISERROR(VLOOKUP(CONCATENATE($B13,"-",AG$1),'База выдачи'!$A:$F,5,0)),"",VLOOKUP(CONCATENATE($B13,"-",AG$1),'База выдачи'!$A:$F,5,0)),VLOOKUP(CONCATENATE($B13,"-",AG$1),База!$A:$G,5,0)) ->  | AI13: =IF(ISERROR(VLOOKUP(CONCATENATE($B13,"-",AG$1),База!$A:$G,6,0)),IF(ISERROR(VLOOKUP(CONCATENATE($B13,"-",AG$1),'База выдачи'!$A:$F,6,0)),"",VLOOKUP(CONCATENATE($B13,"-",AG$1),'База выдачи'!$A:$F,6,0)),VLOOKUP(CONCATENATE($B13,"-",AG$1),База!$A:$G,6,0)) ->  | AJ13: B | AK13: =IF(ISERROR(VLOOKUP(CONCATENATE($B13,"-",AJ$1),База!$A:$G,5,0)),IF(ISERROR(VLOOKUP(CONCATENATE($B13,"-",AJ$1),'База выдачи'!$A:$F,5,0)),"",VLOOKUP(CONCATENATE($B13,"-",AJ$1),'База выдачи'!$A:$F,5,0)),VLOOKUP(CONCATENATE($B13,"-",AJ$1),База!$A:$G,5,0)) ->  | AL13: =IF(ISERROR(VLOOKUP(CONCATENATE($B13,"-",AJ$1),База!$A:$G,6,0)),IF(ISERROR(VLOOKUP(CONCATENATE($B13,"-",AJ$1),'База выдачи'!$A:$F,6,0)),"",VLOOKUP(CONCATENATE($B13,"-",AJ$1),'База выдачи'!$A:$F,6,0)),VLOOKUP(CONCATENATE($B13,"-",AJ$1),База!$A:$G,6,0)) ->  | AM13: C | AN13: =IF(ISERROR(VLOOKUP(CONCATENATE($B13,"-",AM$1),База!$A:$G,5,0)),IF(ISERROR(VLOOKUP(CONCATENATE($B13,"-",AM$1),'База выдачи'!$A:$F,5,0)),"",VLOOKUP(CONCATENATE($B13,"-",AM$1),'База выдачи'!$A:$F,5,0)),VLOOKUP(CONCATENATE($B13,"-",AM$1),База!$A:$G,5,0)) ->  | AO13: =IF(ISERROR(VLOOKUP(CONCATENATE($B13,"-",AM$1),База!$A:$G,6,0)),IF(ISERROR(VLOOKUP(CONCATENATE($B13,"-",AM$1),'База выдачи'!$A:$F,6,0)),"",VLOOKUP(CONCATENATE($B13,"-",AM$1),'База выдачи'!$A:$F,6,0)),VLOOKUP(CONCATENATE($B13,"-",AM$1),База!$A:$G,6,0)) ->  | AP13: D | AQ13: =IF(ISERROR(VLOOKUP(CONCATENATE($B13,"-",AP$1),База!$A:$G,5,0)),IF(ISERROR(VLOOKUP(CONCATENATE($B13,"-",AP$1),'База выдачи'!$A:$F,5,0)),"",VLOOKUP(CONCATENATE($B13,"-",AP$1),'База выдачи'!$A:$F,5,0)),VLOOKUP(CONCATENATE($B13,"-",AP$1),База!$A:$G,5,0)) ->  | AR13: =IF(ISERROR(VLOOKUP(CONCATENATE($B13,"-",AP$1),База!$A:$G,6,0)),IF(ISERROR(VLOOKUP(CONCATENATE($B13,"-",AP$1),'База выдачи'!$A:$F,6,0)),"",VLOOKUP(CONCATENATE($B13,"-",AP$1),'База выдачи'!$A:$F,6,0)),VLOOKUP(CONCATENATE($B13,"-",AP$1),База!$A:$G,6,0)) ->  | AS13: E | AT13: =IF(ISERROR(VLOOKUP(CONCATENATE($B13,"-",AS$1),База!$A:$G,5,0)),IF(ISERROR(VLOOKUP(CONCATENATE($B13,"-",AS$1),'База выдачи'!$A:$F,5,0)),"",VLOOKUP(CONCATENATE($B13,"-",AS$1),'База выдачи'!$A:$F,5,0)),VLOOKUP(CONCATENATE($B13,"-",AS$1),База!$A:$G,5,0)) ->  | AU13: =IF(ISERROR(VLOOKUP(CONCATENATE($B13,"-",AS$1),База!$A:$G,6,0)),IF(ISERROR(VLOOKUP(CONCATENATE($B13,"-",AS$1),'База выдачи'!$A:$F,6,0)),"",VLOOKUP(CONCATENATE($B13,"-",AS$1),'База выдачи'!$A:$F,6,0)),VLOOKUP(CONCATENATE($B13,"-",AS$1),База!$A:$G,6,0)) ->  | AX13: =COUNTIFS(База!B:B,Статистика!B13,База!E:E,"OK") -> 4 | AY13: =CA3 -> 02:59:22.990 | AZ13: 10763 | BA13: =COUNTIFS(База!B:B,Статистика!B13,База!E:E,"XXXX") -> 0 | BB13: =IF(AX13+AZ13+BA13=0,ксекундвигре-BD13,ксекундвигре*Статистика!AX13+(ксекундвигре-Статистика!AZ13)+Статистика!BA13) -> 43537 | BC13: 65237 | BD13: 11 | BE13: 30
A14: 12 | B14: =IF(ISERROR(VLOOKUP(A14,Служебный!B:C,2,0)),"",A14&"-"&VLOOKUP(A14,Служебный!B:C,2,0)) -> 12-Чистые лапки | C14: 3 | D14: =IF(ISERROR(VLOOKUP(CONCATENATE($B14,"-",C$1),База!$A:$G,5,0)),IF(ISERROR(VLOOKUP(CONCATENATE($B14,"-",C$1),'База выдачи'!$A:$F,5,0)),"",VLOOKUP(CONCATENATE($B14,"-",C$1),'База выдачи'!$A:$F,5,0)),VLOOKUP(CONCATENATE($B14,"-",C$1),База!$A:$G,5,0)) -> OK | E14: =IF(ISERROR(VLOOKUP(CONCATENATE($B14,"-",C$1),База!$A:$G,6,0)),IF(ISERROR(VLOOKUP(CONCATENATE($B14,"-",C$1),'База выдачи'!$A:$F,6,0)),"",VLOOKUP(CONCATENATE($B14,"-",C$1),'База выдачи'!$A:$F,6,0)),VLOOKUP(CONCATENATE($B14,"-",C$1),База!$A:$G,6,0)) -> 00:33:45.540 | F14: 1 | G14: =IF(ISERROR(VLOOKUP(CONCATENATE($B14,"-",F$1),База!$A:$G,5,0)),IF(ISERROR(VLOOKUP(CONCATENATE($B14,"-",F$1),'База выдачи'!$A:$F,5,0)),"",VLOOKUP(CONCATENATE($B14,"-",F$1),'База выдачи'!$A:$F,5,0)),VLOOKUP(CONCATENATE($B14,"-",F$1),База!$A:$G,5,0)) -> XXXX | H14: =IF(ISERROR(VLOOKUP(CONCATENATE($B14,"-",F$1),База!$A:$G,6,0)),IF(ISERROR(VLOOKUP(CONCATENATE($B14,"-",F$1),'База выдачи'!$A:$F,6,0)),"",VLOOKUP(CONCATENATE($B14,"-",F$1),'База выдачи'!$A:$F,6,0)),VLOOKUP(CONCATENATE($B14,"-",F$1),База!$A:$G,6,0)) -> 01:21:28.510 | I14: 8 | J14: =IF(ISERROR(VLOOKUP(CONCATENATE($B14,"-",I$1),База!$A:$G,5,0)),IF(ISERROR(VLOOKUP(CONCATENATE($B14,"-",I$1),'База выдачи'!$A:$F,5,0)),"",VLOOKUP(CONCATENATE($B14,"-",I$1),'База выдачи'!$A:$F,5,0)),VLOOKUP(CONCATENATE($B14,"-",I$1),База!$A:$G,5,0)) -> OK | K14: =IF(ISERROR(VLOOKUP(CONCATENATE($B14,"-",I$1),База!$A:$G,6,0)),IF(ISERROR(VLOOKUP(CONCATENATE($B14,"-",I$1),'База выдачи'!$A:$F,6,0)),"",VLOOKUP(CONCATENATE($B14,"-",I$1),'База выдачи'!$A:$F,6,0)),VLOOKUP(CONCATENATE($B14,"-",I$1),База!$A:$G,6,0)) -> 01:40:36.500 | L14: 6 | M14: =IF(ISERROR(VLOOKUP(CONCATENATE($B14,"-",L$1),База!$A:$G,5,0)),IF(ISERROR(VLOOKUP(CONCATENATE($B14,"-",L$1),'База выдачи'!$A:$F,5,0)),"",VLOOKUP(CONCATENATE($B14,"-",L$1),'База выдачи'!$A:$F,5,0)),VLOOKUP(CONCATENATE($B14,"-",L$1),База!$A:$G,5,0)) -> XXXX | N14: =IF(ISERROR(VLOOKUP(CONCATENATE($B14,"-",L$1),База!$A:$G,6,0)),IF(ISERROR(VLOOKUP(CONCATENATE($B14,"-",L$1),'База выдачи'!$A:$F,6,0)),"",VLOOKUP(CONCATENATE($B14,"-",L$1),'База выдачи'!$A:$F,6,0)),VLOOKUP(CONCATENATE($B14,"-",L$1),База!$A:$G,6,0)) -> 02:21:22.100 | O14: 4 | P14: =IF(ISERROR(VLOOKUP(CONCATENATE($B14,"-",O$1),База!$A:$G,5,0)),IF(ISERROR(VLOOKUP(CONCATENATE($B14,"-",O$1),'База выдачи'!$A:$F,5,0)),"",VLOOKUP(CONCATENATE($B14,"-",O$1),'База выдачи'!$A:$F,5,0)),VLOOKUP(CONCATENATE($B14,"-",O$1),База!$A:$G,5,0)) -> OK | Q14: =IF(ISERROR(VLOOKUP(CONCATENATE($B14,"-",O$1),База!$A:$G,6,0)),IF(ISERROR(VLOOKUP(CONCATENATE($B14,"-",O$1),'База выдачи'!$A:$F,6,0)),"",VLOOKUP(CONCATENATE($B14,"-",O$1),'База выдачи'!$A:$F,6,0)),VLOOKUP(CONCATENATE($B14,"-",O$1),База!$A:$G,6,0)) -> 02:37:33.630 | R14: 5 | S14: =IF(ISERROR(VLOOKUP(CONCATENATE($B14,"-",R$1),База!$A:$G,5,0)),IF(ISERROR(VLOOKUP(CONCATENATE($B14,"-",R$1),'База выдачи'!$A:$F,5,0)),"",VLOOKUP(CONCATENATE($B14,"-",R$1),'База выдачи'!$A:$F,5,0)),VLOOKUP(CONCATENATE($B14,"-",R$1),База!$A:$G,5,0)) -> OK | T14: =IF(ISERROR(VLOOKUP(CONCATENATE($B14,"-",R$1),База!$A:$G,6,0)),IF(ISERROR(VLOOKUP(CONCATENATE($B14,"-",R$1),'База выдачи'!$A:$F,6,0)),"",VLOOKUP(CONCATENATE($B14,"-",R$1),'База выдачи'!$A:$F,6,0)),VLOOKUP(CONCATENATE($B14,"-",R$1),База!$A:$G,6,0)) -> 02:52:56.950 | U14: 7 | V14: =IF(ISERROR(VLOOKUP(CONCATENATE($B14,"-",U$1),База!$A:$G,5,0)),IF(ISERROR(VLOOKUP(CONCATENATE($B14,"-",U$1),'База выдачи'!$A:$F,5,0)),"",VLOOKUP(CONCATENATE($B14,"-",U$1),'База выдачи'!$A:$F,5,0)),VLOOKUP(CONCATENATE($B14,"-",U$1),База!$A:$G,5,0)) -> OK | W14: =IF(ISERROR(VLOOKUP(CONCATENATE($B14,"-",U$1),База!$A:$G,6,0)),IF(ISERROR(VLOOKUP(CONCATENATE($B14,"-",U$1),'База выдачи'!$A:$F,6,0)),"",VLOOKUP(CONCATENATE($B14,"-",U$1),'База выдачи'!$A:$F,6,0)),VLOOKUP(CONCATENATE($B14,"-",U$1),База!$A:$G,6,0)) -> 03:03:16.770 | X14: 9 | Y14: =IF(ISERROR(VLOOKUP(CONCATENATE($B14,"-",X$1),База!$A:$G,5,0)),IF(ISERROR(VLOOKUP(CONCATENATE($B14,"-",X$1),'База выдачи'!$A:$F,5,0)),"",VLOOKUP(CONCATENATE($B14,"-",X$1),'База выдачи'!$A:$F,5,0)),VLOOKUP(CONCATENATE($B14,"-",X$1),База!$A:$G,5,0)) -> ST | Z14: =IF(ISERROR(VLOOKUP(CONCATENATE($B14,"-",X$1),База!$A:$G,6,0)),IF(ISERROR(VLOOKUP(CONCATENATE($B14,"-",X$1),'База выдачи'!$A:$F,6,0)),"",VLOOKUP(CONCATENATE($B14,"-",X$1),'База выдачи'!$A:$F,6,0)),VLOOKUP(CONCATENATE($B14,"-",X$1),База!$A:$G,6,0)) -> 03:03:18.720 | AA14: 2 | AB14: =IF(ISERROR(VLOOKUP(CONCATENATE($B14,"-",AA$1),База!$A:$G,5,0)),IF(ISERROR(VLOOKUP(CONCATENATE($B14,"-",AA$1),'База выдачи'!$A:$F,5,0)),"",VLOOKUP(CONCATENATE($B14,"-",AA$1),'База выдачи'!$A:$F,5,0)),VLOOKUP(CONCATENATE($B14,"-",AA$1),База!$A:$G,5,0)) ->  | AC14: =IF(ISERROR(VLOOKUP(CONCATENATE($B14,"-",AA$1),База!$A:$G,6,0)),IF(ISERROR(VLOOKUP(CONCATENATE($B14,"-",AA$1),'База выдачи'!$A:$F,6,0)),"",VLOOKUP(CONCATENATE($B14,"-",AA$1),'База выдачи'!$A:$F,6,0)),VLOOKUP(CONCATENATE($B14,"-",AA$1),База!$A:$G,6,0)) ->  | AD14: N | AE14: =IF(ISERROR(VLOOKUP(CONCATENATE($B14,"-",AD$1),База!$A:$G,5,0)),IF(ISERROR(VLOOKUP(CONCATENATE($B14,"-",AD$1),'База выдачи'!$A:$F,5,0)),"",VLOOKUP(CONCATENATE($B14,"-",AD$1),'База выдачи'!$A:$F,5,0)),VLOOKUP(CONCATENATE($B14,"-",AD$1),База!$A:$G,5,0)) ->  | AF14: =IF(ISERROR(VLOOKUP(CONCATENATE($B14,"-",AD$1),База!$A:$G,6,0)),IF(ISERROR(VLOOKUP(CONCATENATE($B14,"-",AD$1),'База выдачи'!$A:$F,6,0)),"",VLOOKUP(CONCATENATE($B14,"-",AD$1),'База выдачи'!$A:$F,6,0)),VLOOKUP(CONCATENATE($B14,"-",AD$1),База!$A:$G,6,0)) ->  | AG14: O | AH14: =IF(ISERROR(VLOOKUP(CONCATENATE($B14,"-",AG$1),База!$A:$G,5,0)),IF(ISERROR(VLOOKUP(CONCATENATE($B14,"-",AG$1),'База выдачи'!$A:$F,5,0)),"",VLOOKUP(CONCATENATE($B14,"-",AG$1),'База выдачи'!$A:$F,5,0)),VLOOKUP(CONCATENATE($B14,"-",AG$1),База!$A:$G,5,0)) ->  | AI14: =IF(ISERROR(VLOOKUP(CONCATENATE($B14,"-",AG$1),База!$A:$G,6,0)),IF(ISERROR(VLOOKUP(CONCATENATE($B14,"-",AG$1),'База выдачи'!$A:$F,6,0)),"",VLOOKUP(CONCATENATE($B14,"-",AG$1),'База выдачи'!$A:$F,6,0)),VLOOKUP(CONCATENATE($B14,"-",AG$1),База!$A:$G,6,0)) ->  | AJ14: A | AK14: =IF(ISERROR(VLOOKUP(CONCATENATE($B14,"-",AJ$1),База!$A:$G,5,0)),IF(ISERROR(VLOOKUP(CONCATENATE($B14,"-",AJ$1),'База выдачи'!$A:$F,5,0)),"",VLOOKUP(CONCATENATE($B14,"-",AJ$1),'База выдачи'!$A:$F,5,0)),VLOOKUP(CONCATENATE($B14,"-",AJ$1),База!$A:$G,5,0)) ->  | AL14: =IF(ISERROR(VLOOKUP(CONCATENATE($B14,"-",AJ$1),База!$A:$G,6,0)),IF(ISERROR(VLOOKUP(CONCATENATE($B14,"-",AJ$1),'База выдачи'!$A:$F,6,0)),"",VLOOKUP(CONCATENATE($B14,"-",AJ$1),'База выдачи'!$A:$F,6,0)),VLOOKUP(CONCATENATE($B14,"-",AJ$1),База!$A:$G,6,0)) ->  | AM14: B | AN14: =IF(ISERROR(VLOOKUP(CONCATENATE($B14,"-",AM$1),База!$A:$G,5,0)),IF(ISERROR(VLOOKUP(CONCATENATE($B14,"-",AM$1),'База выдачи'!$A:$F,5,0)),"",VLOOKUP(CONCATENATE($B14,"-",AM$1),'База выдачи'!$A:$F,5,0)),VLOOKUP(CONCATENATE($B14,"-",AM$1),База!$A:$G,5,0)) ->  | AO14: =IF(ISERROR(VLOOKUP(CONCATENATE($B14,"-",AM$1),База!$A:$G,6,0)),IF(ISERROR(VLOOKUP(CONCATENATE($B14,"-",AM$1),'База выдачи'!$A:$F,6,0)),"",VLOOKUP(CONCATENATE($B14,"-",AM$1),'База выдачи'!$A:$F,6,0)),VLOOKUP(CONCATENATE($B14,"-",AM$1),База!$A:$G,6,0)) ->  | AP14: C | AQ14: =IF(ISERROR(VLOOKUP(CONCATENATE($B14,"-",AP$1),База!$A:$G,5,0)),IF(ISERROR(VLOOKUP(CONCATENATE($B14,"-",AP$1),'База выдачи'!$A:$F,5,0)),"",VLOOKUP(CONCATENATE($B14,"-",AP$1),'База выдачи'!$A:$F,5,0)),VLOOKUP(CONCATENATE($B14,"-",AP$1),База!$A:$G,5,0)) ->  | AR14: =IF(ISERROR(VLOOKUP(CONCATENATE($B14,"-",AP$1),База!$A:$G,6,0)),IF(ISERROR(VLOOKUP(CONCATENATE($B14,"-",AP$1),'База выдачи'!$A:$F,6,0)),"",VLOOKUP(CONCATENATE($B14,"-",AP$1),'База выдачи'!$A:$F,6,0)),VLOOKUP(CONCATENATE($B14,"-",AP$1),База!$A:$G,6,0)) ->  | AS14: D | AT14: =IF(ISERROR(VLOOKUP(CONCATENATE($B14,"-",AS$1),База!$A:$G,5,0)),IF(ISERROR(VLOOKUP(CONCATENATE($B14,"-",AS$1),'База выдачи'!$A:$F,5,0)),"",VLOOKUP(CONCATENATE($B14,"-",AS$1),'База выдачи'!$A:$F,5,0)),VLOOKUP(CONCATENATE($B14,"-",AS$1),База!$A:$G,5,0)) ->  | AU14: =IF(ISERROR(VLOOKUP(CONCATENATE($B14,"-",AS$1),База!$A:$G,6,0)),IF(ISERROR(VLOOKUP(CONCATENATE($B14,"-",AS$1),'База выдачи'!$A:$F,6,0)),"",VLOOKUP(CONCATENATE($B14,"-",AS$1),'База выдачи'!$A:$F,6,0)),VLOOKUP(CONCATENATE($B14,"-",AS$1),База!$A:$G,6,0)) ->  | AX14: =COUNTIFS(База!B:B,Статистика!B14,База!E:E,"OK") -> 5 | AY14: =CC3 -> 03:03:16.770 | AZ14: 10997 | BA14: =COUNTIFS(База!B:B,Статистика!B14,База!E:E,"XXXX") -> 2 | BB14: =IF(AX14+AZ14+BA14=0,ксекундвигре-BD14,ксекундвигре*Статистика!AX14+(ксекундвигре-Статистика!AZ14)+Статистика!BA14) -> 54165 | BC14: 65207 | BD14: 12 | BE14: 21
A15: 13 | B15: =IF(ISERROR(VLOOKUP(A15,Служебный!B:C,2,0)),"",A15&"-"&VLOOKUP(A15,Служебный!B:C,2,0)) -> 13-Аьоке! | C15: 4 | D15: =IF(ISERROR(VLOOKUP(CONCATENATE($B15,"-",C$1),База!$A:$G,5,0)),IF(ISERROR(VLOOKUP(CONCATENATE($B15,"-",C$1),'База выдачи'!$A:$F,5,0)),"",VLOOKUP(CONCATENATE($B15,"-",C$1),'База выдачи'!$A:$F,5,0)),VLOOKUP(CONCATENATE($B15,"-",C$1),База!$A:$G,5,0)) -> OK | E15: =IF(ISERROR(VLOOKUP(CONCATENATE($B15,"-",C$1),База!$A:$G,6,0)),IF(ISERROR(VLOOKUP(CONCATENATE($B15,"-",C$1),'База выдачи'!$A:$F,6,0)),"",VLOOKUP(CONCATENATE($B15,"-",C$1),'База выдачи'!$A:$F,6,0)),VLOOKUP(CONCATENATE($B15,"-",C$1),База!$A:$G,6,0)) -> 00:56:26.790 | F15: 8 | G15: =IF(ISERROR(VLOOKUP(CONCATENATE($B15,"-",F$1),База!$A:$G,5,0)),IF(ISERROR(VLOOKUP(CONCATENATE($B15,"-",F$1),'База выдачи'!$A:$F,5,0)),"",VLOOKUP(CONCATENATE($B15,"-",F$1),'База выдачи'!$A:$F,5,0)),VLOOKUP(CONCATENATE($B15,"-",F$1),База!$A:$G,5,0)) -> OK | H15: =IF(ISERROR(VLOOKUP(CONCATENATE($B15,"-",F$1),База!$A:$G,6,0)),IF(ISERROR(VLOOKUP(CONCATENATE($B15,"-",F$1),'База выдачи'!$A:$F,6,0)),"",VLOOKUP(CONCATENATE($B15,"-",F$1),'База выдачи'!$A:$F,6,0)),VLOOKUP(CONCATENATE($B15,"-",F$1),База!$A:$G,6,0)) -> 01:19:23.650 | I15: 5 | J15: =IF(ISERROR(VLOOKUP(CONCATENATE($B15,"-",I$1),База!$A:$G,5,0)),IF(ISERROR(VLOOKUP(CONCATENATE($B15,"-",I$1),'База выдачи'!$A:$F,5,0)),"",VLOOKUP(CONCATENATE($B15,"-",I$1),'База выдачи'!$A:$F,5,0)),VLOOKUP(CONCATENATE($B15,"-",I$1),База!$A:$G,5,0)) -> OK | K15: =IF(ISERROR(VLOOKUP(CONCATENATE($B15,"-",I$1),База!$A:$G,6,0)),IF(ISERROR(VLOOKUP(CONCATENATE($B15,"-",I$1),'База выдачи'!$A:$F,6,0)),"",VLOOKUP(CONCATENATE($B15,"-",I$1),'База выдачи'!$A:$F,6,0)),VLOOKUP(CONCATENATE($B15,"-",I$1),База!$A:$G,6,0)) -> 01:50:37.370 | L15: 2 | M15: =IF(ISERROR(VLOOKUP(CONCATENATE($B15,"-",L$1),База!$A:$G,5,0)),IF(ISERROR(VLOOKUP(CONCATENATE($B15,"-",L$1),'База выдачи'!$A:$F,5,0)),"",VLOOKUP(CONCATENATE($B15,"-",L$1),'База выдачи'!$A:$F,5,0)),VLOOKUP(CONCATENATE($B15,"-",L$1),База!$A:$G,5,0)) -> OK | N15: =IF(ISERROR(VLOOKUP(CONCATENATE($B15,"-",L$1),База!$A:$G,6,0)),IF(ISERROR(VLOOKUP(CONCATENATE($B15,"-",L$1),'База выдачи'!$A:$F,6,0)),"",VLOOKUP(CONCATENATE($B15,"-",L$1),'База выдачи'!$A:$F,6,0)),VLOOKUP(CONCATENATE($B15,"-",L$1),База!$A:$G,6,0)) -> 02:17:59.280 | O15: 3 | P15: =IF(ISERROR(VLOOKUP(CONCATENATE($B15,"-",O$1),База!$A:$G,5,0)),IF(ISERROR(VLOOKUP(CONCATENATE($B15,"-",O$1),'База выдачи'!$A:$F,5,0)),"",VLOOKUP(CONCATENATE($B15,"-",O$1),'База выдачи'!$A:$F,5,0)),VLOOKUP(CONCATENATE($B15,"-",O$1),База!$A:$G,5,0)) -> OK | Q15: =IF(ISERROR(VLOOKUP(CONCATENATE($B15,"-",O$1),База!$A:$G,6,0)),IF(ISERROR(VLOOKUP(CONCATENATE($B15,"-",O$1),'База выдачи'!$A:$F,6,0)),"",VLOOKUP(CONCATENATE($B15,"-",O$1),'База выдачи'!$A:$F,6,0)),VLOOKUP(CONCATENATE($B15,"-",O$1),База!$A:$G,6,0)) -> 02:30:45.230 | R15: 7 | S15: =IF(ISERROR(VLOOKUP(CONCATENATE($B15,"-",R$1),База!$A:$G,5,0)),IF(ISERROR(VLOOKUP(CONCATENATE($B15,"-",R$1),'База выдачи'!$A:$F,5,0)),"",VLOOKUP(CONCATENATE($B15,"-",R$1),'База выдачи'!$A:$F,5,0)),VLOOKUP(CONCATENATE($B15,"-",R$1),База!$A:$G,5,0)) -> OK | T15: =IF(ISERROR(VLOOKUP(CONCATENATE($B15,"-",R$1),База!$A:$G,6,0)),IF(ISERROR(VLOOKUP(CONCATENATE($B15,"-",R$1),'База выдачи'!$A:$F,6,0)),"",VLOOKUP(CONCATENATE($B15,"-",R$1),'База выдачи'!$A:$F,6,0)),VLOOKUP(CONCATENATE($B15,"-",R$1),База!$A:$G,6,0)) -> 02:52:39.730 | U15: 9 | V15: =IF(ISERROR(VLOOKUP(CONCATENATE($B15,"-",U$1),База!$A:$G,5,0)),IF(ISERROR(VLOOKUP(CONCATENATE($B15,"-",U$1),'База выдачи'!$A:$F,5,0)),"",VLOOKUP(CONCATENATE($B15,"-",U$1),'База выдачи'!$A:$F,5,0)),VLOOKUP(CONCATENATE($B15,"-",U$1),База!$A:$G,5,0)) -> ST | W15: =IF(ISERROR(VLOOKUP(CONCATENATE($B15,"-",U$1),База!$A:$G,6,0)),IF(ISERROR(VLOOKUP(CONCATENATE($B15,"-",U$1),'База выдачи'!$A:$F,6,0)),"",VLOOKUP(CONCATENATE($B15,"-",U$1),'База выдачи'!$A:$F,6,0)),VLOOKUP(CONCATENATE($B15,"-",U$1),База!$A:$G,6,0)) -> 02:52:41.650 | X15: 6 | Y15: =IF(ISERROR(VLOOKUP(CONCATENATE($B15,"-",X$1),База!$A:$G,5,0)),IF(ISERROR(VLOOKUP(CONCATENATE($B15,"-",X$1),'База выдачи'!$A:$F,5,0)),"",VLOOKUP(CONCATENATE($B15,"-",X$1),'База выдачи'!$A:$F,5,0)),VLOOKUP(CONCATENATE($B15,"-",X$1),База!$A:$G,5,0)) ->  | Z15: =IF(ISERROR(VLOOKUP(CONCATENATE($B15,"-",X$1),База!$A:$G,6,0)),IF(ISERROR(VLOOKUP(CONCATENATE($B15,"-",X$1),'База выдачи'!$A:$F,6,0)),"",VLOOKUP(CONCATENATE($B15,"-",X$1),'База выдачи'!$A:$F,6,0)),VLOOKUP(CONCATENATE($B15,"-",X$1),База!$A:$G,6,0)) ->  | AA15: 1 | AB15: =IF(ISERROR(VLOOKUP(CONCATENATE($B15,"-",AA$1),База!$A:$G,5,0)),IF(ISERROR(VLOOKUP(CONCATENATE($B15,"-",AA$1),'База выдачи'!$A:$F,5,0)),"",VLOOKUP(CONCATENATE($B15,"-",AA$1),'База выдачи'!$A:$F,5,0)),VLOOKUP(CONCATENATE($B15,"-",AA$1),База!$A:$G,5,0)) ->  | AC15: =IF(ISERROR(VLOOKUP(CONCATENATE($B15,"-",AA$1),База!$A:$G,6,0)),IF(ISERROR(VLOOKUP(CONCATENATE($B15,"-",AA$1),'База выдачи'!$A:$F,6,0)),"",VLOOKUP(CONCATENATE($B15,"-",AA$1),'База выдачи'!$A:$F,6,0)),VLOOKUP(CONCATENATE($B15,"-",AA$1),База!$A:$G,6,0)) ->  | AD15: M | AE15: =IF(ISERROR(VLOOKUP(CONCATENATE($B15,"-",AD$1),База!$A:$G,5,0)),IF(ISERROR(VLOOKUP(CONCATENATE($B15,"-",AD$1),'База выдачи'!$A:$F,5,0)),"",VLOOKUP(CONCATENATE($B15,"-",AD$1),'База выдачи'!$A:$F,5,0)),VLOOKUP(CONCATENATE($B15,"-",AD$1),База!$A:$G,5,0)) ->  | AF15: =IF(ISERROR(VLOOKUP(CONCATENATE($B15,"-",AD$1),База!$A:$G,6,0)),IF(ISERROR(VLOOKUP(CONCATENATE($B15,"-",AD$1),'База выдачи'!$A:$F,6,0)),"",VLOOKUP(CONCATENATE($B15,"-",AD$1),'База выдачи'!$A:$F,6,0)),VLOOKUP(CONCATENATE($B15,"-",AD$1),База!$A:$G,6,0)) ->  | AG15: N | AH15: =IF(ISERROR(VLOOKUP(CONCATENATE($B15,"-",AG$1),База!$A:$G,5,0)),IF(ISERROR(VLOOKUP(CONCATENATE($B15,"-",AG$1),'База выдачи'!$A:$F,5,0)),"",VLOOKUP(CONCATENATE($B15,"-",AG$1),'База выдачи'!$A:$F,5,0)),VLOOKUP(CONCATENATE($B15,"-",AG$1),База!$A:$G,5,0)) ->  | AI15: =IF(ISERROR(VLOOKUP(CONCATENATE($B15,"-",AG$1),База!$A:$G,6,0)),IF(ISERROR(VLOOKUP(CONCATENATE($B15,"-",AG$1),'База выдачи'!$A:$F,6,0)),"",VLOOKUP(CONCATENATE($B15,"-",AG$1),'База выдачи'!$A:$F,6,0)),VLOOKUP(CONCATENATE($B15,"-",AG$1),База!$A:$G,6,0)) ->  | AJ15: O | AK15: =IF(ISERROR(VLOOKUP(CONCATENATE($B15,"-",AJ$1),База!$A:$G,5,0)),IF(ISERROR(VLOOKUP(CONCATENATE($B15,"-",AJ$1),'База выдачи'!$A:$F,5,0)),"",VLOOKUP(CONCATENATE($B15,"-",AJ$1),'База выдачи'!$A:$F,5,0)),VLOOKUP(CONCATENATE($B15,"-",AJ$1),База!$A:$G,5,0)) ->  | AL15: =IF(ISERROR(VLOOKUP(CONCATENATE($B15,"-",AJ$1),База!$A:$G,6,0)),IF(ISERROR(VLOOKUP(CONCATENATE($B15,"-",AJ$1),'База выдачи'!$A:$F,6,0)),"",VLOOKUP(CONCATENATE($B15,"-",AJ$1),'База выдачи'!$A:$F,6,0)),VLOOKUP(CONCATENATE($B15,"-",AJ$1),База!$A:$G,6,0)) ->  | AM15: A | AN15: =IF(ISERROR(VLOOKUP(CONCATENATE($B15,"-",AM$1),База!$A:$G,5,0)),IF(ISERROR(VLOOKUP(CONCATENATE($B15,"-",AM$1),'База выдачи'!$A:$F,5,0)),"",VLOOKUP(CONCATENATE($B15,"-",AM$1),'База выдачи'!$A:$F,5,0)),VLOOKUP(CONCATENATE($B15,"-",AM$1),База!$A:$G,5,0)) ->  | AO15: =IF(ISERROR(VLOOKUP(CONCATENATE($B15,"-",AM$1),База!$A:$G,6,0)),IF(ISERROR(VLOOKUP(CONCATENATE($B15,"-",AM$1),'База выдачи'!$A:$F,6,0)),"",VLOOKUP(CONCATENATE($B15,"-",AM$1),'База выдачи'!$A:$F,6,0)),VLOOKUP(CONCATENATE($B15,"-",AM$1),База!$A:$G,6,0)) ->  | AP15: B | AQ15: =IF(ISERROR(VLOOKUP(CONCATENATE($B15,"-",AP$1),База!$A:$G,5,0)),IF(ISERROR(VLOOKUP(CONCATENATE($B15,"-",AP$1),'База выдачи'!$A:$F,5,0)),"",VLOOKUP(CONCATENATE($B15,"-",AP$1),'База выдачи'!$A:$F,5,0)),VLOOKUP(CONCATENATE($B15,"-",AP$1),База!$A:$G,5,0)) ->  | AR15: =IF(ISERROR(VLOOKUP(CONCATENATE($B15,"-",AP$1),База!$A:$G,6,0)),IF(ISERROR(VLOOKUP(CONCATENATE($B15,"-",AP$1),'База выдачи'!$A:$F,6,0)),"",VLOOKUP(CONCATENATE($B15,"-",AP$1),'База выдачи'!$A:$F,6,0)),VLOOKUP(CONCATENATE($B15,"-",AP$1),База!$A:$G,6,0)) ->  | AS15: C | AT15: =IF(ISERROR(VLOOKUP(CONCATENATE($B15,"-",AS$1),База!$A:$G,5,0)),IF(ISERROR(VLOOKUP(CONCATENATE($B15,"-",AS$1),'База выдачи'!$A:$F,5,0)),"",VLOOKUP(CONCATENATE($B15,"-",AS$1),'База выдачи'!$A:$F,5,0)),VLOOKUP(CONCATENATE($B15,"-",AS$1),База!$A:$G,5,0)) ->  | AU15: =IF(ISERROR(VLOOKUP(CONCATENATE($B15,"-",AS$1),База!$A:$G,6,0)),IF(ISERROR(VLOOKUP(CONCATENATE($B15,"-",AS$1),'База выдачи'!$A:$F,6,0)),"",VLOOKUP(CONCATENATE($B15,"-",AS$1),'База выдачи'!$A:$F,6,0)),VLOOKUP(CONCATENATE($B15,"-",AS$1),База!$A:$G,6,0)) ->  | AX15: =COUNTIFS(База!B:B,Статистика!B15,База!E:E,"OK") -> 6 | AY15: =CE3 -> 02:52:39.730 | AZ15: 10360 | BA15: =COUNTIFS(База!B:B,Статистика!B15,База!E:E,"XXXX") -> 0 | BB15: =IF(AX15+AZ15+BA15=0,ксекундвигре-BD15,ксекундвигре*Статистика!AX15+(ксекундвигре-Статистика!AZ15)+Статистика!BA15) -> 65660 | BC15: 65072 | BD15: 13 | BE15: 27
A16: 14 | B16: =IF(ISERROR(VLOOKUP(A16,Служебный!B:C,2,0)),"",A16&"-"&VLOOKUP(A16,Служебный!B:C,2,0)) -> 14-Лева&Тигра | C16: 5 | D16: =IF(ISERROR(VLOOKUP(CONCATENATE($B16,"-",C$1),База!$A:$G,5,0)),IF(ISERROR(VLOOKUP(CONCATENATE($B16,"-",C$1),'База выдачи'!$A:$F,5,0)),"",VLOOKUP(CONCATENATE($B16,"-",C$1),'База выдачи'!$A:$F,5,0)),VLOOKUP(CONCATENATE($B16,"-",C$1),База!$A:$G,5,0)) -> OK | E16: =IF(ISERROR(VLOOKUP(CONCATENATE($B16,"-",C$1),База!$A:$G,6,0)),IF(ISERROR(VLOOKUP(CONCATENATE($B16,"-",C$1),'База выдачи'!$A:$F,6,0)),"",VLOOKUP(CONCATENATE($B16,"-",C$1),'База выдачи'!$A:$F,6,0)),VLOOKUP(CONCATENATE($B16,"-",C$1),База!$A:$G,6,0)) -> 01:08:03.520 | F16: 7 | G16: =IF(ISERROR(VLOOKUP(CONCATENATE($B16,"-",F$1),База!$A:$G,5,0)),IF(ISERROR(VLOOKUP(CONCATENATE($B16,"-",F$1),'База выдачи'!$A:$F,5,0)),"",VLOOKUP(CONCATENATE($B16,"-",F$1),'База выдачи'!$A:$F,5,0)),VLOOKUP(CONCATENATE($B16,"-",F$1),База!$A:$G,5,0)) -> OK | H16: =IF(ISERROR(VLOOKUP(CONCATENATE($B16,"-",F$1),База!$A:$G,6,0)),IF(ISERROR(VLOOKUP(CONCATENATE($B16,"-",F$1),'База выдачи'!$A:$F,6,0)),"",VLOOKUP(CONCATENATE($B16,"-",F$1),'База выдачи'!$A:$F,6,0)),VLOOKUP(CONCATENATE($B16,"-",F$1),База!$A:$G,6,0)) -> 01:20:49.720 | I16: 1 | J16: =IF(ISERROR(VLOOKUP(CONCATENATE($B16,"-",I$1),База!$A:$G,5,0)),IF(ISERROR(VLOOKUP(CONCATENATE($B16,"-",I$1),'База выдачи'!$A:$F,5,0)),"",VLOOKUP(CONCATENATE($B16,"-",I$1),'База выдачи'!$A:$F,5,0)),VLOOKUP(CONCATENATE($B16,"-",I$1),База!$A:$G,5,0)) -> OK | K16: =IF(ISERROR(VLOOKUP(CONCATENATE($B16,"-",I$1),База!$A:$G,6,0)),IF(ISERROR(VLOOKUP(CONCATENATE($B16,"-",I$1),'База выдачи'!$A:$F,6,0)),"",VLOOKUP(CONCATENATE($B16,"-",I$1),'База выдачи'!$A:$F,6,0)),VLOOKUP(CONCATENATE($B16,"-",I$1),База!$A:$G,6,0)) -> 02:28:11.470 | L16: 4 | M16: =IF(ISERROR(VLOOKUP(CONCATENATE($B16,"-",L$1),База!$A:$G,5,0)),IF(ISERROR(VLOOKUP(CONCATENATE($B16,"-",L$1),'База выдачи'!$A:$F,5,0)),"",VLOOKUP(CONCATENATE($B16,"-",L$1),'База выдачи'!$A:$F,5,0)),VLOOKUP(CONCATENATE($B16,"-",L$1),База!$A:$G,5,0)) -> ST | N16: =IF(ISERROR(VLOOKUP(CONCATENATE($B16,"-",L$1),База!$A:$G,6,0)),IF(ISERROR(VLOOKUP(CONCATENATE($B16,"-",L$1),'База выдачи'!$A:$F,6,0)),"",VLOOKUP(CONCATENATE($B16,"-",L$1),'База выдачи'!$A:$F,6,0)),VLOOKUP(CONCATENATE($B16,"-",L$1),База!$A:$G,6,0)) -> 02:28:13.350 | O16: 9 | P16: =IF(ISERROR(VLOOKUP(CONCATENATE($B16,"-",O$1),База!$A:$G,5,0)),IF(ISERROR(VLOOKUP(CONCATENATE($B16,"-",O$1),'База выдачи'!$A:$F,5,0)),"",VLOOKUP(CONCATENATE($B16,"-",O$1),'База выдачи'!$A:$F,5,0)),VLOOKUP(CONCATENATE($B16,"-",O$1),База!$A:$G,5,0)) ->  | Q16: =IF(ISERROR(VLOOKUP(CONCATENATE($B16,"-",O$1),База!$A:$G,6,0)),IF(ISERROR(VLOOKUP(CONCATENATE($B16,"-",O$1),'База выдачи'!$A:$F,6,0)),"",VLOOKUP(CONCATENATE($B16,"-",O$1),'База выдачи'!$A:$F,6,0)),VLOOKUP(CONCATENATE($B16,"-",O$1),База!$A:$G,6,0)) ->  | R16: 6 | S16: =IF(ISERROR(VLOOKUP(CONCATENATE($B16,"-",R$1),База!$A:$G,5,0)),IF(ISERROR(VLOOKUP(CONCATENATE($B16,"-",R$1),'База выдачи'!$A:$F,5,0)),"",VLOOKUP(CONCATENATE($B16,"-",R$1),'База выдачи'!$A:$F,5,0)),VLOOKUP(CONCATENATE($B16,"-",R$1),База!$A:$G,5,0)) ->  | T16: =IF(ISERROR(VLOOKUP(CONCATENATE($B16,"-",R$1),База!$A:$G,6,0)),IF(ISERROR(VLOOKUP(CONCATENATE($B16,"-",R$1),'База выдачи'!$A:$F,6,0)),"",VLOOKUP(CONCATENATE($B16,"-",R$1),'База выдачи'!$A:$F,6,0)),VLOOKUP(CONCATENATE($B16,"-",R$1),База!$A:$G,6,0)) ->  | U16: 8 | V16: =IF(ISERROR(VLOOKUP(CONCATENATE($B16,"-",U$1),База!$A:$G,5,0)),IF(ISERROR(VLOOKUP(CONCATENATE($B16,"-",U$1),'База выдачи'!$A:$F,5,0)),"",VLOOKUP(CONCATENATE($B16,"-",U$1),'База выдачи'!$A:$F,5,0)),VLOOKUP(CONCATENATE($B16,"-",U$1),База!$A:$G,5,0)) ->  | W16: =IF(ISERROR(VLOOKUP(CONCATENATE($B16,"-",U$1),База!$A:$G,6,0)),IF(ISERROR(VLOOKUP(CONCATENATE($B16,"-",U$1),'База выдачи'!$A:$F,6,0)),"",VLOOKUP(CONCATENATE($B16,"-",U$1),'База выдачи'!$A:$F,6,0)),VLOOKUP(CONCATENATE($B16,"-",U$1),База!$A:$G,6,0)) ->  | X16: 2 | Y16: =IF(ISERROR(VLOOKUP(CONCATENATE($B16,"-",X$1),База!$A:$G,5,0)),IF(ISERROR(VLOOKUP(CONCATENATE($B16,"-",X$1),'База выдачи'!$A:$F,5,0)),"",VLOOKUP(CONCATENATE($B16,"-",X$1),'База выдачи'!$A:$F,5,0)),VLOOKUP(CONCATENATE($B16,"-",X$1),База!$A:$G,5,0)) ->  | Z16: =IF(ISERROR(VLOOKUP(CONCATENATE($B16,"-",X$1),База!$A:$G,6,0)),IF(ISERROR(VLOOKUP(CONCATENATE($B16,"-",X$1),'База выдачи'!$A:$F,6,0)),"",VLOOKUP(CONCATENATE($B16,"-",X$1),'База выдачи'!$A:$F,6,0)),VLOOKUP(CONCATENATE($B16,"-",X$1),База!$A:$G,6,0)) ->  | AA16: 3 | AB16: =IF(ISERROR(VLOOKUP(CONCATENATE($B16,"-",AA$1),База!$A:$G,5,0)),IF(ISERROR(VLOOKUP(CONCATENATE($B16,"-",AA$1),'База выдачи'!$A:$F,5,0)),"",VLOOKUP(CONCATENATE($B16,"-",AA$1),'База выдачи'!$A:$F,5,0)),VLOOKUP(CONCATENATE($B16,"-",AA$1),База!$A:$G,5,0)) ->  | AC16: =IF(ISERROR(VLOOKUP(CONCATENATE($B16,"-",AA$1),База!$A:$G,6,0)),IF(ISERROR(VLOOKUP(CONCATENATE($B16,"-",AA$1),'База выдачи'!$A:$F,6,0)),"",VLOOKUP(CONCATENATE($B16,"-",AA$1),'База выдачи'!$A:$F,6,0)),VLOOKUP(CONCATENATE($B16,"-",AA$1),База!$A:$G,6,0)) ->  | AD16: L | AE16: =IF(ISERROR(VLOOKUP(CONCATENATE($B16,"-",AD$1),База!$A:$G,5,0)),IF(ISERROR(VLOOKUP(CONCATENATE($B16,"-",AD$1),'База выдачи'!$A:$F,5,0)),"",VLOOKUP(CONCATENATE($B16,"-",AD$1),'База выдачи'!$A:$F,5,0)),VLOOKUP(CONCATENATE($B16,"-",AD$1),База!$A:$G,5,0)) ->  | AF16: =IF(ISERROR(VLOOKUP(CONCATENATE($B16,"-",AD$1),База!$A:$G,6,0)),IF(ISERROR(VLOOKUP(CONCATENATE($B16,"-",AD$1),'База выдачи'!$A:$F,6,0)),"",VLOOKUP(CONCATENATE($B16,"-",AD$1),'База выдачи'!$A:$F,6,0)),VLOOKUP(CONCATENATE($B16,"-",AD$1),База!$A:$G,6,0)) ->  | AG16: M | AH16: =IF(ISERROR(VLOOKUP(CONCATENATE($B16,"-",AG$1),База!$A:$G,5,0)),IF(ISERROR(VLOOKUP(CONCATENATE($B16,"-",AG$1),'База выдачи'!$A:$F,5,0)),"",VLOOKUP(CONCATENATE($B16,"-",AG$1),'База выдачи'!$A:$F,5,0)),VLOOKUP(CONCATENATE($B16,"-",AG$1),База!$A:$G,5,0)) ->  | AI16: =IF(ISERROR(VLOOKUP(CONCATENATE($B16,"-",AG$1),База!$A:$G,6,0)),IF(ISERROR(VLOOKUP(CONCATENATE($B16,"-",AG$1),'База выдачи'!$A:$F,6,0)),"",VLOOKUP(CONCATENATE($B16,"-",AG$1),'База выдачи'!$A:$F,6,0)),VLOOKUP(CONCATENATE($B16,"-",AG$1),База!$A:$G,6,0)) ->  | AJ16: N | AK16: =IF(ISERROR(VLOOKUP(CONCATENATE($B16,"-",AJ$1),База!$A:$G,5,0)),IF(ISERROR(VLOOKUP(CONCATENATE($B16,"-",AJ$1),'База выдачи'!$A:$F,5,0)),"",VLOOKUP(CONCATENATE($B16,"-",AJ$1),'База выдачи'!$A:$F,5,0)),VLOOKUP(CONCATENATE($B16,"-",AJ$1),База!$A:$G,5,0)) ->  | AL16: =IF(ISERROR(VLOOKUP(CONCATENATE($B16,"-",AJ$1),База!$A:$G,6,0)),IF(ISERROR(VLOOKUP(CONCATENATE($B16,"-",AJ$1),'База выдачи'!$A:$F,6,0)),"",VLOOKUP(CONCATENATE($B16,"-",AJ$1),'База выдачи'!$A:$F,6,0)),VLOOKUP(CONCATENATE($B16,"-",AJ$1),База!$A:$G,6,0)) ->  | AM16: O | AN16: =IF(ISERROR(VLOOKUP(CONCATENATE($B16,"-",AM$1),База!$A:$G,5,0)),IF(ISERROR(VLOOKUP(CONCATENATE($B16,"-",AM$1),'База выдачи'!$A:$F,5,0)),"",VLOOKUP(CONCATENATE($B16,"-",AM$1),'База выдачи'!$A:$F,5,0)),VLOOKUP(CONCATENATE($B16,"-",AM$1),База!$A:$G,5,0)) ->  | AO16: =IF(ISERROR(VLOOKUP(CONCATENATE($B16,"-",AM$1),База!$A:$G,6,0)),IF(ISERROR(VLOOKUP(CONCATENATE($B16,"-",AM$1),'База выдачи'!$A:$F,6,0)),"",VLOOKUP(CONCATENATE($B16,"-",AM$1),'База выдачи'!$A:$F,6,0)),VLOOKUP(CONCATENATE($B16,"-",AM$1),База!$A:$G,6,0)) ->  | AP16: A | AQ16: =IF(ISERROR(VLOOKUP(CONCATENATE($B16,"-",AP$1),База!$A:$G,5,0)),IF(ISERROR(VLOOKUP(CONCATENATE($B16,"-",AP$1),'База выдачи'!$A:$F,5,0)),"",VLOOKUP(CONCATENATE($B16,"-",AP$1),'База выдачи'!$A:$F,5,0)),VLOOKUP(CONCATENATE($B16,"-",AP$1),База!$A:$G,5,0)) ->  | AR16: =IF(ISERROR(VLOOKUP(CONCATENATE($B16,"-",AP$1),База!$A:$G,6,0)),IF(ISERROR(VLOOKUP(CONCATENATE($B16,"-",AP$1),'База выдачи'!$A:$F,6,0)),"",VLOOKUP(CONCATENATE($B16,"-",AP$1),'База выдачи'!$A:$F,6,0)),VLOOKUP(CONCATENATE($B16,"-",AP$1),База!$A:$G,6,0)) ->  | AS16: B | AT16: =IF(ISERROR(VLOOKUP(CONCATENATE($B16,"-",AS$1),База!$A:$G,5,0)),IF(ISERROR(VLOOKUP(CONCATENATE($B16,"-",AS$1),'База выдачи'!$A:$F,5,0)),"",VLOOKUP(CONCATENATE($B16,"-",AS$1),'База выдачи'!$A:$F,5,0)),VLOOKUP(CONCATENATE($B16,"-",AS$1),База!$A:$G,5,0)) ->  | AU16: =IF(ISERROR(VLOOKUP(CONCATENATE($B16,"-",AS$1),База!$A:$G,6,0)),IF(ISERROR(VLOOKUP(CONCATENATE($B16,"-",AS$1),'База выдачи'!$A:$F,6,0)),"",VLOOKUP(CONCATENATE($B16,"-",AS$1),'База выдачи'!$A:$F,6,0)),VLOOKUP(CONCATENATE($B16,"-",AS$1),База!$A:$G,6,0)) ->  | AX16: =COUNTIFS(База!B:B,Статистика!B16,База!E:E,"OK") -> 3 | AY16: =CG3 -> 02:28:11.470 | AZ16: 8891 | BA16: =COUNTIFS(База!B:B,Статистика!B16,База!E:E,"XXXX") -> 0 | BB16: =IF(AX16+AZ16+BA16=0,ксекундвигре-BD16,ксекундвигре*Статистика!AX16+(ксекундвигре-Статистика!AZ16)+Статистика!BA16) -> 34549 | BC16: 58685 | BD16: 14 | BE16: 22
A17: 15 | B17: =IF(ISERROR(VLOOKUP(A17,Служебный!B:C,2,0)),"",A17&"-"&VLOOKUP(A17,Служебный!B:C,2,0)) -> 15-Нефть | C17: 6 | D17: =IF(ISERROR(VLOOKUP(CONCATENATE($B17,"-",C$1),База!$A:$G,5,0)),IF(ISERROR(VLOOKUP(CONCATENATE($B17,"-",C$1),'База выдачи'!$A:$F,5,0)),"",VLOOKUP(CONCATENATE($B17,"-",C$1),'База выдачи'!$A:$F,5,0)),VLOOKUP(CONCATENATE($B17,"-",C$1),База!$A:$G,5,0)) -> OK | E17: =IF(ISERROR(VLOOKUP(CONCATENATE($B17,"-",C$1),База!$A:$G,6,0)),IF(ISERROR(VLOOKUP(CONCATENATE($B17,"-",C$1),'База выдачи'!$A:$F,6,0)),"",VLOOKUP(CONCATENATE($B17,"-",C$1),'База выдачи'!$A:$F,6,0)),VLOOKUP(CONCATENATE($B17,"-",C$1),База!$A:$G,6,0)) -> 00:30:23.050 | F17: 9 | G17: =IF(ISERROR(VLOOKUP(CONCATENATE($B17,"-",F$1),База!$A:$G,5,0)),IF(ISERROR(VLOOKUP(CONCATENATE($B17,"-",F$1),'База выдачи'!$A:$F,5,0)),"",VLOOKUP(CONCATENATE($B17,"-",F$1),'База выдачи'!$A:$F,5,0)),VLOOKUP(CONCATENATE($B17,"-",F$1),База!$A:$G,5,0)) -> OK | H17: =IF(ISERROR(VLOOKUP(CONCATENATE($B17,"-",F$1),База!$A:$G,6,0)),IF(ISERROR(VLOOKUP(CONCATENATE($B17,"-",F$1),'База выдачи'!$A:$F,6,0)),"",VLOOKUP(CONCATENATE($B17,"-",F$1),'База выдачи'!$A:$F,6,0)),VLOOKUP(CONCATENATE($B17,"-",F$1),База!$A:$G,6,0)) -> 00:35:52.490 | I17: 4 | J17: =IF(ISERROR(VLOOKUP(CONCATENATE($B17,"-",I$1),База!$A:$G,5,0)),IF(ISERROR(VLOOKUP(CONCATENATE($B17,"-",I$1),'База выдачи'!$A:$F,5,0)),"",VLOOKUP(CONCATENATE($B17,"-",I$1),'База выдачи'!$A:$F,5,0)),VLOOKUP(CONCATENATE($B17,"-",I$1),База!$A:$G,5,0)) -> OK | K17: =IF(ISERROR(VLOOKUP(CONCATENATE($B17,"-",I$1),База!$A:$G,6,0)),IF(ISERROR(VLOOKUP(CONCATENATE($B17,"-",I$1),'База выдачи'!$A:$F,6,0)),"",VLOOKUP(CONCATENATE($B17,"-",I$1),'База выдачи'!$A:$F,6,0)),VLOOKUP(CONCATENATE($B17,"-",I$1),База!$A:$G,6,0)) -> 00:51:45.450 | L17: 5 | M17: =IF(ISERROR(VLOOKUP(CONCATENATE($B17,"-",L$1),База!$A:$G,5,0)),IF(ISERROR(VLOOKUP(CONCATENATE($B17,"-",L$1),'База выдачи'!$A:$F,5,0)),"",VLOOKUP(CONCATENATE($B17,"-",L$1),'База выдачи'!$A:$F,5,0)),VLOOKUP(CONCATENATE($B17,"-",L$1),База!$A:$G,5,0)) -> OK | N17: =IF(ISERROR(VLOOKUP(CONCATENATE($B17,"-",L$1),База!$A:$G,6,0)),IF(ISERROR(VLOOKUP(CONCATENATE($B17,"-",L$1),'База выдачи'!$A:$F,6,0)),"",VLOOKUP(CONCATENATE($B17,"-",L$1),'База выдачи'!$A:$F,6,0)),VLOOKUP(CONCATENATE($B17,"-",L$1),База!$A:$G,6,0)) -> 01:03:24.240 | O17: 8 | P17: =IF(ISERROR(VLOOKUP(CONCATENATE($B17,"-",O$1),База!$A:$G,5,0)),IF(ISERROR(VLOOKUP(CONCATENATE($B17,"-",O$1),'База выдачи'!$A:$F,5,0)),"",VLOOKUP(CONCATENATE($B17,"-",O$1),'База выдачи'!$A:$F,5,0)),VLOOKUP(CONCATENATE($B17,"-",O$1),База!$A:$G,5,0)) -> OK | Q17: =IF(ISERROR(VLOOKUP(CONCATENATE($B17,"-",O$1),База!$A:$G,6,0)),IF(ISERROR(VLOOKUP(CONCATENATE($B17,"-",O$1),'База выдачи'!$A:$F,6,0)),"",VLOOKUP(CONCATENATE($B17,"-",O$1),'База выдачи'!$A:$F,6,0)),VLOOKUP(CONCATENATE($B17,"-",O$1),База!$A:$G,6,0)) -> 01:23:57.060 | R17: 2 | S17: =IF(ISERROR(VLOOKUP(CONCATENATE($B17,"-",R$1),База!$A:$G,5,0)),IF(ISERROR(VLOOKUP(CONCATENATE($B17,"-",R$1),'База выдачи'!$A:$F,5,0)),"",VLOOKUP(CONCATENATE($B17,"-",R$1),'База выдачи'!$A:$F,5,0)),VLOOKUP(CONCATENATE($B17,"-",R$1),База!$A:$G,5,0)) -> XXXX | T17: =IF(ISERROR(VLOOKUP(CONCATENATE($B17,"-",R$1),База!$A:$G,6,0)),IF(ISERROR(VLOOKUP(CONCATENATE($B17,"-",R$1),'База выдачи'!$A:$F,6,0)),"",VLOOKUP(CONCATENATE($B17,"-",R$1),'База выдачи'!$A:$F,6,0)),VLOOKUP(CONCATENATE($B17,"-",R$1),База!$A:$G,6,0)) -> 02:06:09.580 | U17: 1 | V17: =IF(ISERROR(VLOOKUP(CONCATENATE($B17,"-",U$1),База!$A:$G,5,0)),IF(ISERROR(VLOOKUP(CONCATENATE($B17,"-",U$1),'База выдачи'!$A:$F,5,0)),"",VLOOKUP(CONCATENATE($B17,"-",U$1),'База выдачи'!$A:$F,5,0)),VLOOKUP(CONCATENATE($B17,"-",U$1),База!$A:$G,5,0)) -> OK | W17: =IF(ISERROR(VLOOKUP(CONCATENATE($B17,"-",U$1),База!$A:$G,6,0)),IF(ISERROR(VLOOKUP(CONCATENATE($B17,"-",U$1),'База выдачи'!$A:$F,6,0)),"",VLOOKUP(CONCATENATE($B17,"-",U$1),'База выдачи'!$A:$F,6,0)),VLOOKUP(CONCATENATE($B17,"-",U$1),База!$A:$G,6,0)) -> 02:57:56.530 | X17: 3 | Y17: =IF(ISERROR(VLOOKUP(CONCATENATE($B17,"-",X$1),База!$A:$G,5,0)),IF(ISERROR(VLOOKUP(CONCATENATE($B17,"-",X$1),'База выдачи'!$A:$F,5,0)),"",VLOOKUP(CONCATENATE($B17,"-",X$1),'База выдачи'!$A:$F,5,0)),VLOOKUP(CONCATENATE($B17,"-",X$1),База!$A:$G,5,0)) -> ST | Z17: =IF(ISERROR(VLOOKUP(CONCATENATE($B17,"-",X$1),База!$A:$G,6,0)),IF(ISERROR(VLOOKUP(CONCATENATE($B17,"-",X$1),'База выдачи'!$A:$F,6,0)),"",VLOOKUP(CONCATENATE($B17,"-",X$1),'База выдачи'!$A:$F,6,0)),VLOOKUP(CONCATENATE($B17,"-",X$1),База!$A:$G,6,0)) -> 02:57:58.470 | AA17: 7 | AB17: =IF(ISERROR(VLOOKUP(CONCATENATE($B17,"-",AA$1),База!$A:$G,5,0)),IF(ISERROR(VLOOKUP(CONCATENATE($B17,"-",AA$1),'База выдачи'!$A:$F,5,0)),"",VLOOKUP(CONCATENATE($B17,"-",AA$1),'База выдачи'!$A:$F,5,0)),VLOOKUP(CONCATENATE($B17,"-",AA$1),База!$A:$G,5,0)) ->  | AC17: =IF(ISERROR(VLOOKUP(CONCATENATE($B17,"-",AA$1),База!$A:$G,6,0)),IF(ISERROR(VLOOKUP(CONCATENATE($B17,"-",AA$1),'База выдачи'!$A:$F,6,0)),"",VLOOKUP(CONCATENATE($B17,"-",AA$1),'База выдачи'!$A:$F,6,0)),VLOOKUP(CONCATENATE($B17,"-",AA$1),База!$A:$G,6,0)) ->  | AD17: K | AE17: =IF(ISERROR(VLOOKUP(CONCATENATE($B17,"-",AD$1),База!$A:$G,5,0)),IF(ISERROR(VLOOKUP(CONCATENATE($B17,"-",AD$1),'База выдачи'!$A:$F,5,0)),"",VLOOKUP(CONCATENATE($B17,"-",AD$1),'База выдачи'!$A:$F,5,0)),VLOOKUP(CONCATENATE($B17,"-",AD$1),База!$A:$G,5,0)) ->  | AF17: =IF(ISERROR(VLOOKUP(CONCATENATE($B17,"-",AD$1),База!$A:$G,6,0)),IF(ISERROR(VLOOKUP(CONCATENATE($B17,"-",AD$1),'База выдачи'!$A:$F,6,0)),"",VLOOKUP(CONCATENATE($B17,"-",AD$1),'База выдачи'!$A:$F,6,0)),VLOOKUP(CONCATENATE($B17,"-",AD$1),База!$A:$G,6,0)) ->  | AG17: L | AH17: =IF(ISERROR(VLOOKUP(CONCATENATE($B17,"-",AG$1),База!$A:$G,5,0)),IF(ISERROR(VLOOKUP(CONCATENATE($B17,"-",AG$1),'База выдачи'!$A:$F,5,0)),"",VLOOKUP(CONCATENATE($B17,"-",AG$1),'База выдачи'!$A:$F,5,0)),VLOOKUP(CONCATENATE($B17,"-",AG$1),База!$A:$G,5,0)) ->  | AI17: =IF(ISERROR(VLOOKUP(CONCATENATE($B17,"-",AG$1),База!$A:$G,6,0)),IF(ISERROR(VLOOKUP(CONCATENATE($B17,"-",AG$1),'База выдачи'!$A:$F,6,0)),"",VLOOKUP(CONCATENATE($B17,"-",AG$1),'База выдачи'!$A:$F,6,0)),VLOOKUP(CONCATENATE($B17,"-",AG$1),База!$A:$G,6,0)) ->  | AJ17: M | AK17: =IF(ISERROR(VLOOKUP(CONCATENATE($B17,"-",AJ$1),База!$A:$G,5,0)),IF(ISERROR(VLOOKUP(CONCATENATE($B17,"-",AJ$1),'База выдачи'!$A:$F,5,0)),"",VLOOKUP(CONCATENATE($B17,"-",AJ$1),'База выдачи'!$A:$F,5,0)),VLOOKUP(CONCATENATE($B17,"-",AJ$1),База!$A:$G,5,0)) ->  | AL17: =IF(ISERROR(VLOOKUP(CONCATENATE($B17,"-",AJ$1),База!$A:$G,6,0)),IF(ISERROR(VLOOKUP(CONCATENATE($B17,"-",AJ$1),'База выдачи'!$A:$F,6,0)),"",VLOOKUP(CONCATENATE($B17,"-",AJ$1),'База выдачи'!$A:$F,6,0)),VLOOKUP(CONCATENATE($B17,"-",AJ$1),База!$A:$G,6,0)) ->  | AM17: N | AN17: =IF(ISERROR(VLOOKUP(CONCATENATE($B17,"-",AM$1),База!$A:$G,5,0)),IF(ISERROR(VLOOKUP(CONCATENATE($B17,"-",AM$1),'База выдачи'!$A:$F,5,0)),"",VLOOKUP(CONCATENATE($B17,"-",AM$1),'База выдачи'!$A:$F,5,0)),VLOOKUP(CONCATENATE($B17,"-",AM$1),База!$A:$G,5,0)) ->  | AO17: =IF(ISERROR(VLOOKUP(CONCATENATE($B17,"-",AM$1),База!$A:$G,6,0)),IF(ISERROR(VLOOKUP(CONCATENATE($B17,"-",AM$1),'База выдачи'!$A:$F,6,0)),"",VLOOKUP(CONCATENATE($B17,"-",AM$1),'База выдачи'!$A:$F,6,0)),VLOOKUP(CONCATENATE($B17,"-",AM$1),База!$A:$G,6,0)) ->  | AP17: O | AQ17: =IF(ISERROR(VLOOKUP(CONCATENATE($B17,"-",AP$1),База!$A:$G,5,0)),IF(ISERROR(VLOOKUP(CONCATENATE($B17,"-",AP$1),'База выдачи'!$A:$F,5,0)),"",VLOOKUP(CONCATENATE($B17,"-",AP$1),'База выдачи'!$A:$F,5,0)),VLOOKUP(CONCATENATE($B17,"-",AP$1),База!$A:$G,5,0)) ->  | AR17: =IF(ISERROR(VLOOKUP(CONCATENATE($B17,"-",AP$1),База!$A:$G,6,0)),IF(ISERROR(VLOOKUP(CONCATENATE($B17,"-",AP$1),'База выдачи'!$A:$F,6,0)),"",VLOOKUP(CONCATENATE($B17,"-",AP$1),'База выдачи'!$A:$F,6,0)),VLOOKUP(CONCATENATE($B17,"-",AP$1),База!$A:$G,6,0)) ->  | AS17: A | AT17: =IF(ISERROR(VLOOKUP(CONCATENATE($B17,"-",AS$1),База!$A:$G,5,0)),IF(ISERROR(VLOOKUP(CONCATENATE($B17,"-",AS$1),'База выдачи'!$A:$F,5,0)),"",VLOOKUP(CONCATENATE($B17,"-",AS$1),'База выдачи'!$A:$F,5,0)),VLOOKUP(CONCATENATE($B17,"-",AS$1),База!$A:$G,5,0)) ->  | AU17: =IF(ISERROR(VLOOKUP(CONCATENATE($B17,"-",AS$1),База!$A:$G,6,0)),IF(ISERROR(VLOOKUP(CONCATENATE($B17,"-",AS$1),'База выдачи'!$A:$F,6,0)),"",VLOOKUP(CONCATENATE($B17,"-",AS$1),'База выдачи'!$A:$F,6,0)),VLOOKUP(CONCATENATE($B17,"-",AS$1),База!$A:$G,6,0)) ->  | AX17: =COUNTIFS(База!B:B,Статистика!B17,База!E:E,"OK") -> 6 | AY17: =CI3 -> 02:57:56.530 | AZ17: 10677 | BA17: =COUNTIFS(База!B:B,Статистика!B17,База!E:E,"XXXX") -> 1 | BB17: =IF(AX17+AZ17+BA17=0,ксекундвигре-BD17,ксекундвигре*Статистика!AX17+(ксекундвигре-Статистика!AZ17)+Статистика!BA17) -> 65344 | BC17: 55652 | BD17: 15 | BE17: 8
A18: 16 | B18: =IF(ISERROR(VLOOKUP(A18,Служебный!B:C,2,0)),"",A18&"-"&VLOOKUP(A18,Служебный!B:C,2,0)) -> 16-Коты | C18: 7 | D18: =IF(ISERROR(VLOOKUP(CONCATENATE($B18,"-",C$1),База!$A:$G,5,0)),IF(ISERROR(VLOOKUP(CONCATENATE($B18,"-",C$1),'База выдачи'!$A:$F,5,0)),"",VLOOKUP(CONCATENATE($B18,"-",C$1),'База выдачи'!$A:$F,5,0)),VLOOKUP(CONCATENATE($B18,"-",C$1),База!$A:$G,5,0)) -> OK | E18: =IF(ISERROR(VLOOKUP(CONCATENATE($B18,"-",C$1),База!$A:$G,6,0)),IF(ISERROR(VLOOKUP(CONCATENATE($B18,"-",C$1),'База выдачи'!$A:$F,6,0)),"",VLOOKUP(CONCATENATE($B18,"-",C$1),'База выдачи'!$A:$F,6,0)),VLOOKUP(CONCATENATE($B18,"-",C$1),База!$A:$G,6,0)) -> 00:25:41.500 | F18: 3 | G18: =IF(ISERROR(VLOOKUP(CONCATENATE($B18,"-",F$1),База!$A:$G,5,0)),IF(ISERROR(VLOOKUP(CONCATENATE($B18,"-",F$1),'База выдачи'!$A:$F,5,0)),"",VLOOKUP(CONCATENATE($B18,"-",F$1),'База выдачи'!$A:$F,5,0)),VLOOKUP(CONCATENATE($B18,"-",F$1),База!$A:$G,5,0)) -> OK | H18: =IF(ISERROR(VLOOKUP(CONCATENATE($B18,"-",F$1),База!$A:$G,6,0)),IF(ISERROR(VLOOKUP(CONCATENATE($B18,"-",F$1),'База выдачи'!$A:$F,6,0)),"",VLOOKUP(CONCATENATE($B18,"-",F$1),'База выдачи'!$A:$F,6,0)),VLOOKUP(CONCATENATE($B18,"-",F$1),База!$A:$G,6,0)) -> 00:38:06.460 | I18: 9 | J18: =IF(ISERROR(VLOOKUP(CONCATENATE($B18,"-",I$1),База!$A:$G,5,0)),IF(ISERROR(VLOOKUP(CONCATENATE($B18,"-",I$1),'База выдачи'!$A:$F,5,0)),"",VLOOKUP(CONCATENATE($B18,"-",I$1),'База выдачи'!$A:$F,5,0)),VLOOKUP(CONCATENATE($B18,"-",I$1),База!$A:$G,5,0)) -> OK | K18: =IF(ISERROR(VLOOKUP(CONCATENATE($B18,"-",I$1),База!$A:$G,6,0)),IF(ISERROR(VLOOKUP(CONCATENATE($B18,"-",I$1),'База выдачи'!$A:$F,6,0)),"",VLOOKUP(CONCATENATE($B18,"-",I$1),'База выдачи'!$A:$F,6,0)),VLOOKUP(CONCATENATE($B18,"-",I$1),База!$A:$G,6,0)) -> 00:59:41.230 | L18: 1 | M18: =IF(ISERROR(VLOOKUP(CONCATENATE($B18,"-",L$1),База!$A:$G,5,0)),IF(ISERROR(VLOOKUP(CONCATENATE($B18,"-",L$1),'База выдачи'!$A:$F,5,0)),"",VLOOKUP(CONCATENATE($B18,"-",L$1),'База выдачи'!$A:$F,5,0)),VLOOKUP(CONCATENATE($B18,"-",L$1),База!$A:$G,5,0)) -> XXXX | N18: =IF(ISERROR(VLOOKUP(CONCATENATE($B18,"-",L$1),База!$A:$G,6,0)),IF(ISERROR(VLOOKUP(CONCATENATE($B18,"-",L$1),'База выдачи'!$A:$F,6,0)),"",VLOOKUP(CONCATENATE($B18,"-",L$1),'База выдачи'!$A:$F,6,0)),VLOOKUP(CONCATENATE($B18,"-",L$1),База!$A:$G,6,0)) -> 01:45:49.270 | O18: 6 | P18: =IF(ISERROR(VLOOKUP(CONCATENATE($B18,"-",O$1),База!$A:$G,5,0)),IF(ISERROR(VLOOKUP(CONCATENATE($B18,"-",O$1),'База выдачи'!$A:$F,5,0)),"",VLOOKUP(CONCATENATE($B18,"-",O$1),'База выдачи'!$A:$F,5,0)),VLOOKUP(CONCATENATE($B18,"-",O$1),База!$A:$G,5,0)) -> OK | Q18: =IF(ISERROR(VLOOKUP(CONCATENATE($B18,"-",O$1),База!$A:$G,6,0)),IF(ISERROR(VLOOKUP(CONCATENATE($B18,"-",O$1),'База выдачи'!$A:$F,6,0)),"",VLOOKUP(CONCATENATE($B18,"-",O$1),'База выдачи'!$A:$F,6,0)),VLOOKUP(CONCATENATE($B18,"-",O$1),База!$A:$G,6,0)) -> 02:45:36.740 | R18: 8 | S18: =IF(ISERROR(VLOOKUP(CONCATENATE($B18,"-",R$1),База!$A:$G,5,0)),IF(ISERROR(VLOOKUP(CONCATENATE($B18,"-",R$1),'База выдачи'!$A:$F,5,0)),"",VLOOKUP(CONCATENATE($B18,"-",R$1),'База выдачи'!$A:$F,5,0)),VLOOKUP(CONCATENATE($B18,"-",R$1),База!$A:$G,5,0)) -> OK | T18: =IF(ISERROR(VLOOKUP(CONCATENATE($B18,"-",R$1),База!$A:$G,6,0)),IF(ISERROR(VLOOKUP(CONCATENATE($B18,"-",R$1),'База выдачи'!$A:$F,6,0)),"",VLOOKUP(CONCATENATE($B18,"-",R$1),'База выдачи'!$A:$F,6,0)),VLOOKUP(CONCATENATE($B18,"-",R$1),База!$A:$G,6,0)) -> 03:01:05.370 | U18: 2 | V18: =IF(ISERROR(VLOOKUP(CONCATENATE($B18,"-",U$1),База!$A:$G,5,0)),IF(ISERROR(VLOOKUP(CONCATENATE($B18,"-",U$1),'База выдачи'!$A:$F,5,0)),"",VLOOKUP(CONCATENATE($B18,"-",U$1),'База выдачи'!$A:$F,5,0)),VLOOKUP(CONCATENATE($B18,"-",U$1),База!$A:$G,5,0)) -> ST | W18: =IF(ISERROR(VLOOKUP(CONCATENATE($B18,"-",U$1),База!$A:$G,6,0)),IF(ISERROR(VLOOKUP(CONCATENATE($B18,"-",U$1),'База выдачи'!$A:$F,6,0)),"",VLOOKUP(CONCATENATE($B18,"-",U$1),'База выдачи'!$A:$F,6,0)),VLOOKUP(CONCATENATE($B18,"-",U$1),База!$A:$G,6,0)) -> 03:01:07.290 | X18: 5 | Y18: =IF(ISERROR(VLOOKUP(CONCATENATE($B18,"-",X$1),База!$A:$G,5,0)),IF(ISERROR(VLOOKUP(CONCATENATE($B18,"-",X$1),'База выдачи'!$A:$F,5,0)),"",VLOOKUP(CONCATENATE($B18,"-",X$1),'База выдачи'!$A:$F,5,0)),VLOOKUP(CONCATENATE($B18,"-",X$1),База!$A:$G,5,0)) ->  | Z18: =IF(ISERROR(VLOOKUP(CONCATENATE($B18,"-",X$1),База!$A:$G,6,0)),IF(ISERROR(VLOOKUP(CONCATENATE($B18,"-",X$1),'База выдачи'!$A:$F,6,0)),"",VLOOKUP(CONCATENATE($B18,"-",X$1),'База выдачи'!$A:$F,6,0)),VLOOKUP(CONCATENATE($B18,"-",X$1),База!$A:$G,6,0)) ->  | AA18: 4 | AB18: =IF(ISERROR(VLOOKUP(CONCATENATE($B18,"-",AA$1),База!$A:$G,5,0)),IF(ISERROR(VLOOKUP(CONCATENATE($B18,"-",AA$1),'База выдачи'!$A:$F,5,0)),"",VLOOKUP(CONCATENATE($B18,"-",AA$1),'База выдачи'!$A:$F,5,0)),VLOOKUP(CONCATENATE($B18,"-",AA$1),База!$A:$G,5,0)) ->  | AC18: =IF(ISERROR(VLOOKUP(CONCATENATE($B18,"-",AA$1),База!$A:$G,6,0)),IF(ISERROR(VLOOKUP(CONCATENATE($B18,"-",AA$1),'База выдачи'!$A:$F,6,0)),"",VLOOKUP(CONCATENATE($B18,"-",AA$1),'База выдачи'!$A:$F,6,0)),VLOOKUP(CONCATENATE($B18,"-",AA$1),База!$A:$G,6,0)) ->  | AD18: J | AE18: =IF(ISERROR(VLOOKUP(CONCATENATE($B18,"-",AD$1),База!$A:$G,5,0)),IF(ISERROR(VLOOKUP(CONCATENATE($B18,"-",AD$1),'База выдачи'!$A:$F,5,0)),"",VLOOKUP(CONCATENATE($B18,"-",AD$1),'База выдачи'!$A:$F,5,0)),VLOOKUP(CONCATENATE($B18,"-",AD$1),База!$A:$G,5,0)) ->  | AF18: =IF(ISERROR(VLOOKUP(CONCATENATE($B18,"-",AD$1),База!$A:$G,6,0)),IF(ISERROR(VLOOKUP(CONCATENATE($B18,"-",AD$1),'База выдачи'!$A:$F,6,0)),"",VLOOKUP(CONCATENATE($B18,"-",AD$1),'База выдачи'!$A:$F,6,0)),VLOOKUP(CONCATENATE($B18,"-",AD$1),База!$A:$G,6,0)) ->  | AG18: K | AH18: =IF(ISERROR(VLOOKUP(CONCATENATE($B18,"-",AG$1),База!$A:$G,5,0)),IF(ISERROR(VLOOKUP(CONCATENATE($B18,"-",AG$1),'База выдачи'!$A:$F,5,0)),"",VLOOKUP(CONCATENATE($B18,"-",AG$1),'База выдачи'!$A:$F,5,0)),VLOOKUP(CONCATENATE($B18,"-",AG$1),База!$A:$G,5,0)) ->  | AI18: =IF(ISERROR(VLOOKUP(CONCATENATE($B18,"-",AG$1),База!$A:$G,6,0)),IF(ISERROR(VLOOKUP(CONCATENATE($B18,"-",AG$1),'База выдачи'!$A:$F,6,0)),"",VLOOKUP(CONCATENATE($B18,"-",AG$1),'База выдачи'!$A:$F,6,0)),VLOOKUP(CONCATENATE($B18,"-",AG$1),База!$A:$G,6,0)) ->  | AJ18: L | AK18: =IF(ISERROR(VLOOKUP(CONCATENATE($B18,"-",AJ$1),База!$A:$G,5,0)),IF(ISERROR(VLOOKUP(CONCATENATE($B18,"-",AJ$1),'База выдачи'!$A:$F,5,0)),"",VLOOKUP(CONCATENATE($B18,"-",AJ$1),'База выдачи'!$A:$F,5,0)),VLOOKUP(CONCATENATE($B18,"-",AJ$1),База!$A:$G,5,0)) ->  | AL18: =IF(ISERROR(VLOOKUP(CONCATENATE($B18,"-",AJ$1),База!$A:$G,6,0)),IF(ISERROR(VLOOKUP(CONCATENATE($B18,"-",AJ$1),'База выдачи'!$A:$F,6,0)),"",VLOOKUP(CONCATENATE($B18,"-",AJ$1),'База выдачи'!$A:$F,6,0)),VLOOKUP(CONCATENATE($B18,"-",AJ$1),База!$A:$G,6,0)) ->  | AM18: M | AN18: =IF(ISERROR(VLOOKUP(CONCATENATE($B18,"-",AM$1),База!$A:$G,5,0)),IF(ISERROR(VLOOKUP(CONCATENATE($B18,"-",AM$1),'База выдачи'!$A:$F,5,0)),"",VLOOKUP(CONCATENATE($B18,"-",AM$1),'База выдачи'!$A:$F,5,0)),VLOOKUP(CONCATENATE($B18,"-",AM$1),База!$A:$G,5,0)) ->  | AO18: =IF(ISERROR(VLOOKUP(CONCATENATE($B18,"-",AM$1),База!$A:$G,6,0)),IF(ISERROR(VLOOKUP(CONCATENATE($B18,"-",AM$1),'База выдачи'!$A:$F,6,0)),"",VLOOKUP(CONCATENATE($B18,"-",AM$1),'База выдачи'!$A:$F,6,0)),VLOOKUP(CONCATENATE($B18,"-",AM$1),База!$A:$G,6,0)) ->  | AP18: N | AQ18: =IF(ISERROR(VLOOKUP(CONCATENATE($B18,"-",AP$1),База!$A:$G,5,0)),IF(ISERROR(VLOOKUP(CONCATENATE($B18,"-",AP$1),'База выдачи'!$A:$F,5,0)),"",VLOOKUP(CONCATENATE($B18,"-",AP$1),'База выдачи'!$A:$F,5,0)),VLOOKUP(CONCATENATE($B18,"-",AP$1),База!$A:$G,5,0)) ->  | AR18: =IF(ISERROR(VLOOKUP(CONCATENATE($B18,"-",AP$1),База!$A:$G,6,0)),IF(ISERROR(VLOOKUP(CONCATENATE($B18,"-",AP$1),'База выдачи'!$A:$F,6,0)),"",VLOOKUP(CONCATENATE($B18,"-",AP$1),'База выдачи'!$A:$F,6,0)),VLOOKUP(CONCATENATE($B18,"-",AP$1),База!$A:$G,6,0)) ->  | AS18: O | AT18: =IF(ISERROR(VLOOKUP(CONCATENATE($B18,"-",AS$1),База!$A:$G,5,0)),IF(ISERROR(VLOOKUP(CONCATENATE($B18,"-",AS$1),'База выдачи'!$A:$F,5,0)),"",VLOOKUP(CONCATENATE($B18,"-",AS$1),'База выдачи'!$A:$F,5,0)),VLOOKUP(CONCATENATE($B18,"-",AS$1),База!$A:$G,5,0)) ->  | AU18: =IF(ISERROR(VLOOKUP(CONCATENATE($B18,"-",AS$1),База!$A:$G,6,0)),IF(ISERROR(VLOOKUP(CONCATENATE($B18,"-",AS$1),'База выдачи'!$A:$F,6,0)),"",VLOOKUP(CONCATENATE($B18,"-",AS$1),'База выдачи'!$A:$F,6,0)),VLOOKUP(CONCATENATE($B18,"-",AS$1),База!$A:$G,6,0)) ->  | AX18: =COUNTIFS(База!B:B,Статистика!B18,База!E:E,"OK") -> 5 | AY18: =$CK$3 -> 03:01:05.370 | AZ18: 10865 | BA18: =COUNTIFS(База!B:B,Статистика!B18,База!E:E,"XXXX") -> 1 | BB18: =IF(AX18+AZ18+BA18=0,ксекундвигре-BD18,ксекундвигре*Статистика!AX18+(ксекундвигре-Статистика!AZ18)+Статистика!BA18) -> 54296 | BC18: 54753 | BD18: 16 | BE18: 24
A19: 17 | B19: =IF(ISERROR(VLOOKUP(A19,Служебный!B:C,2,0)),"",A19&"-"&VLOOKUP(A19,Служебный!B:C,2,0)) -> 17-ЭросоМания | C19: 8 | D19: =IF(ISERROR(VLOOKUP(CONCATENATE($B19,"-",C$1),База!$A:$G,5,0)),IF(ISERROR(VLOOKUP(CONCATENATE($B19,"-",C$1),'База выдачи'!$A:$F,5,0)),"",VLOOKUP(CONCATENATE($B19,"-",C$1),'База выдачи'!$A:$F,5,0)),VLOOKUP(CONCATENATE($B19,"-",C$1),База!$A:$G,5,0)) -> OK | E19: =IF(ISERROR(VLOOKUP(CONCATENATE($B19,"-",C$1),База!$A:$G,6,0)),IF(ISERROR(VLOOKUP(CONCATENATE($B19,"-",C$1),'База выдачи'!$A:$F,6,0)),"",VLOOKUP(CONCATENATE($B19,"-",C$1),'База выдачи'!$A:$F,6,0)),VLOOKUP(CONCATENATE($B19,"-",C$1),База!$A:$G,6,0)) -> 00:32:04.120 | F19: 6 | G19: =IF(ISERROR(VLOOKUP(CONCATENATE($B19,"-",F$1),База!$A:$G,5,0)),IF(ISERROR(VLOOKUP(CONCATENATE($B19,"-",F$1),'База выдачи'!$A:$F,5,0)),"",VLOOKUP(CONCATENATE($B19,"-",F$1),'База выдачи'!$A:$F,5,0)),VLOOKUP(CONCATENATE($B19,"-",F$1),База!$A:$G,5,0)) -> XXXX | H19: =IF(ISERROR(VLOOKUP(CONCATENATE($B19,"-",F$1),База!$A:$G,6,0)),IF(ISERROR(VLOOKUP(CONCATENATE($B19,"-",F$1),'База выдачи'!$A:$F,6,0)),"",VLOOKUP(CONCATENATE($B19,"-",F$1),'База выдачи'!$A:$F,6,0)),VLOOKUP(CONCATENATE($B19,"-",F$1),База!$A:$G,6,0)) -> 01:04:26.760 | I19: 2 | J19: =IF(ISERROR(VLOOKUP(CONCATENATE($B19,"-",I$1),База!$A:$G,5,0)),IF(ISERROR(VLOOKUP(CONCATENATE($B19,"-",I$1),'База выдачи'!$A:$F,5,0)),"",VLOOKUP(CONCATENATE($B19,"-",I$1),'База выдачи'!$A:$F,5,0)),VLOOKUP(CONCATENATE($B19,"-",I$1),База!$A:$G,5,0)) -> OK | K19: =IF(ISERROR(VLOOKUP(CONCATENATE($B19,"-",I$1),База!$A:$G,6,0)),IF(ISERROR(VLOOKUP(CONCATENATE($B19,"-",I$1),'База выдачи'!$A:$F,6,0)),"",VLOOKUP(CONCATENATE($B19,"-",I$1),'База выдачи'!$A:$F,6,0)),VLOOKUP(CONCATENATE($B19,"-",I$1),База!$A:$G,6,0)) -> 01:30:27.130 | L19: 9 | M19: =IF(ISERROR(VLOOKUP(CONCATENATE($B19,"-",L$1),База!$A:$G,5,0)),IF(ISERROR(VLOOKUP(CONCATENATE($B19,"-",L$1),'База выдачи'!$A:$F,5,0)),"",VLOOKUP(CONCATENATE($B19,"-",L$1),'База выдачи'!$A:$F,5,0)),VLOOKUP(CONCATENATE($B19,"-",L$1),База!$A:$G,5,0)) -> OK | N19: =IF(ISERROR(VLOOKUP(CONCATENATE($B19,"-",L$1),База!$A:$G,6,0)),IF(ISERROR(VLOOKUP(CONCATENATE($B19,"-",L$1),'База выдачи'!$A:$F,6,0)),"",VLOOKUP(CONCATENATE($B19,"-",L$1),'База выдачи'!$A:$F,6,0)),VLOOKUP(CONCATENATE($B19,"-",L$1),База!$A:$G,6,0)) -> 01:47:03.600 | O19: 7 | P19: =IF(ISERROR(VLOOKUP(CONCATENATE($B19,"-",O$1),База!$A:$G,5,0)),IF(ISERROR(VLOOKUP(CONCATENATE($B19,"-",O$1),'База выдачи'!$A:$F,5,0)),"",VLOOKUP(CONCATENATE($B19,"-",O$1),'База выдачи'!$A:$F,5,0)),VLOOKUP(CONCATENATE($B19,"-",O$1),База!$A:$G,5,0)) -> OK | Q19: =IF(ISERROR(VLOOKUP(CONCATENATE($B19,"-",O$1),База!$A:$G,6,0)),IF(ISERROR(VLOOKUP(CONCATENATE($B19,"-",O$1),'База выдачи'!$A:$F,6,0)),"",VLOOKUP(CONCATENATE($B19,"-",O$1),'База выдачи'!$A:$F,6,0)),VLOOKUP(CONCATENATE($B19,"-",O$1),База!$A:$G,6,0)) -> 02:02:10.440 | R19: 4 | S19: =IF(ISERROR(VLOOKUP(CONCATENATE($B19,"-",R$1),База!$A:$G,5,0)),IF(ISERROR(VLOOKUP(CONCATENATE($B19,"-",R$1),'База выдачи'!$A:$F,5,0)),"",VLOOKUP(CONCATENATE($B19,"-",R$1),'База выдачи'!$A:$F,5,0)),VLOOKUP(CONCATENATE($B19,"-",R$1),База!$A:$G,5,0)) -> OK | T19: =IF(ISERROR(VLOOKUP(CONCATENATE($B19,"-",R$1),База!$A:$G,6,0)),IF(ISERROR(VLOOKUP(CONCATENATE($B19,"-",R$1),'База выдачи'!$A:$F,6,0)),"",VLOOKUP(CONCATENATE($B19,"-",R$1),'База выдачи'!$A:$F,6,0)),VLOOKUP(CONCATENATE($B19,"-",R$1),База!$A:$G,6,0)) -> 02:20:21.240 | U19: 3 | V19: =IF(ISERROR(VLOOKUP(CONCATENATE($B19,"-",U$1),База!$A:$G,5,0)),IF(ISERROR(VLOOKUP(CONCATENATE($B19,"-",U$1),'База выдачи'!$A:$F,5,0)),"",VLOOKUP(CONCATENATE($B19,"-",U$1),'База выдачи'!$A:$F,5,0)),VLOOKUP(CONCATENATE($B19,"-",U$1),База!$A:$G,5,0)) -> OK | W19: =IF(ISERROR(VLOOKUP(CONCATENATE($B19,"-",U$1),База!$A:$G,6,0)),IF(ISERROR(VLOOKUP(CONCATENATE($B19,"-",U$1),'База выдачи'!$A:$F,6,0)),"",VLOOKUP(CONCATENATE($B19,"-",U$1),'База выдачи'!$A:$F,6,0)),VLOOKUP(CONCATENATE($B19,"-",U$1),База!$A:$G,6,0)) -> 02:37:18.410 | X19: 1 | Y19: =IF(ISERROR(VLOOKUP(CONCATENATE($B19,"-",X$1),База!$A:$G,5,0)),IF(ISERROR(VLOOKUP(CONCATENATE($B19,"-",X$1),'База выдачи'!$A:$F,5,0)),"",VLOOKUP(CONCATENATE($B19,"-",X$1),'База выдачи'!$A:$F,5,0)),VLOOKUP(CONCATENATE($B19,"-",X$1),База!$A:$G,5,0)) -> ST | Z19: =IF(ISERROR(VLOOKUP(CONCATENATE($B19,"-",X$1),База!$A:$G,6,0)),IF(ISERROR(VLOOKUP(CONCATENATE($B19,"-",X$1),'База выдачи'!$A:$F,6,0)),"",VLOOKUP(CONCATENATE($B19,"-",X$1),'База выдачи'!$A:$F,6,0)),VLOOKUP(CONCATENATE($B19,"-",X$1),База!$A:$G,6,0)) -> 02:37:20.310 | AA19: 5 | AB19: =IF(ISERROR(VLOOKUP(CONCATENATE($B19,"-",AA$1),База!$A:$G,5,0)),IF(ISERROR(VLOOKUP(CONCATENATE($B19,"-",AA$1),'База выдачи'!$A:$F,5,0)),"",VLOOKUP(CONCATENATE($B19,"-",AA$1),'База выдачи'!$A:$F,5,0)),VLOOKUP(CONCATENATE($B19,"-",AA$1),База!$A:$G,5,0)) ->  | AC19: =IF(ISERROR(VLOOKUP(CONCATENATE($B19,"-",AA$1),База!$A:$G,6,0)),IF(ISERROR(VLOOKUP(CONCATENATE($B19,"-",AA$1),'База выдачи'!$A:$F,6,0)),"",VLOOKUP(CONCATENATE($B19,"-",AA$1),'База выдачи'!$A:$F,6,0)),VLOOKUP(CONCATENATE($B19,"-",AA$1),База!$A:$G,6,0)) ->  | AD19: I | AE19: =IF(ISERROR(VLOOKUP(CONCATENATE($B19,"-",AD$1),База!$A:$G,5,0)),IF(ISERROR(VLOOKUP(CONCATENATE($B19,"-",AD$1),'База выдачи'!$A:$F,5,0)),"",VLOOKUP(CONCATENATE($B19,"-",AD$1),'База выдачи'!$A:$F,5,0)),VLOOKUP(CONCATENATE($B19,"-",AD$1),База!$A:$G,5,0)) ->  | AF19: =IF(ISERROR(VLOOKUP(CONCATENATE($B19,"-",AD$1),База!$A:$G,6,0)),IF(ISERROR(VLOOKUP(CONCATENATE($B19,"-",AD$1),'База выдачи'!$A:$F,6,0)),"",VLOOKUP(CONCATENATE($B19,"-",AD$1),'База выдачи'!$A:$F,6,0)),VLOOKUP(CONCATENATE($B19,"-",AD$1),База!$A:$G,6,0)) ->  | AG19: J | AH19: =IF(ISERROR(VLOOKUP(CONCATENATE($B19,"-",AG$1),База!$A:$G,5,0)),IF(ISERROR(VLOOKUP(CONCATENATE($B19,"-",AG$1),'База выдачи'!$A:$F,5,0)),"",VLOOKUP(CONCATENATE($B19,"-",AG$1),'База выдачи'!$A:$F,5,0)),VLOOKUP(CONCATENATE($B19,"-",AG$1),База!$A:$G,5,0)) ->  | AI19: =IF(ISERROR(VLOOKUP(CONCATENATE($B19,"-",AG$1),База!$A:$G,6,0)),IF(ISERROR(VLOOKUP(CONCATENATE($B19,"-",AG$1),'База выдачи'!$A:$F,6,0)),"",VLOOKUP(CONCATENATE($B19,"-",AG$1),'База выдачи'!$A:$F,6,0)),VLOOKUP(CONCATENATE($B19,"-",AG$1),База!$A:$G,6,0)) ->  | AJ19: K | AK19: =IF(ISERROR(VLOOKUP(CONCATENATE($B19,"-",AJ$1),База!$A:$G,5,0)),IF(ISERROR(VLOOKUP(CONCATENATE($B19,"-",AJ$1),'База выдачи'!$A:$F,5,0)),"",VLOOKUP(CONCATENATE($B19,"-",AJ$1),'База выдачи'!$A:$F,5,0)),VLOOKUP(CONCATENATE($B19,"-",AJ$1),База!$A:$G,5,0)) ->  | AL19: =IF(ISERROR(VLOOKUP(CONCATENATE($B19,"-",AJ$1),База!$A:$G,6,0)),IF(ISERROR(VLOOKUP(CONCATENATE($B19,"-",AJ$1),'База выдачи'!$A:$F,6,0)),"",VLOOKUP(CONCATENATE($B19,"-",AJ$1),'База выдачи'!$A:$F,6,0)),VLOOKUP(CONCATENATE($B19,"-",AJ$1),База!$A:$G,6,0)) ->  | AM19: L | AN19: =IF(ISERROR(VLOOKUP(CONCATENATE($B19,"-",AM$1),База!$A:$G,5,0)),IF(ISERROR(VLOOKUP(CONCATENATE($B19,"-",AM$1),'База выдачи'!$A:$F,5,0)),"",VLOOKUP(CONCATENATE($B19,"-",AM$1),'База выдачи'!$A:$F,5,0)),VLOOKUP(CONCATENATE($B19,"-",AM$1),База!$A:$G,5,0)) ->  | AO19: =IF(ISERROR(VLOOKUP(CONCATENATE($B19,"-",AM$1),База!$A:$G,6,0)),IF(ISERROR(VLOOKUP(CONCATENATE($B19,"-",AM$1),'База выдачи'!$A:$F,6,0)),"",VLOOKUP(CONCATENATE($B19,"-",AM$1),'База выдачи'!$A:$F,6,0)),VLOOKUP(CONCATENATE($B19,"-",AM$1),База!$A:$G,6,0)) ->  | AP19: M | AQ19: =IF(ISERROR(VLOOKUP(CONCATENATE($B19,"-",AP$1),База!$A:$G,5,0)),IF(ISERROR(VLOOKUP(CONCATENATE($B19,"-",AP$1),'База выдачи'!$A:$F,5,0)),"",VLOOKUP(CONCATENATE($B19,"-",AP$1),'База выдачи'!$A:$F,5,0)),VLOOKUP(CONCATENATE($B19,"-",AP$1),База!$A:$G,5,0)) ->  | AR19: =IF(ISERROR(VLOOKUP(CONCATENATE($B19,"-",AP$1),База!$A:$G,6,0)),IF(ISERROR(VLOOKUP(CONCATENATE($B19,"-",AP$1),'База выдачи'!$A:$F,6,0)),"",VLOOKUP(CONCATENATE($B19,"-",AP$1),'База выдачи'!$A:$F,6,0)),VLOOKUP(CONCATENATE($B19,"-",AP$1),База!$A:$G,6,0)) ->  | AS19: N | AT19: =IF(ISERROR(VLOOKUP(CONCATENATE($B19,"-",AS$1),База!$A:$G,5,0)),IF(ISERROR(VLOOKUP(CONCATENATE($B19,"-",AS$1),'База выдачи'!$A:$F,5,0)),"",VLOOKUP(CONCATENATE($B19,"-",AS$1),'База выдачи'!$A:$F,5,0)),VLOOKUP(CONCATENATE($B19,"-",AS$1),База!$A:$G,5,0)) ->  | AU19: =IF(ISERROR(VLOOKUP(CONCATENATE($B19,"-",AS$1),База!$A:$G,6,0)),IF(ISERROR(VLOOKUP(CONCATENATE($B19,"-",AS$1),'База выдачи'!$A:$F,6,0)),"",VLOOKUP(CONCATENATE($B19,"-",AS$1),'База выдачи'!$A:$F,6,0)),VLOOKUP(CONCATENATE($B19,"-",AS$1),База!$A:$G,6,0)) ->  | AX19: =COUNTIFS(База!B:B,Статистика!B19,База!E:E,"OK") -> 6 | AY19: =CM3 -> 02:37:18.410 | AZ19: 9438 | BA19: =COUNTIFS(База!B:B,Статистика!B19,База!E:E,"XXXX") -> 1 | BB19: =IF(AX19+AZ19+BA19=0,ксекундвигре-BD19,ксекундвигре*Статистика!AX19+(ксекундвигре-Статистика!AZ19)+Статистика!BA19) -> 66583 | BC19: 54314 | BD19: 17 | BE19: 19
A20: 18 | B20: =IF(ISERROR(VLOOKUP(A20,Служебный!B:C,2,0)),"",A20&"-"&VLOOKUP(A20,Служебный!B:C,2,0)) -> 18-Юнги | C20: 9 | D20: =IF(ISERROR(VLOOKUP(CONCATENATE($B20,"-",C$1),База!$A:$G,5,0)),IF(ISERROR(VLOOKUP(CONCATENATE($B20,"-",C$1),'База выдачи'!$A:$F,5,0)),"",VLOOKUP(CONCATENATE($B20,"-",C$1),'База выдачи'!$A:$F,5,0)),VLOOKUP(CONCATENATE($B20,"-",C$1),База!$A:$G,5,0)) -> OK | E20: =IF(ISERROR(VLOOKUP(CONCATENATE($B20,"-",C$1),База!$A:$G,6,0)),IF(ISERROR(VLOOKUP(CONCATENATE($B20,"-",C$1),'База выдачи'!$A:$F,6,0)),"",VLOOKUP(CONCATENATE($B20,"-",C$1),'База выдачи'!$A:$F,6,0)),VLOOKUP(CONCATENATE($B20,"-",C$1),База!$A:$G,6,0)) -> 00:24:13.320 | F20: 2 | G20: =IF(ISERROR(VLOOKUP(CONCATENATE($B20,"-",F$1),База!$A:$G,5,0)),IF(ISERROR(VLOOKUP(CONCATENATE($B20,"-",F$1),'База выдачи'!$A:$F,5,0)),"",VLOOKUP(CONCATENATE($B20,"-",F$1),'База выдачи'!$A:$F,5,0)),VLOOKUP(CONCATENATE($B20,"-",F$1),База!$A:$G,5,0)) -> OK | H20: =IF(ISERROR(VLOOKUP(CONCATENATE($B20,"-",F$1),База!$A:$G,6,0)),IF(ISERROR(VLOOKUP(CONCATENATE($B20,"-",F$1),'База выдачи'!$A:$F,6,0)),"",VLOOKUP(CONCATENATE($B20,"-",F$1),'База выдачи'!$A:$F,6,0)),VLOOKUP(CONCATENATE($B20,"-",F$1),База!$A:$G,6,0)) -> 00:59:49.640 | I20: 7 | J20: =IF(ISERROR(VLOOKUP(CONCATENATE($B20,"-",I$1),База!$A:$G,5,0)),IF(ISERROR(VLOOKUP(CONCATENATE($B20,"-",I$1),'База выдачи'!$A:$F,5,0)),"",VLOOKUP(CONCATENATE($B20,"-",I$1),'База выдачи'!$A:$F,5,0)),VLOOKUP(CONCATENATE($B20,"-",I$1),База!$A:$G,5,0)) -> OK | K20: =IF(ISERROR(VLOOKUP(CONCATENATE($B20,"-",I$1),База!$A:$G,6,0)),IF(ISERROR(VLOOKUP(CONCATENATE($B20,"-",I$1),'База выдачи'!$A:$F,6,0)),"",VLOOKUP(CONCATENATE($B20,"-",I$1),'База выдачи'!$A:$F,6,0)),VLOOKUP(CONCATENATE($B20,"-",I$1),База!$A:$G,6,0)) -> 01:19:54.650 | L20: 3 | M20: =IF(ISERROR(VLOOKUP(CONCATENATE($B20,"-",L$1),База!$A:$G,5,0)),IF(ISERROR(VLOOKUP(CONCATENATE($B20,"-",L$1),'База выдачи'!$A:$F,5,0)),"",VLOOKUP(CONCATENATE($B20,"-",L$1),'База выдачи'!$A:$F,5,0)),VLOOKUP(CONCATENATE($B20,"-",L$1),База!$A:$G,5,0)) -> OK | N20: =IF(ISERROR(VLOOKUP(CONCATENATE($B20,"-",L$1),База!$A:$G,6,0)),IF(ISERROR(VLOOKUP(CONCATENATE($B20,"-",L$1),'База выдачи'!$A:$F,6,0)),"",VLOOKUP(CONCATENATE($B20,"-",L$1),'База выдачи'!$A:$F,6,0)),VLOOKUP(CONCATENATE($B20,"-",L$1),База!$A:$G,6,0)) -> 01:37:23.050 | O20: 5 | P20: =IF(ISERROR(VLOOKUP(CONCATENATE($B20,"-",O$1),База!$A:$G,5,0)),IF(ISERROR(VLOOKUP(CONCATENATE($B20,"-",O$1),'База выдачи'!$A:$F,5,0)),"",VLOOKUP(CONCATENATE($B20,"-",O$1),'База выдачи'!$A:$F,5,0)),VLOOKUP(CONCATENATE($B20,"-",O$1),База!$A:$G,5,0)) -> OK | Q20: =IF(ISERROR(VLOOKUP(CONCATENATE($B20,"-",O$1),База!$A:$G,6,0)),IF(ISERROR(VLOOKUP(CONCATENATE($B20,"-",O$1),'База выдачи'!$A:$F,6,0)),"",VLOOKUP(CONCATENATE($B20,"-",O$1),'База выдачи'!$A:$F,6,0)),VLOOKUP(CONCATENATE($B20,"-",O$1),База!$A:$G,6,0)) -> 01:49:14.470 | R20: 1 | S20: =IF(ISERROR(VLOOKUP(CONCATENATE($B20,"-",R$1),База!$A:$G,5,0)),IF(ISERROR(VLOOKUP(CONCATENATE($B20,"-",R$1),'База выдачи'!$A:$F,5,0)),"",VLOOKUP(CONCATENATE($B20,"-",R$1),'База выдачи'!$A:$F,5,0)),VLOOKUP(CONCATENATE($B20,"-",R$1),База!$A:$G,5,0)) -> OK | T20: =IF(ISERROR(VLOOKUP(CONCATENATE($B20,"-",R$1),База!$A:$G,6,0)),IF(ISERROR(VLOOKUP(CONCATENATE($B20,"-",R$1),'База выдачи'!$A:$F,6,0)),"",VLOOKUP(CONCATENATE($B20,"-",R$1),'База выдачи'!$A:$F,6,0)),VLOOKUP(CONCATENATE($B20,"-",R$1),База!$A:$G,6,0)) -> 02:40:27.570 | U20: 6 | V20: =IF(ISERROR(VLOOKUP(CONCATENATE($B20,"-",U$1),База!$A:$G,5,0)),IF(ISERROR(VLOOKUP(CONCATENATE($B20,"-",U$1),'База выдачи'!$A:$F,5,0)),"",VLOOKUP(CONCATENATE($B20,"-",U$1),'База выдачи'!$A:$F,5,0)),VLOOKUP(CONCATENATE($B20,"-",U$1),База!$A:$G,5,0)) -> ST | W20: =IF(ISERROR(VLOOKUP(CONCATENATE($B20,"-",U$1),База!$A:$G,6,0)),IF(ISERROR(VLOOKUP(CONCATENATE($B20,"-",U$1),'База выдачи'!$A:$F,6,0)),"",VLOOKUP(CONCATENATE($B20,"-",U$1),'База выдачи'!$A:$F,6,0)),VLOOKUP(CONCATENATE($B20,"-",U$1),База!$A:$G,6,0)) -> 02:40:29.460 | X20: 4 | Y20: =IF(ISERROR(VLOOKUP(CONCATENATE($B20,"-",X$1),База!$A:$G,5,0)),IF(ISERROR(VLOOKUP(CONCATENATE($B20,"-",X$1),'База выдачи'!$A:$F,5,0)),"",VLOOKUP(CONCATENATE($B20,"-",X$1),'База выдачи'!$A:$F,5,0)),VLOOKUP(CONCATENATE($B20,"-",X$1),База!$A:$G,5,0)) ->  | Z20: =IF(ISERROR(VLOOKUP(CONCATENATE($B20,"-",X$1),База!$A:$G,6,0)),IF(ISERROR(VLOOKUP(CONCATENATE($B20,"-",X$1),'База выдачи'!$A:$F,6,0)),"",VLOOKUP(CONCATENATE($B20,"-",X$1),'База выдачи'!$A:$F,6,0)),VLOOKUP(CONCATENATE($B20,"-",X$1),База!$A:$G,6,0)) ->  | AA20: 8 | AB20: =IF(ISERROR(VLOOKUP(CONCATENATE($B20,"-",AA$1),База!$A:$G,5,0)),IF(ISERROR(VLOOKUP(CONCATENATE($B20,"-",AA$1),'База выдачи'!$A:$F,5,0)),"",VLOOKUP(CONCATENATE($B20,"-",AA$1),'База выдачи'!$A:$F,5,0)),VLOOKUP(CONCATENATE($B20,"-",AA$1),База!$A:$G,5,0)) ->  | AC20: =IF(ISERROR(VLOOKUP(CONCATENATE($B20,"-",AA$1),База!$A:$G,6,0)),IF(ISERROR(VLOOKUP(CONCATENATE($B20,"-",AA$1),'База выдачи'!$A:$F,6,0)),"",VLOOKUP(CONCATENATE($B20,"-",AA$1),'База выдачи'!$A:$F,6,0)),VLOOKUP(CONCATENATE($B20,"-",AA$1),База!$A:$G,6,0)) ->  | AD20: H | AE20: =IF(ISERROR(VLOOKUP(CONCATENATE($B20,"-",AD$1),База!$A:$G,5,0)),IF(ISERROR(VLOOKUP(CONCATENATE($B20,"-",AD$1),'База выдачи'!$A:$F,5,0)),"",VLOOKUP(CONCATENATE($B20,"-",AD$1),'База выдачи'!$A:$F,5,0)),VLOOKUP(CONCATENATE($B20,"-",AD$1),База!$A:$G,5,0)) ->  | AF20: =IF(ISERROR(VLOOKUP(CONCATENATE($B20,"-",AD$1),База!$A:$G,6,0)),IF(ISERROR(VLOOKUP(CONCATENATE($B20,"-",AD$1),'База выдачи'!$A:$F,6,0)),"",VLOOKUP(CONCATENATE($B20,"-",AD$1),'База выдачи'!$A:$F,6,0)),VLOOKUP(CONCATENATE($B20,"-",AD$1),База!$A:$G,6,0)) ->  | AG20: I | AH20: =IF(ISERROR(VLOOKUP(CONCATENATE($B20,"-",AG$1),База!$A:$G,5,0)),IF(ISERROR(VLOOKUP(CONCATENATE($B20,"-",AG$1),'База выдачи'!$A:$F,5,0)),"",VLOOKUP(CONCATENATE($B20,"-",AG$1),'База выдачи'!$A:$F,5,0)),VLOOKUP(CONCATENATE($B20,"-",AG$1),База!$A:$G,5,0)) ->  | AI20: =IF(ISERROR(VLOOKUP(CONCATENATE($B20,"-",AG$1),База!$A:$G,6,0)),IF(ISERROR(VLOOKUP(CONCATENATE($B20,"-",AG$1),'База выдачи'!$A:$F,6,0)),"",VLOOKUP(CONCATENATE($B20,"-",AG$1),'База выдачи'!$A:$F,6,0)),VLOOKUP(CONCATENATE($B20,"-",AG$1),База!$A:$G,6,0)) ->  | AJ20: J | AK20: =IF(ISERROR(VLOOKUP(CONCATENATE($B20,"-",AJ$1),База!$A:$G,5,0)),IF(ISERROR(VLOOKUP(CONCATENATE($B20,"-",AJ$1),'База выдачи'!$A:$F,5,0)),"",VLOOKUP(CONCATENATE($B20,"-",AJ$1),'База выдачи'!$A:$F,5,0)),VLOOKUP(CONCATENATE($B20,"-",AJ$1),База!$A:$G,5,0)) ->  | AL20: =IF(ISERROR(VLOOKUP(CONCATENATE($B20,"-",AJ$1),База!$A:$G,6,0)),IF(ISERROR(VLOOKUP(CONCATENATE($B20,"-",AJ$1),'База выдачи'!$A:$F,6,0)),"",VLOOKUP(CONCATENATE($B20,"-",AJ$1),'База выдачи'!$A:$F,6,0)),VLOOKUP(CONCATENATE($B20,"-",AJ$1),База!$A:$G,6,0)) ->  | AM20: K | AN20: =IF(ISERROR(VLOOKUP(CONCATENATE($B20,"-",AM$1),База!$A:$G,5,0)),IF(ISERROR(VLOOKUP(CONCATENATE($B20,"-",AM$1),'База выдачи'!$A:$F,5,0)),"",VLOOKUP(CONCATENATE($B20,"-",AM$1),'База выдачи'!$A:$F,5,0)),VLOOKUP(CONCATENATE($B20,"-",AM$1),База!$A:$G,5,0)) ->  | AO20: =IF(ISERROR(VLOOKUP(CONCATENATE($B20,"-",AM$1),База!$A:$G,6,0)),IF(ISERROR(VLOOKUP(CONCATENATE($B20,"-",AM$1),'База выдачи'!$A:$F,6,0)),"",VLOOKUP(CONCATENATE($B20,"-",AM$1),'База выдачи'!$A:$F,6,0)),VLOOKUP(CONCATENATE($B20,"-",AM$1),База!$A:$G,6,0)) ->  | AP20: L | AQ20: =IF(ISERROR(VLOOKUP(CONCATENATE($B20,"-",AP$1),База!$A:$G,5,0)),IF(ISERROR(VLOOKUP(CONCATENATE($B20,"-",AP$1),'База выдачи'!$A:$F,5,0)),"",VLOOKUP(CONCATENATE($B20,"-",AP$1),'База выдачи'!$A:$F,5,0)),VLOOKUP(CONCATENATE($B20,"-",AP$1),База!$A:$G,5,0)) ->  | AR20: =IF(ISERROR(VLOOKUP(CONCATENATE($B20,"-",AP$1),База!$A:$G,6,0)),IF(ISERROR(VLOOKUP(CONCATENATE($B20,"-",AP$1),'База выдачи'!$A:$F,6,0)),"",VLOOKUP(CONCATENATE($B20,"-",AP$1),'База выдачи'!$A:$F,6,0)),VLOOKUP(CONCATENATE($B20,"-",AP$1),База!$A:$G,6,0)) ->  | AS20: M | AT20: =IF(ISERROR(VLOOKUP(CONCATENATE($B20,"-",AS$1),База!$A:$G,5,0)),IF(ISERROR(VLOOKUP(CONCATENATE($B20,"-",AS$1),'База выдачи'!$A:$F,5,0)),"",VLOOKUP(CONCATENATE($B20,"-",AS$1),'База выдачи'!$A:$F,5,0)),VLOOKUP(CONCATENATE($B20,"-",AS$1),База!$A:$G,5,0)) ->  | AU20: =IF(ISERROR(VLOOKUP(CONCATENATE($B20,"-",AS$1),База!$A:$G,6,0)),IF(ISERROR(VLOOKUP(CONCATENATE($B20,"-",AS$1),'База выдачи'!$A:$F,6,0)),"",VLOOKUP(CONCATENATE($B20,"-",AS$1),'База выдачи'!$A:$F,6,0)),VLOOKUP(CONCATENATE($B20,"-",AS$1),База!$A:$G,6,0)) ->  | AX20: =COUNTIFS(База!B:B,Статистика!B20,База!E:E,"OK") -> 6 | AY20: =CO3 -> 02:40:27.570 | AZ20: 9628 | BA20: =COUNTIFS(База!B:B,Статистика!B20,База!E:E,"XXXX") -> 0 | BB20: =IF(AX20+AZ20+BA20=0,ксекундвигре-BD20,ксекундвигре*Статистика!AX20+(ксекундвигре-Статистика!AZ20)+Статистика!BA20) -> 66392 | BC20: 54296 | BD20: 18 | BE20: 16
A21: 19 | B21: =IF(ISERROR(VLOOKUP(A21,Служебный!B:C,2,0)),"",A21&"-"&VLOOKUP(A21,Служебный!B:C,2,0)) -> 19-Турбо-Зиппер | C21: 1 | D21: =IF(ISERROR(VLOOKUP(CONCATENATE($B21,"-",C$1),База!$A:$G,5,0)),IF(ISERROR(VLOOKUP(CONCATENATE($B21,"-",C$1),'База выдачи'!$A:$F,5,0)),"",VLOOKUP(CONCATENATE($B21,"-",C$1),'База выдачи'!$A:$F,5,0)),VLOOKUP(CONCATENATE($B21,"-",C$1),База!$A:$G,5,0)) -> XXXX | E21: =IF(ISERROR(VLOOKUP(CONCATENATE($B21,"-",C$1),База!$A:$G,6,0)),IF(ISERROR(VLOOKUP(CONCATENATE($B21,"-",C$1),'База выдачи'!$A:$F,6,0)),"",VLOOKUP(CONCATENATE($B21,"-",C$1),'База выдачи'!$A:$F,6,0)),VLOOKUP(CONCATENATE($B21,"-",C$1),База!$A:$G,6,0)) -> 01:10:04.500 | F21: 5 | G21: =IF(ISERROR(VLOOKUP(CONCATENATE($B21,"-",F$1),База!$A:$G,5,0)),IF(ISERROR(VLOOKUP(CONCATENATE($B21,"-",F$1),'База выдачи'!$A:$F,5,0)),"",VLOOKUP(CONCATENATE($B21,"-",F$1),'База выдачи'!$A:$F,5,0)),VLOOKUP(CONCATENATE($B21,"-",F$1),База!$A:$G,5,0)) -> OK | H21: =IF(ISERROR(VLOOKUP(CONCATENATE($B21,"-",F$1),База!$A:$G,6,0)),IF(ISERROR(VLOOKUP(CONCATENATE($B21,"-",F$1),'База выдачи'!$A:$F,6,0)),"",VLOOKUP(CONCATENATE($B21,"-",F$1),'База выдачи'!$A:$F,6,0)),VLOOKUP(CONCATENATE($B21,"-",F$1),База!$A:$G,6,0)) -> 01:48:48.590 | I21: 2 | J21: =IF(ISERROR(VLOOKUP(CONCATENATE($B21,"-",I$1),База!$A:$G,5,0)),IF(ISERROR(VLOOKUP(CONCATENATE($B21,"-",I$1),'База выдачи'!$A:$F,5,0)),"",VLOOKUP(CONCATENATE($B21,"-",I$1),'База выдачи'!$A:$F,5,0)),VLOOKUP(CONCATENATE($B21,"-",I$1),База!$A:$G,5,0)) -> OK | K21: =IF(ISERROR(VLOOKUP(CONCATENATE($B21,"-",I$1),База!$A:$G,6,0)),IF(ISERROR(VLOOKUP(CONCATENATE($B21,"-",I$1),'База выдачи'!$A:$F,6,0)),"",VLOOKUP(CONCATENATE($B21,"-",I$1),'База выдачи'!$A:$F,6,0)),VLOOKUP(CONCATENATE($B21,"-",I$1),База!$A:$G,6,0)) -> 02:06:32.660 | L21: 9 | M21: =IF(ISERROR(VLOOKUP(CONCATENATE($B21,"-",L$1),База!$A:$G,5,0)),IF(ISERROR(VLOOKUP(CONCATENATE($B21,"-",L$1),'База выдачи'!$A:$F,5,0)),"",VLOOKUP(CONCATENATE($B21,"-",L$1),'База выдачи'!$A:$F,5,0)),VLOOKUP(CONCATENATE($B21,"-",L$1),База!$A:$G,5,0)) -> OK | N21: =IF(ISERROR(VLOOKUP(CONCATENATE($B21,"-",L$1),База!$A:$G,6,0)),IF(ISERROR(VLOOKUP(CONCATENATE($B21,"-",L$1),'База выдачи'!$A:$F,6,0)),"",VLOOKUP(CONCATENATE($B21,"-",L$1),'База выдачи'!$A:$F,6,0)),VLOOKUP(CONCATENATE($B21,"-",L$1),База!$A:$G,6,0)) -> 02:38:01.390 | O21: 8 | P21: =IF(ISERROR(VLOOKUP(CONCATENATE($B21,"-",O$1),База!$A:$G,5,0)),IF(ISERROR(VLOOKUP(CONCATENATE($B21,"-",O$1),'База выдачи'!$A:$F,5,0)),"",VLOOKUP(CONCATENATE($B21,"-",O$1),'База выдачи'!$A:$F,5,0)),VLOOKUP(CONCATENATE($B21,"-",O$1),База!$A:$G,5,0)) -> OK | Q21: =IF(ISERROR(VLOOKUP(CONCATENATE($B21,"-",O$1),База!$A:$G,6,0)),IF(ISERROR(VLOOKUP(CONCATENATE($B21,"-",O$1),'База выдачи'!$A:$F,6,0)),"",VLOOKUP(CONCATENATE($B21,"-",O$1),'База выдачи'!$A:$F,6,0)),VLOOKUP(CONCATENATE($B21,"-",O$1),База!$A:$G,6,0)) -> 02:46:06.580 | R21: 3 | S21: =IF(ISERROR(VLOOKUP(CONCATENATE($B21,"-",R$1),База!$A:$G,5,0)),IF(ISERROR(VLOOKUP(CONCATENATE($B21,"-",R$1),'База выдачи'!$A:$F,5,0)),"",VLOOKUP(CONCATENATE($B21,"-",R$1),'База выдачи'!$A:$F,5,0)),VLOOKUP(CONCATENATE($B21,"-",R$1),База!$A:$G,5,0)) -> OK | T21: =IF(ISERROR(VLOOKUP(CONCATENATE($B21,"-",R$1),База!$A:$G,6,0)),IF(ISERROR(VLOOKUP(CONCATENATE($B21,"-",R$1),'База выдачи'!$A:$F,6,0)),"",VLOOKUP(CONCATENATE($B21,"-",R$1),'База выдачи'!$A:$F,6,0)),VLOOKUP(CONCATENATE($B21,"-",R$1),База!$A:$G,6,0)) -> 03:00:46.620 | U21: 4 | V21: =IF(ISERROR(VLOOKUP(CONCATENATE($B21,"-",U$1),База!$A:$G,5,0)),IF(ISERROR(VLOOKUP(CONCATENATE($B21,"-",U$1),'База выдачи'!$A:$F,5,0)),"",VLOOKUP(CONCATENATE($B21,"-",U$1),'База выдачи'!$A:$F,5,0)),VLOOKUP(CONCATENATE($B21,"-",U$1),База!$A:$G,5,0)) -> ST | W21: =IF(ISERROR(VLOOKUP(CONCATENATE($B21,"-",U$1),База!$A:$G,6,0)),IF(ISERROR(VLOOKUP(CONCATENATE($B21,"-",U$1),'База выдачи'!$A:$F,6,0)),"",VLOOKUP(CONCATENATE($B21,"-",U$1),'База выдачи'!$A:$F,6,0)),VLOOKUP(CONCATENATE($B21,"-",U$1),База!$A:$G,6,0)) -> 03:00:48.540 | X21: 6 | Y21: =IF(ISERROR(VLOOKUP(CONCATENATE($B21,"-",X$1),База!$A:$G,5,0)),IF(ISERROR(VLOOKUP(CONCATENATE($B21,"-",X$1),'База выдачи'!$A:$F,5,0)),"",VLOOKUP(CONCATENATE($B21,"-",X$1),'База выдачи'!$A:$F,5,0)),VLOOKUP(CONCATENATE($B21,"-",X$1),База!$A:$G,5,0)) ->  | Z21: =IF(ISERROR(VLOOKUP(CONCATENATE($B21,"-",X$1),База!$A:$G,6,0)),IF(ISERROR(VLOOKUP(CONCATENATE($B21,"-",X$1),'База выдачи'!$A:$F,6,0)),"",VLOOKUP(CONCATENATE($B21,"-",X$1),'База выдачи'!$A:$F,6,0)),VLOOKUP(CONCATENATE($B21,"-",X$1),База!$A:$G,6,0)) ->  | AA21: 7 | AB21: =IF(ISERROR(VLOOKUP(CONCATENATE($B21,"-",AA$1),База!$A:$G,5,0)),IF(ISERROR(VLOOKUP(CONCATENATE($B21,"-",AA$1),'База выдачи'!$A:$F,5,0)),"",VLOOKUP(CONCATENATE($B21,"-",AA$1),'База выдачи'!$A:$F,5,0)),VLOOKUP(CONCATENATE($B21,"-",AA$1),База!$A:$G,5,0)) ->  | AC21: =IF(ISERROR(VLOOKUP(CONCATENATE($B21,"-",AA$1),База!$A:$G,6,0)),IF(ISERROR(VLOOKUP(CONCATENATE($B21,"-",AA$1),'База выдачи'!$A:$F,6,0)),"",VLOOKUP(CONCATENATE($B21,"-",AA$1),'База выдачи'!$A:$F,6,0)),VLOOKUP(CONCATENATE($B21,"-",AA$1),База!$A:$G,6,0)) ->  | AD21: G | AE21: =IF(ISERROR(VLOOKUP(CONCATENATE($B21,"-",AD$1),База!$A:$G,5,0)),IF(ISERROR(VLOOKUP(CONCATENATE($B21,"-",AD$1),'База выдачи'!$A:$F,5,0)),"",VLOOKUP(CONCATENATE($B21,"-",AD$1),'База выдачи'!$A:$F,5,0)),VLOOKUP(CONCATENATE($B21,"-",AD$1),База!$A:$G,5,0)) ->  | AF21: =IF(ISERROR(VLOOKUP(CONCATENATE($B21,"-",AD$1),База!$A:$G,6,0)),IF(ISERROR(VLOOKUP(CONCATENATE($B21,"-",AD$1),'База выдачи'!$A:$F,6,0)),"",VLOOKUP(CONCATENATE($B21,"-",AD$1),'База выдачи'!$A:$F,6,0)),VLOOKUP(CONCATENATE($B21,"-",AD$1),База!$A:$G,6,0)) ->  | AG21: H | AH21: =IF(ISERROR(VLOOKUP(CONCATENATE($B21,"-",AG$1),База!$A:$G,5,0)),IF(ISERROR(VLOOKUP(CONCATENATE($B21,"-",AG$1),'База выдачи'!$A:$F,5,0)),"",VLOOKUP(CONCATENATE($B21,"-",AG$1),'База выдачи'!$A:$F,5,0)),VLOOKUP(CONCATENATE($B21,"-",AG$1),База!$A:$G,5,0)) ->  | AI21: =IF(ISERROR(VLOOKUP(CONCATENATE($B21,"-",AG$1),База!$A:$G,6,0)),IF(ISERROR(VLOOKUP(CONCATENATE($B21,"-",AG$1),'База выдачи'!$A:$F,6,0)),"",VLOOKUP(CONCATENATE($B21,"-",AG$1),'База выдачи'!$A:$F,6,0)),VLOOKUP(CONCATENATE($B21,"-",AG$1),База!$A:$G,6,0)) ->  | AJ21: I | AK21: =IF(ISERROR(VLOOKUP(CONCATENATE($B21,"-",AJ$1),База!$A:$G,5,0)),IF(ISERROR(VLOOKUP(CONCATENATE($B21,"-",AJ$1),'База выдачи'!$A:$F,5,0)),"",VLOOKUP(CONCATENATE($B21,"-",AJ$1),'База выдачи'!$A:$F,5,0)),VLOOKUP(CONCATENATE($B21,"-",AJ$1),База!$A:$G,5,0)) ->  | AL21: =IF(ISERROR(VLOOKUP(CONCATENATE($B21,"-",AJ$1),База!$A:$G,6,0)),IF(ISERROR(VLOOKUP(CONCATENATE($B21,"-",AJ$1),'База выдачи'!$A:$F,6,0)),"",VLOOKUP(CONCATENATE($B21,"-",AJ$1),'База выдачи'!$A:$F,6,0)),VLOOKUP(CONCATENATE($B21,"-",AJ$1),База!$A:$G,6,0)) ->  | AM21: J | AN21: =IF(ISERROR(VLOOKUP(CONCATENATE($B21,"-",AM$1),База!$A:$G,5,0)),IF(ISERROR(VLOOKUP(CONCATENATE($B21,"-",AM$1),'База выдачи'!$A:$F,5,0)),"",VLOOKUP(CONCATENATE($B21,"-",AM$1),'База выдачи'!$A:$F,5,0)),VLOOKUP(CONCATENATE($B21,"-",AM$1),База!$A:$G,5,0)) ->  | AO21: =IF(ISERROR(VLOOKUP(CONCATENATE($B21,"-",AM$1),База!$A:$G,6,0)),IF(ISERROR(VLOOKUP(CONCATENATE($B21,"-",AM$1),'База выдачи'!$A:$F,6,0)),"",VLOOKUP(CONCATENATE($B21,"-",AM$1),'База выдачи'!$A:$F,6,0)),VLOOKUP(CONCATENATE($B21,"-",AM$1),База!$A:$G,6,0)) ->  | AP21: K | AQ21: =IF(ISERROR(VLOOKUP(CONCATENATE($B21,"-",AP$1),База!$A:$G,5,0)),IF(ISERROR(VLOOKUP(CONCATENATE($B21,"-",AP$1),'База выдачи'!$A:$F,5,0)),"",VLOOKUP(CONCATENATE($B21,"-",AP$1),'База выдачи'!$A:$F,5,0)),VLOOKUP(CONCATENATE($B21,"-",AP$1),База!$A:$G,5,0)) ->  | AR21: =IF(ISERROR(VLOOKUP(CONCATENATE($B21,"-",AP$1),База!$A:$G,6,0)),IF(ISERROR(VLOOKUP(CONCATENATE($B21,"-",AP$1),'База выдачи'!$A:$F,6,0)),"",VLOOKUP(CONCATENATE($B21,"-",AP$1),'База выдачи'!$A:$F,6,0)),VLOOKUP(CONCATENATE($B21,"-",AP$1),База!$A:$G,6,0)) ->  | AS21: L | AT21: =IF(ISERROR(VLOOKUP(CONCATENATE($B21,"-",AS$1),База!$A:$G,5,0)),IF(ISERROR(VLOOKUP(CONCATENATE($B21,"-",AS$1),'База выдачи'!$A:$F,5,0)),"",VLOOKUP(CONCATENATE($B21,"-",AS$1),'База выдачи'!$A:$F,5,0)),VLOOKUP(CONCATENATE($B21,"-",AS$1),База!$A:$G,5,0)) ->  | AU21: =IF(ISERROR(VLOOKUP(CONCATENATE($B21,"-",AS$1),База!$A:$G,6,0)),IF(ISERROR(VLOOKUP(CONCATENATE($B21,"-",AS$1),'База выдачи'!$A:$F,6,0)),"",VLOOKUP(CONCATENATE($B21,"-",AS$1),'База выдачи'!$A:$F,6,0)),VLOOKUP(CONCATENATE($B21,"-",AS$1),База!$A:$G,6,0)) ->  | AX21: =COUNTIFS(База!B:B,Статистика!B21,База!E:E,"OK") -> 5 | AY21: =CQ3 -> 03:00:46.620 | AZ21: 10847 | BA21: =COUNTIFS(База!B:B,Статистика!B21,База!E:E,"XXXX") -> 1 | BB21: =IF(AX21+AZ21+BA21=0,ксекундвигре-BD21,ксекундвигре*Статистика!AX21+(ксекундвигре-Статистика!AZ21)+Статистика!BA21) -> 54314 | BC21: 54223 | BD21: 19 | BE21: 6
A22: 20 | B22: =IF(ISERROR(VLOOKUP(A22,Служебный!B:C,2,0)),"",A22&"-"&VLOOKUP(A22,Служебный!B:C,2,0)) -> 20-Дети шпионов | C22: 2 | D22: =IF(ISERROR(VLOOKUP(CONCATENATE($B22,"-",C$1),База!$A:$G,5,0)),IF(ISERROR(VLOOKUP(CONCATENATE($B22,"-",C$1),'База выдачи'!$A:$F,5,0)),"",VLOOKUP(CONCATENATE($B22,"-",C$1),'База выдачи'!$A:$F,5,0)),VLOOKUP(CONCATENATE($B22,"-",C$1),База!$A:$G,5,0)) -> OK | E22: =IF(ISERROR(VLOOKUP(CONCATENATE($B22,"-",C$1),База!$A:$G,6,0)),IF(ISERROR(VLOOKUP(CONCATENATE($B22,"-",C$1),'База выдачи'!$A:$F,6,0)),"",VLOOKUP(CONCATENATE($B22,"-",C$1),'База выдачи'!$A:$F,6,0)),VLOOKUP(CONCATENATE($B22,"-",C$1),База!$A:$G,6,0)) -> 00:44:09.730 | F22: 6 | G22: =IF(ISERROR(VLOOKUP(CONCATENATE($B22,"-",F$1),База!$A:$G,5,0)),IF(ISERROR(VLOOKUP(CONCATENATE($B22,"-",F$1),'База выдачи'!$A:$F,5,0)),"",VLOOKUP(CONCATENATE($B22,"-",F$1),'База выдачи'!$A:$F,5,0)),VLOOKUP(CONCATENATE($B22,"-",F$1),База!$A:$G,5,0)) -> XXXX | H22: =IF(ISERROR(VLOOKUP(CONCATENATE($B22,"-",F$1),База!$A:$G,6,0)),IF(ISERROR(VLOOKUP(CONCATENATE($B22,"-",F$1),'База выдачи'!$A:$F,6,0)),"",VLOOKUP(CONCATENATE($B22,"-",F$1),'База выдачи'!$A:$F,6,0)),VLOOKUP(CONCATENATE($B22,"-",F$1),База!$A:$G,6,0)) -> 01:30:55.030 | I22: 3 | J22: =IF(ISERROR(VLOOKUP(CONCATENATE($B22,"-",I$1),База!$A:$G,5,0)),IF(ISERROR(VLOOKUP(CONCATENATE($B22,"-",I$1),'База выдачи'!$A:$F,5,0)),"",VLOOKUP(CONCATENATE($B22,"-",I$1),'База выдачи'!$A:$F,5,0)),VLOOKUP(CONCATENATE($B22,"-",I$1),База!$A:$G,5,0)) -> OK | K22: =IF(ISERROR(VLOOKUP(CONCATENATE($B22,"-",I$1),База!$A:$G,6,0)),IF(ISERROR(VLOOKUP(CONCATENATE($B22,"-",I$1),'База выдачи'!$A:$F,6,0)),"",VLOOKUP(CONCATENATE($B22,"-",I$1),'База выдачи'!$A:$F,6,0)),VLOOKUP(CONCATENATE($B22,"-",I$1),База!$A:$G,6,0)) -> 01:43:24.760 | L22: 8 | M22: =IF(ISERROR(VLOOKUP(CONCATENATE($B22,"-",L$1),База!$A:$G,5,0)),IF(ISERROR(VLOOKUP(CONCATENATE($B22,"-",L$1),'База выдачи'!$A:$F,5,0)),"",VLOOKUP(CONCATENATE($B22,"-",L$1),'База выдачи'!$A:$F,5,0)),VLOOKUP(CONCATENATE($B22,"-",L$1),База!$A:$G,5,0)) -> OK | N22: =IF(ISERROR(VLOOKUP(CONCATENATE($B22,"-",L$1),База!$A:$G,6,0)),IF(ISERROR(VLOOKUP(CONCATENATE($B22,"-",L$1),'База выдачи'!$A:$F,6,0)),"",VLOOKUP(CONCATENATE($B22,"-",L$1),'База выдачи'!$A:$F,6,0)),VLOOKUP(CONCATENATE($B22,"-",L$1),База!$A:$G,6,0)) -> 02:09:06.400 | O22: 1 | P22: =IF(ISERROR(VLOOKUP(CONCATENATE($B22,"-",O$1),База!$A:$G,5,0)),IF(ISERROR(VLOOKUP(CONCATENATE($B22,"-",O$1),'База выдачи'!$A:$F,5,0)),"",VLOOKUP(CONCATENATE($B22,"-",O$1),'База выдачи'!$A:$F,5,0)),VLOOKUP(CONCATENATE($B22,"-",O$1),База!$A:$G,5,0)) -> OK | Q22: =IF(ISERROR(VLOOKUP(CONCATENATE($B22,"-",O$1),База!$A:$G,6,0)),IF(ISERROR(VLOOKUP(CONCATENATE($B22,"-",O$1),'База выдачи'!$A:$F,6,0)),"",VLOOKUP(CONCATENATE($B22,"-",O$1),'База выдачи'!$A:$F,6,0)),VLOOKUP(CONCATENATE($B22,"-",O$1),База!$A:$G,6,0)) -> 02:39:58.920 | R22: 4 | S22: =IF(ISERROR(VLOOKUP(CONCATENATE($B22,"-",R$1),База!$A:$G,5,0)),IF(ISERROR(VLOOKUP(CONCATENATE($B22,"-",R$1),'База выдачи'!$A:$F,5,0)),"",VLOOKUP(CONCATENATE($B22,"-",R$1),'База выдачи'!$A:$F,5,0)),VLOOKUP(CONCATENATE($B22,"-",R$1),База!$A:$G,5,0)) -> ST | T22: =IF(ISERROR(VLOOKUP(CONCATENATE($B22,"-",R$1),База!$A:$G,6,0)),IF(ISERROR(VLOOKUP(CONCATENATE($B22,"-",R$1),'База выдачи'!$A:$F,6,0)),"",VLOOKUP(CONCATENATE($B22,"-",R$1),'База выдачи'!$A:$F,6,0)),VLOOKUP(CONCATENATE($B22,"-",R$1),База!$A:$G,6,0)) -> 02:40:00.820 | U22: 5 | V22: =IF(ISERROR(VLOOKUP(CONCATENATE($B22,"-",U$1),База!$A:$G,5,0)),IF(ISERROR(VLOOKUP(CONCATENATE($B22,"-",U$1),'База выдачи'!$A:$F,5,0)),"",VLOOKUP(CONCATENATE($B22,"-",U$1),'База выдачи'!$A:$F,5,0)),VLOOKUP(CONCATENATE($B22,"-",U$1),База!$A:$G,5,0)) ->  | W22: =IF(ISERROR(VLOOKUP(CONCATENATE($B22,"-",U$1),База!$A:$G,6,0)),IF(ISERROR(VLOOKUP(CONCATENATE($B22,"-",U$1),'База выдачи'!$A:$F,6,0)),"",VLOOKUP(CONCATENATE($B22,"-",U$1),'База выдачи'!$A:$F,6,0)),VLOOKUP(CONCATENATE($B22,"-",U$1),База!$A:$G,6,0)) ->  | X22: 7 | Y22: =IF(ISERROR(VLOOKUP(CONCATENATE($B22,"-",X$1),База!$A:$G,5,0)),IF(ISERROR(VLOOKUP(CONCATENATE($B22,"-",X$1),'База выдачи'!$A:$F,5,0)),"",VLOOKUP(CONCATENATE($B22,"-",X$1),'База выдачи'!$A:$F,5,0)),VLOOKUP(CONCATENATE($B22,"-",X$1),База!$A:$G,5,0)) ->  | Z22: =IF(ISERROR(VLOOKUP(CONCATENATE($B22,"-",X$1),База!$A:$G,6,0)),IF(ISERROR(VLOOKUP(CONCATENATE($B22,"-",X$1),'База выдачи'!$A:$F,6,0)),"",VLOOKUP(CONCATENATE($B22,"-",X$1),'База выдачи'!$A:$F,6,0)),VLOOKUP(CONCATENATE($B22,"-",X$1),База!$A:$G,6,0)) ->  | AA22: 9 | AB22: =IF(ISERROR(VLOOKUP(CONCATENATE($B22,"-",AA$1),База!$A:$G,5,0)),IF(ISERROR(VLOOKUP(CONCATENATE($B22,"-",AA$1),'База выдачи'!$A:$F,5,0)),"",VLOOKUP(CONCATENATE($B22,"-",AA$1),'База выдачи'!$A:$F,5,0)),VLOOKUP(CONCATENATE($B22,"-",AA$1),База!$A:$G,5,0)) ->  | AC22: =IF(ISERROR(VLOOKUP(CONCATENATE($B22,"-",AA$1),База!$A:$G,6,0)),IF(ISERROR(VLOOKUP(CONCATENATE($B22,"-",AA$1),'База выдачи'!$A:$F,6,0)),"",VLOOKUP(CONCATENATE($B22,"-",AA$1),'База выдачи'!$A:$F,6,0)),VLOOKUP(CONCATENATE($B22,"-",AA$1),База!$A:$G,6,0)) ->  | AD22: F | AE22: =IF(ISERROR(VLOOKUP(CONCATENATE($B22,"-",AD$1),База!$A:$G,5,0)),IF(ISERROR(VLOOKUP(CONCATENATE($B22,"-",AD$1),'База выдачи'!$A:$F,5,0)),"",VLOOKUP(CONCATENATE($B22,"-",AD$1),'База выдачи'!$A:$F,5,0)),VLOOKUP(CONCATENATE($B22,"-",AD$1),База!$A:$G,5,0)) ->  | AF22: =IF(ISERROR(VLOOKUP(CONCATENATE($B22,"-",AD$1),База!$A:$G,6,0)),IF(ISERROR(VLOOKUP(CONCATENATE($B22,"-",AD$1),'База выдачи'!$A:$F,6,0)),"",VLOOKUP(CONCATENATE($B22,"-",AD$1),'База выдачи'!$A:$F,6,0)),VLOOKUP(CONCATENATE($B22,"-",AD$1),База!$A:$G,6,0)) ->  | AG22: G | AH22: =IF(ISERROR(VLOOKUP(CONCATENATE($B22,"-",AG$1),База!$A:$G,5,0)),IF(ISERROR(VLOOKUP(CONCATENATE($B22,"-",AG$1),'База выдачи'!$A:$F,5,0)),"",VLOOKUP(CONCATENATE($B22,"-",AG$1),'База выдачи'!$A:$F,5,0)),VLOOKUP(CONCATENATE($B22,"-",AG$1),База!$A:$G,5,0)) ->  | AI22: =IF(ISERROR(VLOOKUP(CONCATENATE($B22,"-",AG$1),База!$A:$G,6,0)),IF(ISERROR(VLOOKUP(CONCATENATE($B22,"-",AG$1),'База выдачи'!$A:$F,6,0)),"",VLOOKUP(CONCATENATE($B22,"-",AG$1),'База выдачи'!$A:$F,6,0)),VLOOKUP(CONCATENATE($B22,"-",AG$1),База!$A:$G,6,0)) ->  | AJ22: H | AK22: =IF(ISERROR(VLOOKUP(CONCATENATE($B22,"-",AJ$1),База!$A:$G,5,0)),IF(ISERROR(VLOOKUP(CONCATENATE($B22,"-",AJ$1),'База выдачи'!$A:$F,5,0)),"",VLOOKUP(CONCATENATE($B22,"-",AJ$1),'База выдачи'!$A:$F,5,0)),VLOOKUP(CONCATENATE($B22,"-",AJ$1),База!$A:$G,5,0)) ->  | AL22: =IF(ISERROR(VLOOKUP(CONCATENATE($B22,"-",AJ$1),База!$A:$G,6,0)),IF(ISERROR(VLOOKUP(CONCATENATE($B22,"-",AJ$1),'База выдачи'!$A:$F,6,0)),"",VLOOKUP(CONCATENATE($B22,"-",AJ$1),'База выдачи'!$A:$F,6,0)),VLOOKUP(CONCATENATE($B22,"-",AJ$1),База!$A:$G,6,0)) ->  | AM22: I | AN22: =IF(ISERROR(VLOOKUP(CONCATENATE($B22,"-",AM$1),База!$A:$G,5,0)),IF(ISERROR(VLOOKUP(CONCATENATE($B22,"-",AM$1),'База выдачи'!$A:$F,5,0)),"",VLOOKUP(CONCATENATE($B22,"-",AM$1),'База выдачи'!$A:$F,5,0)),VLOOKUP(CONCATENATE($B22,"-",AM$1),База!$A:$G,5,0)) ->  | AO22: =IF(ISERROR(VLOOKUP(CONCATENATE($B22,"-",AM$1),База!$A:$G,6,0)),IF(ISERROR(VLOOKUP(CONCATENATE($B22,"-",AM$1),'База выдачи'!$A:$F,6,0)),"",VLOOKUP(CONCATENATE($B22,"-",AM$1),'База выдачи'!$A:$F,6,0)),VLOOKUP(CONCATENATE($B22,"-",AM$1),База!$A:$G,6,0)) ->  | AP22: J | AQ22: =IF(ISERROR(VLOOKUP(CONCATENATE($B22,"-",AP$1),База!$A:$G,5,0)),IF(ISERROR(VLOOKUP(CONCATENATE($B22,"-",AP$1),'База выдачи'!$A:$F,5,0)),"",VLOOKUP(CONCATENATE($B22,"-",AP$1),'База выдачи'!$A:$F,5,0)),VLOOKUP(CONCATENATE($B22,"-",AP$1),База!$A:$G,5,0)) ->  | AR22: =IF(ISERROR(VLOOKUP(CONCATENATE($B22,"-",AP$1),База!$A:$G,6,0)),IF(ISERROR(VLOOKUP(CONCATENATE($B22,"-",AP$1),'База выдачи'!$A:$F,6,0)),"",VLOOKUP(CONCATENATE($B22,"-",AP$1),'База выдачи'!$A:$F,6,0)),VLOOKUP(CONCATENATE($B22,"-",AP$1),База!$A:$G,6,0)) ->  | AS22: K | AT22: =IF(ISERROR(VLOOKUP(CONCATENATE($B22,"-",AS$1),База!$A:$G,5,0)),IF(ISERROR(VLOOKUP(CONCATENATE($B22,"-",AS$1),'База выдачи'!$A:$F,5,0)),"",VLOOKUP(CONCATENATE($B22,"-",AS$1),'База выдачи'!$A:$F,5,0)),VLOOKUP(CONCATENATE($B22,"-",AS$1),База!$A:$G,5,0)) ->  | AU22: =IF(ISERROR(VLOOKUP(CONCATENATE($B22,"-",AS$1),База!$A:$G,6,0)),IF(ISERROR(VLOOKUP(CONCATENATE($B22,"-",AS$1),'База выдачи'!$A:$F,6,0)),"",VLOOKUP(CONCATENATE($B22,"-",AS$1),'База выдачи'!$A:$F,6,0)),VLOOKUP(CONCATENATE($B22,"-",AS$1),База!$A:$G,6,0)) ->  | AX22: =COUNTIFS(База!B:B,Статистика!B22,База!E:E,"OK") -> 4 | AY22: =CS3 -> 02:39:58.920 | AZ22: 9599 | BA22: =COUNTIFS(База!B:B,Статистика!B22,База!E:E,"XXXX") -> 1 | BB22: =IF(AX22+AZ22+BA22=0,ксекундвигре-BD22,ксекундвигре*Статистика!AX22+(ксекундвигре-Статистика!AZ22)+Статистика!BA22) -> 44702 | BC22: 54165 | BD22: 20 | BE22: 12
A23: 21 | B23: =IF(ISERROR(VLOOKUP(A23,Служебный!B:C,2,0)),"",A23&"-"&VLOOKUP(A23,Служебный!B:C,2,0)) -> 21-Партизаны Германа | C23: 3 | D23: =IF(ISERROR(VLOOKUP(CONCATENATE($B23,"-",C$1),База!$A:$G,5,0)),IF(ISERROR(VLOOKUP(CONCATENATE($B23,"-",C$1),'База выдачи'!$A:$F,5,0)),"",VLOOKUP(CONCATENATE($B23,"-",C$1),'База выдачи'!$A:$F,5,0)),VLOOKUP(CONCATENATE($B23,"-",C$1),База!$A:$G,5,0)) -> OK | E23: =IF(ISERROR(VLOOKUP(CONCATENATE($B23,"-",C$1),База!$A:$G,6,0)),IF(ISERROR(VLOOKUP(CONCATENATE($B23,"-",C$1),'База выдачи'!$A:$F,6,0)),"",VLOOKUP(CONCATENATE($B23,"-",C$1),'База выдачи'!$A:$F,6,0)),VLOOKUP(CONCATENATE($B23,"-",C$1),База!$A:$G,6,0)) -> 01:24:44.360 | F23: 1 | G23: =IF(ISERROR(VLOOKUP(CONCATENATE($B23,"-",F$1),База!$A:$G,5,0)),IF(ISERROR(VLOOKUP(CONCATENATE($B23,"-",F$1),'База выдачи'!$A:$F,5,0)),"",VLOOKUP(CONCATENATE($B23,"-",F$1),'База выдачи'!$A:$F,5,0)),VLOOKUP(CONCATENATE($B23,"-",F$1),База!$A:$G,5,0)) -> XXXX | H23: =IF(ISERROR(VLOOKUP(CONCATENATE($B23,"-",F$1),База!$A:$G,6,0)),IF(ISERROR(VLOOKUP(CONCATENATE($B23,"-",F$1),'База выдачи'!$A:$F,6,0)),"",VLOOKUP(CONCATENATE($B23,"-",F$1),'База выдачи'!$A:$F,6,0)),VLOOKUP(CONCATENATE($B23,"-",F$1),База!$A:$G,6,0)) -> 01:26:57.640 | I23: 8 | J23: =IF(ISERROR(VLOOKUP(CONCATENATE($B23,"-",I$1),База!$A:$G,5,0)),IF(ISERROR(VLOOKUP(CONCATENATE($B23,"-",I$1),'База выдачи'!$A:$F,5,0)),"",VLOOKUP(CONCATENATE($B23,"-",I$1),'База выдачи'!$A:$F,5,0)),VLOOKUP(CONCATENATE($B23,"-",I$1),База!$A:$G,5,0)) -> OK | K23: =IF(ISERROR(VLOOKUP(CONCATENATE($B23,"-",I$1),База!$A:$G,6,0)),IF(ISERROR(VLOOKUP(CONCATENATE($B23,"-",I$1),'База выдачи'!$A:$F,6,0)),"",VLOOKUP(CONCATENATE($B23,"-",I$1),'База выдачи'!$A:$F,6,0)),VLOOKUP(CONCATENATE($B23,"-",I$1),База!$A:$G,6,0)) -> 01:59:36.190 | L23: 4 | M23: =IF(ISERROR(VLOOKUP(CONCATENATE($B23,"-",L$1),База!$A:$G,5,0)),IF(ISERROR(VLOOKUP(CONCATENATE($B23,"-",L$1),'База выдачи'!$A:$F,5,0)),"",VLOOKUP(CONCATENATE($B23,"-",L$1),'База выдачи'!$A:$F,5,0)),VLOOKUP(CONCATENATE($B23,"-",L$1),База!$A:$G,5,0)) -> OK | N23: =IF(ISERROR(VLOOKUP(CONCATENATE($B23,"-",L$1),База!$A:$G,6,0)),IF(ISERROR(VLOOKUP(CONCATENATE($B23,"-",L$1),'База выдачи'!$A:$F,6,0)),"",VLOOKUP(CONCATENATE($B23,"-",L$1),'База выдачи'!$A:$F,6,0)),VLOOKUP(CONCATENATE($B23,"-",L$1),База!$A:$G,6,0)) -> 02:08:54.730 | O23: 9 | P23: =IF(ISERROR(VLOOKUP(CONCATENATE($B23,"-",O$1),База!$A:$G,5,0)),IF(ISERROR(VLOOKUP(CONCATENATE($B23,"-",O$1),'База выдачи'!$A:$F,5,0)),"",VLOOKUP(CONCATENATE($B23,"-",O$1),'База выдачи'!$A:$F,5,0)),VLOOKUP(CONCATENATE($B23,"-",O$1),База!$A:$G,5,0)) -> OK | Q23: =IF(ISERROR(VLOOKUP(CONCATENATE($B23,"-",O$1),База!$A:$G,6,0)),IF(ISERROR(VLOOKUP(CONCATENATE($B23,"-",O$1),'База выдачи'!$A:$F,6,0)),"",VLOOKUP(CONCATENATE($B23,"-",O$1),'База выдачи'!$A:$F,6,0)),VLOOKUP(CONCATENATE($B23,"-",O$1),База!$A:$G,6,0)) -> 02:09:14.860 | R23: 7 | S23: =IF(ISERROR(VLOOKUP(CONCATENATE($B23,"-",R$1),База!$A:$G,5,0)),IF(ISERROR(VLOOKUP(CONCATENATE($B23,"-",R$1),'База выдачи'!$A:$F,5,0)),"",VLOOKUP(CONCATENATE($B23,"-",R$1),'База выдачи'!$A:$F,5,0)),VLOOKUP(CONCATENATE($B23,"-",R$1),База!$A:$G,5,0)) -> OK | T23: =IF(ISERROR(VLOOKUP(CONCATENATE($B23,"-",R$1),База!$A:$G,6,0)),IF(ISERROR(VLOOKUP(CONCATENATE($B23,"-",R$1),'База выдачи'!$A:$F,6,0)),"",VLOOKUP(CONCATENATE($B23,"-",R$1),'База выдачи'!$A:$F,6,0)),VLOOKUP(CONCATENATE($B23,"-",R$1),База!$A:$G,6,0)) -> 02:31:09.770 | U23: 2 | V23: =IF(ISERROR(VLOOKUP(CONCATENATE($B23,"-",U$1),База!$A:$G,5,0)),IF(ISERROR(VLOOKUP(CONCATENATE($B23,"-",U$1),'База выдачи'!$A:$F,5,0)),"",VLOOKUP(CONCATENATE($B23,"-",U$1),'База выдачи'!$A:$F,5,0)),VLOOKUP(CONCATENATE($B23,"-",U$1),База!$A:$G,5,0)) -> OK | W23: =IF(ISERROR(VLOOKUP(CONCATENATE($B23,"-",U$1),База!$A:$G,6,0)),IF(ISERROR(VLOOKUP(CONCATENATE($B23,"-",U$1),'База выдачи'!$A:$F,6,0)),"",VLOOKUP(CONCATENATE($B23,"-",U$1),'База выдачи'!$A:$F,6,0)),VLOOKUP(CONCATENATE($B23,"-",U$1),База!$A:$G,6,0)) -> 03:00:14.250 | X23: 5 | Y23: =IF(ISERROR(VLOOKUP(CONCATENATE($B23,"-",X$1),База!$A:$G,5,0)),IF(ISERROR(VLOOKUP(CONCATENATE($B23,"-",X$1),'База выдачи'!$A:$F,5,0)),"",VLOOKUP(CONCATENATE($B23,"-",X$1),'База выдачи'!$A:$F,5,0)),VLOOKUP(CONCATENATE($B23,"-",X$1),База!$A:$G,5,0)) -> ST | Z23: =IF(ISERROR(VLOOKUP(CONCATENATE($B23,"-",X$1),База!$A:$G,6,0)),IF(ISERROR(VLOOKUP(CONCATENATE($B23,"-",X$1),'База выдачи'!$A:$F,6,0)),"",VLOOKUP(CONCATENATE($B23,"-",X$1),'База выдачи'!$A:$F,6,0)),VLOOKUP(CONCATENATE($B23,"-",X$1),База!$A:$G,6,0)) -> 03:00:16.220 | AA23: 6 | AB23: =IF(ISERROR(VLOOKUP(CONCATENATE($B23,"-",AA$1),База!$A:$G,5,0)),IF(ISERROR(VLOOKUP(CONCATENATE($B23,"-",AA$1),'База выдачи'!$A:$F,5,0)),"",VLOOKUP(CONCATENATE($B23,"-",AA$1),'База выдачи'!$A:$F,5,0)),VLOOKUP(CONCATENATE($B23,"-",AA$1),База!$A:$G,5,0)) ->  | AC23: =IF(ISERROR(VLOOKUP(CONCATENATE($B23,"-",AA$1),База!$A:$G,6,0)),IF(ISERROR(VLOOKUP(CONCATENATE($B23,"-",AA$1),'База выдачи'!$A:$F,6,0)),"",VLOOKUP(CONCATENATE($B23,"-",AA$1),'База выдачи'!$A:$F,6,0)),VLOOKUP(CONCATENATE($B23,"-",AA$1),База!$A:$G,6,0)) ->  | AD23: E | AE23: =IF(ISERROR(VLOOKUP(CONCATENATE($B23,"-",AD$1),База!$A:$G,5,0)),IF(ISERROR(VLOOKUP(CONCATENATE($B23,"-",AD$1),'База выдачи'!$A:$F,5,0)),"",VLOOKUP(CONCATENATE($B23,"-",AD$1),'База выдачи'!$A:$F,5,0)),VLOOKUP(CONCATENATE($B23,"-",AD$1),База!$A:$G,5,0)) ->  | AF23: =IF(ISERROR(VLOOKUP(CONCATENATE($B23,"-",AD$1),База!$A:$G,6,0)),IF(ISERROR(VLOOKUP(CONCATENATE($B23,"-",AD$1),'База выдачи'!$A:$F,6,0)),"",VLOOKUP(CONCATENATE($B23,"-",AD$1),'База выдачи'!$A:$F,6,0)),VLOOKUP(CONCATENATE($B23,"-",AD$1),База!$A:$G,6,0)) ->  | AG23: F | AH23: =IF(ISERROR(VLOOKUP(CONCATENATE($B23,"-",AG$1),База!$A:$G,5,0)),IF(ISERROR(VLOOKUP(CONCATENATE($B23,"-",AG$1),'База выдачи'!$A:$F,5,0)),"",VLOOKUP(CONCATENATE($B23,"-",AG$1),'База выдачи'!$A:$F,5,0)),VLOOKUP(CONCATENATE($B23,"-",AG$1),База!$A:$G,5,0)) ->  | AI23: =IF(ISERROR(VLOOKUP(CONCATENATE($B23,"-",AG$1),База!$A:$G,6,0)),IF(ISERROR(VLOOKUP(CONCATENATE($B23,"-",AG$1),'База выдачи'!$A:$F,6,0)),"",VLOOKUP(CONCATENATE($B23,"-",AG$1),'База выдачи'!$A:$F,6,0)),VLOOKUP(CONCATENATE($B23,"-",AG$1),База!$A:$G,6,0)) ->  | AJ23: G | AK23: =IF(ISERROR(VLOOKUP(CONCATENATE($B23,"-",AJ$1),База!$A:$G,5,0)),IF(ISERROR(VLOOKUP(CONCATENATE($B23,"-",AJ$1),'База выдачи'!$A:$F,5,0)),"",VLOOKUP(CONCATENATE($B23,"-",AJ$1),'База выдачи'!$A:$F,5,0)),VLOOKUP(CONCATENATE($B23,"-",AJ$1),База!$A:$G,5,0)) ->  | AL23: =IF(ISERROR(VLOOKUP(CONCATENATE($B23,"-",AJ$1),База!$A:$G,6,0)),IF(ISERROR(VLOOKUP(CONCATENATE($B23,"-",AJ$1),'База выдачи'!$A:$F,6,0)),"",VLOOKUP(CONCATENATE($B23,"-",AJ$1),'База выдачи'!$A:$F,6,0)),VLOOKUP(CONCATENATE($B23,"-",AJ$1),База!$A:$G,6,0)) ->  | AM23: H | AN23: =IF(ISERROR(VLOOKUP(CONCATENATE($B23,"-",AM$1),База!$A:$G,5,0)),IF(ISERROR(VLOOKUP(CONCATENATE($B23,"-",AM$1),'База выдачи'!$A:$F,5,0)),"",VLOOKUP(CONCATENATE($B23,"-",AM$1),'База выдачи'!$A:$F,5,0)),VLOOKUP(CONCATENATE($B23,"-",AM$1),База!$A:$G,5,0)) ->  | AO23: =IF(ISERROR(VLOOKUP(CONCATENATE($B23,"-",AM$1),База!$A:$G,6,0)),IF(ISERROR(VLOOKUP(CONCATENATE($B23,"-",AM$1),'База выдачи'!$A:$F,6,0)),"",VLOOKUP(CONCATENATE($B23,"-",AM$1),'База выдачи'!$A:$F,6,0)),VLOOKUP(CONCATENATE($B23,"-",AM$1),База!$A:$G,6,0)) ->  | AP23: I | AQ23: =IF(ISERROR(VLOOKUP(CONCATENATE($B23,"-",AP$1),База!$A:$G,5,0)),IF(ISERROR(VLOOKUP(CONCATENATE($B23,"-",AP$1),'База выдачи'!$A:$F,5,0)),"",VLOOKUP(CONCATENATE($B23,"-",AP$1),'База выдачи'!$A:$F,5,0)),VLOOKUP(CONCATENATE($B23,"-",AP$1),База!$A:$G,5,0)) ->  | AR23: =IF(ISERROR(VLOOKUP(CONCATENATE($B23,"-",AP$1),База!$A:$G,6,0)),IF(ISERROR(VLOOKUP(CONCATENATE($B23,"-",AP$1),'База выдачи'!$A:$F,6,0)),"",VLOOKUP(CONCATENATE($B23,"-",AP$1),'База выдачи'!$A:$F,6,0)),VLOOKUP(CONCATENATE($B23,"-",AP$1),База!$A:$G,6,0)) ->  | AS23: J | AT23: =IF(ISERROR(VLOOKUP(CONCATENATE($B23,"-",AS$1),База!$A:$G,5,0)),IF(ISERROR(VLOOKUP(CONCATENATE($B23,"-",AS$1),'База выдачи'!$A:$F,5,0)),"",VLOOKUP(CONCATENATE($B23,"-",AS$1),'База выдачи'!$A:$F,5,0)),VLOOKUP(CONCATENATE($B23,"-",AS$1),База!$A:$G,5,0)) ->  | AU23: =IF(ISERROR(VLOOKUP(CONCATENATE($B23,"-",AS$1),База!$A:$G,6,0)),IF(ISERROR(VLOOKUP(CONCATENATE($B23,"-",AS$1),'База выдачи'!$A:$F,6,0)),"",VLOOKUP(CONCATENATE($B23,"-",AS$1),'База выдачи'!$A:$F,6,0)),VLOOKUP(CONCATENATE($B23,"-",AS$1),База!$A:$G,6,0)) ->  | AX23: =COUNTIFS(База!B:B,Статистика!B23,База!E:E,"OK") -> 6 | AY23: =CU3 -> 03:00:14.250 | AZ23: 10814 | BA23: =COUNTIFS(База!B:B,Статистика!B23,База!E:E,"XXXX") -> 1 | BB23: =IF(AX23+AZ23+BA23=0,ксекундвигре-BD23,ксекундвигре*Статистика!AX23+(ксекундвигре-Статистика!AZ23)+Статистика!BA23) -> 65207 | BC23: 45006 | BD23: 21 | BE23: 7
A24: 22 | B24: =IF(ISERROR(VLOOKUP(A24,Служебный!B:C,2,0)),"",A24&"-"&VLOOKUP(A24,Служебный!B:C,2,0)) -> 22-СанчеЗ&Ко | C24: 4 | D24: =IF(ISERROR(VLOOKUP(CONCATENATE($B24,"-",C$1),База!$A:$G,5,0)),IF(ISERROR(VLOOKUP(CONCATENATE($B24,"-",C$1),'База выдачи'!$A:$F,5,0)),"",VLOOKUP(CONCATENATE($B24,"-",C$1),'База выдачи'!$A:$F,5,0)),VLOOKUP(CONCATENATE($B24,"-",C$1),База!$A:$G,5,0)) -> OK | E24: =IF(ISERROR(VLOOKUP(CONCATENATE($B24,"-",C$1),База!$A:$G,6,0)),IF(ISERROR(VLOOKUP(CONCATENATE($B24,"-",C$1),'База выдачи'!$A:$F,6,0)),"",VLOOKUP(CONCATENATE($B24,"-",C$1),'База выдачи'!$A:$F,6,0)),VLOOKUP(CONCATENATE($B24,"-",C$1),База!$A:$G,6,0)) -> 00:39:37.710 | F24: 7 | G24: =IF(ISERROR(VLOOKUP(CONCATENATE($B24,"-",F$1),База!$A:$G,5,0)),IF(ISERROR(VLOOKUP(CONCATENATE($B24,"-",F$1),'База выдачи'!$A:$F,5,0)),"",VLOOKUP(CONCATENATE($B24,"-",F$1),'База выдачи'!$A:$F,5,0)),VLOOKUP(CONCATENATE($B24,"-",F$1),База!$A:$G,5,0)) -> OK | H24: =IF(ISERROR(VLOOKUP(CONCATENATE($B24,"-",F$1),База!$A:$G,6,0)),IF(ISERROR(VLOOKUP(CONCATENATE($B24,"-",F$1),'База выдачи'!$A:$F,6,0)),"",VLOOKUP(CONCATENATE($B24,"-",F$1),'База выдачи'!$A:$F,6,0)),VLOOKUP(CONCATENATE($B24,"-",F$1),База!$A:$G,6,0)) -> 00:53:17.410 | I24: 5 | J24: =IF(ISERROR(VLOOKUP(CONCATENATE($B24,"-",I$1),База!$A:$G,5,0)),IF(ISERROR(VLOOKUP(CONCATENATE($B24,"-",I$1),'База выдачи'!$A:$F,5,0)),"",VLOOKUP(CONCATENATE($B24,"-",I$1),'База выдачи'!$A:$F,5,0)),VLOOKUP(CONCATENATE($B24,"-",I$1),База!$A:$G,5,0)) -> OK | K24: =IF(ISERROR(VLOOKUP(CONCATENATE($B24,"-",I$1),База!$A:$G,6,0)),IF(ISERROR(VLOOKUP(CONCATENATE($B24,"-",I$1),'База выдачи'!$A:$F,6,0)),"",VLOOKUP(CONCATENATE($B24,"-",I$1),'База выдачи'!$A:$F,6,0)),VLOOKUP(CONCATENATE($B24,"-",I$1),База!$A:$G,6,0)) -> 01:10:44.980 | L24: 3 | M24: =IF(ISERROR(VLOOKUP(CONCATENATE($B24,"-",L$1),База!$A:$G,5,0)),IF(ISERROR(VLOOKUP(CONCATENATE($B24,"-",L$1),'База выдачи'!$A:$F,5,0)),"",VLOOKUP(CONCATENATE($B24,"-",L$1),'База выдачи'!$A:$F,5,0)),VLOOKUP(CONCATENATE($B24,"-",L$1),База!$A:$G,5,0)) -> OK | N24: =IF(ISERROR(VLOOKUP(CONCATENATE($B24,"-",L$1),База!$A:$G,6,0)),IF(ISERROR(VLOOKUP(CONCATENATE($B24,"-",L$1),'База выдачи'!$A:$F,6,0)),"",VLOOKUP(CONCATENATE($B24,"-",L$1),'База выдачи'!$A:$F,6,0)),VLOOKUP(CONCATENATE($B24,"-",L$1),База!$A:$G,6,0)) -> 01:29:22.640 | O24: 2 | P24: =IF(ISERROR(VLOOKUP(CONCATENATE($B24,"-",O$1),База!$A:$G,5,0)),IF(ISERROR(VLOOKUP(CONCATENATE($B24,"-",O$1),'База выдачи'!$A:$F,5,0)),"",VLOOKUP(CONCATENATE($B24,"-",O$1),'База выдачи'!$A:$F,5,0)),VLOOKUP(CONCATENATE($B24,"-",O$1),База!$A:$G,5,0)) -> OK | Q24: =IF(ISERROR(VLOOKUP(CONCATENATE($B24,"-",O$1),База!$A:$G,6,0)),IF(ISERROR(VLOOKUP(CONCATENATE($B24,"-",O$1),'База выдачи'!$A:$F,6,0)),"",VLOOKUP(CONCATENATE($B24,"-",O$1),'База выдачи'!$A:$F,6,0)),VLOOKUP(CONCATENATE($B24,"-",O$1),База!$A:$G,6,0)) -> 01:47:56.470 | R24: 1 | S24: =IF(ISERROR(VLOOKUP(CONCATENATE($B24,"-",R$1),База!$A:$G,5,0)),IF(ISERROR(VLOOKUP(CONCATENATE($B24,"-",R$1),'База выдачи'!$A:$F,5,0)),"",VLOOKUP(CONCATENATE($B24,"-",R$1),'База выдачи'!$A:$F,5,0)),VLOOKUP(CONCATENATE($B24,"-",R$1),База!$A:$G,5,0)) -> XXXX | T24: =IF(ISERROR(VLOOKUP(CONCATENATE($B24,"-",R$1),База!$A:$G,6,0)),IF(ISERROR(VLOOKUP(CONCATENATE($B24,"-",R$1),'База выдачи'!$A:$F,6,0)),"",VLOOKUP(CONCATENATE($B24,"-",R$1),'База выдачи'!$A:$F,6,0)),VLOOKUP(CONCATENATE($B24,"-",R$1),База!$A:$G,6,0)) -> 02:26:27.370 | U24: 6 | V24: =IF(ISERROR(VLOOKUP(CONCATENATE($B24,"-",U$1),База!$A:$G,5,0)),IF(ISERROR(VLOOKUP(CONCATENATE($B24,"-",U$1),'База выдачи'!$A:$F,5,0)),"",VLOOKUP(CONCATENATE($B24,"-",U$1),'База выдачи'!$A:$F,5,0)),VLOOKUP(CONCATENATE($B24,"-",U$1),База!$A:$G,5,0)) -> ST | W24: =IF(ISERROR(VLOOKUP(CONCATENATE($B24,"-",U$1),База!$A:$G,6,0)),IF(ISERROR(VLOOKUP(CONCATENATE($B24,"-",U$1),'База выдачи'!$A:$F,6,0)),"",VLOOKUP(CONCATENATE($B24,"-",U$1),'База выдачи'!$A:$F,6,0)),VLOOKUP(CONCATENATE($B24,"-",U$1),База!$A:$G,6,0)) -> 02:26:29.250 | X24: 9 | Y24: =IF(ISERROR(VLOOKUP(CONCATENATE($B24,"-",X$1),База!$A:$G,5,0)),IF(ISERROR(VLOOKUP(CONCATENATE($B24,"-",X$1),'База выдачи'!$A:$F,5,0)),"",VLOOKUP(CONCATENATE($B24,"-",X$1),'База выдачи'!$A:$F,5,0)),VLOOKUP(CONCATENATE($B24,"-",X$1),База!$A:$G,5,0)) ->  | Z24: =IF(ISERROR(VLOOKUP(CONCATENATE($B24,"-",X$1),База!$A:$G,6,0)),IF(ISERROR(VLOOKUP(CONCATENATE($B24,"-",X$1),'База выдачи'!$A:$F,6,0)),"",VLOOKUP(CONCATENATE($B24,"-",X$1),'База выдачи'!$A:$F,6,0)),VLOOKUP(CONCATENATE($B24,"-",X$1),База!$A:$G,6,0)) ->  | AA24: 8 | AB24: =IF(ISERROR(VLOOKUP(CONCATENATE($B24,"-",AA$1),База!$A:$G,5,0)),IF(ISERROR(VLOOKUP(CONCATENATE($B24,"-",AA$1),'База выдачи'!$A:$F,5,0)),"",VLOOKUP(CONCATENATE($B24,"-",AA$1),'База выдачи'!$A:$F,5,0)),VLOOKUP(CONCATENATE($B24,"-",AA$1),База!$A:$G,5,0)) ->  | AC24: =IF(ISERROR(VLOOKUP(CONCATENATE($B24,"-",AA$1),База!$A:$G,6,0)),IF(ISERROR(VLOOKUP(CONCATENATE($B24,"-",AA$1),'База выдачи'!$A:$F,6,0)),"",VLOOKUP(CONCATENATE($B24,"-",AA$1),'База выдачи'!$A:$F,6,0)),VLOOKUP(CONCATENATE($B24,"-",AA$1),База!$A:$G,6,0)) ->  | AD24: D | AE24: =IF(ISERROR(VLOOKUP(CONCATENATE($B24,"-",AD$1),База!$A:$G,5,0)),IF(ISERROR(VLOOKUP(CONCATENATE($B24,"-",AD$1),'База выдачи'!$A:$F,5,0)),"",VLOOKUP(CONCATENATE($B24,"-",AD$1),'База выдачи'!$A:$F,5,0)),VLOOKUP(CONCATENATE($B24,"-",AD$1),База!$A:$G,5,0)) ->  | AF24: =IF(ISERROR(VLOOKUP(CONCATENATE($B24,"-",AD$1),База!$A:$G,6,0)),IF(ISERROR(VLOOKUP(CONCATENATE($B24,"-",AD$1),'База выдачи'!$A:$F,6,0)),"",VLOOKUP(CONCATENATE($B24,"-",AD$1),'База выдачи'!$A:$F,6,0)),VLOOKUP(CONCATENATE($B24,"-",AD$1),База!$A:$G,6,0)) ->  | AG24: E | AH24: =IF(ISERROR(VLOOKUP(CONCATENATE($B24,"-",AG$1),База!$A:$G,5,0)),IF(ISERROR(VLOOKUP(CONCATENATE($B24,"-",AG$1),'База выдачи'!$A:$F,5,0)),"",VLOOKUP(CONCATENATE($B24,"-",AG$1),'База выдачи'!$A:$F,5,0)),VLOOKUP(CONCATENATE($B24,"-",AG$1),База!$A:$G,5,0)) ->  | AI24: =IF(ISERROR(VLOOKUP(CONCATENATE($B24,"-",AG$1),База!$A:$G,6,0)),IF(ISERROR(VLOOKUP(CONCATENATE($B24,"-",AG$1),'База выдачи'!$A:$F,6,0)),"",VLOOKUP(CONCATENATE($B24,"-",AG$1),'База выдачи'!$A:$F,6,0)),VLOOKUP(CONCATENATE($B24,"-",AG$1),База!$A:$G,6,0)) ->  | AJ24: F | AK24: =IF(ISERROR(VLOOKUP(CONCATENATE($B24,"-",AJ$1),База!$A:$G,5,0)),IF(ISERROR(VLOOKUP(CONCATENATE($B24,"-",AJ$1),'База выдачи'!$A:$F,5,0)),"",VLOOKUP(CONCATENATE($B24,"-",AJ$1),'База выдачи'!$A:$F,5,0)),VLOOKUP(CONCATENATE($B24,"-",AJ$1),База!$A:$G,5,0)) ->  | AL24: =IF(ISERROR(VLOOKUP(CONCATENATE($B24,"-",AJ$1),База!$A:$G,6,0)),IF(ISERROR(VLOOKUP(CONCATENATE($B24,"-",AJ$1),'База выдачи'!$A:$F,6,0)),"",VLOOKUP(CONCATENATE($B24,"-",AJ$1),'База выдачи'!$A:$F,6,0)),VLOOKUP(CONCATENATE($B24,"-",AJ$1),База!$A:$G,6,0)) ->  | AM24: G | AN24: =IF(ISERROR(VLOOKUP(CONCATENATE($B24,"-",AM$1),База!$A:$G,5,0)),IF(ISERROR(VLOOKUP(CONCATENATE($B24,"-",AM$1),'База выдачи'!$A:$F,5,0)),"",VLOOKUP(CONCATENATE($B24,"-",AM$1),'База выдачи'!$A:$F,5,0)),VLOOKUP(CONCATENATE($B24,"-",AM$1),База!$A:$G,5,0)) ->  | AO24: =IF(ISERROR(VLOOKUP(CONCATENATE($B24,"-",AM$1),База!$A:$G,6,0)),IF(ISERROR(VLOOKUP(CONCATENATE($B24,"-",AM$1),'База выдачи'!$A:$F,6,0)),"",VLOOKUP(CONCATENATE($B24,"-",AM$1),'База выдачи'!$A:$F,6,0)),VLOOKUP(CONCATENATE($B24,"-",AM$1),База!$A:$G,6,0)) ->  | AP24: H | AQ24: =IF(ISERROR(VLOOKUP(CONCATENATE($B24,"-",AP$1),База!$A:$G,5,0)),IF(ISERROR(VLOOKUP(CONCATENATE($B24,"-",AP$1),'База выдачи'!$A:$F,5,0)),"",VLOOKUP(CONCATENATE($B24,"-",AP$1),'База выдачи'!$A:$F,5,0)),VLOOKUP(CONCATENATE($B24,"-",AP$1),База!$A:$G,5,0)) ->  | AR24: =IF(ISERROR(VLOOKUP(CONCATENATE($B24,"-",AP$1),База!$A:$G,6,0)),IF(ISERROR(VLOOKUP(CONCATENATE($B24,"-",AP$1),'База выдачи'!$A:$F,6,0)),"",VLOOKUP(CONCATENATE($B24,"-",AP$1),'База выдачи'!$A:$F,6,0)),VLOOKUP(CONCATENATE($B24,"-",AP$1),База!$A:$G,6,0)) ->  | AS24: I | AT24: =IF(ISERROR(VLOOKUP(CONCATENATE($B24,"-",AS$1),База!$A:$G,5,0)),IF(ISERROR(VLOOKUP(CONCATENATE($B24,"-",AS$1),'База выдачи'!$A:$F,5,0)),"",VLOOKUP(CONCATENATE($B24,"-",AS$1),'База выдачи'!$A:$F,5,0)),VLOOKUP(CONCATENATE($B24,"-",AS$1),База!$A:$G,5,0)) ->  | AU24: =IF(ISERROR(VLOOKUP(CONCATENATE($B24,"-",AS$1),База!$A:$G,6,0)),IF(ISERROR(VLOOKUP(CONCATENATE($B24,"-",AS$1),'База выдачи'!$A:$F,6,0)),"",VLOOKUP(CONCATENATE($B24,"-",AS$1),'База выдачи'!$A:$F,6,0)),VLOOKUP(CONCATENATE($B24,"-",AS$1),База!$A:$G,6,0)) ->  | AX24: =COUNTIFS(База!B:B,Статистика!B24,База!E:E,"OK") -> 5 | AY24: =CW3 -> 01:47:56.470 | AZ24: 6476 | BA24: =COUNTIFS(База!B:B,Статистика!B24,База!E:E,"XXXX") -> 1 | BB24: =IF(AX24+AZ24+BA24=0,ксекундвигре-BD24,ксекундвигре*Статистика!AX24+(ксекундвигре-Статистика!AZ24)+Статистика!BA24) -> 58685 | BC24: 44834 | BD24: 22 | BE24: 28
A25: 23 | B25: =IF(ISERROR(VLOOKUP(A25,Служебный!B:C,2,0)),"",A25&"-"&VLOOKUP(A25,Служебный!B:C,2,0)) -> 23-Мышь | C25: 5 | D25: =IF(ISERROR(VLOOKUP(CONCATENATE($B25,"-",C$1),База!$A:$G,5,0)),IF(ISERROR(VLOOKUP(CONCATENATE($B25,"-",C$1),'База выдачи'!$A:$F,5,0)),"",VLOOKUP(CONCATENATE($B25,"-",C$1),'База выдачи'!$A:$F,5,0)),VLOOKUP(CONCATENATE($B25,"-",C$1),База!$A:$G,5,0)) -> XXXX | E25: =IF(ISERROR(VLOOKUP(CONCATENATE($B25,"-",C$1),База!$A:$G,6,0)),IF(ISERROR(VLOOKUP(CONCATENATE($B25,"-",C$1),'База выдачи'!$A:$F,6,0)),"",VLOOKUP(CONCATENATE($B25,"-",C$1),'База выдачи'!$A:$F,6,0)),VLOOKUP(CONCATENATE($B25,"-",C$1),База!$A:$G,6,0)) -> 00:43:53.920 | F25: 3 | G25: =IF(ISERROR(VLOOKUP(CONCATENATE($B25,"-",F$1),База!$A:$G,5,0)),IF(ISERROR(VLOOKUP(CONCATENATE($B25,"-",F$1),'База выдачи'!$A:$F,5,0)),"",VLOOKUP(CONCATENATE($B25,"-",F$1),'База выдачи'!$A:$F,5,0)),VLOOKUP(CONCATENATE($B25,"-",F$1),База!$A:$G,5,0)) -> OK | H25: =IF(ISERROR(VLOOKUP(CONCATENATE($B25,"-",F$1),База!$A:$G,6,0)),IF(ISERROR(VLOOKUP(CONCATENATE($B25,"-",F$1),'База выдачи'!$A:$F,6,0)),"",VLOOKUP(CONCATENATE($B25,"-",F$1),'База выдачи'!$A:$F,6,0)),VLOOKUP(CONCATENATE($B25,"-",F$1),База!$A:$G,6,0)) -> 01:05:28.660 | I25: 4 | J25: =IF(ISERROR(VLOOKUP(CONCATENATE($B25,"-",I$1),База!$A:$G,5,0)),IF(ISERROR(VLOOKUP(CONCATENATE($B25,"-",I$1),'База выдачи'!$A:$F,5,0)),"",VLOOKUP(CONCATENATE($B25,"-",I$1),'База выдачи'!$A:$F,5,0)),VLOOKUP(CONCATENATE($B25,"-",I$1),База!$A:$G,5,0)) -> OK | K25: =IF(ISERROR(VLOOKUP(CONCATENATE($B25,"-",I$1),База!$A:$G,6,0)),IF(ISERROR(VLOOKUP(CONCATENATE($B25,"-",I$1),'База выдачи'!$A:$F,6,0)),"",VLOOKUP(CONCATENATE($B25,"-",I$1),'База выдачи'!$A:$F,6,0)),VLOOKUP(CONCATENATE($B25,"-",I$1),База!$A:$G,6,0)) -> 01:26:19.060 | L25: 7 | M25: =IF(ISERROR(VLOOKUP(CONCATENATE($B25,"-",L$1),База!$A:$G,5,0)),IF(ISERROR(VLOOKUP(CONCATENATE($B25,"-",L$1),'База выдачи'!$A:$F,5,0)),"",VLOOKUP(CONCATENATE($B25,"-",L$1),'База выдачи'!$A:$F,5,0)),VLOOKUP(CONCATENATE($B25,"-",L$1),База!$A:$G,5,0)) -> OK | N25: =IF(ISERROR(VLOOKUP(CONCATENATE($B25,"-",L$1),База!$A:$G,6,0)),IF(ISERROR(VLOOKUP(CONCATENATE($B25,"-",L$1),'База выдачи'!$A:$F,6,0)),"",VLOOKUP(CONCATENATE($B25,"-",L$1),'База выдачи'!$A:$F,6,0)),VLOOKUP(CONCATENATE($B25,"-",L$1),База!$A:$G,6,0)) -> 01:39:57.210 | O25: 6 | P25: =IF(ISERROR(VLOOKUP(CONCATENATE($B25,"-",O$1),База!$A:$G,5,0)),IF(ISERROR(VLOOKUP(CONCATENATE($B25,"-",O$1),'База выдачи'!$A:$F,5,0)),"",VLOOKUP(CONCATENATE($B25,"-",O$1),'База выдачи'!$A:$F,5,0)),VLOOKUP(CONCATENATE($B25,"-",O$1),База!$A:$G,5,0)) -> XXXX | Q25: =IF(ISERROR(VLOOKUP(CONCATENATE($B25,"-",O$1),База!$A:$G,6,0)),IF(ISERROR(VLOOKUP(CONCATENATE($B25,"-",O$1),'База выдачи'!$A:$F,6,0)),"",VLOOKUP(CONCATENATE($B25,"-",O$1),'База выдачи'!$A:$F,6,0)),VLOOKUP(CONCATENATE($B25,"-",O$1),База!$A:$G,6,0)) -> 02:30:24.490 | R25: 8 | S25: =IF(ISERROR(VLOOKUP(CONCATENATE($B25,"-",R$1),База!$A:$G,5,0)),IF(ISERROR(VLOOKUP(CONCATENATE($B25,"-",R$1),'База выдачи'!$A:$F,5,0)),"",VLOOKUP(CONCATENATE($B25,"-",R$1),'База выдачи'!$A:$F,5,0)),VLOOKUP(CONCATENATE($B25,"-",R$1),База!$A:$G,5,0)) -> OK | T25: =IF(ISERROR(VLOOKUP(CONCATENATE($B25,"-",R$1),База!$A:$G,6,0)),IF(ISERROR(VLOOKUP(CONCATENATE($B25,"-",R$1),'База выдачи'!$A:$F,6,0)),"",VLOOKUP(CONCATENATE($B25,"-",R$1),'База выдачи'!$A:$F,6,0)),VLOOKUP(CONCATENATE($B25,"-",R$1),База!$A:$G,6,0)) -> 02:49:49.140 | U25: 9 | V25: =IF(ISERROR(VLOOKUP(CONCATENATE($B25,"-",U$1),База!$A:$G,5,0)),IF(ISERROR(VLOOKUP(CONCATENATE($B25,"-",U$1),'База выдачи'!$A:$F,5,0)),"",VLOOKUP(CONCATENATE($B25,"-",U$1),'База выдачи'!$A:$F,5,0)),VLOOKUP(CONCATENATE($B25,"-",U$1),База!$A:$G,5,0)) -> ST | W25: =IF(ISERROR(VLOOKUP(CONCATENATE($B25,"-",U$1),База!$A:$G,6,0)),IF(ISERROR(VLOOKUP(CONCATENATE($B25,"-",U$1),'База выдачи'!$A:$F,6,0)),"",VLOOKUP(CONCATENATE($B25,"-",U$1),'База выдачи'!$A:$F,6,0)),VLOOKUP(CONCATENATE($B25,"-",U$1),База!$A:$G,6,0)) -> 02:49:51.030 | X25: 1 | Y25: =IF(ISERROR(VLOOKUP(CONCATENATE($B25,"-",X$1),База!$A:$G,5,0)),IF(ISERROR(VLOOKUP(CONCATENATE($B25,"-",X$1),'База выдачи'!$A:$F,5,0)),"",VLOOKUP(CONCATENATE($B25,"-",X$1),'База выдачи'!$A:$F,5,0)),VLOOKUP(CONCATENATE($B25,"-",X$1),База!$A:$G,5,0)) ->  | Z25: =IF(ISERROR(VLOOKUP(CONCATENATE($B25,"-",X$1),База!$A:$G,6,0)),IF(ISERROR(VLOOKUP(CONCATENATE($B25,"-",X$1),'База выдачи'!$A:$F,6,0)),"",VLOOKUP(CONCATENATE($B25,"-",X$1),'База выдачи'!$A:$F,6,0)),VLOOKUP(CONCATENATE($B25,"-",X$1),База!$A:$G,6,0)) ->  | AA25: 2 | AB25: =IF(ISERROR(VLOOKUP(CONCATENATE($B25,"-",AA$1),База!$A:$G,5,0)),IF(ISERROR(VLOOKUP(CONCATENATE($B25,"-",AA$1),'База выдачи'!$A:$F,5,0)),"",VLOOKUP(CONCATENATE($B25,"-",AA$1),'База выдачи'!$A:$F,5,0)),VLOOKUP(CONCATENATE($B25,"-",AA$1),База!$A:$G,5,0)) ->  | AC25: =IF(ISERROR(VLOOKUP(CONCATENATE($B25,"-",AA$1),База!$A:$G,6,0)),IF(ISERROR(VLOOKUP(CONCATENATE($B25,"-",AA$1),'База выдачи'!$A:$F,6,0)),"",VLOOKUP(CONCATENATE($B25,"-",AA$1),'База выдачи'!$A:$F,6,0)),VLOOKUP(CONCATENATE($B25,"-",AA$1),База!$A:$G,6,0)) ->  | AD25: C | AE25: =IF(ISERROR(VLOOKUP(CONCATENATE($B25,"-",AD$1),База!$A:$G,5,0)),IF(ISERROR(VLOOKUP(CONCATENATE($B25,"-",AD$1),'База выдачи'!$A:$F,5,0)),"",VLOOKUP(CONCATENATE($B25,"-",AD$1),'База выдачи'!$A:$F,5,0)),VLOOKUP(CONCATENATE($B25,"-",AD$1),База!$A:$G,5,0)) ->  | AF25: =IF(ISERROR(VLOOKUP(CONCATENATE($B25,"-",AD$1),База!$A:$G,6,0)),IF(ISERROR(VLOOKUP(CONCATENATE($B25,"-",AD$1),'База выдачи'!$A:$F,6,0)),"",VLOOKUP(CONCATENATE($B25,"-",AD$1),'База выдачи'!$A:$F,6,0)),VLOOKUP(CONCATENATE($B25,"-",AD$1),База!$A:$G,6,0)) ->  | AG25: D | AH25: =IF(ISERROR(VLOOKUP(CONCATENATE($B25,"-",AG$1),База!$A:$G,5,0)),IF(ISERROR(VLOOKUP(CONCATENATE($B25,"-",AG$1),'База выдачи'!$A:$F,5,0)),"",VLOOKUP(CONCATENATE($B25,"-",AG$1),'База выдачи'!$A:$F,5,0)),VLOOKUP(CONCATENATE($B25,"-",AG$1),База!$A:$G,5,0)) ->  | AI25: =IF(ISERROR(VLOOKUP(CONCATENATE($B25,"-",AG$1),База!$A:$G,6,0)),IF(ISERROR(VLOOKUP(CONCATENATE($B25,"-",AG$1),'База выдачи'!$A:$F,6,0)),"",VLOOKUP(CONCATENATE($B25,"-",AG$1),'База выдачи'!$A:$F,6,0)),VLOOKUP(CONCATENATE($B25,"-",AG$1),База!$A:$G,6,0)) ->  | AJ25: E | AK25: =IF(ISERROR(VLOOKUP(CONCATENATE($B25,"-",AJ$1),База!$A:$G,5,0)),IF(ISERROR(VLOOKUP(CONCATENATE($B25,"-",AJ$1),'База выдачи'!$A:$F,5,0)),"",VLOOKUP(CONCATENATE($B25,"-",AJ$1),'База выдачи'!$A:$F,5,0)),VLOOKUP(CONCATENATE($B25,"-",AJ$1),База!$A:$G,5,0)) ->  | AL25: =IF(ISERROR(VLOOKUP(CONCATENATE($B25,"-",AJ$1),База!$A:$G,6,0)),IF(ISERROR(VLOOKUP(CONCATENATE($B25,"-",AJ$1),'База выдачи'!$A:$F,6,0)),"",VLOOKUP(CONCATENATE($B25,"-",AJ$1),'База выдачи'!$A:$F,6,0)),VLOOKUP(CONCATENATE($B25,"-",AJ$1),База!$A:$G,6,0)) ->  | AM25: F | AN25: =IF(ISERROR(VLOOKUP(CONCATENATE($B25,"-",AM$1),База!$A:$G,5,0)),IF(ISERROR(VLOOKUP(CONCATENATE($B25,"-",AM$1),'База выдачи'!$A:$F,5,0)),"",VLOOKUP(CONCATENATE($B25,"-",AM$1),'База выдачи'!$A:$F,5,0)),VLOOKUP(CONCATENATE($B25,"-",AM$1),База!$A:$G,5,0)) ->  | AO25: =IF(ISERROR(VLOOKUP(CONCATENATE($B25,"-",AM$1),База!$A:$G,6,0)),IF(ISERROR(VLOOKUP(CONCATENATE($B25,"-",AM$1),'База выдачи'!$A:$F,6,0)),"",VLOOKUP(CONCATENATE($B25,"-",AM$1),'База выдачи'!$A:$F,6,0)),VLOOKUP(CONCATENATE($B25,"-",AM$1),База!$A:$G,6,0)) ->  | AP25: G | AQ25: =IF(ISERROR(VLOOKUP(CONCATENATE($B25,"-",AP$1),База!$A:$G,5,0)),IF(ISERROR(VLOOKUP(CONCATENATE($B25,"-",AP$1),'База выдачи'!$A:$F,5,0)),"",VLOOKUP(CONCATENATE($B25,"-",AP$1),'База выдачи'!$A:$F,5,0)),VLOOKUP(CONCATENATE($B25,"-",AP$1),База!$A:$G,5,0)) ->  | AR25: =IF(ISERROR(VLOOKUP(CONCATENATE($B25,"-",AP$1),База!$A:$G,6,0)),IF(ISERROR(VLOOKUP(CONCATENATE($B25,"-",AP$1),'База выдачи'!$A:$F,6,0)),"",VLOOKUP(CONCATENATE($B25,"-",AP$1),'База выдачи'!$A:$F,6,0)),VLOOKUP(CONCATENATE($B25,"-",AP$1),База!$A:$G,6,0)) ->  | AS25: H | AT25: =IF(ISERROR(VLOOKUP(CONCATENATE($B25,"-",AS$1),База!$A:$G,5,0)),IF(ISERROR(VLOOKUP(CONCATENATE($B25,"-",AS$1),'База выдачи'!$A:$F,5,0)),"",VLOOKUP(CONCATENATE($B25,"-",AS$1),'База выдачи'!$A:$F,5,0)),VLOOKUP(CONCATENATE($B25,"-",AS$1),База!$A:$G,5,0)) ->  | AU25: =IF(ISERROR(VLOOKUP(CONCATENATE($B25,"-",AS$1),База!$A:$G,6,0)),IF(ISERROR(VLOOKUP(CONCATENATE($B25,"-",AS$1),'База выдачи'!$A:$F,6,0)),"",VLOOKUP(CONCATENATE($B25,"-",AS$1),'База выдачи'!$A:$F,6,0)),VLOOKUP(CONCATENATE($B25,"-",AS$1),База!$A:$G,6,0)) ->  | AX25: =COUNTIFS(База!B:B,Статистика!B25,База!E:E,"OK") -> 4 | AY25: =CY3 -> 02:49:49.140 | AZ25: 10189 | BA25: =COUNTIFS(База!B:B,Статистика!B25,База!E:E,"XXXX") -> 2 | BB25: =IF(AX25+AZ25+BA25=0,ксекундвигре-BD25,ксекундвигре*Статистика!AX25+(ксекундвигре-Статистика!AZ25)+Статистика!BA25) -> 44113 | BC25: 44810 | BD25: 23 | BE25: 29
A26: 24 | B26: =IF(ISERROR(VLOOKUP(A26,Служебный!B:C,2,0)),"",A26&"-"&VLOOKUP(A26,Служебный!B:C,2,0)) -> 24-Антилопы ГНУ | C26: 6 | D26: =IF(ISERROR(VLOOKUP(CONCATENATE($B26,"-",C$1),База!$A:$G,5,0)),IF(ISERROR(VLOOKUP(CONCATENATE($B26,"-",C$1),'База выдачи'!$A:$F,5,0)),"",VLOOKUP(CONCATENATE($B26,"-",C$1),'База выдачи'!$A:$F,5,0)),VLOOKUP(CONCATENATE($B26,"-",C$1),База!$A:$G,5,0)) -> XXXX | E26: =IF(ISERROR(VLOOKUP(CONCATENATE($B26,"-",C$1),База!$A:$G,6,0)),IF(ISERROR(VLOOKUP(CONCATENATE($B26,"-",C$1),'База выдачи'!$A:$F,6,0)),"",VLOOKUP(CONCATENATE($B26,"-",C$1),'База выдачи'!$A:$F,6,0)),VLOOKUP(CONCATENATE($B26,"-",C$1),База!$A:$G,6,0)) -> 00:50:19.870 | F26: 9 | G26: =IF(ISERROR(VLOOKUP(CONCATENATE($B26,"-",F$1),База!$A:$G,5,0)),IF(ISERROR(VLOOKUP(CONCATENATE($B26,"-",F$1),'База выдачи'!$A:$F,5,0)),"",VLOOKUP(CONCATENATE($B26,"-",F$1),'База выдачи'!$A:$F,5,0)),VLOOKUP(CONCATENATE($B26,"-",F$1),База!$A:$G,5,0)) -> OK | H26: =IF(ISERROR(VLOOKUP(CONCATENATE($B26,"-",F$1),База!$A:$G,6,0)),IF(ISERROR(VLOOKUP(CONCATENATE($B26,"-",F$1),'База выдачи'!$A:$F,6,0)),"",VLOOKUP(CONCATENATE($B26,"-",F$1),'База выдачи'!$A:$F,6,0)),VLOOKUP(CONCATENATE($B26,"-",F$1),База!$A:$G,6,0)) -> 01:02:53.640 | I26: 1 | J26: =IF(ISERROR(VLOOKUP(CONCATENATE($B26,"-",I$1),База!$A:$G,5,0)),IF(ISERROR(VLOOKUP(CONCATENATE($B26,"-",I$1),'База выдачи'!$A:$F,5,0)),"",VLOOKUP(CONCATENATE($B26,"-",I$1),'База выдачи'!$A:$F,5,0)),VLOOKUP(CONCATENATE($B26,"-",I$1),База!$A:$G,5,0)) -> XXXX | K26: =IF(ISERROR(VLOOKUP(CONCATENATE($B26,"-",I$1),База!$A:$G,6,0)),IF(ISERROR(VLOOKUP(CONCATENATE($B26,"-",I$1),'База выдачи'!$A:$F,6,0)),"",VLOOKUP(CONCATENATE($B26,"-",I$1),'База выдачи'!$A:$F,6,0)),VLOOKUP(CONCATENATE($B26,"-",I$1),База!$A:$G,6,0)) -> 01:39:25.550 | L26: 2 | M26: =IF(ISERROR(VLOOKUP(CONCATENATE($B26,"-",L$1),База!$A:$G,5,0)),IF(ISERROR(VLOOKUP(CONCATENATE($B26,"-",L$1),'База выдачи'!$A:$F,5,0)),"",VLOOKUP(CONCATENATE($B26,"-",L$1),'База выдачи'!$A:$F,5,0)),VLOOKUP(CONCATENATE($B26,"-",L$1),База!$A:$G,5,0)) -> OK | N26: =IF(ISERROR(VLOOKUP(CONCATENATE($B26,"-",L$1),База!$A:$G,6,0)),IF(ISERROR(VLOOKUP(CONCATENATE($B26,"-",L$1),'База выдачи'!$A:$F,6,0)),"",VLOOKUP(CONCATENATE($B26,"-",L$1),'База выдачи'!$A:$F,6,0)),VLOOKUP(CONCATENATE($B26,"-",L$1),База!$A:$G,6,0)) -> 01:59:54.710 | O26: 7 | P26: =IF(ISERROR(VLOOKUP(CONCATENATE($B26,"-",O$1),База!$A:$G,5,0)),IF(ISERROR(VLOOKUP(CONCATENATE($B26,"-",O$1),'База выдачи'!$A:$F,5,0)),"",VLOOKUP(CONCATENATE($B26,"-",O$1),'База выдачи'!$A:$F,5,0)),VLOOKUP(CONCATENATE($B26,"-",O$1),База!$A:$G,5,0)) -> OK | Q26: =IF(ISERROR(VLOOKUP(CONCATENATE($B26,"-",O$1),База!$A:$G,6,0)),IF(ISERROR(VLOOKUP(CONCATENATE($B26,"-",O$1),'База выдачи'!$A:$F,6,0)),"",VLOOKUP(CONCATENATE($B26,"-",O$1),'База выдачи'!$A:$F,6,0)),VLOOKUP(CONCATENATE($B26,"-",O$1),База!$A:$G,6,0)) -> 02:17:27.830 | R26: 5 | S26: =IF(ISERROR(VLOOKUP(CONCATENATE($B26,"-",R$1),База!$A:$G,5,0)),IF(ISERROR(VLOOKUP(CONCATENATE($B26,"-",R$1),'База выдачи'!$A:$F,5,0)),"",VLOOKUP(CONCATENATE($B26,"-",R$1),'База выдачи'!$A:$F,5,0)),VLOOKUP(CONCATENATE($B26,"-",R$1),База!$A:$G,5,0)) -> OK | T26: =IF(ISERROR(VLOOKUP(CONCATENATE($B26,"-",R$1),База!$A:$G,6,0)),IF(ISERROR(VLOOKUP(CONCATENATE($B26,"-",R$1),'База выдачи'!$A:$F,6,0)),"",VLOOKUP(CONCATENATE($B26,"-",R$1),'База выдачи'!$A:$F,6,0)),VLOOKUP(CONCATENATE($B26,"-",R$1),База!$A:$G,6,0)) -> 02:31:36.910 | U26: 8 | V26: =IF(ISERROR(VLOOKUP(CONCATENATE($B26,"-",U$1),База!$A:$G,5,0)),IF(ISERROR(VLOOKUP(CONCATENATE($B26,"-",U$1),'База выдачи'!$A:$F,5,0)),"",VLOOKUP(CONCATENATE($B26,"-",U$1),'База выдачи'!$A:$F,5,0)),VLOOKUP(CONCATENATE($B26,"-",U$1),База!$A:$G,5,0)) -> OK | W26: =IF(ISERROR(VLOOKUP(CONCATENATE($B26,"-",U$1),База!$A:$G,6,0)),IF(ISERROR(VLOOKUP(CONCATENATE($B26,"-",U$1),'База выдачи'!$A:$F,6,0)),"",VLOOKUP(CONCATENATE($B26,"-",U$1),'База выдачи'!$A:$F,6,0)),VLOOKUP(CONCATENATE($B26,"-",U$1),База!$A:$G,6,0)) -> 02:53:29.070 | X26: 4 | Y26: =IF(ISERROR(VLOOKUP(CONCATENATE($B26,"-",X$1),База!$A:$G,5,0)),IF(ISERROR(VLOOKUP(CONCATENATE($B26,"-",X$1),'База выдачи'!$A:$F,5,0)),"",VLOOKUP(CONCATENATE($B26,"-",X$1),'База выдачи'!$A:$F,5,0)),VLOOKUP(CONCATENATE($B26,"-",X$1),База!$A:$G,5,0)) -> ST | Z26: =IF(ISERROR(VLOOKUP(CONCATENATE($B26,"-",X$1),База!$A:$G,6,0)),IF(ISERROR(VLOOKUP(CONCATENATE($B26,"-",X$1),'База выдачи'!$A:$F,6,0)),"",VLOOKUP(CONCATENATE($B26,"-",X$1),'База выдачи'!$A:$F,6,0)),VLOOKUP(CONCATENATE($B26,"-",X$1),База!$A:$G,6,0)) -> 02:53:30.990 | AA26: 3 | AB26: =IF(ISERROR(VLOOKUP(CONCATENATE($B26,"-",AA$1),База!$A:$G,5,0)),IF(ISERROR(VLOOKUP(CONCATENATE($B26,"-",AA$1),'База выдачи'!$A:$F,5,0)),"",VLOOKUP(CONCATENATE($B26,"-",AA$1),'База выдачи'!$A:$F,5,0)),VLOOKUP(CONCATENATE($B26,"-",AA$1),База!$A:$G,5,0)) ->  | AC26: =IF(ISERROR(VLOOKUP(CONCATENATE($B26,"-",AA$1),База!$A:$G,6,0)),IF(ISERROR(VLOOKUP(CONCATENATE($B26,"-",AA$1),'База выдачи'!$A:$F,6,0)),"",VLOOKUP(CONCATENATE($B26,"-",AA$1),'База выдачи'!$A:$F,6,0)),VLOOKUP(CONCATENATE($B26,"-",AA$1),База!$A:$G,6,0)) ->  | AD26: B | AE26: =IF(ISERROR(VLOOKUP(CONCATENATE($B26,"-",AD$1),База!$A:$G,5,0)),IF(ISERROR(VLOOKUP(CONCATENATE($B26,"-",AD$1),'База выдачи'!$A:$F,5,0)),"",VLOOKUP(CONCATENATE($B26,"-",AD$1),'База выдачи'!$A:$F,5,0)),VLOOKUP(CONCATENATE($B26,"-",AD$1),База!$A:$G,5,0)) ->  | AF26: =IF(ISERROR(VLOOKUP(CONCATENATE($B26,"-",AD$1),База!$A:$G,6,0)),IF(ISERROR(VLOOKUP(CONCATENATE($B26,"-",AD$1),'База выдачи'!$A:$F,6,0)),"",VLOOKUP(CONCATENATE($B26,"-",AD$1),'База выдачи'!$A:$F,6,0)),VLOOKUP(CONCATENATE($B26,"-",AD$1),База!$A:$G,6,0)) ->  | AG26: C | AH26: =IF(ISERROR(VLOOKUP(CONCATENATE($B26,"-",AG$1),База!$A:$G,5,0)),IF(ISERROR(VLOOKUP(CONCATENATE($B26,"-",AG$1),'База выдачи'!$A:$F,5,0)),"",VLOOKUP(CONCATENATE($B26,"-",AG$1),'База выдачи'!$A:$F,5,0)),VLOOKUP(CONCATENATE($B26,"-",AG$1),База!$A:$G,5,0)) ->  | AI26: =IF(ISERROR(VLOOKUP(CONCATENATE($B26,"-",AG$1),База!$A:$G,6,0)),IF(ISERROR(VLOOKUP(CONCATENATE($B26,"-",AG$1),'База выдачи'!$A:$F,6,0)),"",VLOOKUP(CONCATENATE($B26,"-",AG$1),'База выдачи'!$A:$F,6,0)),VLOOKUP(CONCATENATE($B26,"-",AG$1),База!$A:$G,6,0)) ->  | AJ26: D | AK26: =IF(ISERROR(VLOOKUP(CONCATENATE($B26,"-",AJ$1),База!$A:$G,5,0)),IF(ISERROR(VLOOKUP(CONCATENATE($B26,"-",AJ$1),'База выдачи'!$A:$F,5,0)),"",VLOOKUP(CONCATENATE($B26,"-",AJ$1),'База выдачи'!$A:$F,5,0)),VLOOKUP(CONCATENATE($B26,"-",AJ$1),База!$A:$G,5,0)) ->  | AL26: =IF(ISERROR(VLOOKUP(CONCATENATE($B26,"-",AJ$1),База!$A:$G,6,0)),IF(ISERROR(VLOOKUP(CONCATENATE($B26,"-",AJ$1),'База выдачи'!$A:$F,6,0)),"",VLOOKUP(CONCATENATE($B26,"-",AJ$1),'База выдачи'!$A:$F,6,0)),VLOOKUP(CONCATENATE($B26,"-",AJ$1),База!$A:$G,6,0)) ->  | AM26: E | AN26: =IF(ISERROR(VLOOKUP(CONCATENATE($B26,"-",AM$1),База!$A:$G,5,0)),IF(ISERROR(VLOOKUP(CONCATENATE($B26,"-",AM$1),'База выдачи'!$A:$F,5,0)),"",VLOOKUP(CONCATENATE($B26,"-",AM$1),'База выдачи'!$A:$F,5,0)),VLOOKUP(CONCATENATE($B26,"-",AM$1),База!$A:$G,5,0)) ->  | AO26: =IF(ISERROR(VLOOKUP(CONCATENATE($B26,"-",AM$1),База!$A:$G,6,0)),IF(ISERROR(VLOOKUP(CONCATENATE($B26,"-",AM$1),'База выдачи'!$A:$F,6,0)),"",VLOOKUP(CONCATENATE($B26,"-",AM$1),'База выдачи'!$A:$F,6,0)),VLOOKUP(CONCATENATE($B26,"-",AM$1),База!$A:$G,6,0)) ->  | AP26: F | AQ26: =IF(ISERROR(VLOOKUP(CONCATENATE($B26,"-",AP$1),База!$A:$G,5,0)),IF(ISERROR(VLOOKUP(CONCATENATE($B26,"-",AP$1),'База выдачи'!$A:$F,5,0)),"",VLOOKUP(CONCATENATE($B26,"-",AP$1),'База выдачи'!$A:$F,5,0)),VLOOKUP(CONCATENATE($B26,"-",AP$1),База!$A:$G,5,0)) ->  | AR26: =IF(ISERROR(VLOOKUP(CONCATENATE($B26,"-",AP$1),База!$A:$G,6,0)),IF(ISERROR(VLOOKUP(CONCATENATE($B26,"-",AP$1),'База выдачи'!$A:$F,6,0)),"",VLOOKUP(CONCATENATE($B26,"-",AP$1),'База выдачи'!$A:$F,6,0)),VLOOKUP(CONCATENATE($B26,"-",AP$1),База!$A:$G,6,0)) ->  | AS26: G | AT26: =IF(ISERROR(VLOOKUP(CONCATENATE($B26,"-",AS$1),База!$A:$G,5,0)),IF(ISERROR(VLOOKUP(CONCATENATE($B26,"-",AS$1),'База выдачи'!$A:$F,5,0)),"",VLOOKUP(CONCATENATE($B26,"-",AS$1),'База выдачи'!$A:$F,5,0)),VLOOKUP(CONCATENATE($B26,"-",AS$1),База!$A:$G,5,0)) ->  | AU26: =IF(ISERROR(VLOOKUP(CONCATENATE($B26,"-",AS$1),База!$A:$G,6,0)),IF(ISERROR(VLOOKUP(CONCATENATE($B26,"-",AS$1),'База выдачи'!$A:$F,6,0)),"",VLOOKUP(CONCATENATE($B26,"-",AS$1),'База выдачи'!$A:$F,6,0)),VLOOKUP(CONCATENATE($B26,"-",AS$1),База!$A:$G,6,0)) ->  | AX26: =COUNTIFS(База!B:B,Статистика!B26,База!E:E,"OK") -> 5 | AY26: =DA3 -> 02:53:29.070 | AZ26: 10409 | BA26: =COUNTIFS(База!B:B,Статистика!B26,База!E:E,"XXXX") -> 2 | BB26: =IF(AX26+AZ26+BA26=0,ксекундвигре-BD26,ксекундвигре*Статистика!AX26+(ксекундвигре-Статистика!AZ26)+Статистика!BA26) -> 54753 | BC26: 44702 | BD26: 24 | BE26: 20
A27: 25 | B27: =IF(ISERROR(VLOOKUP(A27,Служебный!B:C,2,0)),"",A27&"-"&VLOOKUP(A27,Служебный!B:C,2,0)) -> 25-Черный плащ | C27: 7 | D27: =IF(ISERROR(VLOOKUP(CONCATENATE($B27,"-",C$1),База!$A:$G,5,0)),IF(ISERROR(VLOOKUP(CONCATENATE($B27,"-",C$1),'База выдачи'!$A:$F,5,0)),"",VLOOKUP(CONCATENATE($B27,"-",C$1),'База выдачи'!$A:$F,5,0)),VLOOKUP(CONCATENATE($B27,"-",C$1),База!$A:$G,5,0)) -> OK | E27: =IF(ISERROR(VLOOKUP(CONCATENATE($B27,"-",C$1),База!$A:$G,6,0)),IF(ISERROR(VLOOKUP(CONCATENATE($B27,"-",C$1),'База выдачи'!$A:$F,6,0)),"",VLOOKUP(CONCATENATE($B27,"-",C$1),'База выдачи'!$A:$F,6,0)),VLOOKUP(CONCATENATE($B27,"-",C$1),База!$A:$G,6,0)) -> 00:26:00.240 | F27: 2 | G27: =IF(ISERROR(VLOOKUP(CONCATENATE($B27,"-",F$1),База!$A:$G,5,0)),IF(ISERROR(VLOOKUP(CONCATENATE($B27,"-",F$1),'База выдачи'!$A:$F,5,0)),"",VLOOKUP(CONCATENATE($B27,"-",F$1),'База выдачи'!$A:$F,5,0)),VLOOKUP(CONCATENATE($B27,"-",F$1),База!$A:$G,5,0)) -> OK | H27: =IF(ISERROR(VLOOKUP(CONCATENATE($B27,"-",F$1),База!$A:$G,6,0)),IF(ISERROR(VLOOKUP(CONCATENATE($B27,"-",F$1),'База выдачи'!$A:$F,6,0)),"",VLOOKUP(CONCATENATE($B27,"-",F$1),'База выдачи'!$A:$F,6,0)),VLOOKUP(CONCATENATE($B27,"-",F$1),База!$A:$G,6,0)) -> 00:56:17.470 | I27: 6 | J27: =IF(ISERROR(VLOOKUP(CONCATENATE($B27,"-",I$1),База!$A:$G,5,0)),IF(ISERROR(VLOOKUP(CONCATENATE($B27,"-",I$1),'База выдачи'!$A:$F,5,0)),"",VLOOKUP(CONCATENATE($B27,"-",I$1),'База выдачи'!$A:$F,5,0)),VLOOKUP(CONCATENATE($B27,"-",I$1),База!$A:$G,5,0)) -> OK | K27: =IF(ISERROR(VLOOKUP(CONCATENATE($B27,"-",I$1),База!$A:$G,6,0)),IF(ISERROR(VLOOKUP(CONCATENATE($B27,"-",I$1),'База выдачи'!$A:$F,6,0)),"",VLOOKUP(CONCATENATE($B27,"-",I$1),'База выдачи'!$A:$F,6,0)),VLOOKUP(CONCATENATE($B27,"-",I$1),База!$A:$G,6,0)) -> 01:20:38.300 | L27: 5 | M27: =IF(ISERROR(VLOOKUP(CONCATENATE($B27,"-",L$1),База!$A:$G,5,0)),IF(ISERROR(VLOOKUP(CONCATENATE($B27,"-",L$1),'База выдачи'!$A:$F,5,0)),"",VLOOKUP(CONCATENATE($B27,"-",L$1),'База выдачи'!$A:$F,5,0)),VLOOKUP(CONCATENATE($B27,"-",L$1),База!$A:$G,5,0)) -> OK | N27: =IF(ISERROR(VLOOKUP(CONCATENATE($B27,"-",L$1),База!$A:$G,6,0)),IF(ISERROR(VLOOKUP(CONCATENATE($B27,"-",L$1),'База выдачи'!$A:$F,6,0)),"",VLOOKUP(CONCATENATE($B27,"-",L$1),'База выдачи'!$A:$F,6,0)),VLOOKUP(CONCATENATE($B27,"-",L$1),База!$A:$G,6,0)) -> 01:49:29.100 | O27: 3 | P27: =IF(ISERROR(VLOOKUP(CONCATENATE($B27,"-",O$1),База!$A:$G,5,0)),IF(ISERROR(VLOOKUP(CONCATENATE($B27,"-",O$1),'База выдачи'!$A:$F,5,0)),"",VLOOKUP(CONCATENATE($B27,"-",O$1),'База выдачи'!$A:$F,5,0)),VLOOKUP(CONCATENATE($B27,"-",O$1),База!$A:$G,5,0)) -> OK | Q27: =IF(ISERROR(VLOOKUP(CONCATENATE($B27,"-",O$1),База!$A:$G,6,0)),IF(ISERROR(VLOOKUP(CONCATENATE($B27,"-",O$1),'База выдачи'!$A:$F,6,0)),"",VLOOKUP(CONCATENATE($B27,"-",O$1),'База выдачи'!$A:$F,6,0)),VLOOKUP(CONCATENATE($B27,"-",O$1),База!$A:$G,6,0)) -> 02:09:50.740 | R27: 9 | S27: =IF(ISERROR(VLOOKUP(CONCATENATE($B27,"-",R$1),База!$A:$G,5,0)),IF(ISERROR(VLOOKUP(CONCATENATE($B27,"-",R$1),'База выдачи'!$A:$F,5,0)),"",VLOOKUP(CONCATENATE($B27,"-",R$1),'База выдачи'!$A:$F,5,0)),VLOOKUP(CONCATENATE($B27,"-",R$1),База!$A:$G,5,0)) -> OK | T27: =IF(ISERROR(VLOOKUP(CONCATENATE($B27,"-",R$1),База!$A:$G,6,0)),IF(ISERROR(VLOOKUP(CONCATENATE($B27,"-",R$1),'База выдачи'!$A:$F,6,0)),"",VLOOKUP(CONCATENATE($B27,"-",R$1),'База выдачи'!$A:$F,6,0)),VLOOKUP(CONCATENATE($B27,"-",R$1),База!$A:$G,6,0)) -> 02:55:25.040 | U27: 1 | V27: =IF(ISERROR(VLOOKUP(CONCATENATE($B27,"-",U$1),База!$A:$G,5,0)),IF(ISERROR(VLOOKUP(CONCATENATE($B27,"-",U$1),'База выдачи'!$A:$F,5,0)),"",VLOOKUP(CONCATENATE($B27,"-",U$1),'База выдачи'!$A:$F,5,0)),VLOOKUP(CONCATENATE($B27,"-",U$1),База!$A:$G,5,0)) -> ST | W27: =IF(ISERROR(VLOOKUP(CONCATENATE($B27,"-",U$1),База!$A:$G,6,0)),IF(ISERROR(VLOOKUP(CONCATENATE($B27,"-",U$1),'База выдачи'!$A:$F,6,0)),"",VLOOKUP(CONCATENATE($B27,"-",U$1),'База выдачи'!$A:$F,6,0)),VLOOKUP(CONCATENATE($B27,"-",U$1),База!$A:$G,6,0)) -> 02:55:26.950 | X27: 8 | Y27: =IF(ISERROR(VLOOKUP(CONCATENATE($B27,"-",X$1),База!$A:$G,5,0)),IF(ISERROR(VLOOKUP(CONCATENATE($B27,"-",X$1),'База выдачи'!$A:$F,5,0)),"",VLOOKUP(CONCATENATE($B27,"-",X$1),'База выдачи'!$A:$F,5,0)),VLOOKUP(CONCATENATE($B27,"-",X$1),База!$A:$G,5,0)) ->  | Z27: =IF(ISERROR(VLOOKUP(CONCATENATE($B27,"-",X$1),База!$A:$G,6,0)),IF(ISERROR(VLOOKUP(CONCATENATE($B27,"-",X$1),'База выдачи'!$A:$F,6,0)),"",VLOOKUP(CONCATENATE($B27,"-",X$1),'База выдачи'!$A:$F,6,0)),VLOOKUP(CONCATENATE($B27,"-",X$1),База!$A:$G,6,0)) ->  | AA27: 4 | AB27: =IF(ISERROR(VLOOKUP(CONCATENATE($B27,"-",AA$1),База!$A:$G,5,0)),IF(ISERROR(VLOOKUP(CONCATENATE($B27,"-",AA$1),'База выдачи'!$A:$F,5,0)),"",VLOOKUP(CONCATENATE($B27,"-",AA$1),'База выдачи'!$A:$F,5,0)),VLOOKUP(CONCATENATE($B27,"-",AA$1),База!$A:$G,5,0)) ->  | AC27: =IF(ISERROR(VLOOKUP(CONCATENATE($B27,"-",AA$1),База!$A:$G,6,0)),IF(ISERROR(VLOOKUP(CONCATENATE($B27,"-",AA$1),'База выдачи'!$A:$F,6,0)),"",VLOOKUP(CONCATENATE($B27,"-",AA$1),'База выдачи'!$A:$F,6,0)),VLOOKUP(CONCATENATE($B27,"-",AA$1),База!$A:$G,6,0)) ->  | AD27: A | AE27: =IF(ISERROR(VLOOKUP(CONCATENATE($B27,"-",AD$1),База!$A:$G,5,0)),IF(ISERROR(VLOOKUP(CONCATENATE($B27,"-",AD$1),'База выдачи'!$A:$F,5,0)),"",VLOOKUP(CONCATENATE($B27,"-",AD$1),'База выдачи'!$A:$F,5,0)),VLOOKUP(CONCATENATE($B27,"-",AD$1),База!$A:$G,5,0)) ->  | AF27: =IF(ISERROR(VLOOKUP(CONCATENATE($B27,"-",AD$1),База!$A:$G,6,0)),IF(ISERROR(VLOOKUP(CONCATENATE($B27,"-",AD$1),'База выдачи'!$A:$F,6,0)),"",VLOOKUP(CONCATENATE($B27,"-",AD$1),'База выдачи'!$A:$F,6,0)),VLOOKUP(CONCATENATE($B27,"-",AD$1),База!$A:$G,6,0)) ->  | AG27: B | AH27: =IF(ISERROR(VLOOKUP(CONCATENATE($B27,"-",AG$1),База!$A:$G,5,0)),IF(ISERROR(VLOOKUP(CONCATENATE($B27,"-",AG$1),'База выдачи'!$A:$F,5,0)),"",VLOOKUP(CONCATENATE($B27,"-",AG$1),'База выдачи'!$A:$F,5,0)),VLOOKUP(CONCATENATE($B27,"-",AG$1),База!$A:$G,5,0)) ->  | AI27: =IF(ISERROR(VLOOKUP(CONCATENATE($B27,"-",AG$1),База!$A:$G,6,0)),IF(ISERROR(VLOOKUP(CONCATENATE($B27,"-",AG$1),'База выдачи'!$A:$F,6,0)),"",VLOOKUP(CONCATENATE($B27,"-",AG$1),'База выдачи'!$A:$F,6,0)),VLOOKUP(CONCATENATE($B27,"-",AG$1),База!$A:$G,6,0)) ->  | AJ27: C | AK27: =IF(ISERROR(VLOOKUP(CONCATENATE($B27,"-",AJ$1),База!$A:$G,5,0)),IF(ISERROR(VLOOKUP(CONCATENATE($B27,"-",AJ$1),'База выдачи'!$A:$F,5,0)),"",VLOOKUP(CONCATENATE($B27,"-",AJ$1),'База выдачи'!$A:$F,5,0)),VLOOKUP(CONCATENATE($B27,"-",AJ$1),База!$A:$G,5,0)) ->  | AL27: =IF(ISERROR(VLOOKUP(CONCATENATE($B27,"-",AJ$1),База!$A:$G,6,0)),IF(ISERROR(VLOOKUP(CONCATENATE($B27,"-",AJ$1),'База выдачи'!$A:$F,6,0)),"",VLOOKUP(CONCATENATE($B27,"-",AJ$1),'База выдачи'!$A:$F,6,0)),VLOOKUP(CONCATENATE($B27,"-",AJ$1),База!$A:$G,6,0)) ->  | AM27: D | AN27: =IF(ISERROR(VLOOKUP(CONCATENATE($B27,"-",AM$1),База!$A:$G,5,0)),IF(ISERROR(VLOOKUP(CONCATENATE($B27,"-",AM$1),'База выдачи'!$A:$F,5,0)),"",VLOOKUP(CONCATENATE($B27,"-",AM$1),'База выдачи'!$A:$F,5,0)),VLOOKUP(CONCATENATE($B27,"-",AM$1),База!$A:$G,5,0)) ->  | AO27: =IF(ISERROR(VLOOKUP(CONCATENATE($B27,"-",AM$1),База!$A:$G,6,0)),IF(ISERROR(VLOOKUP(CONCATENATE($B27,"-",AM$1),'База выдачи'!$A:$F,6,0)),"",VLOOKUP(CONCATENATE($B27,"-",AM$1),'База выдачи'!$A:$F,6,0)),VLOOKUP(CONCATENATE($B27,"-",AM$1),База!$A:$G,6,0)) ->  | AP27: E | AQ27: =IF(ISERROR(VLOOKUP(CONCATENATE($B27,"-",AP$1),База!$A:$G,5,0)),IF(ISERROR(VLOOKUP(CONCATENATE($B27,"-",AP$1),'База выдачи'!$A:$F,5,0)),"",VLOOKUP(CONCATENATE($B27,"-",AP$1),'База выдачи'!$A:$F,5,0)),VLOOKUP(CONCATENATE($B27,"-",AP$1),База!$A:$G,5,0)) ->  | AR27: =IF(ISERROR(VLOOKUP(CONCATENATE($B27,"-",AP$1),База!$A:$G,6,0)),IF(ISERROR(VLOOKUP(CONCATENATE($B27,"-",AP$1),'База выдачи'!$A:$F,6,0)),"",VLOOKUP(CONCATENATE($B27,"-",AP$1),'База выдачи'!$A:$F,6,0)),VLOOKUP(CONCATENATE($B27,"-",AP$1),База!$A:$G,6,0)) ->  | AS27: F | AT27: =IF(ISERROR(VLOOKUP(CONCATENATE($B27,"-",AS$1),База!$A:$G,5,0)),IF(ISERROR(VLOOKUP(CONCATENATE($B27,"-",AS$1),'База выдачи'!$A:$F,5,0)),"",VLOOKUP(CONCATENATE($B27,"-",AS$1),'База выдачи'!$A:$F,5,0)),VLOOKUP(CONCATENATE($B27,"-",AS$1),База!$A:$G,5,0)) ->  | AU27: =IF(ISERROR(VLOOKUP(CONCATENATE($B27,"-",AS$1),База!$A:$G,6,0)),IF(ISERROR(VLOOKUP(CONCATENATE($B27,"-",AS$1),'База выдачи'!$A:$F,6,0)),"",VLOOKUP(CONCATENATE($B27,"-",AS$1),'База выдачи'!$A:$F,6,0)),VLOOKUP(CONCATENATE($B27,"-",AS$1),База!$A:$G,6,0)) ->  | AX27: =COUNTIFS(База!B:B,Статистика!B27,База!E:E,"OK") -> 6 | AY27: =DC3 -> 02:55:25.040 | AZ27: 10525 | BA27: =COUNTIFS(База!B:B,Статистика!B27,База!E:E,"XXXX") -> 0 | BB27: =IF(AX27+AZ27+BA27=0,ксекундвигре-BD27,ксекундвигре*Статистика!AX27+(ксекундвигре-Статистика!AZ27)+Статистика!BA27) -> 65495 | BC27: 44113 | BD27: 25 | BE27: 23
A28: 26 | B28: =IF(ISERROR(VLOOKUP(A28,Служебный!B:C,2,0)),"",A28&"-"&VLOOKUP(A28,Служебный!B:C,2,0)) -> 26-НеоБастардс | C28: 8 | D28: =IF(ISERROR(VLOOKUP(CONCATENATE($B28,"-",C$1),База!$A:$G,5,0)),IF(ISERROR(VLOOKUP(CONCATENATE($B28,"-",C$1),'База выдачи'!$A:$F,5,0)),"",VLOOKUP(CONCATENATE($B28,"-",C$1),'База выдачи'!$A:$F,5,0)),VLOOKUP(CONCATENATE($B28,"-",C$1),База!$A:$G,5,0)) -> OK | E28: =IF(ISERROR(VLOOKUP(CONCATENATE($B28,"-",C$1),База!$A:$G,6,0)),IF(ISERROR(VLOOKUP(CONCATENATE($B28,"-",C$1),'База выдачи'!$A:$F,6,0)),"",VLOOKUP(CONCATENATE($B28,"-",C$1),'База выдачи'!$A:$F,6,0)),VLOOKUP(CONCATENATE($B28,"-",C$1),База!$A:$G,6,0)) -> 00:27:58.940 | F28: 4 | G28: =IF(ISERROR(VLOOKUP(CONCATENATE($B28,"-",F$1),База!$A:$G,5,0)),IF(ISERROR(VLOOKUP(CONCATENATE($B28,"-",F$1),'База выдачи'!$A:$F,5,0)),"",VLOOKUP(CONCATENATE($B28,"-",F$1),'База выдачи'!$A:$F,5,0)),VLOOKUP(CONCATENATE($B28,"-",F$1),База!$A:$G,5,0)) -> OK | H28: =IF(ISERROR(VLOOKUP(CONCATENATE($B28,"-",F$1),База!$A:$G,6,0)),IF(ISERROR(VLOOKUP(CONCATENATE($B28,"-",F$1),'База выдачи'!$A:$F,6,0)),"",VLOOKUP(CONCATENATE($B28,"-",F$1),'База выдачи'!$A:$F,6,0)),VLOOKUP(CONCATENATE($B28,"-",F$1),База!$A:$G,6,0)) -> 00:45:49.130 | I28: 9 | J28: =IF(ISERROR(VLOOKUP(CONCATENATE($B28,"-",I$1),База!$A:$G,5,0)),IF(ISERROR(VLOOKUP(CONCATENATE($B28,"-",I$1),'База выдачи'!$A:$F,5,0)),"",VLOOKUP(CONCATENATE($B28,"-",I$1),'База выдачи'!$A:$F,5,0)),VLOOKUP(CONCATENATE($B28,"-",I$1),База!$A:$G,5,0)) -> OK | K28: =IF(ISERROR(VLOOKUP(CONCATENATE($B28,"-",I$1),База!$A:$G,6,0)),IF(ISERROR(VLOOKUP(CONCATENATE($B28,"-",I$1),'База выдачи'!$A:$F,6,0)),"",VLOOKUP(CONCATENATE($B28,"-",I$1),'База выдачи'!$A:$F,6,0)),VLOOKUP(CONCATENATE($B28,"-",I$1),База!$A:$G,6,0)) -> 01:06:53.490 | L28: 6 | M28: =IF(ISERROR(VLOOKUP(CONCATENATE($B28,"-",L$1),База!$A:$G,5,0)),IF(ISERROR(VLOOKUP(CONCATENATE($B28,"-",L$1),'База выдачи'!$A:$F,5,0)),"",VLOOKUP(CONCATENATE($B28,"-",L$1),'База выдачи'!$A:$F,5,0)),VLOOKUP(CONCATENATE($B28,"-",L$1),База!$A:$G,5,0)) -> OK | N28: =IF(ISERROR(VLOOKUP(CONCATENATE($B28,"-",L$1),База!$A:$G,6,0)),IF(ISERROR(VLOOKUP(CONCATENATE($B28,"-",L$1),'База выдачи'!$A:$F,6,0)),"",VLOOKUP(CONCATENATE($B28,"-",L$1),'База выдачи'!$A:$F,6,0)),VLOOKUP(CONCATENATE($B28,"-",L$1),База!$A:$G,6,0)) -> 01:20:27.670 | O28: 5 | P28: =IF(ISERROR(VLOOKUP(CONCATENATE($B28,"-",O$1),База!$A:$G,5,0)),IF(ISERROR(VLOOKUP(CONCATENATE($B28,"-",O$1),'База выдачи'!$A:$F,5,0)),"",VLOOKUP(CONCATENATE($B28,"-",O$1),'База выдачи'!$A:$F,5,0)),VLOOKUP(CONCATENATE($B28,"-",O$1),База!$A:$G,5,0)) -> OK | Q28: =IF(ISERROR(VLOOKUP(CONCATENATE($B28,"-",O$1),База!$A:$G,6,0)),IF(ISERROR(VLOOKUP(CONCATENATE($B28,"-",O$1),'База выдачи'!$A:$F,6,0)),"",VLOOKUP(CONCATENATE($B28,"-",O$1),'База выдачи'!$A:$F,6,0)),VLOOKUP(CONCATENATE($B28,"-",O$1),База!$A:$G,6,0)) -> 01:32:32.730 | R28: 2 | S28: =IF(ISERROR(VLOOKUP(CONCATENATE($B28,"-",R$1),База!$A:$G,5,0)),IF(ISERROR(VLOOKUP(CONCATENATE($B28,"-",R$1),'База выдачи'!$A:$F,5,0)),"",VLOOKUP(CONCATENATE($B28,"-",R$1),'База выдачи'!$A:$F,5,0)),VLOOKUP(CONCATENATE($B28,"-",R$1),База!$A:$G,5,0)) -> OK | T28: =IF(ISERROR(VLOOKUP(CONCATENATE($B28,"-",R$1),База!$A:$G,6,0)),IF(ISERROR(VLOOKUP(CONCATENATE($B28,"-",R$1),'База выдачи'!$A:$F,6,0)),"",VLOOKUP(CONCATENATE($B28,"-",R$1),'База выдачи'!$A:$F,6,0)),VLOOKUP(CONCATENATE($B28,"-",R$1),База!$A:$G,6,0)) -> 02:31:19.330 | U28: 7 | V28: =IF(ISERROR(VLOOKUP(CONCATENATE($B28,"-",U$1),База!$A:$G,5,0)),IF(ISERROR(VLOOKUP(CONCATENATE($B28,"-",U$1),'База выдачи'!$A:$F,5,0)),"",VLOOKUP(CONCATENATE($B28,"-",U$1),'База выдачи'!$A:$F,5,0)),VLOOKUP(CONCATENATE($B28,"-",U$1),База!$A:$G,5,0)) -> OK | W28: =IF(ISERROR(VLOOKUP(CONCATENATE($B28,"-",U$1),База!$A:$G,6,0)),IF(ISERROR(VLOOKUP(CONCATENATE($B28,"-",U$1),'База выдачи'!$A:$F,6,0)),"",VLOOKUP(CONCATENATE($B28,"-",U$1),'База выдачи'!$A:$F,6,0)),VLOOKUP(CONCATENATE($B28,"-",U$1),База!$A:$G,6,0)) -> 02:47:02.330 | X28: 3 | Y28: =IF(ISERROR(VLOOKUP(CONCATENATE($B28,"-",X$1),База!$A:$G,5,0)),IF(ISERROR(VLOOKUP(CONCATENATE($B28,"-",X$1),'База выдачи'!$A:$F,5,0)),"",VLOOKUP(CONCATENATE($B28,"-",X$1),'База выдачи'!$A:$F,5,0)),VLOOKUP(CONCATENATE($B28,"-",X$1),База!$A:$G,5,0)) -> OK | Z28: =IF(ISERROR(VLOOKUP(CONCATENATE($B28,"-",X$1),База!$A:$G,6,0)),IF(ISERROR(VLOOKUP(CONCATENATE($B28,"-",X$1),'База выдачи'!$A:$F,6,0)),"",VLOOKUP(CONCATENATE($B28,"-",X$1),'База выдачи'!$A:$F,6,0)),VLOOKUP(CONCATENATE($B28,"-",X$1),База!$A:$G,6,0)) -> 03:02:51.270 | AA28: 1 | AB28: =IF(ISERROR(VLOOKUP(CONCATENATE($B28,"-",AA$1),База!$A:$G,5,0)),IF(ISERROR(VLOOKUP(CONCATENATE($B28,"-",AA$1),'База выдачи'!$A:$F,5,0)),"",VLOOKUP(CONCATENATE($B28,"-",AA$1),'База выдачи'!$A:$F,5,0)),VLOOKUP(CONCATENATE($B28,"-",AA$1),База!$A:$G,5,0)) -> ST | AC28: =IF(ISERROR(VLOOKUP(CONCATENATE($B28,"-",AA$1),База!$A:$G,6,0)),IF(ISERROR(VLOOKUP(CONCATENATE($B28,"-",AA$1),'База выдачи'!$A:$F,6,0)),"",VLOOKUP(CONCATENATE($B28,"-",AA$1),'База выдачи'!$A:$F,6,0)),VLOOKUP(CONCATENATE($B28,"-",AA$1),База!$A:$G,6,0)) -> 03:02:53.180 | AD28: O | AE28: =IF(ISERROR(VLOOKUP(CONCATENATE($B28,"-",AD$1),База!$A:$G,5,0)),IF(ISERROR(VLOOKUP(CONCATENATE($B28,"-",AD$1),'База выдачи'!$A:$F,5,0)),"",VLOOKUP(CONCATENATE($B28,"-",AD$1),'База выдачи'!$A:$F,5,0)),VLOOKUP(CONCATENATE($B28,"-",AD$1),База!$A:$G,5,0)) ->  | AF28: =IF(ISERROR(VLOOKUP(CONCATENATE($B28,"-",AD$1),База!$A:$G,6,0)),IF(ISERROR(VLOOKUP(CONCATENATE($B28,"-",AD$1),'База выдачи'!$A:$F,6,0)),"",VLOOKUP(CONCATENATE($B28,"-",AD$1),'База выдачи'!$A:$F,6,0)),VLOOKUP(CONCATENATE($B28,"-",AD$1),База!$A:$G,6,0)) ->  | AG28: A | AH28: =IF(ISERROR(VLOOKUP(CONCATENATE($B28,"-",AG$1),База!$A:$G,5,0)),IF(ISERROR(VLOOKUP(CONCATENATE($B28,"-",AG$1),'База выдачи'!$A:$F,5,0)),"",VLOOKUP(CONCATENATE($B28,"-",AG$1),'База выдачи'!$A:$F,5,0)),VLOOKUP(CONCATENATE($B28,"-",AG$1),База!$A:$G,5,0)) ->  | AI28: =IF(ISERROR(VLOOKUP(CONCATENATE($B28,"-",AG$1),База!$A:$G,6,0)),IF(ISERROR(VLOOKUP(CONCATENATE($B28,"-",AG$1),'База выдачи'!$A:$F,6,0)),"",VLOOKUP(CONCATENATE($B28,"-",AG$1),'База выдачи'!$A:$F,6,0)),VLOOKUP(CONCATENATE($B28,"-",AG$1),База!$A:$G,6,0)) ->  | AJ28: B | AK28: =IF(ISERROR(VLOOKUP(CONCATENATE($B28,"-",AJ$1),База!$A:$G,5,0)),IF(ISERROR(VLOOKUP(CONCATENATE($B28,"-",AJ$1),'База выдачи'!$A:$F,5,0)),"",VLOOKUP(CONCATENATE($B28,"-",AJ$1),'База выдачи'!$A:$F,5,0)),VLOOKUP(CONCATENATE($B28,"-",AJ$1),База!$A:$G,5,0)) ->  | AL28: =IF(ISERROR(VLOOKUP(CONCATENATE($B28,"-",AJ$1),База!$A:$G,6,0)),IF(ISERROR(VLOOKUP(CONCATENATE($B28,"-",AJ$1),'База выдачи'!$A:$F,6,0)),"",VLOOKUP(CONCATENATE($B28,"-",AJ$1),'База выдачи'!$A:$F,6,0)),VLOOKUP(CONCATENATE($B28,"-",AJ$1),База!$A:$G,6,0)) ->  | AM28: C | AN28: =IF(ISERROR(VLOOKUP(CONCATENATE($B28,"-",AM$1),База!$A:$G,5,0)),IF(ISERROR(VLOOKUP(CONCATENATE($B28,"-",AM$1),'База выдачи'!$A:$F,5,0)),"",VLOOKUP(CONCATENATE($B28,"-",AM$1),'База выдачи'!$A:$F,5,0)),VLOOKUP(CONCATENATE($B28,"-",AM$1),База!$A:$G,5,0)) ->  | AO28: =IF(ISERROR(VLOOKUP(CONCATENATE($B28,"-",AM$1),База!$A:$G,6,0)),IF(ISERROR(VLOOKUP(CONCATENATE($B28,"-",AM$1),'База выдачи'!$A:$F,6,0)),"",VLOOKUP(CONCATENATE($B28,"-",AM$1),'База выдачи'!$A:$F,6,0)),VLOOKUP(CONCATENATE($B28,"-",AM$1),База!$A:$G,6,0)) ->  | AP28: D | AQ28: =IF(ISERROR(VLOOKUP(CONCATENATE($B28,"-",AP$1),База!$A:$G,5,0)),IF(ISERROR(VLOOKUP(CONCATENATE($B28,"-",AP$1),'База выдачи'!$A:$F,5,0)),"",VLOOKUP(CONCATENATE($B28,"-",AP$1),'База выдачи'!$A:$F,5,0)),VLOOKUP(CONCATENATE($B28,"-",AP$1),База!$A:$G,5,0)) ->  | AR28: =IF(ISERROR(VLOOKUP(CONCATENATE($B28,"-",AP$1),База!$A:$G,6,0)),IF(ISERROR(VLOOKUP(CONCATENATE($B28,"-",AP$1),'База выдачи'!$A:$F,6,0)),"",VLOOKUP(CONCATENATE($B28,"-",AP$1),'База выдачи'!$A:$F,6,0)),VLOOKUP(CONCATENATE($B28,"-",AP$1),База!$A:$G,6,0)) ->  | AS28: E | AT28: =IF(ISERROR(VLOOKUP(CONCATENATE($B28,"-",AS$1),База!$A:$G,5,0)),IF(ISERROR(VLOOKUP(CONCATENATE($B28,"-",AS$1),'База выдачи'!$A:$F,5,0)),"",VLOOKUP(CONCATENATE($B28,"-",AS$1),'База выдачи'!$A:$F,5,0)),VLOOKUP(CONCATENATE($B28,"-",AS$1),База!$A:$G,5,0)) ->  | AU28: =IF(ISERROR(VLOOKUP(CONCATENATE($B28,"-",AS$1),База!$A:$G,6,0)),IF(ISERROR(VLOOKUP(CONCATENATE($B28,"-",AS$1),'База выдачи'!$A:$F,6,0)),"",VLOOKUP(CONCATENATE($B28,"-",AS$1),'База выдачи'!$A:$F,6,0)),VLOOKUP(CONCATENATE($B28,"-",AS$1),База!$A:$G,6,0)) ->  | AX28: =COUNTIFS(База!B:B,Статистика!B28,База!E:E,"OK") -> 8 | AY28: =DE3 -> 03:02:51.270 | AZ28: 10971 | BA28: =COUNTIFS(База!B:B,Статистика!B28,База!E:E,"XXXX") -> 0 | BB28: =IF(AX28+AZ28+BA28=0,ксекундвигре-BD28,ксекундвигре*Статистика!AX28+(ксекундвигре-Статистика!AZ28)+Статистика!BA28) -> 86769 | BC28: 43537 | BD28: 26 | BE28: 11
A29: 27 | B29: =IF(ISERROR(VLOOKUP(A29,Служебный!B:C,2,0)),"",A29&"-"&VLOOKUP(A29,Служебный!B:C,2,0)) -> 27-Всем пыждец | C29: 9 | D29: =IF(ISERROR(VLOOKUP(CONCATENATE($B29,"-",C$1),База!$A:$G,5,0)),IF(ISERROR(VLOOKUP(CONCATENATE($B29,"-",C$1),'База выдачи'!$A:$F,5,0)),"",VLOOKUP(CONCATENATE($B29,"-",C$1),'База выдачи'!$A:$F,5,0)),VLOOKUP(CONCATENATE($B29,"-",C$1),База!$A:$G,5,0)) -> OK | E29: =IF(ISERROR(VLOOKUP(CONCATENATE($B29,"-",C$1),База!$A:$G,6,0)),IF(ISERROR(VLOOKUP(CONCATENATE($B29,"-",C$1),'База выдачи'!$A:$F,6,0)),"",VLOOKUP(CONCATENATE($B29,"-",C$1),'База выдачи'!$A:$F,6,0)),VLOOKUP(CONCATENATE($B29,"-",C$1),База!$A:$G,6,0)) -> 00:25:06.620 | F29: 8 | G29: =IF(ISERROR(VLOOKUP(CONCATENATE($B29,"-",F$1),База!$A:$G,5,0)),IF(ISERROR(VLOOKUP(CONCATENATE($B29,"-",F$1),'База выдачи'!$A:$F,5,0)),"",VLOOKUP(CONCATENATE($B29,"-",F$1),'База выдачи'!$A:$F,5,0)),VLOOKUP(CONCATENATE($B29,"-",F$1),База!$A:$G,5,0)) -> OK | H29: =IF(ISERROR(VLOOKUP(CONCATENATE($B29,"-",F$1),База!$A:$G,6,0)),IF(ISERROR(VLOOKUP(CONCATENATE($B29,"-",F$1),'База выдачи'!$A:$F,6,0)),"",VLOOKUP(CONCATENATE($B29,"-",F$1),'База выдачи'!$A:$F,6,0)),VLOOKUP(CONCATENATE($B29,"-",F$1),База!$A:$G,6,0)) -> 00:43:28.350 | I29: 7 | J29: =IF(ISERROR(VLOOKUP(CONCATENATE($B29,"-",I$1),База!$A:$G,5,0)),IF(ISERROR(VLOOKUP(CONCATENATE($B29,"-",I$1),'База выдачи'!$A:$F,5,0)),"",VLOOKUP(CONCATENATE($B29,"-",I$1),'База выдачи'!$A:$F,5,0)),VLOOKUP(CONCATENATE($B29,"-",I$1),База!$A:$G,5,0)) -> OK | K29: =IF(ISERROR(VLOOKUP(CONCATENATE($B29,"-",I$1),База!$A:$G,6,0)),IF(ISERROR(VLOOKUP(CONCATENATE($B29,"-",I$1),'База выдачи'!$A:$F,6,0)),"",VLOOKUP(CONCATENATE($B29,"-",I$1),'База выдачи'!$A:$F,6,0)),VLOOKUP(CONCATENATE($B29,"-",I$1),База!$A:$G,6,0)) -> 01:03:55.140 | L29: 1 | M29: =IF(ISERROR(VLOOKUP(CONCATENATE($B29,"-",L$1),База!$A:$G,5,0)),IF(ISERROR(VLOOKUP(CONCATENATE($B29,"-",L$1),'База выдачи'!$A:$F,5,0)),"",VLOOKUP(CONCATENATE($B29,"-",L$1),'База выдачи'!$A:$F,5,0)),VLOOKUP(CONCATENATE($B29,"-",L$1),База!$A:$G,5,0)) -> XXXX | N29: =IF(ISERROR(VLOOKUP(CONCATENATE($B29,"-",L$1),База!$A:$G,6,0)),IF(ISERROR(VLOOKUP(CONCATENATE($B29,"-",L$1),'База выдачи'!$A:$F,6,0)),"",VLOOKUP(CONCATENATE($B29,"-",L$1),'База выдачи'!$A:$F,6,0)),VLOOKUP(CONCATENATE($B29,"-",L$1),База!$A:$G,6,0)) -> 01:48:17.220 | O29: 4 | P29: =IF(ISERROR(VLOOKUP(CONCATENATE($B29,"-",O$1),База!$A:$G,5,0)),IF(ISERROR(VLOOKUP(CONCATENATE($B29,"-",O$1),'База выдачи'!$A:$F,5,0)),"",VLOOKUP(CONCATENATE($B29,"-",O$1),'База выдачи'!$A:$F,5,0)),VLOOKUP(CONCATENATE($B29,"-",O$1),База!$A:$G,5,0)) -> OK | Q29: =IF(ISERROR(VLOOKUP(CONCATENATE($B29,"-",O$1),База!$A:$G,6,0)),IF(ISERROR(VLOOKUP(CONCATENATE($B29,"-",O$1),'База выдачи'!$A:$F,6,0)),"",VLOOKUP(CONCATENATE($B29,"-",O$1),'База выдачи'!$A:$F,6,0)),VLOOKUP(CONCATENATE($B29,"-",O$1),База!$A:$G,6,0)) -> 01:58:01.800 | R29: 6 | S29: =IF(ISERROR(VLOOKUP(CONCATENATE($B29,"-",R$1),База!$A:$G,5,0)),IF(ISERROR(VLOOKUP(CONCATENATE($B29,"-",R$1),'База выдачи'!$A:$F,5,0)),"",VLOOKUP(CONCATENATE($B29,"-",R$1),'База выдачи'!$A:$F,5,0)),VLOOKUP(CONCATENATE($B29,"-",R$1),База!$A:$G,5,0)) -> OK | T29: =IF(ISERROR(VLOOKUP(CONCATENATE($B29,"-",R$1),База!$A:$G,6,0)),IF(ISERROR(VLOOKUP(CONCATENATE($B29,"-",R$1),'База выдачи'!$A:$F,6,0)),"",VLOOKUP(CONCATENATE($B29,"-",R$1),'База выдачи'!$A:$F,6,0)),VLOOKUP(CONCATENATE($B29,"-",R$1),База!$A:$G,6,0)) -> 02:45:12.350 | U29: 3 | V29: =IF(ISERROR(VLOOKUP(CONCATENATE($B29,"-",U$1),База!$A:$G,5,0)),IF(ISERROR(VLOOKUP(CONCATENATE($B29,"-",U$1),'База выдачи'!$A:$F,5,0)),"",VLOOKUP(CONCATENATE($B29,"-",U$1),'База выдачи'!$A:$F,5,0)),VLOOKUP(CONCATENATE($B29,"-",U$1),База!$A:$G,5,0)) -> OK | W29: =IF(ISERROR(VLOOKUP(CONCATENATE($B29,"-",U$1),База!$A:$G,6,0)),IF(ISERROR(VLOOKUP(CONCATENATE($B29,"-",U$1),'База выдачи'!$A:$F,6,0)),"",VLOOKUP(CONCATENATE($B29,"-",U$1),'База выдачи'!$A:$F,6,0)),VLOOKUP(CONCATENATE($B29,"-",U$1),База!$A:$G,6,0)) -> 03:02:29.460 | X29: 2 | Y29: =IF(ISERROR(VLOOKUP(CONCATENATE($B29,"-",X$1),База!$A:$G,5,0)),IF(ISERROR(VLOOKUP(CONCATENATE($B29,"-",X$1),'База выдачи'!$A:$F,5,0)),"",VLOOKUP(CONCATENATE($B29,"-",X$1),'База выдачи'!$A:$F,5,0)),VLOOKUP(CONCATENATE($B29,"-",X$1),База!$A:$G,5,0)) -> ST | Z29: =IF(ISERROR(VLOOKUP(CONCATENATE($B29,"-",X$1),База!$A:$G,6,0)),IF(ISERROR(VLOOKUP(CONCATENATE($B29,"-",X$1),'База выдачи'!$A:$F,6,0)),"",VLOOKUP(CONCATENATE($B29,"-",X$1),'База выдачи'!$A:$F,6,0)),VLOOKUP(CONCATENATE($B29,"-",X$1),База!$A:$G,6,0)) -> 03:02:31.390 | AA29: 5 | AB29: =IF(ISERROR(VLOOKUP(CONCATENATE($B29,"-",AA$1),База!$A:$G,5,0)),IF(ISERROR(VLOOKUP(CONCATENATE($B29,"-",AA$1),'База выдачи'!$A:$F,5,0)),"",VLOOKUP(CONCATENATE($B29,"-",AA$1),'База выдачи'!$A:$F,5,0)),VLOOKUP(CONCATENATE($B29,"-",AA$1),База!$A:$G,5,0)) ->  | AC29: =IF(ISERROR(VLOOKUP(CONCATENATE($B29,"-",AA$1),База!$A:$G,6,0)),IF(ISERROR(VLOOKUP(CONCATENATE($B29,"-",AA$1),'База выдачи'!$A:$F,6,0)),"",VLOOKUP(CONCATENATE($B29,"-",AA$1),'База выдачи'!$A:$F,6,0)),VLOOKUP(CONCATENATE($B29,"-",AA$1),База!$A:$G,6,0)) ->  | AD29: N | AE29: =IF(ISERROR(VLOOKUP(CONCATENATE($B29,"-",AD$1),База!$A:$G,5,0)),IF(ISERROR(VLOOKUP(CONCATENATE($B29,"-",AD$1),'База выдачи'!$A:$F,5,0)),"",VLOOKUP(CONCATENATE($B29,"-",AD$1),'База выдачи'!$A:$F,5,0)),VLOOKUP(CONCATENATE($B29,"-",AD$1),База!$A:$G,5,0)) ->  | AF29: =IF(ISERROR(VLOOKUP(CONCATENATE($B29,"-",AD$1),База!$A:$G,6,0)),IF(ISERROR(VLOOKUP(CONCATENATE($B29,"-",AD$1),'База выдачи'!$A:$F,6,0)),"",VLOOKUP(CONCATENATE($B29,"-",AD$1),'База выдачи'!$A:$F,6,0)),VLOOKUP(CONCATENATE($B29,"-",AD$1),База!$A:$G,6,0)) ->  | AG29: O | AH29: =IF(ISERROR(VLOOKUP(CONCATENATE($B29,"-",AG$1),База!$A:$G,5,0)),IF(ISERROR(VLOOKUP(CONCATENATE($B29,"-",AG$1),'База выдачи'!$A:$F,5,0)),"",VLOOKUP(CONCATENATE($B29,"-",AG$1),'База выдачи'!$A:$F,5,0)),VLOOKUP(CONCATENATE($B29,"-",AG$1),База!$A:$G,5,0)) ->  | AI29: =IF(ISERROR(VLOOKUP(CONCATENATE($B29,"-",AG$1),База!$A:$G,6,0)),IF(ISERROR(VLOOKUP(CONCATENATE($B29,"-",AG$1),'База выдачи'!$A:$F,6,0)),"",VLOOKUP(CONCATENATE($B29,"-",AG$1),'База выдачи'!$A:$F,6,0)),VLOOKUP(CONCATENATE($B29,"-",AG$1),База!$A:$G,6,0)) ->  | AJ29: A | AK29: =IF(ISERROR(VLOOKUP(CONCATENATE($B29,"-",AJ$1),База!$A:$G,5,0)),IF(ISERROR(VLOOKUP(CONCATENATE($B29,"-",AJ$1),'База выдачи'!$A:$F,5,0)),"",VLOOKUP(CONCATENATE($B29,"-",AJ$1),'База выдачи'!$A:$F,5,0)),VLOOKUP(CONCATENATE($B29,"-",AJ$1),База!$A:$G,5,0)) ->  | AL29: =IF(ISERROR(VLOOKUP(CONCATENATE($B29,"-",AJ$1),База!$A:$G,6,0)),IF(ISERROR(VLOOKUP(CONCATENATE($B29,"-",AJ$1),'База выдачи'!$A:$F,6,0)),"",VLOOKUP(CONCATENATE($B29,"-",AJ$1),'База выдачи'!$A:$F,6,0)),VLOOKUP(CONCATENATE($B29,"-",AJ$1),База!$A:$G,6,0)) ->  | AM29: B | AN29: =IF(ISERROR(VLOOKUP(CONCATENATE($B29,"-",AM$1),База!$A:$G,5,0)),IF(ISERROR(VLOOKUP(CONCATENATE($B29,"-",AM$1),'База выдачи'!$A:$F,5,0)),"",VLOOKUP(CONCATENATE($B29,"-",AM$1),'База выдачи'!$A:$F,5,0)),VLOOKUP(CONCATENATE($B29,"-",AM$1),База!$A:$G,5,0)) ->  | AO29: =IF(ISERROR(VLOOKUP(CONCATENATE($B29,"-",AM$1),База!$A:$G,6,0)),IF(ISERROR(VLOOKUP(CONCATENATE($B29,"-",AM$1),'База выдачи'!$A:$F,6,0)),"",VLOOKUP(CONCATENATE($B29,"-",AM$1),'База выдачи'!$A:$F,6,0)),VLOOKUP(CONCATENATE($B29,"-",AM$1),База!$A:$G,6,0)) ->  | AP29: C | AQ29: =IF(ISERROR(VLOOKUP(CONCATENATE($B29,"-",AP$1),База!$A:$G,5,0)),IF(ISERROR(VLOOKUP(CONCATENATE($B29,"-",AP$1),'База выдачи'!$A:$F,5,0)),"",VLOOKUP(CONCATENATE($B29,"-",AP$1),'База выдачи'!$A:$F,5,0)),VLOOKUP(CONCATENATE($B29,"-",AP$1),База!$A:$G,5,0)) ->  | AR29: =IF(ISERROR(VLOOKUP(CONCATENATE($B29,"-",AP$1),База!$A:$G,6,0)),IF(ISERROR(VLOOKUP(CONCATENATE($B29,"-",AP$1),'База выдачи'!$A:$F,6,0)),"",VLOOKUP(CONCATENATE($B29,"-",AP$1),'База выдачи'!$A:$F,6,0)),VLOOKUP(CONCATENATE($B29,"-",AP$1),База!$A:$G,6,0)) ->  | AS29: D | AT29: =IF(ISERROR(VLOOKUP(CONCATENATE($B29,"-",AS$1),База!$A:$G,5,0)),IF(ISERROR(VLOOKUP(CONCATENATE($B29,"-",AS$1),'База выдачи'!$A:$F,5,0)),"",VLOOKUP(CONCATENATE($B29,"-",AS$1),'База выдачи'!$A:$F,5,0)),VLOOKUP(CONCATENATE($B29,"-",AS$1),База!$A:$G,5,0)) ->  | AU29: =IF(ISERROR(VLOOKUP(CONCATENATE($B29,"-",AS$1),База!$A:$G,6,0)),IF(ISERROR(VLOOKUP(CONCATENATE($B29,"-",AS$1),'База выдачи'!$A:$F,6,0)),"",VLOOKUP(CONCATENATE($B29,"-",AS$1),'База выдачи'!$A:$F,6,0)),VLOOKUP(CONCATENATE($B29,"-",AS$1),База!$A:$G,6,0)) ->  | AX29: =COUNTIFS(База!B:B,Статистика!B29,База!E:E,"OK") -> 6 | AY29: =DG3 -> 03:02:29.460 | AZ29: 10949 | BA29: =COUNTIFS(База!B:B,Статистика!B29,База!E:E,"XXXX") -> 1 | BB29: =IF(AX29+AZ29+BA29=0,ксекундвигре-BD29,ксекундвигре*Статистика!AX29+(ксекундвигре-Статистика!AZ29)+Статистика!BA29) -> 65072 | BC29: 35674 | BD29: 27 | BE29: 10
A30: 28 | B30: =IF(ISERROR(VLOOKUP(A30,Служебный!B:C,2,0)),"",A30&"-"&VLOOKUP(A30,Служебный!B:C,2,0)) -> 28-Тригада | C30: 1 | D30: =IF(ISERROR(VLOOKUP(CONCATENATE($B30,"-",C$1),База!$A:$G,5,0)),IF(ISERROR(VLOOKUP(CONCATENATE($B30,"-",C$1),'База выдачи'!$A:$F,5,0)),"",VLOOKUP(CONCATENATE($B30,"-",C$1),'База выдачи'!$A:$F,5,0)),VLOOKUP(CONCATENATE($B30,"-",C$1),База!$A:$G,5,0)) -> OK | E30: =IF(ISERROR(VLOOKUP(CONCATENATE($B30,"-",C$1),База!$A:$G,6,0)),IF(ISERROR(VLOOKUP(CONCATENATE($B30,"-",C$1),'База выдачи'!$A:$F,6,0)),"",VLOOKUP(CONCATENATE($B30,"-",C$1),'База выдачи'!$A:$F,6,0)),VLOOKUP(CONCATENATE($B30,"-",C$1),База!$A:$G,6,0)) -> 01:36:24.620 | F30: 3 | G30: =IF(ISERROR(VLOOKUP(CONCATENATE($B30,"-",F$1),База!$A:$G,5,0)),IF(ISERROR(VLOOKUP(CONCATENATE($B30,"-",F$1),'База выдачи'!$A:$F,5,0)),"",VLOOKUP(CONCATENATE($B30,"-",F$1),'База выдачи'!$A:$F,5,0)),VLOOKUP(CONCATENATE($B30,"-",F$1),База!$A:$G,5,0)) -> OK | H30: =IF(ISERROR(VLOOKUP(CONCATENATE($B30,"-",F$1),База!$A:$G,6,0)),IF(ISERROR(VLOOKUP(CONCATENATE($B30,"-",F$1),'База выдачи'!$A:$F,6,0)),"",VLOOKUP(CONCATENATE($B30,"-",F$1),'База выдачи'!$A:$F,6,0)),VLOOKUP(CONCATENATE($B30,"-",F$1),База!$A:$G,6,0)) -> 01:54:12.710 | I30: 5 | J30: =IF(ISERROR(VLOOKUP(CONCATENATE($B30,"-",I$1),База!$A:$G,5,0)),IF(ISERROR(VLOOKUP(CONCATENATE($B30,"-",I$1),'База выдачи'!$A:$F,5,0)),"",VLOOKUP(CONCATENATE($B30,"-",I$1),'База выдачи'!$A:$F,5,0)),VLOOKUP(CONCATENATE($B30,"-",I$1),База!$A:$G,5,0)) -> OK | K30: =IF(ISERROR(VLOOKUP(CONCATENATE($B30,"-",I$1),База!$A:$G,6,0)),IF(ISERROR(VLOOKUP(CONCATENATE($B30,"-",I$1),'База выдачи'!$A:$F,6,0)),"",VLOOKUP(CONCATENATE($B30,"-",I$1),'База выдачи'!$A:$F,6,0)),VLOOKUP(CONCATENATE($B30,"-",I$1),База!$A:$G,6,0)) -> 02:10:49 | L30: 2 | M30: =IF(ISERROR(VLOOKUP(CONCATENATE($B30,"-",L$1),База!$A:$G,5,0)),IF(ISERROR(VLOOKUP(CONCATENATE($B30,"-",L$1),'База выдачи'!$A:$F,5,0)),"",VLOOKUP(CONCATENATE($B30,"-",L$1),'База выдачи'!$A:$F,5,0)),VLOOKUP(CONCATENATE($B30,"-",L$1),База!$A:$G,5,0)) -> OK | N30: =IF(ISERROR(VLOOKUP(CONCATENATE($B30,"-",L$1),База!$A:$G,6,0)),IF(ISERROR(VLOOKUP(CONCATENATE($B30,"-",L$1),'База выдачи'!$A:$F,6,0)),"",VLOOKUP(CONCATENATE($B30,"-",L$1),'База выдачи'!$A:$F,6,0)),VLOOKUP(CONCATENATE($B30,"-",L$1),База!$A:$G,6,0)) -> 02:37:45.800 | O30: 4 | P30: =IF(ISERROR(VLOOKUP(CONCATENATE($B30,"-",O$1),База!$A:$G,5,0)),IF(ISERROR(VLOOKUP(CONCATENATE($B30,"-",O$1),'База выдачи'!$A:$F,5,0)),"",VLOOKUP(CONCATENATE($B30,"-",O$1),'База выдачи'!$A:$F,5,0)),VLOOKUP(CONCATENATE($B30,"-",O$1),База!$A:$G,5,0)) -> ST | Q30: =IF(ISERROR(VLOOKUP(CONCATENATE($B30,"-",O$1),База!$A:$G,6,0)),IF(ISERROR(VLOOKUP(CONCATENATE($B30,"-",O$1),'База выдачи'!$A:$F,6,0)),"",VLOOKUP(CONCATENATE($B30,"-",O$1),'База выдачи'!$A:$F,6,0)),VLOOKUP(CONCATENATE($B30,"-",O$1),База!$A:$G,6,0)) -> 02:37:47.720 | R30: 6 | S30: =IF(ISERROR(VLOOKUP(CONCATENATE($B30,"-",R$1),База!$A:$G,5,0)),IF(ISERROR(VLOOKUP(CONCATENATE($B30,"-",R$1),'База выдачи'!$A:$F,5,0)),"",VLOOKUP(CONCATENATE($B30,"-",R$1),'База выдачи'!$A:$F,5,0)),VLOOKUP(CONCATENATE($B30,"-",R$1),База!$A:$G,5,0)) ->  | T30: =IF(ISERROR(VLOOKUP(CONCATENATE($B30,"-",R$1),База!$A:$G,6,0)),IF(ISERROR(VLOOKUP(CONCATENATE($B30,"-",R$1),'База выдачи'!$A:$F,6,0)),"",VLOOKUP(CONCATENATE($B30,"-",R$1),'База выдачи'!$A:$F,6,0)),VLOOKUP(CONCATENATE($B30,"-",R$1),База!$A:$G,6,0)) ->  | U30: 8 | V30: =IF(ISERROR(VLOOKUP(CONCATENATE($B30,"-",U$1),База!$A:$G,5,0)),IF(ISERROR(VLOOKUP(CONCATENATE($B30,"-",U$1),'База выдачи'!$A:$F,5,0)),"",VLOOKUP(CONCATENATE($B30,"-",U$1),'База выдачи'!$A:$F,5,0)),VLOOKUP(CONCATENATE($B30,"-",U$1),База!$A:$G,5,0)) ->  | W30: =IF(ISERROR(VLOOKUP(CONCATENATE($B30,"-",U$1),База!$A:$G,6,0)),IF(ISERROR(VLOOKUP(CONCATENATE($B30,"-",U$1),'База выдачи'!$A:$F,6,0)),"",VLOOKUP(CONCATENATE($B30,"-",U$1),'База выдачи'!$A:$F,6,0)),VLOOKUP(CONCATENATE($B30,"-",U$1),База!$A:$G,6,0)) ->  | X30: 9 | Y30: =IF(ISERROR(VLOOKUP(CONCATENATE($B30,"-",X$1),База!$A:$G,5,0)),IF(ISERROR(VLOOKUP(CONCATENATE($B30,"-",X$1),'База выдачи'!$A:$F,5,0)),"",VLOOKUP(CONCATENATE($B30,"-",X$1),'База выдачи'!$A:$F,5,0)),VLOOKUP(CONCATENATE($B30,"-",X$1),База!$A:$G,5,0)) ->  | Z30: =IF(ISERROR(VLOOKUP(CONCATENATE($B30,"-",X$1),База!$A:$G,6,0)),IF(ISERROR(VLOOKUP(CONCATENATE($B30,"-",X$1),'База выдачи'!$A:$F,6,0)),"",VLOOKUP(CONCATENATE($B30,"-",X$1),'База выдачи'!$A:$F,6,0)),VLOOKUP(CONCATENATE($B30,"-",X$1),База!$A:$G,6,0)) ->  | AA30: 7 | AB30: =IF(ISERROR(VLOOKUP(CONCATENATE($B30,"-",AA$1),База!$A:$G,5,0)),IF(ISERROR(VLOOKUP(CONCATENATE($B30,"-",AA$1),'База выдачи'!$A:$F,5,0)),"",VLOOKUP(CONCATENATE($B30,"-",AA$1),'База выдачи'!$A:$F,5,0)),VLOOKUP(CONCATENATE($B30,"-",AA$1),База!$A:$G,5,0)) ->  | AC30: =IF(ISERROR(VLOOKUP(CONCATENATE($B30,"-",AA$1),База!$A:$G,6,0)),IF(ISERROR(VLOOKUP(CONCATENATE($B30,"-",AA$1),'База выдачи'!$A:$F,6,0)),"",VLOOKUP(CONCATENATE($B30,"-",AA$1),'База выдачи'!$A:$F,6,0)),VLOOKUP(CONCATENATE($B30,"-",AA$1),База!$A:$G,6,0)) ->  | AD30: M | AE30: =IF(ISERROR(VLOOKUP(CONCATENATE($B30,"-",AD$1),База!$A:$G,5,0)),IF(ISERROR(VLOOKUP(CONCATENATE($B30,"-",AD$1),'База выдачи'!$A:$F,5,0)),"",VLOOKUP(CONCATENATE($B30,"-",AD$1),'База выдачи'!$A:$F,5,0)),VLOOKUP(CONCATENATE($B30,"-",AD$1),База!$A:$G,5,0)) ->  | AF30: =IF(ISERROR(VLOOKUP(CONCATENATE($B30,"-",AD$1),База!$A:$G,6,0)),IF(ISERROR(VLOOKUP(CONCATENATE($B30,"-",AD$1),'База выдачи'!$A:$F,6,0)),"",VLOOKUP(CONCATENATE($B30,"-",AD$1),'База выдачи'!$A:$F,6,0)),VLOOKUP(CONCATENATE($B30,"-",AD$1),База!$A:$G,6,0)) ->  | AG30: N | AH30: =IF(ISERROR(VLOOKUP(CONCATENATE($B30,"-",AG$1),База!$A:$G,5,0)),IF(ISERROR(VLOOKUP(CONCATENATE($B30,"-",AG$1),'База выдачи'!$A:$F,5,0)),"",VLOOKUP(CONCATENATE($B30,"-",AG$1),'База выдачи'!$A:$F,5,0)),VLOOKUP(CONCATENATE($B30,"-",AG$1),База!$A:$G,5,0)) ->  | AI30: =IF(ISERROR(VLOOKUP(CONCATENATE($B30,"-",AG$1),База!$A:$G,6,0)),IF(ISERROR(VLOOKUP(CONCATENATE($B30,"-",AG$1),'База выдачи'!$A:$F,6,0)),"",VLOOKUP(CONCATENATE($B30,"-",AG$1),'База выдачи'!$A:$F,6,0)),VLOOKUP(CONCATENATE($B30,"-",AG$1),База!$A:$G,6,0)) ->  | AJ30: O | AK30: =IF(ISERROR(VLOOKUP(CONCATENATE($B30,"-",AJ$1),База!$A:$G,5,0)),IF(ISERROR(VLOOKUP(CONCATENATE($B30,"-",AJ$1),'База выдачи'!$A:$F,5,0)),"",VLOOKUP(CONCATENATE($B30,"-",AJ$1),'База выдачи'!$A:$F,5,0)),VLOOKUP(CONCATENATE($B30,"-",AJ$1),База!$A:$G,5,0)) ->  | AL30: =IF(ISERROR(VLOOKUP(CONCATENATE($B30,"-",AJ$1),База!$A:$G,6,0)),IF(ISERROR(VLOOKUP(CONCATENATE($B30,"-",AJ$1),'База выдачи'!$A:$F,6,0)),"",VLOOKUP(CONCATENATE($B30,"-",AJ$1),'База выдачи'!$A:$F,6,0)),VLOOKUP(CONCATENATE($B30,"-",AJ$1),База!$A:$G,6,0)) ->  | AM30: A | AN30: =IF(ISERROR(VLOOKUP(CONCATENATE($B30,"-",AM$1),База!$A:$G,5,0)),IF(ISERROR(VLOOKUP(CONCATENATE($B30,"-",AM$1),'База выдачи'!$A:$F,5,0)),"",VLOOKUP(CONCATENATE($B30,"-",AM$1),'База выдачи'!$A:$F,5,0)),VLOOKUP(CONCATENATE($B30,"-",AM$1),База!$A:$G,5,0)) ->  | AO30: =IF(ISERROR(VLOOKUP(CONCATENATE($B30,"-",AM$1),База!$A:$G,6,0)),IF(ISERROR(VLOOKUP(CONCATENATE($B30,"-",AM$1),'База выдачи'!$A:$F,6,0)),"",VLOOKUP(CONCATENATE($B30,"-",AM$1),'База выдачи'!$A:$F,6,0)),VLOOKUP(CONCATENATE($B30,"-",AM$1),База!$A:$G,6,0)) ->  | AP30: B | AQ30: =IF(ISERROR(VLOOKUP(CONCATENATE($B30,"-",AP$1),База!$A:$G,5,0)),IF(ISERROR(VLOOKUP(CONCATENATE($B30,"-",AP$1),'База выдачи'!$A:$F,5,0)),"",VLOOKUP(CONCATENATE($B30,"-",AP$1),'База выдачи'!$A:$F,5,0)),VLOOKUP(CONCATENATE($B30,"-",AP$1),База!$A:$G,5,0)) ->  | AR30: =IF(ISERROR(VLOOKUP(CONCATENATE($B30,"-",AP$1),База!$A:$G,6,0)),IF(ISERROR(VLOOKUP(CONCATENATE($B30,"-",AP$1),'База выдачи'!$A:$F,6,0)),"",VLOOKUP(CONCATENATE($B30,"-",AP$1),'База выдачи'!$A:$F,6,0)),VLOOKUP(CONCATENATE($B30,"-",AP$1),База!$A:$G,6,0)) ->  | AS30: C | AT30: =IF(ISERROR(VLOOKUP(CONCATENATE($B30,"-",AS$1),База!$A:$G,5,0)),IF(ISERROR(VLOOKUP(CONCATENATE($B30,"-",AS$1),'База выдачи'!$A:$F,5,0)),"",VLOOKUP(CONCATENATE($B30,"-",AS$1),'База выдачи'!$A:$F,5,0)),VLOOKUP(CONCATENATE($B30,"-",AS$1),База!$A:$G,5,0)) ->  | AU30: =IF(ISERROR(VLOOKUP(CONCATENATE($B30,"-",AS$1),База!$A:$G,6,0)),IF(ISERROR(VLOOKUP(CONCATENATE($B30,"-",AS$1),'База выдачи'!$A:$F,6,0)),"",VLOOKUP(CONCATENATE($B30,"-",AS$1),'База выдачи'!$A:$F,6,0)),VLOOKUP(CONCATENATE($B30,"-",AS$1),База!$A:$G,6,0)) ->  | AX30: =COUNTIFS(База!B:B,Статистика!B30,База!E:E,"OK") -> 4 | AY30: =DI3 -> 02:37:45.800 | AZ30: 9466 | BA30: =COUNTIFS(База!B:B,Статистика!B30,База!E:E,"XXXX") -> 0 | BB30: =IF(AX30+AZ30+BA30=0,ксекундвигре-BD30,ксекундвигре*Статистика!AX30+(ксекундвигре-Статистика!AZ30)+Статистика!BA30) -> 44834 | BC30: 35031 | BD30: 28 | BE30: 1
